Workbook

Sheet Suzuki S (hidden)
A1: This sheet was developed by Rookie Vee
B2: Gathering Prices & Parts for the Class S Suzuki Hayabusa (#0xC3) - Asphalt 8 Airborne
B3: UPGRADE | F3: PRO KITS
B4: Acc | C4: Spd | D4: Hnd | E4: Ntr | F4: Tires | P4: Fork Tubes | Z4: Transmission | AJ4: Exhaust
B5: Cost | F5: Cost | G5: Part | H5: Early | I5: Init | J5: Com | K5: Mid | L5: Rare | M5: Adv | N5: Legn | O5: Engn | P5: Cost | Q5: Part | R5: Early | S5: Init | T5: Com | U5: Mid | V5: Rare | W5: Adv | X5: Legn | Y5: Engn | Z5: Cost | AA5: Part | AB5: Early | AC5: Init | AD5: Com | AE5: Mid | AF5: Rare | AG5: Adv | AH5: Legn | AI5: Engn | AJ5: Cost | AK5: Part | AL5: Early | AM5: Init | AN5: Com | AO5: Mid | AP5: Rare | AQ5: Adv | AR5: Legn | AS5: Engn
A6: TO L1 → | B6: 2.25 | C6: 4.45 | D6: 2.25 | E6: 2.8 | F6: 5.2 | G6: 1 | K6: 1 | P6: 4.025 | Q6: 1 | U6: 1 | Z6: 5.2 | AA6: 1 | AE6: 1 | AJ6: 4.525 | AK6: 1 | AO6: 1
A7: TO L2 → | B7: 5.5 | C7: 11.75 | D7: 5.5 | E7: 8.25 | F7: 13.05 | G7: 1 | K7: 1 | P7: 10.375 | Q7: 1 | U7: 1 | Z7: 13.05 | AA7: 1 | AE7: 1 | AJ7: 11.9 | AK7: 1 | AO7: 1
A8: TO L3 → | B8: 9 | C8: 19.5 | D8: 9 | E8: 14 | F8: 31.125 | G8: 1 | K8: 1 | O8: 1 | P8: 24.95 | Q8: 1 | U8: 1 | Y8: 1 | Z8: 31.125 | AA8: 1 | AE8: 1 | AI8: 1 | AJ8: 28.625 | AK8: 1 | AO8: 1 | AS8: 1
A9: TO L4 → | B9: 12.75 | C9: 27.75 | D9: 12.75 | E9: 20 | F9: 40.5 | G9: 2 | M9: 1 | O9: 1 | P9: 32.475 | Q9: 2 | W9: 1 | Y9: 1 | Z9: 40.5 | AA9: 2 | AG9: 1 | AI9: 1 | AJ9: 37.15 | AK9: 2 | AQ9: 1 | AS9: 1
A10: TO PRO → | B10: 16.75 | C10: 38 | D10: 16.75 | E10: 27.25 | F10: 68.125 | G10: 2 | N10: 1 | O10: 1 | P10: 54.55 | Q10: 2 | X10: 1 | Y10: 1 | Z10: 68.125 | AA10: 2 | AH10: 1 | AI10: 1 | AJ10: 62.575 | AK10: 2 | AR10: 1 | AS10: 1
A11: TO L6 → | B11: 21.25 | C11: 47.5 | D11: 21.25 | E11: 34 | F11: =SUM(INDIRECT("R"&(ROW()-6)&"C"&COLUMN(),FALSE):INDIRECT("R"&(ROW()-6+$P60)&"C"&COLUMN(),FALSE)) -> 0 | G11: =SUM(INDIRECT("R"&(ROW()-6)&"C"&COLUMN(),FALSE):INDIRECT("R"&(ROW()-6+$P60)&"C"&COLUMN(),FALSE)) -> 0 | H11: =SUM(INDIRECT("R"&(ROW()-6)&"C"&COLUMN(),FALSE):INDIRECT("R"&(ROW()-6+$P60)&"C"&COLUMN(),FALSE)) -> 0 | I11: =SUM(INDIRECT("R"&(ROW()-6)&"C"&COLUMN(),FALSE):INDIRECT("R"&(ROW()-6+$P60)&"C"&COLUMN(),FALSE)) -> 0 | J11: =SUM(INDIRECT("R"&(ROW()-6)&"C"&COLUMN(),FALSE):INDIRECT("R"&(ROW()-6+$P60)&"C"&COLUMN(),FALSE)) -> 0 | K11: =SUM(INDIRECT("R"&(ROW()-6)&"C"&COLUMN(),FALSE):INDIRECT("R"&(ROW()-6+$P60)&"C"&COLUMN(),FALSE)) -> 0 | L11: =SUM(INDIRECT("R"&(ROW()-6)&"C"&COLUMN(),FALSE):INDIRECT("R"&(ROW()-6+$P60)&"C"&COLUMN(),FALSE)) -> 0 | M11: =SUM(INDIRECT("R"&(ROW()-6)&"C"&COLUMN(),FALSE):INDIRECT("R"&(ROW()-6+$P60)&"C"&COLUMN(),FALSE)) -> 0 | N11: =SUM(INDIRECT("R"&(ROW()-6)&"C"&COLUMN(),FALSE):INDIRECT("R"&(ROW()-6+$P60)&"C"&COLUMN(),FALSE)) -> 0 | O11: =SUM(INDIRECT("R"&(ROW()-6)&"C"&COLUMN(),FALSE):INDIRECT("R"&(ROW()-6+$P60)&"C"&COLUMN(),FALSE)) -> 0 | P11: =SUM(INDIRECT("R"&(ROW()-6)&"C"&COLUMN(),FALSE):INDIRECT("R"&(ROW()-6+$Q60)&"C"&COLUMN(),FALSE)) -> 0 | Q11: =SUM(INDIRECT("R"&(ROW()-6)&"C"&COLUMN(),FALSE):INDIRECT("R"&(ROW()-6+$Q60)&"C"&COLUMN(),FALSE)) -> 0 | R11: =SUM(INDIRECT("R"&(ROW()-6)&"C"&COLUMN(),FALSE):INDIRECT("R"&(ROW()-6+$Q60)&"C"&COLUMN(),FALSE)) -> 0 | S11: =SUM(INDIRECT("R"&(ROW()-6)&"C"&COLUMN(),FALSE):INDIRECT("R"&(ROW()-6+$Q60)&"C"&COLUMN(),FALSE)) -> 0 | T11: =SUM(INDIRECT("R"&(ROW()-6)&"C"&COLUMN(),FALSE):INDIRECT("R"&(ROW()-6+$Q60)&"C"&COLUMN(),FALSE)) -> 0 | U11: =SUM(INDIRECT("R"&(ROW()-6)&"C"&COLUMN(),FALSE):INDIRECT("R"&(ROW()-6+$Q60)&"C"&COLUMN(),FALSE)) -> 0 | V11: =SUM(INDIRECT("R"&(ROW()-6)&"C"&COLUMN(),FALSE):INDIRECT("R"&(ROW()-6+$Q60)&"C"&COLUMN(),FALSE)) -> 0 | W11: =SUM(INDIRECT("R"&(ROW()-6)&"C"&COLUMN(),FALSE):INDIRECT("R"&(ROW()-6+$Q60)&"C"&COLUMN(),FALSE)) -> 0 | X11: =SUM(INDIRECT("R"&(ROW()-6)&"C"&COLUMN(),FALSE):INDIRECT("R"&(ROW()-6+$Q60)&"C"&COLUMN(),FALSE)) -> 0 | Y11: =SUM(INDIRECT("R"&(ROW()-6)&"C"&COLUMN(),FALSE):INDIRECT("R"&(ROW()-6+$Q60)&"C"&COLUMN(),FALSE)) -> 0 | Z11: =SUM(INDIRECT("R"&(ROW()-6)&"C"&COLUMN(),FALSE):INDIRECT("R"&(ROW()-6+$R60)&"C"&COLUMN(),FALSE)) -> 0 | AA11: =SUM(INDIRECT("R"&(ROW()-6)&"C"&COLUMN(),FALSE):INDIRECT("R"&(ROW()-6+$R60)&"C"&COLUMN(),FALSE)) -> 0 | AB11: =SUM(INDIRECT("R"&(ROW()-6)&"C"&COLUMN(),FALSE):INDIRECT("R"&(ROW()-6+$R60)&"C"&COLUMN(),FALSE)) -> 0 | AC11: =SUM(INDIRECT("R"&(ROW()-6)&"C"&COLUMN(),FALSE):INDIRECT("R"&(ROW()-6+$R60)&"C"&COLUMN(),FALSE)) -> 0 | AD11: =SUM(INDIRECT("R"&(ROW()-6)&"C"&COLUMN(),FALSE):INDIRECT("R"&(ROW()-6+$R60)&"C"&COLUMN(),FALSE)) -> 0 | AE11: =SUM(INDIRECT("R"&(ROW()-6)&"C"&COLUMN(),FALSE):INDIRECT("R"&(ROW()-6+$R60)&"C"&COLUMN(),FALSE)) -> 0 | AF11: =SUM(INDIRECT("R"&(ROW()-6)&"C"&COLUMN(),FALSE):INDIRECT("R"&(ROW()-6+$R60)&"C"&COLUMN(),FALSE)) -> 0 | AG11: =SUM(INDIRECT("R"&(ROW()-6)&"C"&COLUMN(),FALSE):INDIRECT("R"&(ROW()-6+$R60)&"C"&COLUMN(),FALSE)) -> 0 | AH11: =SUM(INDIRECT("R"&(ROW()-6)&"C"&COLUMN(),FALSE):INDIRECT("R"&(ROW()-6+$R60)&"C"&COLUMN(),FALSE)) -> 0 | AI11: =SUM(INDIRECT("R"&(ROW()-6)&"C"&COLUMN(),FALSE):INDIRECT("R"&(ROW()-6+$R60)&"C"&COLUMN(),FALSE)) -> 0 | AJ11: =SUM(INDIRECT("R"&(ROW()-6)&"C"&COLUMN(),FALSE):INDIRECT("R"&(ROW()-6+$S60)&"C"&COLUMN(),FALSE)) -> 0 | AK11: =SUM(INDIRECT("R"&(ROW()-6)&"C"&COLUMN(),FALSE):INDIRECT("R"&(ROW()-6+$S60)&"C"&COLUMN(),FALSE)) -> 0 | AL11: =SUM(INDIRECT("R"&(ROW()-6)&"C"&COLUMN(),FALSE):INDIRECT("R"&(ROW()-6+$S60)&"C"&COLUMN(),FALSE)) -> 0 | AM11: =SUM(INDIRECT("R"&(ROW()-6)&"C"&COLUMN(),FALSE):INDIRECT("R"&(ROW()-6+$S60)&"C"&COLUMN(),FALSE)) -> 0 | AN11: =SUM(INDIRECT("R"&(ROW()-6)&"C"&COLUMN(),FALSE):INDIRECT("R"&(ROW()-6+$S60)&"C"&COLUMN(),FALSE)) -> 0 | AO11: =SUM(INDIRECT("R"&(ROW()-6)&"C"&COLUMN(),FALSE):INDIRECT("R"&(ROW()-6+$S60)&"C"&COLUMN(),FALSE)) -> 0 | AP11: =SUM(INDIRECT("R"&(ROW()-6)&"C"&COLUMN(),FALSE):INDIRECT("R"&(ROW()-6+$S60)&"C"&COLUMN(),FALSE)) -> 0 | AQ11: =SUM(INDIRECT("R"&(ROW()-6)&"C"&COLUMN(),FALSE):INDIRECT("R"&(ROW()-6+$S60)&"C"&COLUMN(),FALSE)) -> 0 | AR11: =SUM(INDIRECT("R"&(ROW()-6)&"C"&COLUMN(),FALSE):INDIRECT("R"&(ROW()-6+$S60)&"C"&COLUMN(),FALSE)) -> 0 | AS11: =SUM(INDIRECT("R"&(ROW()-6)&"C"&COLUMN(),FALSE):INDIRECT("R"&(ROW()-6+$S60)&"C"&COLUMN(),FALSE)) -> 0
A12: TO L7 → | B12: 25 | C12: 57.5 | D12: 25 | E12: 41.25
A13: TO L8 → | B13: 30 | C13: 65.75 | D13: 30 | E13: 49 | J13: BASIC INSTRUCTIONS: | K13: - Only the values in purple color (tables "Gathering Prices …" and "Gathering Specifications …" plus the irrelevant value at cell AB43) should be entered by the user; all other values are calculated and must not be touched
A14: TO L9 → | B14: 45.25 | C14: 98 | D14: 45.25 | E14: 72.5 | K14: - All credit values (columns "Cost") should be entered divided by 1,000 (table "Gathering Prices…")
A15: TO MAX → | B15: 61.25 | C15: 131 | D15: 61.25 | E15: 96.5 | K15: - After all necessary data have been entered, use the eight Input cells (row 60) to enter a MAX and PRO configuration.
A16: Totals | B16: =SUMIF(B5:INDIRECT("B"&(E60+5)),">0") -> 0 | C16: =SUMIF(INDIRECT("R"&(ROW()-11)&"C"&COLUMN(),FALSE):INDIRECT("R"&(ROW()-11+F60)&"C"&COLUMN(),FALSE),">0") -> 0 | D16: =SUMIF(INDIRECT("R"&(ROW()-11)&"C"&COLUMN(),FALSE):INDIRECT("R"&(ROW()-11+G60)&"C"&COLUMN(),FALSE),">0") -> 0 | E16: =SUMIF(INDIRECT("R"&(ROW()-11)&"C"&COLUMN(),FALSE):INDIRECT("R"&(ROW()-11+H60)&"C"&COLUMN(),FALSE),">0") -> 0 | K16: - Top speed (MAX+PRO+TK) and respective rank for the configuration entered are shown in the two yellow cells. "Super-charged" speed is NOT supported.
B17: =-SUMIF(B5:INDIRECT("B"&(E60+5)),"<0") -> 0 | C17: =-SUMIF(INDIRECT("R"&(ROW()-12)&"C"&COLUMN(),FALSE):INDIRECT("R"&(ROW()-12+F60)&"C"&COLUMN(),FALSE),"<0") -> 0 | D17: =-SUMIF(INDIRECT("R"&(ROW()-12)&"C"&COLUMN(),FALSE):INDIRECT("R"&(ROW()-12+G60)&"C"&COLUMN(),FALSE),"<0") -> 0 | E17: =-SUMIF(INDIRECT("R"&(ROW()-12)&"C"&COLUMN(),FALSE):INDIRECT("R"&(ROW()-12+H60)&"C"&COLUMN(),FALSE),"<0") -> 0
B18: Gathering Specifications for the Suzuki Hayabusa - Asphalt 8 Airborne | Z18: TK | AA18: UPG | AC18: PRO | AJ18: UPGRADE RANK | AR18: PRO KIT RANK | AZ18: PRO KIT HANDLING | BH18: PRO KIT NITRO
C19: UPGRADE | L19: PRO KITS | Z19: TRUE | AC19: TIRE | AD19: FKT | AE19: TRA | AF19: EXH | AJ19: table order | AK19: ascending order | AL19: reference position | AM19: rank position | AN19: repeat table order for next vlookup | AO19: next value | AP19: difference | AR19: table order | AS19: ascending order | AT19: reference position | AU19: rank position | AV19: repeat table order for next vlookup | AW19: next value | AX19: difference | AZ19: table order | BA19: ascending order | BB19: reference position | BC19: rank position | BD19: repeat table order for next vlookup | BE19: next value | BF19: difference | BH19: table order | BI19: ascending order | BJ19: reference position | BK19: rank position | BL19: repeat table order for next vlookup | BM19: next value | BN19: difference
B20: Init | C20: Accel | E20: Speed | G20: Handling | I20: Nitro | L20: Tires | O20: Fork Tubes | R20: Transmission | U20: Exhaust | AA20: SPD | AB20: NTR | AC20: SPD | AD20: NTR | AE20: SPD | AF20: NTR | AJ20: =B26 -> 1341 | AL20: 41 | AM20: =AL20 -> 41 | AN20: =AJ20 -> 1341 | AO20: =VLOOKUP(AM20-1,AM$20:AN$60,2,FALSE) -> 1344 | AP20: =AO20-AN20 -> 3 | AR20: 0 | AT20: 21 | AU20: =AT20 -> 21 | AV20: =AR20 -> 0 | AW20: =VLOOKUP(AU20-1,AU$20:AV$40,2,FALSE) -> 5 | AX20: =AW20-AV20 -> 5 | AZ20: =H31 -> 1.35 | BB20: 11 | BC20: =BB20 -> 11 | BD20: =AZ20 -> 1.35 | BE20: =VLOOKUP(BC20-1,BC$20:BD$30,2,FALSE) -> 1.352 | BF20: =BE20-BD20 -> 0.002 | BH20: =J31 -> 55.7 | BJ20: 11 | BK20: =BJ20 -> 11 | BL20: =BH20 -> 55.7 | BM20: =VLOOKUP(BK20-1,BK$20:BL$30,2,FALSE) -> 56.6 | BN20: =BM20-BL20 -> 0.9
C21: Rank | D21: A | E21: Rank | F21: S | G21: Rank | H21: H | I21: Rank | J21: N | L21: Rank | M21: H | N21: S | O21: Rank | P21: N | Q21: H | R21: Rank | S21: A | T21: S | U21: Rank | V21: N | W21: A | Y21: 1 | Z21: S1 | AA21: =SUM(E$38,OFFSET(E$38,0,0,$Y21+1,1))/(SUM(F$38,OFFSET(F$38,0,0,$Y21+1,1))+IF(Z$19,F40,0)) -> 0.8108108108 | AB21: =SUM(I$38,OFFSET(I$38,0,0,$Y21+1,1))/(SUM(J$38,OFFSET(J$38,0,0,$Y21+1,1))+IF(Z$19,J40,0)) -> 1.578947368 | AC21: =SUM(L$38,OFFSET(L$38,0,0,$Y21+1,1))/(SUM(N$38,OFFSET(N$38,0,0,$Y21+1,1))) -> 2.941176471 | AD21: =SUM(O$38,OFFSET(O$38,0,0,$Y21+1,1))/(SUM(P$38,OFFSET(P$38,0,0,$Y21+1,1))) -> 4.444444444 | AE21: =SUM(R$38,OFFSET(R$38,0,0,$Y21+1,1))/(SUM(T$38,OFFSET(T$38,0,0,$Y21+1,1))) -> 2.222222222 | AF21: =SUM(U$38,OFFSET(U$38,0,0,$Y21+1,1))/(SUM(V$38,OFFSET(V$38,0,0,$Y21+1,1))) -> 5.555555556 | AJ21: =C22 -> 1460 | AK21: =LARGE(AJ$21:AJ$60,AL21) -> 1344 | AL21: =AL20-1 -> 40 | AM21: =VLOOKUP(AJ21,AK$21:AL$60,2,FALSE) -> 20 | AN21: 1460 | AO21: =VLOOKUP(AM21-1,AM$20:AN$60,2,FALSE) -> 1463 | AP21: =AO21-AN21 -> 3 | AR21: =L22 -> 5 | AS21: =LARGE(AR$21:AR$40,AT21) -> 5 | AT21: =AT20-1 -> 20 | AU21: =VLOOKUP(AR21,AS$21:AT$40,2,FALSE) -> 20 | AV21: =AR21 -> 5 | AW21: 11 | AX21: 6 | AZ21: =M22 -> 1.352 | BA21: =LARGE(AZ$21:AZ$30,BB21) -> 1.352 | BB21: =BB20-1 -> 10 | BC21: =VLOOKUP(AZ21,BA$21:BB$30,2,FALSE) -> 10 | BD21: =AZ21 -> 1.352 | BE21: 1.355 | BF21: 0.003 | BH21: =P22 -> 56.6 | BI21: =LARGE(BH$21:BH$30,BJ21) -> 56.6 | BJ21: =BJ20-1 -> 10 | BK21: =VLOOKUP(BH21,BI$21:BJ$30,2,FALSE) -> 10 | BL21: =BH21 -> 56.6 | BM21: 57.7 | BN21: 1.1
A22: LEVEL 1 → | B22: 2.6 | C22: 1460 | D22: 2.57 | E22: 1344 | F22: 313.3 | G22: 1518 | H22: 1.303 | I22: 1402 | J22: 38.1 | K22: A | L22: 5 | M22: 1.352 | N22: 350.3 | O22: 40 | P22: 56.6 | Q22: 1.371 | R22: 75 | S22: 1.87 | T22: 363.8 | U22: 111 | V22: 63.3 | W22: 1.62 | Y22: 2 | Z22: S2 | AA22: =SUM(E$38,OFFSET(E$38,0,0,$Y22+1,1))/(SUM(F$38,OFFSET(F$38,0,0,$Y22+1,1))+IF(Z$19,F41,0)) -> 1.071428571 | AB22: =SUM(I$38,OFFSET(I$38,0,0,$Y22+1,1))/(SUM(J$38,OFFSET(J$38,0,0,$Y22+1,1))+IF(Z$19,J41,0)) -> 2.142857143 | AC22: =SUM(L$38,OFFSET(L$38,0,0,$Y22+1,1))/(SUM(N$38,OFFSET(N$38,0,0,$Y22+1,1))) -> 2.75 | AD22: =SUM(O$38,OFFSET(O$38,0,0,$Y22+1,1))/(SUM(P$38,OFFSET(P$38,0,0,$Y22+1,1))) -> 5 | AE22: =SUM(R$38,OFFSET(R$38,0,0,$Y22+1,1))/(SUM(T$38,OFFSET(T$38,0,0,$Y22+1,1))) -> 2.5 | AF22: =SUM(U$38,OFFSET(U$38,0,0,$Y22+1,1))/(SUM(V$38,OFFSET(V$38,0,0,$Y22+1,1))) -> 5 | AJ22: 1463 | AK22: =LARGE(AJ$21:AJ$60,AL22) -> 1347 | AL22: 39 | AM22: =VLOOKUP(AJ22,AK$21:AL$60,2,FALSE) -> 19 | AN22: 1463 | AO22: =VLOOKUP(AM22-1,AM$20:AN$60,2,FALSE) -> 1466 | AP22: 3 | AR22: =L23 -> 11 | AS22: 11 | AT22: 19 | AU22: 19 | AV22: =AR22 -> 11 | AW22: 18 | AX22: 7 | AZ22: =M23 -> 1.355 | BA22: 1.355 | BB22: =BB21-1 -> 9 | BC22: 9 | BD22: 1.355 | BE22: 1.359 | BF22: 0.004 | BH22: =P23 -> 57.7 | BI22: 57.7 | BJ22: =BJ21-1 -> 9 | BK22: 9 | BL22: 57.7 | BM22: 59.1 | BN22: 1.4
A23: LEVEL 2 → | B23: 311.4 | C23: 1463 | D23: 2.53 | E23: 1347 | F23: 315.1 | G23: 1521 | H23: 1.305 | I23: 1405 | J23: 39 | K23: S | L23: 11 | M23: 1.355 | N23: 352.6 | O23: 46 | P23: 57.7 | Q23: 1.374 | R23: 81 | S23: 1.83 | T23: 366 | U23: 116 | V23: 64.4 | W23: 1.58 | Y23: 3 | Z23: S3 | AA23: 0.8602150538 | AB23: 1.914893617 | AC23: =SUM(L$38,OFFSET(L$38,0,0,$Y23+1,1))/(SUM(N$38,OFFSET(N$38,0,0,$Y23+1,1))) -> 2.686567164 | AD23: =SUM(O$38,OFFSET(O$38,0,0,$Y23+1,1))/(SUM(P$38,OFFSET(P$38,0,0,$Y23+1,1))) -> 5 | AE23: =SUM(R$38,OFFSET(R$38,0,0,$Y23+1,1))/(SUM(T$38,OFFSET(T$38,0,0,$Y23+1,1))) -> 2.537313433 | AF23: 5 | AJ23: 1466 | AK23: 1349 | AL23: 38 | AM23: 18 | AN23: 1466 | AO23: 1471 | AP23: 5 | AR23: =L24 -> 18 | AS23: 18 | AT23: 18 | AU23: 18 | AV23: 18 | AW23: 26 | AX23: 8 | AZ23: =M24 -> 1.359 | BA23: 1.359 | BB23: 8 | BC23: 8 | BD23: 1.359 | BE23: 1.363 | BF23: 0.004 | BH23: =P24 -> 59.1 | BI23: 59.1 | BJ23: 8 | BK23: 8 | BL23: 59.1 | BM23: 60.6 | BN23: 1.5
A24: LEVEL 3 → | B24: 1.3 | C24: 1466 | D24: 2.5 | E24: 1349 | F24: 317 | G24: 1524 | H24: 1.308 | I24: 1408 | J24: 39.9 | K24: H | L24: 18 | M24: 1.359 | N24: 355.3 | O24: 53 | P24: 59.1 | Q24: 1.377 | R24: 88 | S24: 1.78 | T24: 368.7 | U24: 123 | V24: 65.8 | W24: 1.53 | Y24: 4 | Z24: S4 | AA24: 1.076923077 | AB24: 2.153846154 | AC24: =SUM(L$38,OFFSET(L$38,0,0,$Y24+1,1))/(SUM(N$38,OFFSET(N$38,0,0,$Y24+1,1))) -> 2.653061224 | AD24: =SUM(O$38,OFFSET(O$38,0,0,$Y24+1,1))/(SUM(P$38,OFFSET(P$38,0,0,$Y24+1,1))) -> 5.102040816 | AE24: =SUM(R$38,OFFSET(R$38,0,0,$Y24+1,1))/(SUM(T$38,OFFSET(T$38,0,0,$Y24+1,1))) -> 2.525252525 | AF24: 5.2 | AJ24: 1471 | AK24: 1355 | AL24: 37 | AM24: 17 | AN24: 1471 | AO24: 1477 | AP24: 6 | AR24: =L25 -> 26 | AS24: 26 | AT24: 17 | AU24: 17 | AV24: 26 | AW24: 36 | AX24: 10 | AZ24: =M25 -> 1.363 | BA24: 1.363 | BB24: 7 | BC24: 7 | BD24: 1.363 | BE24: 1.368 | BF24: 0.005 | BH24: =P25 -> 60.6 | BI24: 60.6 | BJ24: 7 | BK24: 7 | BL24: 60.6 | BM24: 62.4 | BN24: 1.8
A25: LEVEL 4 → | B25: 37.1 | C25: 1471 | D25: 2.43 | E25: 1355 | F25: 320.7 | G25: 1530 | H25: 1.313 | I25: 1413 | J25: 41.8 | K25: N | L25: 26 | M25: 1.363 | N25: 358.4 | O25: 61 | P25: 60.6 | Q25: 1.381 | R25: 96 | S25: 1.72 | T25: 371.9 | U25: 132 | V25: 67.4 | W25: 1.47 | Y25: 5 | Z25: PRO | AA25: 1.19760479 | AB25: 2.380952381 | AC25: =SUM(L$38,OFFSET(L$38,0,0,$Y25+1,1))/(SUM(N$38,OFFSET(N$38,0,0,$Y25+1,1))) -> 2.686567164 | AD25: =SUM(O$38,OFFSET(O$38,0,0,$Y25+1,1))/(SUM(P$38,OFFSET(P$38,0,0,$Y25+1,1))) -> 5.223880597 | AE25: =SUM(R$38,OFFSET(R$38,0,0,$Y25+1,1))/(SUM(T$38,OFFSET(T$38,0,0,$Y25+1,1))) -> 2.592592593 | AF25: 5.147058824 | AJ25: 1477 | AK25: 1361 | AL25: 36 | AM25: 16 | AN25: 1477 | AO25: 1483 | AP25: 6 | AR25: =L26 -> 36 | AS25: 36 | AT25: 16 | AU25: 16 | AV25: 36 | AW25: 40 | AX25: 4 | AZ25: =M26 -> 1.368 | BA25: 1.368 | BB25: 6 | BC25: 6 | BD25: 1.368 | BE25: 1.371 | BF25: 0.003 | BH25: =P26 -> 62.4 | BI25: 62.4 | BJ25: 6 | BK25: 6 | BL25: 62.4 | BM25: 63.3 | BN25: 0.9
A26: PRO → | B26: 1341 | C26: 1477 | D26: 2.36 | E26: 1361 | F26: 324.4 | G26: 1535 | H26: 1.317 | I26: 1419 | J26: 43.6 | K26: Rank | L26: 36 | M26: 1.368 | N26: 362 | O26: 71 | P26: 62.4 | Q26: 1.386 | R26: 106 | S26: 1.66 | T26: 375.5 | U26: 141 | V26: 69.2 | W26: 1.4 | X26: =COUNT(C22:C31) -> 10 | Y26: 6 | Z26: S6 | AA26: 1.165919283 | AB26: 2.321428571 | AJ26: 1483 | AK26: 1367 | AL26: 35 | AM26: 15 | AN26: 1483 | AO26: 1492 | AP26: 9 | AR26: =O22 -> 40 | AS26: 40 | AT26: 15 | AU26: 15 | AV26: 40 | AW26: 46 | AX26: 6 | AZ26: =Q22 -> 1.371 | BA26: 1.371 | BB26: 5 | BC26: 5 | BD26: 1.371 | BE26: 1.374 | BF26: 0.003 | BH26: =V22 -> 63.3 | BI26: 63.3 | BJ26: 5 | BK26: 5 | BL26: 63.3 | BM26: 64.4 | BN26: 1.1
A27: LEVEL 6 → | C27: 1483 | D27: 2.29 | E27: 1367 | F27: 328.1 | G27: 1541 | H27: 1.322 | I27: 1425 | J27: 45.5 | X27: =COUNT(L22:L26) -> 5 | Y27: 7 | Z27: S7 | AA27: 1.346153846 | AB27: 2.692307692 | AJ27: 1492 | AK27: 1376 | AL27: 34 | AM27: 14 | AN27: 1492 | AO27: 1498 | AP27: 6 | AR27: =O23 -> 46 | AS27: 46 | AT27: 14 | AU27: 14 | AV27: 46 | AW27: 53 | AX27: 7 | AZ27: =Q23 -> 1.374 | BA27: 1.374 | BB27: 4 | BC27: 4 | BD27: 1.374 | BE27: 1.377 | BF27: 0.003 | BH27: =V23 -> 64.4 | BI27: 64.4 | BJ27: 4 | BK27: 4 | BL27: 64.4 | BM27: 65.8 | BN27: 1.4
A28: LEVEL 7 → | C28: 1492 | D28: 2.18 | E28: 1376 | F28: 333.7 | G28: 1550 | H28: 1.33 | I28: 1434 | J28: 48.3 | Y28: 8 | Z28: S8 | AA28: 1.346801347 | AB28: 2.751677852 | AJ28: 1498 | AK28: 1381 | AL28: 33 | AM28: 13 | AN28: 1498 | AO28: 1503 | AP28: 5 | AR28: =O24 -> 53 | AS28: 53 | AT28: 13 | AU28: 13 | AV28: 53 | AW28: 61 | AX28: 8 | AZ28: =Q24 -> 1.377 | BA28: 1.377 | BB28: 3 | BC28: 3 | BD28: 1.377 | BE28: 1.381 | BF28: 0.004 | BH28: =V24 -> 65.8 | BI28: 65.8 | BJ28: 3 | BK28: 3 | BL28: 65.8 | BM28: 67.4 | BN28: 1.6
A29: LEVEL 8 → | C29: 1498 | D29: 2.11 | E29: 1381 | F29: 337.4 | G29: 1556 | H29: 1.335 | I29: 1440 | J29: 50.1 | Y29: 9 | Z29: S9 | AA29: 1.23655914 | AB29: 2.47311828 | AJ29: 1503 | AK29: 1387 | AL29: 32 | AM29: 12 | AN29: 1503 | AO29: 1515 | AP29: 12 | AR29: =O25 -> 61 | AS29: 61 | AT29: 12 | AU29: 12 | AV29: 61 | AW29: 71 | AX29: 10 | AZ29: =Q25 -> 1.381 | BA29: 1.381 | BB29: 2 | BC29: 2 | BD29: 1.381 | BE29: 1.386 | BF29: 0.005 | BH29: =V25 -> 67.4 | BI29: 67.4 | BJ29: 2 | BK29: 2 | BL29: 67.4 | BM29: 69.2 | BN29: 1.8
A30: LEVEL 9 → | C30: 1503 | D30: 2.05 | E30: 1387 | F30: 341.1 | G30: 1562 | H30: 1.34 | I30: 1445 | J30: 52 | Y30: 10 | Z30: MAX | AA30: 1.247311828 | AB30: 2.489270386 | AJ30: =C31 -> 1515 | AK30: 1399 | AL30: 31 | AM30: 11 | AN30: 1515 | AO30: 1518 | AP30: 3 | AR30: =O26 -> 71 | AS30: 71 | AT30: 11 | AU30: 11 | AV30: 71 | AW30: 75 | AX30: 4 | AZ30: =Q26 -> 1.386 | BA30: 1.386 | BB30: 1 | BC30: 1 | BD30: 1.386 | BH30: =V26 -> 69.2 | BI30: 69.2 | BJ30: 1 | BK30: 1 | BL30: 69.2
A31: MAX | C31: 1515 | D31: 1.91 | E31: 1399 | F31: 348.6 | G31: 1573 | H31: 1.35 | I31: 1457 | J31: 55.7 | Z31: Points of added rank per km/h of added speed | AJ31: =E22 -> 1344 | AK31: 1402 | AL31: 30 | AM31: 40 | AN31: 1344 | AO31: 1347 | AP31: 3 | AR31: =R22 -> 75 | AS31: 75 | AT31: 10 | AU31: 10 | AV31: 75 | AW31: 81 | AX31: 6
A32: MAX+TK→ | B32: TK | D32: 1.73 | F32: 357.9 | H32: 1.363 | J32: 60.4 | Z32: The smaller the values, the better for speed | AJ32: 1347 | AK32: 1405 | AL32: 29 | AM32: 39 | AN32: 1347 | AO32: 1349 | AP32: 2 | AR32: =R23 -> 81 | AS32: 81 | AT32: 9 | AU32: 9 | AV32: 81 | AW32: 88 | AX32: 7 | AZ32: PRO KIT SPEED | BH32: PRO KIT ACCELERATION
AJ33: 1349 | AK33: 1408 | AL33: 28 | AM33: 38 | AN33: 1349 | AO33: 1355 | AP33: 6 | AR33: =R24 -> 88 | AS33: 88 | AT33: 8 | AU33: 8 | AV33: 88 | AW33: 96 | AX33: 8 | AZ33: table order | BA33: ascending order | BB33: reference position | BC33: rank position | BD33: repeat table order for next vlookup | BE33: next value | BF33: difference | BH33: table order | BI33: ascending order | BJ33: reference position | BK33: rank position | BL33: repeat table order for next vlookup | BM33: next value | BN33: difference
AH34: Tokens | AJ34: 1355 | AK34: 1413 | AL34: 27 | AM34: 37 | AN34: 1355 | AO34: 1361 | AP34: 6 | AR34: =R25 -> 96 | AS34: 96 | AT34: 7 | AU34: 7 | AV34: 96 | AW34: 106 | AX34: 10 | AZ34: =F31 -> 348.6 | BB34: 11 | BC34: =BB34 -> 11 | BD34: =AZ34 -> 348.6 | BE34: =VLOOKUP(BC34-1,BC$34:BD$44,2,FALSE) -> 350.3 | BF34: =BE34-BD34 -> 1.7 | BH34: =D31 -> 1.91 | BJ34: 0 | BK34: =BJ34 -> 0 | BL34: =BH34 -> 1.91 | BM34: =VLOOKUP(BK34-1,BK$34:BL$44,2,FALSE) ->  | BN34: =BL34-BM34 -> 
B35: Tuning the Suzuki Hayabusa - ASPHALT 8 AIRBORNE | Z35: S+N | AA35: =B40+B42+Z51+Z53 -> 348.5 | AB35: =AA35+AB40+AB42 -> 351.4 | AD35: TOTAL Cost | AF35: =AF36+AF37 -> 1911900 | AJ35: 1361 | AK35: 1419 | AL35: 26 | AM35: 36 | AN35: 1361 | AO35: 1367 | AP35: 6 | AR35: =R26 -> 106 | AS35: 106 | AT35: 6 | AU35: 6 | AV35: 106 | AW35: 111 | AX35: 5 | AZ35: =N22 -> 350.3 | BA35: =LARGE(AZ$35:AZ$44,BB35) -> 350.3 | BB35: =BB34-1 -> 10 | BC35: =VLOOKUP(AZ35,BA$35:BB$44,2,FALSE) -> 10 | BD35: =AZ35 -> 350.3 | BE35: 352.6 | BF35: 2.3 | BH35: =S22 -> 1.87 | BI35: =LARGE(BH$35:BH$44,BJ35) -> 1.87 | BJ35: =BJ34+1 -> 1 | BK35: =VLOOKUP(BH35,BI$35:BJ$44,2,FALSE) -> 1 | BL35: =BH35 -> 1.87 | BM35: 1.91 | BN35: =BL35-BM35 -> -0.04
C36: UPGRADE | L36: PRO KITS | Z36: var | AA36: =_xlfn.VAR.P(AA50:AA53) -> 0 | AD36: UPG T Cost | AF36: =SUMIF(B6:E15,">0")*1000 -> 1324750 | AH36: =-SUMIF(B6:E15,"<0")*1000 -> 0 | AJ36: 1367 | AK36: 1425 | AL36: 25 | AM36: 35 | AN36: 1367 | AO36: 1376 | AP36: 9 | AR36: =U22 -> 111 | AS36: 111 | AT36: 5 | AU36: 5 | AV36: 111 | AW36: 116 | AX36: 5 | AZ36: =N23 -> 352.6 | BA36: 352.6 | BB36: =BB35-1 -> 9 | BC36: 9 | BD36: 352.6 | BE36: 355.3 | BF36: 2.7 | BH36: =S23 -> 1.83 | BI36: 1.83 | BJ36: =BJ35+1 -> 2 | BK36: 2 | BL36: 1.83 | BM36: 1.87 | BN36: =BL36-BM36 -> -0.04
B37: Init | C37: Accel | E37: Speed | G37: Handling | I37: Nitro | K37: MAX | L37: Tires | O37: Fork Tubes | R37: Transmission | U37: Exhaust | X37: PRO | Y37: End | Z37: MAX | AA37: Final | AB37: TK | AD37: PRO T Cost | AF37: =SUM(F6:F10,P6:P10,Z6:Z10,AJ6:AJ10)*1000 -> 587150 | AJ37: 1376 | AK37: 1434 | AL37: 24 | AM37: 34 | AN37: 1376 | AO37: 1381 | AP37: 5 | AR37: =U23 -> 116 | AS37: 116 | AT37: 4 | AU37: 4 | AV37: 116 | AW37: 123 | AX37: 7 | AZ37: =N24 -> 355.3 | BA37: 355.3 | BB37: 8 | BC37: 8 | BD37: 355.3 | BE37: 358.4 | BF37: 3.1 | BH37: =S24 -> 1.78 | BI37: 1.78 | BJ37: 3 | BK37: 3 | BL37: 1.78 | BM37: 1.83 | BN37: -0.05
C38: Rank | D38: A | E38: Rank | F38: S | G38: Rank | H38: H | I38: Rank | J38: N | L38: Rank | M38: H | N38: S | O38: Rank | P38: N | Q38: H | R38: Rank | S38: A | T38: S | U38: Rank | V38: N | W38: A | Z38: PRO | AA38: Value | AB38: Boost | AD38: Current Cost | AF38: =AF39+AF40 -> 0 | AJ38: 1381 | AK38: 1440 | AL38: 23 | AM38: 33 | AN38: 1381 | AO38: 1387 | AP38: 6 | AR38: =U24 -> 123 | AS38: 123 | AT38: 3 | AU38: 3 | AV38: 123 | AW38: 132 | AX38: 9 | AZ38: =N25 -> 358.4 | BA38: 358.4 | BB38: 7 | BC38: 7 | BD38: 358.4 | BE38: 362 | BF38: 3.6 | BH38: =S25 -> 1.72 | BI38: 1.72 | BJ38: 4 | BK38: 4 | BL38: 1.72 | BM38: 1.78 | BN38: -0.06
B39: =B22 -> 2.6 | C39: =VLOOKUP(C22,AO$20:AP$60,2,FALSE) -> 3 | D39: =D22-B22 -> -0.03 | E39: =VLOOKUP(E22,AO$20:AP$60,2,FALSE) -> 3 | F39: =F22-B23 -> 1.9 | G39: =VLOOKUP(G22,AO$20:AP$60,2,FALSE) -> 3 | H39: =H22-B24 -> 0.003 | I39: =VLOOKUP(I22,AO$20:AP$60,2,FALSE) -> 3 | J39: =J22-B25 -> 1 | K39: =SUM(D39:D48) -> -0.69 | L39: =VLOOKUP(L22,AW$20:AX$40,2,FALSE) -> 5 | M39: =VLOOKUP(M22,BE$20:BF$30,2,FALSE) -> 0.002 | N39: =VLOOKUP(N22,BE$34:BF$44,2,FALSE) -> 1.7 | O39: =VLOOKUP(O22,AW$20:AX$40,2,FALSE) -> 4 | P39: =VLOOKUP(P22,BM$20:BN$30,2,FALSE) -> 0.9 | Q39: =VLOOKUP(Q22,BE$20:BF$30,2,FALSE) -> 0.003 | R39: =VLOOKUP(R22,AW$20:AX$40,2,FALSE) -> 4 | S39: =VLOOKUP(S22,BL$34:BN$44,3,FALSE) -> -0.04 | T39: =VLOOKUP(T22,BE$34:BF$44,2,FALSE) -> 1.8 | U39: =VLOOKUP(U22,AW$20:AX$40,2,FALSE) -> 5 | V39: =VLOOKUP(V22,BM$20:BN$30,2,FALSE) -> 0.9 | W39: =VLOOKUP(W22,BL$34:BN$44,3,FALSE) -> -0.04 | X39: =SUM(S39:S43,W39:W43) -> -0.51 | Y39: A | Z39: =K39+X39 -> -1.2 | AA39: =B39+Z39 -> 1.4 | AB39: =INDIRECT("R"&(ROW(upg_acc)+1+E60)&"C"&COLUMN(upg_acc),FALSE) -> -0.03 | AD39: UPG C Cost | AF39: =SUM(B16:E16)*1000 -> 0 | AH39: =SUM(B17:E17)*1000 -> 0 | AJ39: 1387 | AK39: 1445 | AL39: 22 | AM39: 32 | AN39: 1387 | AO39: 1399 | AP39: 12 | AR39: =U25 -> 132 | AS39: 132 | AT39: 2 | AU39: 2 | AV39: 132 | AW39: 141 | AX39: 9 | AZ39: =N26 -> 362 | BA39: 362 | BB39: 6 | BC39: 6 | BD39: 362 | BE39: 363.8 | BF39: 1.8 | BH39: =S26 -> 1.66 | BI39: 1.66 | BJ39: 5 | BK39: 5 | BL39: 1.66 | BM39: 1.72 | BN39: -0.06
B40: =B23 -> 311.4 | C40: =VLOOKUP(C23,AO$20:AP$60,2,FALSE) -> 3 | D40: =D23-D22 -> -0.04 | E40: =VLOOKUP(E23,AO$20:AP$60,2,FALSE) -> 3 | F40: =F23-F22 -> 1.8 | G40: =VLOOKUP(G23,AO$20:AP$60,2,FALSE) -> 3 | H40: =H23-H22 -> 0.002 | I40: =VLOOKUP(I23,AO$20:AP$60,2,FALSE) -> 3 | J40: =J23-J22 -> 0.9 | K40: =SUM(F39:F48) -> 37.2 | L40: =VLOOKUP(L23,AW$20:AX$40,2,FALSE) -> 6 | M40: =VLOOKUP(M23,BE$20:BF$30,2,FALSE) -> 0.003 | N40: =VLOOKUP(N23,BE$34:BF$44,2,FALSE) -> 2.3 | O40: =VLOOKUP(O23,AW$20:AX$40,2,FALSE) -> 6 | P40: =VLOOKUP(P23,BM$20:BN$30,2,FALSE) -> 1.1 | Q40: =VLOOKUP(Q23,BE$20:BF$30,2,FALSE) -> 0.003 | R40: =VLOOKUP(R23,AW$20:AX$40,2,FALSE) -> 6 | S40: =VLOOKUP(S23,BL$34:BN$44,3,FALSE) -> -0.04 | T40: =VLOOKUP(T23,BE$34:BF$44,2,FALSE) -> 2.2 | U40: =VLOOKUP(U23,AW$20:AX$40,2,FALSE) -> 5 | V40: =VLOOKUP(V23,BM$20:BN$30,2,FALSE) -> 1.1 | W40: =VLOOKUP(W23,BL$34:BN$44,3,FALSE) -> -0.04 | X40: =SUM(N39:N43,T39:T43) -> 26.9 | Y40: S | Z40: =K40+X40 -> 64.1 | AA40: =B40+Z40 -> 375.5 | AB40: =INDIRECT("R"&(ROW(upg_spd)+1+F60)&"C"&COLUMN(upg_spd),FALSE) -> 1.9 | AD40: PRO C Cost | AF40: =SUM(F11+P11+Z11+AJ11)*1000 -> 0 | AJ40: =E31 -> 1399 | AK40: 1457 | AL40: 21 | AM40: 31 | AN40: 1399 | AO40: 1402 | AP40: 3 | AR40: =U26 -> 141 | AS40: 141 | AT40: 1 | AU40: 1 | AV40: 141 | AZ40: =T22 -> 363.8 | BA40: 363.8 | BB40: 5 | BC40: 5 | BD40: 363.8 | BE40: 366 | BF40: 2.2 | BH40: =W22 -> 1.62 | BI40: 1.62 | BJ40: 6 | BK40: 6 | BL40: 1.62 | BM40: 1.66 | BN40: -0.04
B41: =B24 -> 1.3 | C41: 3 | D41: =D24-D23 -> -0.03 | E41: 2 | F41: =F24-F23 -> 1.9 | G41: 3 | H41: =H24-H23 -> 0.003 | I41: 3 | J41: =J24-J23 -> 0.9 | K41: =SUM(H39:H48) -> 0.05 | L41: =VLOOKUP(L24,AW$20:AX$40,2,FALSE) -> 7 | M41: =VLOOKUP(M24,BE$20:BF$30,2,FALSE) -> 0.004 | N41: =VLOOKUP(N24,BE$34:BF$44,2,FALSE) -> 2.7 | O41: =VLOOKUP(O24,AW$20:AX$40,2,FALSE) -> 7 | P41: =VLOOKUP(P24,BM$20:BN$30,2,FALSE) -> 1.4 | Q41: =VLOOKUP(Q24,BE$20:BF$30,2,FALSE) -> 0.003 | R41: =VLOOKUP(R24,AW$20:AX$40,2,FALSE) -> 7 | S41: =VLOOKUP(S24,BL$34:BN$44,3,FALSE) -> -0.05 | T41: =VLOOKUP(T24,BE$34:BF$44,2,FALSE) -> 2.7 | U41: =VLOOKUP(U24,AW$20:AX$40,2,FALSE) -> 7 | V41: =VLOOKUP(V24,BM$20:BN$30,2,FALSE) -> 1.4 | W41: =VLOOKUP(W24,BL$34:BN$44,3,FALSE) -> -0.05 | X41: =SUM(M39:M43,Q39:Q43) -> 0.036 | Y41: H | Z41: =K41+X41 -> 0.086 | AA41: =B41+Z41 -> 1.386 | AB41: =INDIRECT("R"&(ROW(upg_hnd)+1+G60)&"C"&COLUMN(upg_hnd),FALSE) -> 0.003 | AD41: Tires | AG41: =G11 -> 0 | AJ41: =G22 -> 1518 | AK41: 1460 | AL41: 20 | AM41: 10 | AN41: 1518 | AO41: 1521 | AP41: 3 | AZ41: =T23 -> 366 | BA41: 366 | BB41: 4 | BC41: 4 | BD41: 366 | BE41: 368.7 | BF41: 2.7 | BH41: =W23 -> 1.58 | BI41: 1.58 | BJ41: 7 | BK41: 7 | BL41: 1.58 | BM41: 1.62 | BN41: -0.04
B42: =B25 -> 37.1 | C42: 5 | D42: =D25-D24 -> -0.07 | E42: 6 | F42: =F25-F24 -> 3.7 | G42: 6 | H42: =H25-H24 -> 0.005 | I42: 5 | J42: =J25-J24 -> 1.9 | K42: =SUM(J39:J48) -> 18.6 | L42: =VLOOKUP(L25,AW$20:AX$40,2,FALSE) -> 8 | M42: =VLOOKUP(M25,BE$20:BF$30,2,FALSE) -> 0.004 | N42: =VLOOKUP(N25,BE$34:BF$44,2,FALSE) -> 3.1 | O42: =VLOOKUP(O25,AW$20:AX$40,2,FALSE) -> 8 | P42: =VLOOKUP(P25,BM$20:BN$30,2,FALSE) -> 1.5 | Q42: =VLOOKUP(Q25,BE$20:BF$30,2,FALSE) -> 0.004 | R42: =VLOOKUP(R25,AW$20:AX$40,2,FALSE) -> 8 | S42: =VLOOKUP(S25,BL$34:BN$44,3,FALSE) -> -0.06 | T42: =VLOOKUP(T25,BE$34:BF$44,2,FALSE) -> 3.2 | U42: =VLOOKUP(U25,AW$20:AX$40,2,FALSE) -> 9 | V42: =VLOOKUP(V25,BM$20:BN$30,2,FALSE) -> 1.6 | W42: =VLOOKUP(W25,BL$34:BN$44,3,FALSE) -> -0.06 | X42: =SUM(P39:P43,V39:V43) -> 13.5 | Y42: N | Z42: =K42+X42 -> 32.1 | AA42: =B42+Z42 -> 69.2 | AB42: =INDIRECT("R"&(ROW(upg_ntr)+1+H60)&"C"&COLUMN(upg_ntr),FALSE) -> 1 | AD42: Fork Tubes | AG42: =Q11 -> 0 | AJ42: 1521 | AK42: 1463 | AL42: 19 | AM42: 9 | AN42: 1521 | AO42: 1524 | AP42: 3 | AZ42: =T24 -> 368.7 | BA42: 368.7 | BB42: 3 | BC42: 3 | BD42: 368.7 | BE42: 371.9 | BF42: 3.2 | BH42: =W24 -> 1.53 | BI42: 1.53 | BJ42: 8 | BK42: 8 | BL42: 1.53 | BM42: 1.58 | BN42: -0.05
B43: =B26 -> 1341 | C43: 6 | D43: =D26-D25 -> -0.07 | E43: 6 | F43: =F26-F25 -> 3.7 | G43: 5 | H43: =H26-H25 -> 0.004 | I43: 6 | J43: =J26-J25 -> 1.8 | K43: =SUM(C39:C48,E39:E48,G39:G48,I39:I48) -> 232 | L43: =VLOOKUP(L26,AW$20:AX$40,2,FALSE) -> 10 | M43: =VLOOKUP(M26,BE$20:BF$30,2,FALSE) -> 0.005 | N43: =VLOOKUP(N26,BE$34:BF$44,2,FALSE) -> 3.6 | O43: =VLOOKUP(O26,AW$20:AX$40,2,FALSE) -> 10 | P43: =VLOOKUP(P26,BM$20:BN$30,2,FALSE) -> 1.8 | Q43: =VLOOKUP(Q26,BE$20:BF$30,2,FALSE) -> 0.005 | R43: =VLOOKUP(R26,AW$20:AX$40,2,FALSE) -> 10 | S43: =VLOOKUP(S26,BL$34:BN$44,3,FALSE) -> -0.06 | T43: =VLOOKUP(T26,BE$34:BF$44,2,FALSE) -> 3.6 | U43: =VLOOKUP(U26,AW$20:AX$40,2,FALSE) -> 9 | V43: =VLOOKUP(V26,BM$20:BN$30,2,FALSE) -> 1.8 | W43: =VLOOKUP(W26,BL$34:BN$44,3,FALSE) -> -0.07 | X43: =SUM(L39:L43,O39:O43,R39:R43,U39:U43) -> 141 | Y43: Rank | Z43: =K43+X43 -> 373 | AA43: =B43+Z43 -> 1714 | AB43: 44 | AD43: Transmission | AG43: =AA11 -> 0 | AJ43: 1524 | AK43: 1466 | AL43: 18 | AM43: 8 | AN43: 1524 | AO43: 1530 | AP43: 6 | AZ43: =T25 -> 371.9 | BA43: 371.9 | BB43: 2 | BC43: 2 | BD43: 371.9 | BE43: 375.5 | BF43: 3.6 | BH43: =W25 -> 1.47 | BI43: 1.47 | BJ43: 9 | BK43: 9 | BL43: 1.47 | BM43: 1.53 | BN43: -0.06
C44: 6 | D44: =D27-D26 -> -0.07 | E44: 6 | F44: =F27-F26 -> 3.7 | G44: 6 | H44: =H27-H26 -> 0.005 | I44: 6 | J44: =J27-J26 -> 1.9 | AC44: MPTK | AD44: Exhaust | AG44: =AK11 -> 0 | AJ44: 1530 | AK44: 1471 | AL44: 17 | AM44: 7 | AN44: 1530 | AO44: 1535 | AP44: 5 | AZ44: =T26 -> 375.5 | BA44: 375.5 | BB44: 1 | BC44: 1 | BD44: 375.5 | BH44: =W26 -> 1.4 | BI44: 1.4 | BJ44: 10 | BK44: 10 | BL44: 1.4 | BM44: 1.47 | BN44: -0.07
C45: 9 | D45: -0.11 | E45: 9 | F45: 5.6 | G45: 9 | H45: 0.008 | I45: 9 | J45: 2.8 | AC45: 1.4 | AD45: Early Tech | AG45: =H11+R11+AB11+AL11 -> 0 | AJ45: 1535 | AK45: 1477 | AL45: 16 | AM45: 6 | AN45: 1535 | AO45: 1541 | AP45: 6
C46: 6 | D46: -0.07 | E46: 5 | F46: 3.7 | G46: 6 | H46: 0.005 | I46: 6 | J46: 1.8 | AC46: 295.8 | AD46: Initial Tech | AG46: =I11+S11+AC11+AM11 -> 0 | AJ46: 1541 | AK46: 1483 | AL46: 15 | AM46: 5 | AN46: 1541 | AO46: 1550 | AP46: 9
C47: 5 | D47: -0.06 | E47: 6 | F47: 3.7 | G47: 6 | H47: 0.005 | I47: 5 | J47: 1.9 | AC47: 1.25 | AD47: Common Tech | AG47: =J11+T11+AD11+AN11 -> 0 | AJ47: 1550 | AK47: 1492 | AL47: 14 | AM47: 4 | AN47: 1550 | AO47: 1556 | AP47: 6
C48: 12 | D48: -0.14 | E48: 12 | F48: 7.5 | G48: 11 | H48: 0.01 | I48: 12 | J48: 3.7 | AC48: 114.3 | AD48: Mid Tech | AG48: =K11+U11+AE11+AO11 -> 0 | AJ48: 1556 | AK48: 1498 | AL48: 13 | AM48: 3 | AN48: 1556 | AO48: 1562 | AP48: 6
B49: TK | D49: =D32-D31 -> -0.18 | F49: =F32-F31 -> 9.3 | H49: =H32-H31 -> 0.013 | J49: =J32-J31 -> 4.7 | AB49: Final | AD49: Rare Tech | AG49: =L11+V11+AF11+AP11 -> 0 | AJ49: 1562 | AK49: 1503 | AL49: 12 | AM49: 2 | AN49: 1562 | AO49: 1573 | AP49: 11
B50: A | C50: =IF(E60>0,C39,"") ->  | D50: =IF(E60>0,D39,"") ->  | E50: =IF(F60>0,E39,"") ->  | F50: =IF(F60>0,F39,"") ->  | G50: =IF(G60>0,G39,"") ->  | H50: =IF(G60>0,H39,"") ->  | I50: =IF(H60>0,I39,"") ->  | J50: =IF(H60>0,J39,"") ->  | K50: =SUM(D50:D59) -> 0 | L50: =IF(P60>0,L39,"") ->  | M50: =IF(P60>0,M39,"") ->  | N50: =IF(P60>0,N39,"") ->  | O50: =IF(Q60>0,O39,"") ->  | P50: =IF(Q60>0,P39,"") ->  | Q50: =IF(Q60>0,Q39,"") ->  | R50: =IF(R60>0,R39,"") ->  | S50: =IF(R60>0,S39,"") ->  | T50: =IF(R60>0,T39,"") ->  | U50: =IF(S60>0,U39,"") ->  | V50: =IF(S60>0,V39,"") ->  | W50: =IF(S60>0,W39,"") ->  | X50: =SUM(S50:S54,W50:W54) -> 0 | Y50: =B39+K50+X50 -> 2.6 | Z50: =K50+X50 -> 0 | AA50: =Z50/Z39 -> 0 | AB50: =Y50+AB39 -> 2.57 | AD50: Advanced Tech | AG50: =M11+W11+AG11+AQ11 -> 0 | AJ50: =G31 -> 1573 | AK50: 1515 | AL50: 11 | AM50: 1 | AN50: 1573
B51: S | C51: =IF(E60>1,C40,"") ->  | D51: =IF(E60>1,D40,"") ->  | E51: =IF(F60>1,E40,"") ->  | F51: =IF(F60>1,F40,"") ->  | G51: =IF(G60>1,G40,"") ->  | H51: =IF(G60>1,H40,"") ->  | I51: =IF(H60>1,I40,"") ->  | J51: =IF(H60>1,J40,"") ->  | K51: =SUM(F50:F59) -> 0 | L51: =IF(P60>1,L40,"") ->  | M51: =IF(P60>1,M40,"") ->  | N51: =IF(P60>1,N40,"") ->  | O51: =IF(Q60>1,O40,"") ->  | P51: =IF(Q60>1,P40,"") ->  | Q51: =IF(Q60>1,Q40,"") ->  | R51: =IF(R60>1,R40,"") ->  | S51: =IF(R60>1,S40,"") ->  | T51: =IF(R60>1,T40,"") ->  | U51: =IF(S60>1,U40,"") ->  | V51: =IF(S60>1,V40,"") ->  | W51: =IF(S60>1,W40,"") ->  | X51: =SUM(N50:N54,T50:T54) -> 0 | Y51: =B40+K51+X51 -> 311.4 | Z51: =K51+X51 -> 0 | AA51: =Z51/Z40 -> 0 | AB51: =Y51+AB40 -> 313.3 | AD51: Legendary Tech | AG51: =N11+X11+AH11+AR11 -> 0 | AJ51: =I22 -> 1402 | AK51: 1518 | AL51: 10 | AM51: 30 | AN51: 1402 | AO51: 1405 | AP51: 3
B52: H | C52: =IF(E60>2,C41,"") ->  | D52: =IF(E60>2,D41,"") ->  | E52: =IF(F60>2,E41,"") ->  | F52: =IF(F60>2,F41,"") ->  | G52: =IF(G60>2,G41,"") ->  | H52: =IF(G60>2,H41,"") ->  | I52: =IF(H60>2,I41,"") ->  | J52: =IF(H60>2,J41,"") ->  | K52: =SUM(H50:H59) -> 0 | L52: =IF(P60>2,L41,"") ->  | M52: =IF(P60>2,M41,"") ->  | N52: =IF(P60>2,N41,"") ->  | O52: =IF(Q60>2,O41,"") ->  | P52: =IF(Q60>2,P41,"") ->  | Q52: =IF(Q60>2,Q41,"") ->  | R52: =IF(R60>2,R41,"") ->  | S52: =IF(R60>2,S41,"") ->  | T52: =IF(R60>2,T41,"") ->  | U52: =IF(S60>2,U41,"") ->  | V52: =IF(S60>2,V41,"") ->  | W52: =IF(S60>2,W41,"") ->  | X52: =SUM(M50:M54,Q50:Q54) -> 0 | Y52: =B41+K52+X52 -> 1.3 | Z52: =K52+X52 -> 0 | AA52: =Z52/Z41 -> 0 | AB52: =Y52+AB41 -> 1.303 | AD52: Engines | AG52: =O11+Y11+AI11+AS11 -> 0 | AH52: 4S | AJ52: 1405 | AK52: 1521 | AL52: 9 | AM52: 29 | AN52: 1405 | AO52: 1408 | AP52: 3
B53: N | C53: =IF(E60>3,C42,"") ->  | D53: =IF(E60>3,D42,"") ->  | E53: =IF(F60>3,E42,"") ->  | F53: =IF(F60>3,F42,"") ->  | G53: =IF(G60>3,G42,"") ->  | H53: =IF(G60>3,H42,"") ->  | I53: =IF(H60>3,I42,"") ->  | J53: =IF(H60>3,J42,"") ->  | K53: =SUM(J50:J59) -> 0 | L53: =IF(P60>3,L42,"") ->  | M53: =IF(P60>3,M42,"") ->  | N53: =IF(P60>3,N42,"") ->  | O53: =IF(Q60>3,O42,"") ->  | P53: =IF(Q60>3,P42,"") ->  | Q53: =IF(Q60>3,Q42,"") ->  | R53: =IF(R60>3,R42,"") ->  | S53: =IF(R60>3,S42,"") ->  | T53: =IF(R60>3,T42,"") ->  | U53: =IF(S60>3,U42,"") ->  | V53: =IF(S60>3,V42,"") ->  | W53: =IF(S60>3,W42,"") ->  | X53: =SUM(P50:P54,V50:V54) -> 0 | Y53: =B42+K53+X53 -> 37.1 | Z53: =K53+X53 -> 0 | AA53: =Z53/Z42 -> 0 | AB53: =Y53+AB42 -> 38.1 | AJ53: 1408 | AK53: 1524 | AL53: 8 | AM53: 28 | AN53: 1408 | AO53: 1413 | AP53: 5
B54: Rank | C54: =IF(E60>4,C43,"") ->  | D54: =IF(E60>4,D43,"") ->  | E54: =IF(F60>4,E43,"") ->  | F54: =IF(F60>4,F43,"") ->  | G54: =IF(G60>4,G43,"") ->  | H54: =IF(G60>4,H43,"") ->  | I54: =IF(H60>4,I43,"") ->  | J54: =IF(H60>4,J43,"") ->  | K54: =SUM(C50:C59,E50:E59,G50:G59,I50:I59) -> 0 | L54: =IF(P60>4,L43,"") ->  | M54: =IF(P60>4,M43,"") ->  | N54: =IF(P60>4,N43,"") ->  | O54: =IF(Q60>4,O43,"") ->  | P54: =IF(Q60>4,P43,"") ->  | Q54: =IF(Q60>4,Q43,"") ->  | R54: =IF(R60>4,R43,"") ->  | S54: =IF(R60>4,S43,"") ->  | T54: =IF(R60>4,T43,"") ->  | U54: =IF(S60>4,U43,"") ->  | V54: =IF(S60>4,V43,"") ->  | W54: =IF(S60>4,W43,"") ->  | X54: =SUM(L50:L54,O50:O54,R50:R54,U50:U54) -> 0 | Y54: =B43+K54+X54 -> 1341 | Z54: =K54+X54 -> 0 | AA54: =Z54/Z43 -> 0 | AB54: =AB43+Y54 -> 1385 | AJ54: 1413 | AK54: 1530 | AL54: 7 | AM54: 27 | AN54: 1413 | AO54: 1419 | AP54: 6
C55: =IF($E$60>5,C44,"") ->  | D55: =IF($E$60>5,D44,"") ->  | E55: =IF($F$60>5,E44,"") ->  | F55: =IF($F$60>5,F44,"") ->  | G55: =IF($G$60>5,G44,"") ->  | H55: =IF($G$60>5,H44,"") ->  | I55: =IF($H$60>5,I44,"") ->  | J55: =IF($H$60>5,J44,"") ->  | AJ55: 1419 | AK55: 1535 | AL55: 6 | AM55: 26 | AN55: 1419 | AO55: 1425 | AP55: 6
C56: =IF($E$60>6,C45,"") ->  | D56: =IF($E$60>6,D45,"") ->  | E56: =IF($F$60>6,E45,"") ->  | F56: =IF($F$60>6,F45,"") ->  | G56: =IF($G$60>6,G45,"") ->  | H56: =IF($G$60>6,H45,"") ->  | I56: =IF($H$60>6,I45,"") ->  | J56: =IF($H$60>6,J45,"") ->  | AJ56: 1425 | AK56: 1541 | AL56: 5 | AM56: 25 | AN56: 1425 | AO56: 1434 | AP56: 9
C57: =IF($E$60>7,C46,"") ->  | D57: =IF($E$60>7,D46,"") ->  | E57: =IF($F$60>7,E46,"") ->  | F57: =IF($F$60>7,F46,"") ->  | G57: =IF($G$60>7,G46,"") ->  | H57: =IF($G$60>7,H46,"") ->  | I57: =IF($H$60>7,I46,"") ->  | J57: =IF($H$60>7,J46,"") ->  | AJ57: 1434 | AK57: 1550 | AL57: 4 | AM57: 24 | AN57: 1434 | AO57: 1440 | AP57: 6
C58: =IF($E$60>8,C47,"") ->  | D58: =IF($E$60>8,D47,"") ->  | E58: =IF($F$60>8,E47,"") ->  | F58: =IF($F$60>8,F47,"") ->  | G58: =IF($G$60>8,G47,"") ->  | H58: =IF($G$60>8,H47,"") ->  | I58: =IF($H$60>8,I47,"") ->  | J58: =IF($H$60>8,J47,"") ->  | AJ58: 1440 | AK58: 1556 | AL58: 3 | AM58: 23 | AN58: 1440 | AO58: 1445 | AP58: 5
C59: =IF($E$60>9,C48,"") ->  | D59: =IF($E$60>9,D48,"") ->  | E59: =IF($F$60>9,E48,"") ->  | F59: =IF($F$60>9,F48,"") ->  | G59: =IF($G$60>9,G48,"") ->  | H59: =IF($G$60>9,H48,"") ->  | I59: =IF($H$60>9,I48,"") ->  | J59: =IF($H$60>9,J48,"") ->  | AJ59: 1445 | AK59: 1562 | AL59: 2 | AM59: 22 | AN59: 1445 | AO59: 1457 | AP59: 12
A60: INPUT → | X60: Speed+Nitro | Z60: =Z51+Z53 -> 0 | AA60: =Z60/(Z40+Z42) -> 0 | AB60: =IF(AA54=0,"",AA60/AA54-1) ->  | AJ60: =I31 -> 1457 | AK60: 1573 | AL60: 1 | AM60: 21 | AN60: 1457 | AO60: 1460 | AP60: 3
C62: =SUM(C39:C48) -> 58 | D62: =C62/$K43 -> 0.25 | E62: =SUM(E39:E48) -> 58 | F62: =E62/$K43 -> 0.25 | G62: =SUM(G39:G48) -> 58 | H62: =G62/$K43 -> 0.25 | I62: =SUM(I39:I48) -> 58 | J62: =I62/$K43 -> 0.25
E64: 0 | F64: 0 | G64: 0 | H64: 0 | P64: 0 | Q64: 0 | R64: 0 | S64: 0 | AA64: mph
E65: =SUM(D$38,OFFSET(D$38,0,0,E64+1,1)) -> 0 | F65: =SUM(F$38,OFFSET(F$38,0,0,F64+1,1)) -> 0 | G65: =SUM(H$38,OFFSET(H$38,0,0,G64+1,1)) -> 0 | H65: =SUM(J$38,OFFSET(J$38,0,0,H64+1,1)) -> 0 | P65: =SUM(N$38,OFFSET(N$38,0,0,P64+1,1)) -> 0 | Q65: =SUM(P$38,OFFSET(P$38,0,0,Q64+1,1)) -> 0 | R65: =SUM(T$38,OFFSET(T$38,0,0,R64+1,1)) -> 0 | S65: =SUM(V$38,OFFSET(V$38,0,0,S64+1,1)) -> 0 | U65: =P65+Q65+R65+S65+B40+B42+F67+H67+F65+H65 -> 351.4 | W65: Total Spd | AA65: =U65/1.61 -> 218.2608696
E66: =SUM(C$38,OFFSET(C$38,0,0,E64+1,1)) -> 0 | F66: =SUM(E$38,OFFSET(E$38,0,0,F64+1,1)) -> 0 | G66: =SUM(G$38,OFFSET(G$38,0,0,G64+1,1)) -> 0 | H66: =SUM(I$38,OFFSET(I$38,0,0,H64+1,1)) -> 0 | P66: =SUM(L$38,OFFSET(L$38,0,0,P64+1,1)) -> 0 | Q66: =SUM(O$38,OFFSET(O$38,0,0,Q64+1,1)) -> 0 | R66: =SUM(R$38,OFFSET(R$38,0,0,R64+1,1)) -> 0 | S66: =SUM(U$38,OFFSET(U$38,0,0,S64+1,1)) -> 0 | U66: =B43+SUM(E66:H66)+SUM(P66:S66) -> 1341 | W66: Rank
C67: TK Boost | F67: =INDIRECT("R"&(ROW(upg_spd)+1+F64)&"C"&COLUMN(upg_spd),FALSE) -> 1.9 | H67: =INDIRECT("R"&(ROW(upg_ntr)+1+H64)&"C"&COLUMN(upg_ntr),FALSE) -> 1 | K67: Start rank =
K68: End rank =
D72: MAX upgrades costs may not be correct. Need to use values from Tbl_Car_Max
K496: Start | Q496: Total Processing Time
K497: End | Q497: =pEnd-pStart -> 00:00:00
L499: Rank | M499: Xspd | N499: Nspd | O499: Spd | P499: A% | Q499: S% | R499: H% | S499: N% | T499: Var | U499: Idx | V499: Tuning | X499: Cnt | Y499: Spd/Rnk
I500: 500
I501: =I500+1 -> 501
I502: =I501+1 -> 502
I503: 503
I504: 504
I505: 505
I506: 506
I507: 507
I508: 508
I509: 509
I510: 510
I511: 511
I512: 512
I513: 513
I514: 514
I515: 515
I516: 516
I517: 517
I518: 518
I519: 519
I520: 520
I521: 521
I522: 522
I523: 523
I524: 524
I525: 525
I526: 526
I527: 527
I528: 528
I529: 529
I530: 530
I531: 531
I532: 532
I533: 533
I534: 534
I535: 535
I536: 536
I537: 537
I538: 538
I539: 539
I540: 540
I541: 541
I542: 542
I543: 543
I544: 544
I545: 545
I546: 546
I547: 547
I548: 548
I549: 549
I550: 550
I551: 551
I552: 552
I553: 553
I554: 554
I555: 555
I556: 556
I557: 557
I558: 558
I559: 559
I560: 560
I561: 561
I562: 562
I563: 563
I564: 564
I565: 565
I566: =I565+1 -> 566
I567: 567
I568: 568
I569: 569
I570: 570
I571: 571
I572: 572
I573: 573
I574: 574
I575: 575
I576: 576
I577: 577
I578: 578
I579: 579
I580: 580
I581: 581
I582: 582
I583: 583
I584: 584
I585: 585
I586: 586
I587: 587
I588: 588
I589: 589
I590: 590
I591: 591
I592: 592
I593: 593
I594: 594
I595: 595
I596: 596
I597: 597
I598: 598
I599: 599
I600: 600
I601: 601
I602: 602
I603: 603
I604: 604
I605: 605
I606: 606
I607: 607
I608: 608
I609: 609
I610: 610
I611: 611
I612: 612
I613: 613
I614: 614
I615: 615
I616: 616
I617: 617
I618: 618
I619: 619
I620: 620
I621: 621
I622: 622
I623: 623
I624: 624
I625: 625
I626: 626
I627: 627
I628: 628
I629: 629
... 1183 more rows

Sheet Ducati A (hidden)
A1: This sheet was developed by Rookie Vee
B2: Gathering Prices & Parts for the Class A Ducati SuperSport S (#0xC7) - Asphalt 8 Airborne
B3: UPGRADE | F3: PRO KITS | AZ3: Wiki has same values as the ones with a 50% increase
B4: Acc | C4: Spd | D4: Hnd | E4: Ntr | F4: Tires | P4: Fork Tubes | Z4: Transmission | AJ4: Exhaust | AZ4: Acc & Handling | BD4: Top Speed | BH4: Nitro
B5: Cost | F5: Cost | G5: Part | H5: Early | I5: Init | J5: Com | K5: Mid | L5: Rare | M5: Adv | N5: Legn | O5: Engn | P5: Cost | Q5: Part | R5: Early | S5: Init | T5: Com | U5: Mid | V5: Rare | W5: Adv | X5: Legn | Y5: Engn | Z5: Cost | AA5: Part | AB5: Early | AC5: Init | AD5: Com | AE5: Mid | AF5: Rare | AG5: Adv | AH5: Legn | AI5: Engn | AJ5: Cost | AK5: Part | AL5: Early | AM5: Init | AN5: Com | AO5: Mid | AP5: Rare | AQ5: Adv | AR5: Legn | AS5: Engn | AZ5: video | BA5: 0.5 | BD5: video | BH5: video
A6: TO L1 → | B6: =BA6/1000 -> 0.75 | C6: =BE6/1000 -> 2.85 | D6: =B6 -> 0.75 | E6: =BI6/1000 -> 1.425 | F6: 2.375 | G6: 1 | P6: 1.9 | Q6: 1 | Z6: 2.375 | AA6: 1 | AJ6: 2.1 | AK6: 1 | AZ6: 500 | BA6: =ROUNDUP(AZ6*(1+BA$5),0) -> 750 | BD6: 1900 | BE6: =ROUNDUP(BD6*(1+BA$5),0) -> 2850 | BH6: 950 | BI6: =ROUNDUP(BH6*(1+BA$5),0) -> 1425
A7: TO L2 → | B7: =BA7/1000 -> 3 | C7: =BE7/1000 -> 6.375 | D7: =B7 -> 3 | E7: =BI7/1000 -> 4.5 | F7: 4.85 | G7: 1 | I7: 1 | P7: 3.875 | Q7: 1 | R7: 1 | Z7: 4.85 | AA7: 1 | AC7: 1 | AJ7: 4.45 | AK7: 1 | AL7: 1 | AZ7: 2000 | BA7: =AZ7*(1+BA$5) -> 3000 | BD7: 4250 | BE7: =ROUNDUP(BD7*(1+BA$5),0) -> 6375 | BH7: 3000 | BI7: =BH7*(1+BA$5) -> 4500
A8: TO L3 → | B8: 4.5 | C8: 10.125 | D8: 4.5 | E8: 6.375 | F8: 7.325 | G8: 1 | K8: 1 | P8: 5.85 | Q8: 1 | U8: 1 | Z8: 7.325 | AA8: 1 | AE8: 1 | AJ8: 6.725 | AK8: 1 | AO8: 1 | AZ8: 3000 | BA8: 4500 | BD8: 6750 | BE8: 10125 | BH8: 4250 | BI8: 6375
A9: TO L4 → | B9: 6.375 | C9: 14.25 | D9: 6.375 | E9: 10.125 | F9: 8.6 | G9: 1 | K9: 1 | P9: 6.875 | Q9: 1 | U9: 1 | Z9: 8.6 | AA9: 1 | AE9: 1 | AJ9: 7.9 | AK9: 1 | AO9: 1 | AZ9: 4250 | BA9: 6375 | BD9: 9500 | BE9: 14250 | BH9: 6750 | BI9: 10125
A10: TO PRO → | B10: 8.625 | C10: 19.5 | D10: 8.625 | E10: 14.25 | F10: 16.35 | G10: 2 | N10: 1 | O10: 1 | P10: 13.075 | Q10: 2 | X10: 1 | Y10: 1 | Z10: 16.35 | AA10: 2 | AH10: 1 | AI10: 1 | AJ10: 15.05 | AK10: 2 | AR10: 1 | AS10: 1 | AZ10: 5750 | BA10: 8625 | BD10: 13000 | BE10: 19500 | BH10: 9500 | BI10: 14250
A11: TO L6 → | B11: 10.875 | C11: 24.375 | D11: 10.875 | E11: 18.75 | F11: =SUM(INDIRECT("R"&(ROW()-6)&"C"&COLUMN(),FALSE):INDIRECT("R"&(ROW()-6+$P60)&"C"&COLUMN(),FALSE)) -> 0 | G11: =SUM(INDIRECT("R"&(ROW()-6)&"C"&COLUMN(),FALSE):INDIRECT("R"&(ROW()-6+$P60)&"C"&COLUMN(),FALSE)) -> 0 | H11: =SUM(INDIRECT("R"&(ROW()-6)&"C"&COLUMN(),FALSE):INDIRECT("R"&(ROW()-6+$P60)&"C"&COLUMN(),FALSE)) -> 0 | I11: =SUM(INDIRECT("R"&(ROW()-6)&"C"&COLUMN(),FALSE):INDIRECT("R"&(ROW()-6+$P60)&"C"&COLUMN(),FALSE)) -> 0 | J11: =SUM(INDIRECT("R"&(ROW()-6)&"C"&COLUMN(),FALSE):INDIRECT("R"&(ROW()-6+$P60)&"C"&COLUMN(),FALSE)) -> 0 | K11: =SUM(INDIRECT("R"&(ROW()-6)&"C"&COLUMN(),FALSE):INDIRECT("R"&(ROW()-6+$P60)&"C"&COLUMN(),FALSE)) -> 0 | L11: =SUM(INDIRECT("R"&(ROW()-6)&"C"&COLUMN(),FALSE):INDIRECT("R"&(ROW()-6+$P60)&"C"&COLUMN(),FALSE)) -> 0 | M11: =SUM(INDIRECT("R"&(ROW()-6)&"C"&COLUMN(),FALSE):INDIRECT("R"&(ROW()-6+$P60)&"C"&COLUMN(),FALSE)) -> 0 | N11: =SUM(INDIRECT("R"&(ROW()-6)&"C"&COLUMN(),FALSE):INDIRECT("R"&(ROW()-6+$P60)&"C"&COLUMN(),FALSE)) -> 0 | O11: =SUM(INDIRECT("R"&(ROW()-6)&"C"&COLUMN(),FALSE):INDIRECT("R"&(ROW()-6+$P60)&"C"&COLUMN(),FALSE)) -> 0 | P11: =SUM(INDIRECT("R"&(ROW()-6)&"C"&COLUMN(),FALSE):INDIRECT("R"&(ROW()-6+$Q60)&"C"&COLUMN(),FALSE)) -> 0 | Q11: =SUM(INDIRECT("R"&(ROW()-6)&"C"&COLUMN(),FALSE):INDIRECT("R"&(ROW()-6+$Q60)&"C"&COLUMN(),FALSE)) -> 0 | R11: =SUM(INDIRECT("R"&(ROW()-6)&"C"&COLUMN(),FALSE):INDIRECT("R"&(ROW()-6+$Q60)&"C"&COLUMN(),FALSE)) -> 0 | S11: =SUM(INDIRECT("R"&(ROW()-6)&"C"&COLUMN(),FALSE):INDIRECT("R"&(ROW()-6+$Q60)&"C"&COLUMN(),FALSE)) -> 0 | T11: =SUM(INDIRECT("R"&(ROW()-6)&"C"&COLUMN(),FALSE):INDIRECT("R"&(ROW()-6+$Q60)&"C"&COLUMN(),FALSE)) -> 0 | U11: =SUM(INDIRECT("R"&(ROW()-6)&"C"&COLUMN(),FALSE):INDIRECT("R"&(ROW()-6+$Q60)&"C"&COLUMN(),FALSE)) -> 0 | V11: =SUM(INDIRECT("R"&(ROW()-6)&"C"&COLUMN(),FALSE):INDIRECT("R"&(ROW()-6+$Q60)&"C"&COLUMN(),FALSE)) -> 0 | W11: =SUM(INDIRECT("R"&(ROW()-6)&"C"&COLUMN(),FALSE):INDIRECT("R"&(ROW()-6+$Q60)&"C"&COLUMN(),FALSE)) -> 0 | X11: =SUM(INDIRECT("R"&(ROW()-6)&"C"&COLUMN(),FALSE):INDIRECT("R"&(ROW()-6+$Q60)&"C"&COLUMN(),FALSE)) -> 0 | Y11: =SUM(INDIRECT("R"&(ROW()-6)&"C"&COLUMN(),FALSE):INDIRECT("R"&(ROW()-6+$Q60)&"C"&COLUMN(),FALSE)) -> 0 | Z11: =SUM(INDIRECT("R"&(ROW()-6)&"C"&COLUMN(),FALSE):INDIRECT("R"&(ROW()-6+$R60)&"C"&COLUMN(),FALSE)) -> 0 | AA11: =SUM(INDIRECT("R"&(ROW()-6)&"C"&COLUMN(),FALSE):INDIRECT("R"&(ROW()-6+$R60)&"C"&COLUMN(),FALSE)) -> 0 | AB11: =SUM(INDIRECT("R"&(ROW()-6)&"C"&COLUMN(),FALSE):INDIRECT("R"&(ROW()-6+$R60)&"C"&COLUMN(),FALSE)) -> 0 | AC11: =SUM(INDIRECT("R"&(ROW()-6)&"C"&COLUMN(),FALSE):INDIRECT("R"&(ROW()-6+$R60)&"C"&COLUMN(),FALSE)) -> 0 | AD11: =SUM(INDIRECT("R"&(ROW()-6)&"C"&COLUMN(),FALSE):INDIRECT("R"&(ROW()-6+$R60)&"C"&COLUMN(),FALSE)) -> 0 | AE11: =SUM(INDIRECT("R"&(ROW()-6)&"C"&COLUMN(),FALSE):INDIRECT("R"&(ROW()-6+$R60)&"C"&COLUMN(),FALSE)) -> 0 | AF11: =SUM(INDIRECT("R"&(ROW()-6)&"C"&COLUMN(),FALSE):INDIRECT("R"&(ROW()-6+$R60)&"C"&COLUMN(),FALSE)) -> 0 | AG11: =SUM(INDIRECT("R"&(ROW()-6)&"C"&COLUMN(),FALSE):INDIRECT("R"&(ROW()-6+$R60)&"C"&COLUMN(),FALSE)) -> 0 | AH11: =SUM(INDIRECT("R"&(ROW()-6)&"C"&COLUMN(),FALSE):INDIRECT("R"&(ROW()-6+$R60)&"C"&COLUMN(),FALSE)) -> 0 | AI11: =SUM(INDIRECT("R"&(ROW()-6)&"C"&COLUMN(),FALSE):INDIRECT("R"&(ROW()-6+$R60)&"C"&COLUMN(),FALSE)) -> 0 | AJ11: =SUM(INDIRECT("R"&(ROW()-6)&"C"&COLUMN(),FALSE):INDIRECT("R"&(ROW()-6+$S60)&"C"&COLUMN(),FALSE)) -> 0 | AK11: =SUM(INDIRECT("R"&(ROW()-6)&"C"&COLUMN(),FALSE):INDIRECT("R"&(ROW()-6+$S60)&"C"&COLUMN(),FALSE)) -> 0 | AL11: =SUM(INDIRECT("R"&(ROW()-6)&"C"&COLUMN(),FALSE):INDIRECT("R"&(ROW()-6+$S60)&"C"&COLUMN(),FALSE)) -> 0 | AM11: =SUM(INDIRECT("R"&(ROW()-6)&"C"&COLUMN(),FALSE):INDIRECT("R"&(ROW()-6+$S60)&"C"&COLUMN(),FALSE)) -> 0 | AN11: =SUM(INDIRECT("R"&(ROW()-6)&"C"&COLUMN(),FALSE):INDIRECT("R"&(ROW()-6+$S60)&"C"&COLUMN(),FALSE)) -> 0 | AO11: =SUM(INDIRECT("R"&(ROW()-6)&"C"&COLUMN(),FALSE):INDIRECT("R"&(ROW()-6+$S60)&"C"&COLUMN(),FALSE)) -> 0 | AP11: =SUM(INDIRECT("R"&(ROW()-6)&"C"&COLUMN(),FALSE):INDIRECT("R"&(ROW()-6+$S60)&"C"&COLUMN(),FALSE)) -> 0 | AQ11: =SUM(INDIRECT("R"&(ROW()-6)&"C"&COLUMN(),FALSE):INDIRECT("R"&(ROW()-6+$S60)&"C"&COLUMN(),FALSE)) -> 0 | AR11: =SUM(INDIRECT("R"&(ROW()-6)&"C"&COLUMN(),FALSE):INDIRECT("R"&(ROW()-6+$S60)&"C"&COLUMN(),FALSE)) -> 0 | AS11: =SUM(INDIRECT("R"&(ROW()-6)&"C"&COLUMN(),FALSE):INDIRECT("R"&(ROW()-6+$S60)&"C"&COLUMN(),FALSE)) -> 0 | AZ11: 7250 | BA11: 10875 | BD11: 16250 | BE11: 24375 | BH11: 12500 | BI11: 18750
A12: TO L7 → | B12: 13.5 | C12: 31.5 | D12: 13.5 | E12: 22.875 | AZ12: 9000 | BA12: 13500 | BD12: 21000 | BE12: 31500 | BH12: 15250 | BI12: 22875
A13: TO L8 → | B13: 17.25 | C13: 37.5 | D13: 17.25 | E13: 28.125 | J13: BASIC INSTRUCTIONS: | K13: - Only the values in purple color (tables "Gathering Prices …" and "Gathering Specifications …" plus the irrelevant value at cell AB43) should be entered by the user; all other values are calculated and must not be touched | AZ13: 11500 | BA13: 17250 | BD13: 25000 | BE13: 37500 | BH13: 18750 | BI13: 28125
A14: TO L9 → | B14: 21.75 | C14: 49.5 | D14: 21.75 | E14: 36 | K14: - All credit values (columns "Cost") should be entered divided by 1,000 (table "Gathering Prices…") | AZ14: 14500 | BA14: 21750 | BD14: 33000 | BE14: 49500 | BH14: 24000 | BI14: 36000
A15: TO MAX → | B15: 24.375 | C15: 60.375 | D15: 24.375 | E15: 45.375 | K15: - After all necessary data have been entered, use the eight Input cells (row 60) to enter a MAX and PRO configuration. | AZ15: 16250 | BA15: 24375 | BD15: 40250 | BE15: 60375 | BH15: 30250 | BI15: 45375
A16: Totals | B16: =SUMIF(B5:INDIRECT("B"&(E60+5)),">0") -> 0 | C16: =SUMIF(INDIRECT("R"&(ROW()-11)&"C"&COLUMN(),FALSE):INDIRECT("R"&(ROW()-11+F60)&"C"&COLUMN(),FALSE),">0") -> 0 | D16: =SUMIF(INDIRECT("R"&(ROW()-11)&"C"&COLUMN(),FALSE):INDIRECT("R"&(ROW()-11+G60)&"C"&COLUMN(),FALSE),">0") -> 0 | E16: =SUMIF(INDIRECT("R"&(ROW()-11)&"C"&COLUMN(),FALSE):INDIRECT("R"&(ROW()-11+H60)&"C"&COLUMN(),FALSE),">0") -> 0 | K16: - Top speed (MAX+PRO+TK) and respective rank for the configuration entered are shown in the two yellow cells. "Super-charged" speed is NOT supported.
B17: =-SUMIF(B5:INDIRECT("B"&(E60+5)),"<0") -> 0 | C17: =-SUMIF(INDIRECT("R"&(ROW()-12)&"C"&COLUMN(),FALSE):INDIRECT("R"&(ROW()-12+F60)&"C"&COLUMN(),FALSE),"<0") -> 0 | D17: =-SUMIF(INDIRECT("R"&(ROW()-12)&"C"&COLUMN(),FALSE):INDIRECT("R"&(ROW()-12+G60)&"C"&COLUMN(),FALSE),"<0") -> 0 | E17: =-SUMIF(INDIRECT("R"&(ROW()-12)&"C"&COLUMN(),FALSE):INDIRECT("R"&(ROW()-12+H60)&"C"&COLUMN(),FALSE),"<0") -> 0
B18: Gathering Specifications for the Ducati SuperSport S - Asphalt 8 Airborne | Z18: TK | AA18: UPG | AC18: PRO | AJ18: UPGRADE RANK | AR18: PRO KIT RANK | AZ18: PRO KIT HANDLING | BH18: PRO KIT NITRO
C19: UPGRADE | L19: PRO KITS | Z19: TRUE | AC19: TIRE | AD19: FKT | AE19: TRA | AF19: EXH | AJ19: table order | AK19: ascending order | AL19: reference position | AM19: rank position | AN19: repeat table order for next vlookup | AO19: next value | AP19: difference | AR19: table order | AS19: ascending order | AT19: reference position | AU19: rank position | AV19: repeat table order for next vlookup | AW19: next value | AX19: difference | AZ19: table order | BA19: ascending order | BB19: reference position | BC19: rank position | BD19: repeat table order for next vlookup | BE19: next value | BF19: difference | BH19: table order | BI19: ascending order | BJ19: reference position | BK19: rank position | BL19: repeat table order for next vlookup | BM19: next value | BN19: difference
B20: Init | C20: Accel | E20: Speed | G20: Handling | I20: Nitro | L20: Tires | O20: Fork Tubes | R20: Transmission | U20: Exhaust | AA20: SPD | AB20: NTR | AC20: SPD | AD20: NTR | AE20: SPD | AF20: NTR | AJ20: =B26 -> 1262 | AL20: 41 | AM20: =AL20 -> 41 | AN20: =AJ20 -> 1262 | AO20: =VLOOKUP(AM20-1,AM$20:AN$60,2,FALSE) -> 1265 | AP20: =AO20-AN20 -> 3 | AR20: 0 | AT20: 21 | AU20: =AT20 -> 21 | AV20: =AR20 -> 0 | AW20: =VLOOKUP(AU20-1,AU$20:AV$40,2,FALSE) -> 5 | AX20: =AW20-AV20 -> 5 | AZ20: =H31 -> 1.35 | BB20: 11 | BC20: =BB20 -> 11 | BD20: =AZ20 -> 1.35 | BE20: =VLOOKUP(BC20-1,BC$20:BD$30,2,FALSE) -> 1.352 | BF20: =BE20-BD20 -> 0.002 | BH20: =J31 -> 55.7 | BJ20: 11 | BK20: =BJ20 -> 11 | BL20: =BH20 -> 55.7 | BM20: =VLOOKUP(BK20-1,BK$20:BL$30,2,FALSE) -> 56.6 | BN20: =BM20-BL20 -> 0.9
C21: Rank | D21: A | E21: Rank | F21: S | G21: Rank | H21: H | I21: Rank | J21: N | L21: Rank | M21: H | N21: S | O21: Rank | P21: N | Q21: H | R21: Rank | S21: A | T21: S | U21: Rank | V21: N | W21: A | Y21: 1 | Z21: S1 | AA21: =SUM(E$38,OFFSET(E$38,0,0,$Y21+1,1))/(SUM(F$38,OFFSET(F$38,0,0,$Y21+1,1))+IF(Z$19,F40,0)) -> 1.304347826 | AB21: =SUM(I$38,OFFSET(I$38,0,0,$Y21+1,1))/(SUM(J$38,OFFSET(J$38,0,0,$Y21+1,1))+IF(Z$19,J40,0)) -> 1.578947368 | AC21: =SUM(L$38,OFFSET(L$38,0,0,$Y21+1,1))/(SUM(N$38,OFFSET(N$38,0,0,$Y21+1,1))) -> 5 | AD21: =SUM(O$38,OFFSET(O$38,0,0,$Y21+1,1))/(SUM(P$38,OFFSET(P$38,0,0,$Y21+1,1))) -> 5.555555556 | AE21: =SUM(R$38,OFFSET(R$38,0,0,$Y21+1,1))/(SUM(T$38,OFFSET(T$38,0,0,$Y21+1,1))) -> 4.545454545 | AF21: =SUM(U$38,OFFSET(U$38,0,0,$Y21+1,1))/(SUM(V$38,OFFSET(V$38,0,0,$Y21+1,1))) -> 5.555555556 | AJ21: =C22 -> 1409 | AK21: =LARGE(AJ$21:AJ$60,AL21) -> 1265 | AL21: =AL20-1 -> 40 | AM21: =VLOOKUP(AJ21,AK$21:AL$60,2,FALSE) -> 10 | AN21: 1409 | AO21: =VLOOKUP(AM21-1,AM$20:AN$60,2,FALSE) -> 1412 | AP21: =AO21-AN21 -> 3 | AR21: =L22 -> 98 | AS21: =LARGE(AR$21:AR$40,AT21) -> 5 | AT21: =AT20-1 -> 20 | AU21: =VLOOKUP(AR21,AS$21:AT$40,2,FALSE) -> 5 | AV21: =AR21 -> 98 | AW21: 103 | AX21: 5 | AZ21: =M22 -> 1.371 | BA21: =LARGE(AZ$21:AZ$30,BB21) -> 1.352 | BB21: =BB20-1 -> 10 | BC21: =VLOOKUP(AZ21,BA$21:BB$30,2,FALSE) -> 5 | BD21: =AZ21 -> 1.371 | BE21: 1.374 | BF21: 0.003 | BH21: =P22 -> 56.6 | BI21: =LARGE(BH$21:BH$30,BJ21) -> 56.6 | BJ21: =BJ20-1 -> 10 | BK21: =VLOOKUP(BH21,BI$21:BJ$30,2,FALSE) -> 10 | BL21: =BH21 -> 56.6 | BM21: 57.7 | BN21: 1.1
A22: LEVEL 1 → | B22: 2.6 | C22: 1409 | D22: 2.57 | E22: 1265 | F22: 296.9 | G22: 1361 | H22: 1.303 | I22: 1313 | J22: 38.1 | K22: A | L22: 98 | M22: 1.371 | N22: 327.9 | O22: 5 | P22: 56.6 | Q22: 1.352 | R22: 67 | S22: 1.62 | T22: 319.7 | U22: 36 | V22: 63.3 | W22: 1.87 | Y22: 2 | Z22: S2 | AA22: =SUM(E$38,OFFSET(E$38,0,0,$Y22+1,1))/(SUM(F$38,OFFSET(F$38,0,0,$Y22+1,1))+IF(Z$19,F41,0)) -> 1.470588235 | AB22: =SUM(I$38,OFFSET(I$38,0,0,$Y22+1,1))/(SUM(J$38,OFFSET(J$38,0,0,$Y22+1,1))+IF(Z$19,J41,0)) -> 1.785714286 | AC22: =SUM(L$38,OFFSET(L$38,0,0,$Y22+1,1))/(SUM(N$38,OFFSET(N$38,0,0,$Y22+1,1))) -> 4.166666667 | AD22: =SUM(O$38,OFFSET(O$38,0,0,$Y22+1,1))/(SUM(P$38,OFFSET(P$38,0,0,$Y22+1,1))) -> 5 | AE22: =SUM(R$38,OFFSET(R$38,0,0,$Y22+1,1))/(SUM(T$38,OFFSET(T$38,0,0,$Y22+1,1))) -> 4.166666667 | AF22: =SUM(U$38,OFFSET(U$38,0,0,$Y22+1,1))/(SUM(V$38,OFFSET(V$38,0,0,$Y22+1,1))) -> 5 | AJ22: 1412 | AK22: =LARGE(AJ$21:AJ$60,AL22) -> 1267 | AL22: 39 | AM22: =VLOOKUP(AJ22,AK$21:AL$60,2,FALSE) -> 9 | AN22: 1412 | AO22: =VLOOKUP(AM22-1,AM$20:AN$60,2,FALSE) -> 1414 | AP22: 2 | AR22: =L23 -> 103 | AS22: 10 | AT22: 19 | AU22: 4 | AV22: =AR22 -> 103 | AW22: 109 | AX22: 6 | AZ22: =M23 -> 1.374 | BA22: 1.355 | BB22: =BB21-1 -> 9 | BC22: 4 | BD22: 1.374 | BE22: 1.377 | BF22: 0.003 | BH22: =P23 -> 57.7 | BI22: 57.7 | BJ22: =BJ21-1 -> 9 | BK22: 9 | BL22: 57.7 | BM22: 59.1 | BN22: 1.4
A23: LEVEL 2 → | B23: 295.7 | C23: 1412 | D23: 2.53 | E23: 1267 | F23: 298 | G23: 1363 | H23: 1.305 | I23: 1315 | J23: 39 | K23: S | L23: 103 | M23: 1.374 | N23: 329.3 | O23: 10 | P23: 57.7 | Q23: 1.355 | R23: 72 | S23: 1.58 | T23: 321 | U23: 41 | V23: 64.4 | W23: 1.83 | Y23: 3 | Z23: S3 | AA23: 1.228070175 | AB23: 1.70212766 | AC23: =SUM(L$38,OFFSET(L$38,0,0,$Y23+1,1))/(SUM(N$38,OFFSET(N$38,0,0,$Y23+1,1))) -> 3.902439024 | AD23: =SUM(O$38,OFFSET(O$38,0,0,$Y23+1,1))/(SUM(P$38,OFFSET(P$38,0,0,$Y23+1,1))) -> 4.705882353 | AE23: =SUM(R$38,OFFSET(R$38,0,0,$Y23+1,1))/(SUM(T$38,OFFSET(T$38,0,0,$Y23+1,1))) -> 3.902439024 | AF23: 4.705882353 | AJ23: 1414 | AK23: 1269 | AL23: 38 | AM23: 8 | AN23: 1414 | AO23: 1419 | AP23: 5 | AR23: =L24 -> 109 | AS23: 16 | AT23: 18 | AU23: 3 | AV23: 109 | AW23: 116 | AX23: 7 | AZ23: =M24 -> 1.377 | BA23: 1.359 | BB23: 8 | BC23: 3 | BD23: 1.377 | BE23: 1.381 | BF23: 0.004 | BH23: =P24 -> 59.1 | BI23: 59.1 | BJ23: 8 | BK23: 8 | BL23: 59.1 | BM23: 60.6 | BN23: 1.5
A24: LEVEL 3 → | B24: 1.3 | C24: 1414 | D24: 2.5 | E24: 1269 | F24: 299.1 | G24: 1366 | H24: 1.308 | I24: 1318 | J24: 39.9 | K24: H | L24: 109 | M24: 1.377 | N24: 331 | O24: 16 | P24: 59.1 | Q24: 1.359 | R24: 78 | S24: 1.53 | T24: 322.7 | U24: 47 | V24: 65.8 | W24: 1.78 | Y24: 4 | Z24: S4 | AA24: 1.5 | AB24: 2 | AC24: =SUM(L$38,OFFSET(L$38,0,0,$Y24+1,1))/(SUM(N$38,OFFSET(N$38,0,0,$Y24+1,1))) -> 3.833333333 | AD24: =SUM(O$38,OFFSET(O$38,0,0,$Y24+1,1))/(SUM(P$38,OFFSET(P$38,0,0,$Y24+1,1))) -> 4.693877551 | AE24: =SUM(R$38,OFFSET(R$38,0,0,$Y24+1,1))/(SUM(T$38,OFFSET(T$38,0,0,$Y24+1,1))) -> 3.833333333 | AF24: 4.6 | AJ24: 1419 | AK24: 1274 | AL24: 37 | AM24: 7 | AN24: 1419 | AO24: 1424 | AP24: 5 | AR24: =L25 -> 116 | AS24: 23 | AT24: 17 | AU24: 2 | AV24: 116 | AW24: 124 | AX24: 8 | AZ24: =M25 -> 1.381 | BA24: 1.363 | BB24: 7 | BC24: 2 | BD24: 1.381 | BE24: 1.386 | BF24: 0.005 | BH24: =P25 -> 60.6 | BI24: 60.6 | BJ24: 7 | BK24: 7 | BL24: 60.6 | BM24: 62.4 | BN24: 1.8
A25: LEVEL 4 → | B25: 37.1 | C25: 1419 | D25: 2.43 | E25: 1274 | F25: 301.4 | G25: 1371 | H25: 1.313 | I25: 1323 | J25: 41.8 | K25: N | L25: 116 | M25: 1.381 | N25: 332.9 | O25: 23 | P25: 60.6 | Q25: 1.363 | R25: 85 | S25: 1.47 | T25: 324.6 | U25: 54 | V25: 67.4 | W25: 1.72 | Y25: 5 | Z25: PRO | AA25: 1.650485437 | AB25: 2.023809524 | AC25: =SUM(L$38,OFFSET(L$38,0,0,$Y25+1,1))/(SUM(N$38,OFFSET(N$38,0,0,$Y25+1,1))) -> 3.780487805 | AD25: =SUM(O$38,OFFSET(O$38,0,0,$Y25+1,1))/(SUM(P$38,OFFSET(P$38,0,0,$Y25+1,1))) -> 4.626865672 | AE25: =SUM(R$38,OFFSET(R$38,0,0,$Y25+1,1))/(SUM(T$38,OFFSET(T$38,0,0,$Y25+1,1))) -> 3.734939759 | AF25: 4.558823529 | AJ25: 1424 | AK25: 1279 | AL25: 36 | AM25: 6 | AN25: 1424 | AO25: 1429 | AP25: 5 | AR25: =L26 -> 124 | AS25: 31 | AT25: 16 | AU25: 1 | AV25: 124 | AZ25: =M26 -> 1.386 | BA25: 1.368 | BB25: 6 | BC25: 1 | BD25: 1.386 | BH25: =P26 -> 62.4 | BI25: 62.4 | BJ25: 6 | BK25: 6 | BL25: 62.4 | BM25: 63.3 | BN25: 0.9
A26: PRO → | B26: 1262 | C26: 1424 | D26: 2.36 | E26: 1279 | F26: 303.7 | G26: 1376 | H26: 1.317 | I26: 1327 | J26: 43.6 | K26: Rank | L26: 124 | M26: 1.386 | N26: 335.1 | O26: 31 | P26: 62.4 | Q26: 1.368 | R26: 93 | S26: 1.4 | T26: 326.9 | U26: 62 | V26: 69.2 | W26: 1.66 | X26: =COUNT(C22:C31) -> 10 | Y26: 6 | Z26: S6 | AA26: 1.605839416 | AB26: 1.964285714 | AJ26: 1429 | AK26: 1284 | AL26: 35 | AM26: 5 | AN26: 1429 | AO26: 1436 | AP26: 7 | AR26: =O22 -> 5 | AS26: 36 | AT26: 15 | AU26: 20 | AV26: 5 | AW26: 10 | AX26: 5 | AZ26: =Q22 -> 1.352 | BA26: 1.371 | BB26: 5 | BC26: 10 | BD26: 1.352 | BE26: 1.355 | BF26: 0.003 | BH26: =V22 -> 63.3 | BI26: 63.3 | BJ26: 5 | BK26: 5 | BL26: 63.3 | BM26: 64.4 | BN26: 1.1
A27: LEVEL 6 → | C27: 1429 | D27: 2.29 | E27: 1284 | F27: 306 | G27: 1380 | H27: 1.322 | I27: 1332 | J27: 45.5 | X27: =COUNT(L22:L26) -> 5 | Y27: 7 | Z27: S7 | AA27: 1.8125 | AB27: 2.230769231 | AJ27: 1436 | AK27: 1291 | AL27: 34 | AM27: 4 | AN27: 1436 | AO27: 1441 | AP27: 5 | AR27: =O23 -> 10 | AS27: 41 | AT27: 14 | AU27: 19 | AV27: 10 | AW27: 16 | AX27: 6 | AZ27: =Q23 -> 1.355 | BA27: 1.374 | BB27: 4 | BC27: 9 | BD27: 1.355 | BE27: 1.359 | BF27: 0.004 | BH27: =V23 -> 64.4 | BI27: 64.4 | BJ27: 4 | BK27: 4 | BL27: 64.4 | BM27: 65.8 | BN27: 1.4
A28: LEVEL 7 → | C28: 1436 | D28: 2.18 | E28: 1291 | F28: 309.4 | G28: 1388 | H28: 1.33 | I28: 1339 | J28: 48.3 | Y28: 8 | Z28: S8 | AA28: 1.857923497 | AB28: 2.281879195 | AJ28: 1441 | AK28: 1296 | AL28: 33 | AM28: 3 | AN28: 1441 | AO28: 1445 | AP28: 4 | AR28: =O24 -> 16 | AS28: 47 | AT28: 13 | AU28: 18 | AV28: 16 | AW28: 23 | AX28: 7 | AZ28: =Q24 -> 1.359 | BA28: 1.377 | BB28: 3 | BC28: 8 | BD28: 1.359 | BE28: 1.363 | BF28: 0.004 | BH28: =V24 -> 65.8 | BI28: 65.8 | BJ28: 3 | BK28: 3 | BL28: 65.8 | BM28: 67.4 | BN28: 1.6
A29: LEVEL 8 → | C29: 1441 | D29: 2.11 | E29: 1296 | F29: 311.7 | G29: 1392 | H29: 1.335 | I29: 1344 | J29: 50.1 | Y29: 9 | Z29: S9 | AA29: 1.703056769 | AB29: 2.096774194 | AJ29: 1445 | AK29: 1301 | AL29: 32 | AM29: 2 | AN29: 1445 | AO29: 1455 | AP29: 10 | AR29: =O25 -> 23 | AS29: 54 | AT29: 12 | AU29: 17 | AV29: 23 | AW29: 31 | AX29: 8 | AZ29: =Q25 -> 1.363 | BA29: 1.381 | BB29: 2 | BC29: 7 | BD29: 1.363 | BE29: 1.368 | BF29: 0.005 | BH29: =V25 -> 67.4 | BI29: 67.4 | BJ29: 2 | BK29: 2 | BL29: 67.4 | BM29: 69.2 | BN29: 1.8
A30: LEVEL 9 → | C30: 1445 | D30: 2.05 | E30: 1301 | F30: 314 | G30: 1397 | H30: 1.34 | I30: 1349 | J30: 52 | Y30: 10 | Z30: MAX | AA30: 1.678321678 | AB30: 2.103004292 | AJ30: =C31 -> 1455 | AK30: 1310 | AL30: 31 | AM30: 1 | AN30: 1455 | AR30: =O26 -> 31 | AS30: 62 | AT30: 11 | AU30: 16 | AV30: 31 | AW30: 36 | AX30: 5 | AZ30: =Q26 -> 1.368 | BA30: 1.386 | BB30: 1 | BC30: 6 | BD30: 1.368 | BE30: 1.371 | BF30: 0.003 | BH30: =V26 -> 69.2 | BI30: 69.2 | BJ30: 1 | BK30: 1 | BL30: 69.2
A31: MAX | C31: 1455 | D31: 1.91 | E31: 1310 | F31: 318.6 | G31: 1407 | H31: 1.35 | I31: 1359 | J31: 55.7 | Z31: Points of added rank per km/h of added speed | AJ31: =E22 -> 1265 | AK31: 1313 | AL31: 30 | AM31: 40 | AN31: 1265 | AO31: 1267 | AP31: 2 | AR31: =R22 -> 67 | AS31: 67 | AT31: 10 | AU31: 10 | AV31: 67 | AW31: 72 | AX31: 5
A32: MAX+TK→ | B32: TK | D32: 1.73 | F32: 324.3 | H32: 1.363 | J32: 60.4 | Z32: The smaller the values, the better for speed | AJ32: 1267 | AK32: 1315 | AL32: 29 | AM32: 39 | AN32: 1267 | AO32: 1269 | AP32: 2 | AR32: =R23 -> 72 | AS32: 72 | AT32: 9 | AU32: 9 | AV32: 72 | AW32: 78 | AX32: 6 | AZ32: PRO KIT SPEED | BH32: PRO KIT ACCELERATION
AJ33: 1269 | AK33: 1318 | AL33: 28 | AM33: 38 | AN33: 1269 | AO33: 1274 | AP33: 5 | AR33: =R24 -> 78 | AS33: 78 | AT33: 8 | AU33: 8 | AV33: 78 | AW33: 85 | AX33: 7 | AZ33: table order | BA33: ascending order | BB33: reference position | BC33: rank position | BD33: repeat table order for next vlookup | BE33: next value | BF33: difference | BH33: table order | BI33: ascending order | BJ33: reference position | BK33: rank position | BL33: repeat table order for next vlookup | BM33: next value | BN33: difference
AH34: Tokens | AJ34: 1274 | AK34: 1323 | AL34: 27 | AM34: 37 | AN34: 1274 | AO34: 1279 | AP34: 5 | AR34: =R25 -> 85 | AS34: 85 | AT34: 7 | AU34: 7 | AV34: 85 | AW34: 93 | AX34: 8 | AZ34: =F31 -> 318.6 | BB34: 11 | BC34: =BB34 -> 11 | BD34: =AZ34 -> 318.6 | BE34: =VLOOKUP(BC34-1,BC$34:BD$44,2,FALSE) -> 319.7 | BF34: =BE34-BD34 -> 1.1 | BH34: =D31 -> 1.91 | BJ34: 0 | BK34: =BJ34 -> 0 | BL34: =BH34 -> 1.91 | BM34: =VLOOKUP(BK34-1,BK$34:BL$44,2,FALSE) ->  | BN34: =BL34-BM34 -> 
B35: Tuning the Ducati SuperSport S - ASPHALT 8 AIRBORNE | Z35: S+N | AA35: =B40+B42+Z51+Z53 -> 332.8 | AB35: =AA35+AB40+AB42 -> 335 | AD35: TOTAL Cost | AF35: =AF36+AF37 -> 812950 | AJ35: 1279 | AK35: 1327 | AL35: 26 | AM35: 36 | AN35: 1279 | AO35: 1284 | AP35: 5 | AR35: =R26 -> 93 | AS35: 93 | AT35: 6 | AU35: 6 | AV35: 93 | AW35: 98 | AX35: 5 | AZ35: =N22 -> 327.9 | BA35: =LARGE(AZ$35:AZ$44,BB35) -> 319.7 | BB35: =BB34-1 -> 10 | BC35: =VLOOKUP(AZ35,BA$35:BB$44,2,FALSE) -> 5 | BD35: =AZ35 -> 327.9 | BE35: 329.3 | BF35: 1.4 | BH35: =S22 -> 1.62 | BI35: =LARGE(BH$35:BH$44,BJ35) -> 1.87 | BJ35: =BJ34+1 -> 1 | BK35: =VLOOKUP(BH35,BI$35:BJ$44,2,FALSE) -> 6 | BL35: =BH35 -> 1.62 | BM35: 1.66 | BN35: =BL35-BM35 -> -0.04
C36: UPGRADE | L36: PRO KITS | Z36: var | AA36: =_xlfn.VAR.P(AA50:AA53) -> 0 | AD36: UPG T Cost | AF36: =SUMIF(B6:E15,">0")*1000 -> 666150 | AH36: =-SUMIF(B6:E15,"<0")*1000 -> 0 | AJ36: 1284 | AK36: 1332 | AL36: 25 | AM36: 35 | AN36: 1284 | AO36: 1291 | AP36: 7 | AR36: =U22 -> 36 | AS36: 98 | AT36: 5 | AU36: 15 | AV36: 36 | AW36: 41 | AX36: 5 | AZ36: =N23 -> 329.3 | BA36: 321 | BB36: =BB35-1 -> 9 | BC36: 4 | BD36: 329.3 | BE36: 331 | BF36: 1.7 | BH36: =S23 -> 1.58 | BI36: 1.83 | BJ36: =BJ35+1 -> 2 | BK36: 7 | BL36: 1.58 | BM36: 1.62 | BN36: =BL36-BM36 -> -0.04
B37: Init | C37: Accel | E37: Speed | G37: Handling | I37: Nitro | K37: MAX | L37: Tires | O37: Fork Tubes | R37: Transmission | U37: Exhaust | X37: PRO | Y37: End | Z37: MAX | AA37: Final | AB37: TK | AD37: PRO T Cost | AF37: =SUM(F6:F10,P6:P10,Z6:Z10,AJ6:AJ10)*1000 -> 146800 | AJ37: 1291 | AK37: 1339 | AL37: 24 | AM37: 34 | AN37: 1291 | AO37: 1296 | AP37: 5 | AR37: =U23 -> 41 | AS37: 103 | AT37: 4 | AU37: 14 | AV37: 41 | AW37: 47 | AX37: 6 | AZ37: =N24 -> 331 | BA37: 322.7 | BB37: 8 | BC37: 3 | BD37: 331 | BE37: 332.9 | BF37: 1.9 | BH37: =S24 -> 1.53 | BI37: 1.78 | BJ37: 3 | BK37: 8 | BL37: 1.53 | BM37: 1.58 | BN37: -0.05
C38: Rank | D38: A | E38: Rank | F38: S | G38: Rank | H38: H | I38: Rank | J38: N | L38: Rank | M38: H | N38: S | O38: Rank | P38: N | Q38: H | R38: Rank | S38: A | T38: S | U38: Rank | V38: N | W38: A | Z38: PRO | AA38: Value | AB38: Boost | AD38: Current Cost | AF38: =AF39+AF40 -> 0 | AJ38: 1296 | AK38: 1344 | AL38: 23 | AM38: 33 | AN38: 1296 | AO38: 1301 | AP38: 5 | AR38: =U24 -> 47 | AS38: 109 | AT38: 3 | AU38: 13 | AV38: 47 | AW38: 54 | AX38: 7 | AZ38: =N25 -> 332.9 | BA38: 324.6 | BB38: 7 | BC38: 2 | BD38: 332.9 | BE38: 335.1 | BF38: 2.2 | BH38: =S25 -> 1.47 | BI38: 1.72 | BJ38: 4 | BK38: 9 | BL38: 1.47 | BM38: 1.53 | BN38: -0.06
B39: =B22 -> 2.6 | C39: =VLOOKUP(C22,AO$20:AP$60,2,FALSE) -> 2 | D39: =D22-B22 -> -0.03 | E39: =VLOOKUP(E22,AO$20:AP$60,2,FALSE) -> 3 | F39: =F22-B23 -> 1.2 | G39: =VLOOKUP(G22,AO$20:AP$60,2,FALSE) -> 2 | H39: =H22-B24 -> 0.003 | I39: =VLOOKUP(I22,AO$20:AP$60,2,FALSE) -> 3 | J39: =J22-B25 -> 1 | K39: =SUM(D39:D48) -> -0.69 | L39: =VLOOKUP(L22,AW$20:AX$40,2,FALSE) -> 5 | M39: =VLOOKUP(M22,BE$20:BF$30,2,FALSE) -> 0.003 | N39: =VLOOKUP(N22,BE$34:BF$44,2,FALSE) -> 1 | O39: =VLOOKUP(O22,AW$20:AX$40,2,FALSE) -> 5 | P39: =VLOOKUP(P22,BM$20:BN$30,2,FALSE) -> 0.9 | Q39: =VLOOKUP(Q22,BE$20:BF$30,2,FALSE) -> 0.002 | R39: =VLOOKUP(R22,AW$20:AX$40,2,FALSE) -> 5 | S39: =VLOOKUP(S22,BL$34:BN$44,3,FALSE) -> -0.04 | T39: =VLOOKUP(T22,BE$34:BF$44,2,FALSE) -> 1.1 | U39: =VLOOKUP(U22,AW$20:AX$40,2,FALSE) -> 5 | V39: =VLOOKUP(V22,BM$20:BN$30,2,FALSE) -> 0.9 | W39: =VLOOKUP(W22,BL$34:BN$44,3,FALSE) -> -0.04 | X39: =SUM(S39:S43,W39:W43) -> -0.51 | Y39: A | Z39: =K39+X39 -> -1.2 | AA39: =B39+Z39 -> 1.4 | AB39: =INDIRECT("R"&(ROW(upg_acc)+1+E60)&"C"&COLUMN(upg_acc),FALSE) -> -0.03 | AD39: UPG C Cost | AF39: =SUM(B16:E16)*1000 -> 0 | AH39: =SUM(B17:E17)*1000 -> 0 | AJ39: 1301 | AK39: 1349 | AL39: 22 | AM39: 32 | AN39: 1301 | AO39: 1310 | AP39: 9 | AR39: =U25 -> 54 | AS39: 116 | AT39: 2 | AU39: 12 | AV39: 54 | AW39: 62 | AX39: 8 | AZ39: =N26 -> 335.1 | BA39: 326.9 | BB39: 6 | BC39: 1 | BD39: 335.1 | BH39: =S26 -> 1.4 | BI39: 1.66 | BJ39: 5 | BK39: 10 | BL39: 1.4 | BM39: 1.47 | BN39: -0.07
B40: =B23 -> 295.7 | C40: =VLOOKUP(C23,AO$20:AP$60,2,FALSE) -> 3 | D40: =D23-D22 -> -0.04 | E40: =VLOOKUP(E23,AO$20:AP$60,2,FALSE) -> 2 | F40: =F23-F22 -> 1.1 | G40: =VLOOKUP(G23,AO$20:AP$60,2,FALSE) -> 2 | H40: =H23-H22 -> 0.002 | I40: =VLOOKUP(I23,AO$20:AP$60,2,FALSE) -> 2 | J40: =J23-J22 -> 0.9 | K40: =SUM(F39:F48) -> 22.9 | L40: =VLOOKUP(L23,AW$20:AX$40,2,FALSE) -> 5 | M40: =VLOOKUP(M23,BE$20:BF$30,2,FALSE) -> 0.003 | N40: =VLOOKUP(N23,BE$34:BF$44,2,FALSE) -> 1.4 | O40: =VLOOKUP(O23,AW$20:AX$40,2,FALSE) -> 5 | P40: =VLOOKUP(P23,BM$20:BN$30,2,FALSE) -> 1.1 | Q40: =VLOOKUP(Q23,BE$20:BF$30,2,FALSE) -> 0.003 | R40: =VLOOKUP(R23,AW$20:AX$40,2,FALSE) -> 5 | S40: =VLOOKUP(S23,BL$34:BN$44,3,FALSE) -> -0.04 | T40: =VLOOKUP(T23,BE$34:BF$44,2,FALSE) -> 1.3 | U40: =VLOOKUP(U23,AW$20:AX$40,2,FALSE) -> 5 | V40: =VLOOKUP(V23,BM$20:BN$30,2,FALSE) -> 1.1 | W40: =VLOOKUP(W23,BL$34:BN$44,3,FALSE) -> -0.04 | X40: =SUM(N39:N43,T39:T43) -> 16.5 | Y40: S | Z40: =K40+X40 -> 39.4 | AA40: =B40+Z40 -> 335.1 | AB40: =INDIRECT("R"&(ROW(upg_spd)+1+F60)&"C"&COLUMN(upg_spd),FALSE) -> 1.2 | AD40: PRO C Cost | AF40: =SUM(F11+P11+Z11+AJ11)*1000 -> 0 | AJ40: =E31 -> 1310 | AK40: 1359 | AL40: 21 | AM40: 31 | AN40: 1310 | AO40: 1313 | AP40: 3 | AR40: =U26 -> 62 | AS40: 124 | AT40: 1 | AU40: 11 | AV40: 62 | AW40: 67 | AX40: 5 | AZ40: =T22 -> 319.7 | BA40: 327.9 | BB40: 5 | BC40: 10 | BD40: 319.7 | BE40: 321 | BF40: 1.3 | BH40: =W22 -> 1.87 | BI40: 1.62 | BJ40: 6 | BK40: 1 | BL40: 1.87 | BM40: 1.91 | BN40: -0.04
B41: =B24 -> 1.3 | C41: 2 | D41: =D24-D23 -> -0.03 | E41: 2 | F41: =F24-F23 -> 1.1 | G41: 3 | H41: =H24-H23 -> 0.003 | I41: 3 | J41: =J24-J23 -> 0.9 | K41: =SUM(H39:H48) -> 0.05 | L41: =VLOOKUP(L24,AW$20:AX$40,2,FALSE) -> 6 | M41: =VLOOKUP(M24,BE$20:BF$30,2,FALSE) -> 0.003 | N41: =VLOOKUP(N24,BE$34:BF$44,2,FALSE) -> 1.7 | O41: =VLOOKUP(O24,AW$20:AX$40,2,FALSE) -> 6 | P41: =VLOOKUP(P24,BM$20:BN$30,2,FALSE) -> 1.4 | Q41: =VLOOKUP(Q24,BE$20:BF$30,2,FALSE) -> 0.004 | R41: =VLOOKUP(R24,AW$20:AX$40,2,FALSE) -> 6 | S41: =VLOOKUP(S24,BL$34:BN$44,3,FALSE) -> -0.05 | T41: =VLOOKUP(T24,BE$34:BF$44,2,FALSE) -> 1.7 | U41: =VLOOKUP(U24,AW$20:AX$40,2,FALSE) -> 6 | V41: =VLOOKUP(V24,BM$20:BN$30,2,FALSE) -> 1.4 | W41: =VLOOKUP(W24,BL$34:BN$44,3,FALSE) -> -0.05 | X41: =SUM(M39:M43,Q39:Q43) -> 0.036 | Y41: H | Z41: =K41+X41 -> 0.086 | AA41: =B41+Z41 -> 1.386 | AB41: =INDIRECT("R"&(ROW(upg_hnd)+1+G60)&"C"&COLUMN(upg_hnd),FALSE) -> 0.003 | AD41: Tires | AG41: =G11 -> 0 | AJ41: =G22 -> 1361 | AK41: 1361 | AL41: 20 | AM41: 20 | AN41: 1361 | AO41: 1363 | AP41: 2 | AZ41: =T23 -> 321 | BA41: 329.3 | BB41: 4 | BC41: 9 | BD41: 321 | BE41: 322.7 | BF41: 1.7 | BH41: =W23 -> 1.83 | BI41: 1.58 | BJ41: 7 | BK41: 2 | BL41: 1.83 | BM41: 1.87 | BN41: -0.04
B42: =B25 -> 37.1 | C42: 5 | D42: =D25-D24 -> -0.07 | E42: 5 | F42: =F25-F24 -> 2.3 | G42: 5 | H42: =H25-H24 -> 0.005 | I42: 5 | J42: =J25-J24 -> 1.9 | K42: =SUM(J39:J48) -> 18.6 | L42: =VLOOKUP(L25,AW$20:AX$40,2,FALSE) -> 7 | M42: =VLOOKUP(M25,BE$20:BF$30,2,FALSE) -> 0.004 | N42: =VLOOKUP(N25,BE$34:BF$44,2,FALSE) -> 1.9 | O42: =VLOOKUP(O25,AW$20:AX$40,2,FALSE) -> 7 | P42: =VLOOKUP(P25,BM$20:BN$30,2,FALSE) -> 1.5 | Q42: =VLOOKUP(Q25,BE$20:BF$30,2,FALSE) -> 0.004 | R42: =VLOOKUP(R25,AW$20:AX$40,2,FALSE) -> 7 | S42: =VLOOKUP(S25,BL$34:BN$44,3,FALSE) -> -0.06 | T42: =VLOOKUP(T25,BE$34:BF$44,2,FALSE) -> 1.9 | U42: =VLOOKUP(U25,AW$20:AX$40,2,FALSE) -> 7 | V42: =VLOOKUP(V25,BM$20:BN$30,2,FALSE) -> 1.6 | W42: =VLOOKUP(W25,BL$34:BN$44,3,FALSE) -> -0.06 | X42: =SUM(P39:P43,V39:V43) -> 13.5 | Y42: N | Z42: =K42+X42 -> 32.1 | AA42: =B42+Z42 -> 69.2 | AB42: =INDIRECT("R"&(ROW(upg_ntr)+1+H60)&"C"&COLUMN(upg_ntr),FALSE) -> 1 | AD42: Fork Tubes | AG42: =Q11 -> 0 | AJ42: 1363 | AK42: 1363 | AL42: 19 | AM42: 19 | AN42: 1363 | AO42: 1366 | AP42: 3 | AZ42: =T24 -> 322.7 | BA42: 331 | BB42: 3 | BC42: 8 | BD42: 322.7 | BE42: 324.6 | BF42: 1.9 | BH42: =W24 -> 1.78 | BI42: 1.53 | BJ42: 8 | BK42: 3 | BL42: 1.78 | BM42: 1.83 | BN42: -0.05
B43: =B26 -> 1262 | C43: 5 | D43: =D26-D25 -> -0.07 | E43: 5 | F43: =F26-F25 -> 2.3 | G43: 5 | H43: =H26-H25 -> 0.004 | I43: 4 | J43: =J26-J25 -> 1.8 | K43: =SUM(C39:C48,E39:E48,G39:G48,I39:I48) -> 193 | L43: =VLOOKUP(L26,AW$20:AX$40,2,FALSE) -> 8 | M43: =VLOOKUP(M26,BE$20:BF$30,2,FALSE) -> 0.005 | N43: =VLOOKUP(N26,BE$34:BF$44,2,FALSE) -> 2.2 | O43: =VLOOKUP(O26,AW$20:AX$40,2,FALSE) -> 8 | P43: =VLOOKUP(P26,BM$20:BN$30,2,FALSE) -> 1.8 | Q43: =VLOOKUP(Q26,BE$20:BF$30,2,FALSE) -> 0.005 | R43: =VLOOKUP(R26,AW$20:AX$40,2,FALSE) -> 8 | S43: =VLOOKUP(S26,BL$34:BN$44,3,FALSE) -> -0.07 | T43: =VLOOKUP(T26,BE$34:BF$44,2,FALSE) -> 2.3 | U43: =VLOOKUP(U26,AW$20:AX$40,2,FALSE) -> 8 | V43: =VLOOKUP(V26,BM$20:BN$30,2,FALSE) -> 1.8 | W43: =VLOOKUP(W26,BL$34:BN$44,3,FALSE) -> -0.06 | X43: =SUM(L39:L43,O39:O43,R39:R43,U39:U43) -> 124 | Y43: Rank | Z43: =K43+X43 -> 317 | AA43: =B43+Z43 -> 1579 | AB43: 40 | AD43: Transmission | AG43: =AA11 -> 0 | AJ43: 1366 | AK43: 1366 | AL43: 18 | AM43: 18 | AN43: 1366 | AO43: 1371 | AP43: 5 | AZ43: =T25 -> 324.6 | BA43: 332.9 | BB43: 2 | BC43: 7 | BD43: 324.6 | BE43: 326.9 | BF43: 2.3 | BH43: =W25 -> 1.72 | BI43: 1.47 | BJ43: 9 | BK43: 4 | BL43: 1.72 | BM43: 1.78 | BN43: -0.06
C44: 5 | D44: =D27-D26 -> -0.07 | E44: 5 | F44: =F27-F26 -> 2.3 | G44: 4 | H44: =H27-H26 -> 0.005 | I44: 5 | J44: =J27-J26 -> 1.9 | AC44: MPTK | AD44: Exhaust | AG44: =AK11 -> 0 | AJ44: 1371 | AK44: 1371 | AL44: 17 | AM44: 17 | AN44: 1371 | AO44: 1376 | AP44: 5 | AZ44: =T26 -> 326.9 | BA44: 335.1 | BB44: 1 | BC44: 6 | BD44: 326.9 | BE44: 327.9 | BF44: 1 | BH44: =W26 -> 1.66 | BI44: 1.4 | BJ44: 10 | BK44: 5 | BL44: 1.66 | BM44: 1.72 | BN44: -0.06
C45: 7 | D45: -0.11 | E45: 7 | F45: 3.4 | G45: 8 | H45: 0.008 | I45: 7 | J45: 2.8 | AC45: 1.4 | AD45: Early Tech | AG45: =H11+R11+AB11+AL11 -> 0 | AJ45: 1376 | AK45: 1376 | AL45: 16 | AM45: 16 | AN45: 1376 | AO45: 1380 | AP45: 4
C46: 5 | D46: -0.07 | E46: 5 | F46: 2.3 | G46: 4 | H46: 0.005 | I46: 5 | J46: 1.8 | AC46: 295.8 | AD46: Initial Tech | AG46: =I11+S11+AC11+AM11 -> 0 | AJ46: 1380 | AK46: 1380 | AL46: 15 | AM46: 15 | AN46: 1380 | AO46: 1388 | AP46: 8
C47: 4 | D47: -0.06 | E47: 5 | F47: 2.3 | G47: 5 | H47: 0.005 | I47: 5 | J47: 1.9 | AC47: 1.25 | AD47: Common Tech | AG47: =J11+T11+AD11+AN11 -> 0 | AJ47: 1388 | AK47: 1388 | AL47: 14 | AM47: 14 | AN47: 1388 | AO47: 1392 | AP47: 4
C48: 10 | D48: -0.14 | E48: 9 | F48: 4.6 | G48: 10 | H48: 0.01 | I48: 10 | J48: 3.7 | AC48: 114.3 | AD48: Mid Tech | AG48: =K11+U11+AE11+AO11 -> 0 | AJ48: 1392 | AK48: 1392 | AL48: 13 | AM48: 13 | AN48: 1392 | AO48: 1397 | AP48: 5
B49: TK | D49: =D32-D31 -> -0.18 | F49: =F32-F31 -> 5.7 | H49: =H32-H31 -> 0.013 | J49: =J32-J31 -> 4.7 | AB49: Final | AD49: Rare Tech | AG49: =L11+V11+AF11+AP11 -> 0 | AJ49: 1397 | AK49: 1397 | AL49: 12 | AM49: 12 | AN49: 1397 | AO49: 1407 | AP49: 10
B50: A | C50: =IF(E60>0,C39,"") ->  | D50: =IF(E60>0,D39,"") ->  | E50: =IF(F60>0,E39,"") ->  | F50: =IF(F60>0,F39,"") ->  | G50: =IF(G60>0,G39,"") ->  | H50: =IF(G60>0,H39,"") ->  | I50: =IF(H60>0,I39,"") ->  | J50: =IF(H60>0,J39,"") ->  | K50: =SUM(D50:D59) -> 0 | L50: =IF(P60>0,L39,"") ->  | M50: =IF(P60>0,M39,"") ->  | N50: =IF(P60>0,N39,"") ->  | O50: =IF(Q60>0,O39,"") ->  | P50: =IF(Q60>0,P39,"") ->  | Q50: =IF(Q60>0,Q39,"") ->  | R50: =IF(R60>0,R39,"") ->  | S50: =IF(R60>0,S39,"") ->  | T50: =IF(R60>0,T39,"") ->  | U50: =IF(S60>0,U39,"") ->  | V50: =IF(S60>0,V39,"") ->  | W50: =IF(S60>0,W39,"") ->  | X50: =SUM(S50:S54,W50:W54) -> 0 | Y50: =B39+K50+X50 -> 2.6 | Z50: =K50+X50 -> 0 | AA50: =Z50/Z39 -> 0 | AB50: =Y50+AB39 -> 2.57 | AD50: Advanced Tech | AG50: =M11+W11+AG11+AQ11 -> 0 | AJ50: =G31 -> 1407 | AK50: 1407 | AL50: 11 | AM50: 11 | AN50: 1407 | AO50: 1409 | AP50: 2
B51: S | C51: =IF(E60>1,C40,"") ->  | D51: =IF(E60>1,D40,"") ->  | E51: =IF(F60>1,E40,"") ->  | F51: =IF(F60>1,F40,"") ->  | G51: =IF(G60>1,G40,"") ->  | H51: =IF(G60>1,H40,"") ->  | I51: =IF(H60>1,I40,"") ->  | J51: =IF(H60>1,J40,"") ->  | K51: =SUM(F50:F59) -> 0 | L51: =IF(P60>1,L40,"") ->  | M51: =IF(P60>1,M40,"") ->  | N51: =IF(P60>1,N40,"") ->  | O51: =IF(Q60>1,O40,"") ->  | P51: =IF(Q60>1,P40,"") ->  | Q51: =IF(Q60>1,Q40,"") ->  | R51: =IF(R60>1,R40,"") ->  | S51: =IF(R60>1,S40,"") ->  | T51: =IF(R60>1,T40,"") ->  | U51: =IF(S60>1,U40,"") ->  | V51: =IF(S60>1,V40,"") ->  | W51: =IF(S60>1,W40,"") ->  | X51: =SUM(N50:N54,T50:T54) -> 0 | Y51: =B40+K51+X51 -> 295.7 | Z51: =K51+X51 -> 0 | AA51: =Z51/Z40 -> 0 | AB51: =Y51+AB40 -> 296.9 | AD51: Legendary Tech | AG51: =N11+X11+AH11+AR11 -> 0 | AJ51: =I22 -> 1313 | AK51: 1409 | AL51: 10 | AM51: 30 | AN51: 1313 | AO51: 1315 | AP51: 2
B52: H | C52: =IF(E60>2,C41,"") ->  | D52: =IF(E60>2,D41,"") ->  | E52: =IF(F60>2,E41,"") ->  | F52: =IF(F60>2,F41,"") ->  | G52: =IF(G60>2,G41,"") ->  | H52: =IF(G60>2,H41,"") ->  | I52: =IF(H60>2,I41,"") ->  | J52: =IF(H60>2,J41,"") ->  | K52: =SUM(H50:H59) -> 0 | L52: =IF(P60>2,L41,"") ->  | M52: =IF(P60>2,M41,"") ->  | N52: =IF(P60>2,N41,"") ->  | O52: =IF(Q60>2,O41,"") ->  | P52: =IF(Q60>2,P41,"") ->  | Q52: =IF(Q60>2,Q41,"") ->  | R52: =IF(R60>2,R41,"") ->  | S52: =IF(R60>2,S41,"") ->  | T52: =IF(R60>2,T41,"") ->  | U52: =IF(S60>2,U41,"") ->  | V52: =IF(S60>2,V41,"") ->  | W52: =IF(S60>2,W41,"") ->  | X52: =SUM(M50:M54,Q50:Q54) -> 0 | Y52: =B41+K52+X52 -> 1.3 | Z52: =K52+X52 -> 0 | AA52: =Z52/Z41 -> 0 | AB52: =Y52+AB41 -> 1.303 | AD52: Engines | AG52: =O11+Y11+AI11+AS11 -> 0 | AH52: VT | AJ52: 1315 | AK52: 1412 | AL52: 9 | AM52: 29 | AN52: 1315 | AO52: 1318 | AP52: 3
B53: N | C53: =IF(E60>3,C42,"") ->  | D53: =IF(E60>3,D42,"") ->  | E53: =IF(F60>3,E42,"") ->  | F53: =IF(F60>3,F42,"") ->  | G53: =IF(G60>3,G42,"") ->  | H53: =IF(G60>3,H42,"") ->  | I53: =IF(H60>3,I42,"") ->  | J53: =IF(H60>3,J42,"") ->  | K53: =SUM(J50:J59) -> 0 | L53: =IF(P60>3,L42,"") ->  | M53: =IF(P60>3,M42,"") ->  | N53: =IF(P60>3,N42,"") ->  | O53: =IF(Q60>3,O42,"") ->  | P53: =IF(Q60>3,P42,"") ->  | Q53: =IF(Q60>3,Q42,"") ->  | R53: =IF(R60>3,R42,"") ->  | S53: =IF(R60>3,S42,"") ->  | T53: =IF(R60>3,T42,"") ->  | U53: =IF(S60>3,U42,"") ->  | V53: =IF(S60>3,V42,"") ->  | W53: =IF(S60>3,W42,"") ->  | X53: =SUM(P50:P54,V50:V54) -> 0 | Y53: =B42+K53+X53 -> 37.1 | Z53: =K53+X53 -> 0 | AA53: =Z53/Z42 -> 0 | AB53: =Y53+AB42 -> 38.1 | AJ53: 1318 | AK53: 1414 | AL53: 8 | AM53: 28 | AN53: 1318 | AO53: 1323 | AP53: 5
B54: Rank | C54: =IF(E60>4,C43,"") ->  | D54: =IF(E60>4,D43,"") ->  | E54: =IF(F60>4,E43,"") ->  | F54: =IF(F60>4,F43,"") ->  | G54: =IF(G60>4,G43,"") ->  | H54: =IF(G60>4,H43,"") ->  | I54: =IF(H60>4,I43,"") ->  | J54: =IF(H60>4,J43,"") ->  | K54: =SUM(C50:C59,E50:E59,G50:G59,I50:I59) -> 0 | L54: =IF(P60>4,L43,"") ->  | M54: =IF(P60>4,M43,"") ->  | N54: =IF(P60>4,N43,"") ->  | O54: =IF(Q60>4,O43,"") ->  | P54: =IF(Q60>4,P43,"") ->  | Q54: =IF(Q60>4,Q43,"") ->  | R54: =IF(R60>4,R43,"") ->  | S54: =IF(R60>4,S43,"") ->  | T54: =IF(R60>4,T43,"") ->  | U54: =IF(S60>4,U43,"") ->  | V54: =IF(S60>4,V43,"") ->  | W54: =IF(S60>4,W43,"") ->  | X54: =SUM(L50:L54,O50:O54,R50:R54,U50:U54) -> 0 | Y54: =B43+K54+X54 -> 1262 | Z54: =K54+X54 -> 0 | AA54: =Z54/Z43 -> 0 | AB54: =AB43+Y54 -> 1302 | AJ54: 1323 | AK54: 1419 | AL54: 7 | AM54: 27 | AN54: 1323 | AO54: 1327 | AP54: 4
C55: =IF($E$60>5,C44,"") ->  | D55: =IF($E$60>5,D44,"") ->  | E55: =IF($F$60>5,E44,"") ->  | F55: =IF($F$60>5,F44,"") ->  | G55: =IF($G$60>5,G44,"") ->  | H55: =IF($G$60>5,H44,"") ->  | I55: =IF($H$60>5,I44,"") ->  | J55: =IF($H$60>5,J44,"") ->  | AJ55: 1327 | AK55: 1424 | AL55: 6 | AM55: 26 | AN55: 1327 | AO55: 1332 | AP55: 5
C56: =IF($E$60>6,C45,"") ->  | D56: =IF($E$60>6,D45,"") ->  | E56: =IF($F$60>6,E45,"") ->  | F56: =IF($F$60>6,F45,"") ->  | G56: =IF($G$60>6,G45,"") ->  | H56: =IF($G$60>6,H45,"") ->  | I56: =IF($H$60>6,I45,"") ->  | J56: =IF($H$60>6,J45,"") ->  | AJ56: 1332 | AK56: 1429 | AL56: 5 | AM56: 25 | AN56: 1332 | AO56: 1339 | AP56: 7
C57: =IF($E$60>7,C46,"") ->  | D57: =IF($E$60>7,D46,"") ->  | E57: =IF($F$60>7,E46,"") ->  | F57: =IF($F$60>7,F46,"") ->  | G57: =IF($G$60>7,G46,"") ->  | H57: =IF($G$60>7,H46,"") ->  | I57: =IF($H$60>7,I46,"") ->  | J57: =IF($H$60>7,J46,"") ->  | AJ57: 1339 | AK57: 1436 | AL57: 4 | AM57: 24 | AN57: 1339 | AO57: 1344 | AP57: 5
C58: =IF($E$60>8,C47,"") ->  | D58: =IF($E$60>8,D47,"") ->  | E58: =IF($F$60>8,E47,"") ->  | F58: =IF($F$60>8,F47,"") ->  | G58: =IF($G$60>8,G47,"") ->  | H58: =IF($G$60>8,H47,"") ->  | I58: =IF($H$60>8,I47,"") ->  | J58: =IF($H$60>8,J47,"") ->  | AJ58: 1344 | AK58: 1441 | AL58: 3 | AM58: 23 | AN58: 1344 | AO58: 1349 | AP58: 5
C59: =IF($E$60>9,C48,"") ->  | D59: =IF($E$60>9,D48,"") ->  | E59: =IF($F$60>9,E48,"") ->  | F59: =IF($F$60>9,F48,"") ->  | G59: =IF($G$60>9,G48,"") ->  | H59: =IF($G$60>9,H48,"") ->  | I59: =IF($H$60>9,I48,"") ->  | J59: =IF($H$60>9,J48,"") ->  | AJ59: 1349 | AK59: 1445 | AL59: 2 | AM59: 22 | AN59: 1349 | AO59: 1359 | AP59: 10
A60: INPUT → | X60: Speed+Nitro | Z60: =Z51+Z53 -> 0 | AA60: =Z60/(Z40+Z42) -> 0 | AB60: =IF(AA54=0,"",AA60/AA54-1) ->  | AJ60: =I31 -> 1359 | AK60: 1455 | AL60: 1 | AM60: 21 | AN60: 1359 | AO60: 1361 | AP60: 2
C62: =SUM(C39:C48) -> 48 | D62: =C62/$K43 -> 0.2487046632 | E62: =SUM(E39:E48) -> 48 | F62: =E62/$K43 -> 0.2487046632 | G62: =SUM(G39:G48) -> 48 | H62: =G62/$K43 -> 0.2487046632 | I62: =SUM(I39:I48) -> 49 | J62: =I62/$K43 -> 0.2538860104
E64: 0 | F64: 0 | G64: 0 | H64: 0 | P64: 0 | Q64: 0 | R64: 0 | S64: 0 | AA64: mph
E65: =SUM(D$38,OFFSET(D$38,0,0,E64+1,1)) -> 0 | F65: =SUM(F$38,OFFSET(F$38,0,0,F64+1,1)) -> 0 | G65: =SUM(H$38,OFFSET(H$38,0,0,G64+1,1)) -> 0 | H65: =SUM(J$38,OFFSET(J$38,0,0,H64+1,1)) -> 0 | P65: =SUM(N$38,OFFSET(N$38,0,0,P64+1,1)) -> 0 | Q65: =SUM(P$38,OFFSET(P$38,0,0,Q64+1,1)) -> 0 | R65: =SUM(T$38,OFFSET(T$38,0,0,R64+1,1)) -> 0 | S65: =SUM(V$38,OFFSET(V$38,0,0,S64+1,1)) -> 0 | U65: =P65+Q65+R65+S65+B40+B42+F67+H67+F65+H65 -> 335 | W65: Total Spd | AA65: =U65/1.61 -> 208.0745342
E66: =SUM(C$38,OFFSET(C$38,0,0,E64+1,1)) -> 0 | F66: =SUM(E$38,OFFSET(E$38,0,0,F64+1,1)) -> 0 | G66: =SUM(G$38,OFFSET(G$38,0,0,G64+1,1)) -> 0 | H66: =SUM(I$38,OFFSET(I$38,0,0,H64+1,1)) -> 0 | P66: =SUM(L$38,OFFSET(L$38,0,0,P64+1,1)) -> 0 | Q66: =SUM(O$38,OFFSET(O$38,0,0,Q64+1,1)) -> 0 | R66: =SUM(R$38,OFFSET(R$38,0,0,R64+1,1)) -> 0 | S66: =SUM(U$38,OFFSET(U$38,0,0,S64+1,1)) -> 0 | U66: =B43+SUM(E66:H66)+SUM(P66:S66) -> 1262 | W66: Rank
C67: TK Boost | F67: =INDIRECT("R"&(ROW(upg_spd)+1+F64)&"C"&COLUMN(upg_spd),FALSE) -> 1.2 | H67: =INDIRECT("R"&(ROW(upg_ntr)+1+H64)&"C"&COLUMN(upg_ntr),FALSE) -> 1 | K67: Start rank =
K68: End rank =
D72: MAX upgrades costs may not be correct. Need to use values from Tbl_Car_Max
K496: Start | Q496: Total Processing Time
K497: End | Q497: =pEnd-pStart -> 00:00:00
L499: Rank | M499: Xspd | N499: Nspd | O499: Spd | P499: A% | Q499: S% | R499: H% | S499: N% | T499: Var | U499: Idx | V499: Tuning | X499: Cnt | Y499: Spd/Rnk
I500: 500
I501: =I500+1 -> 501
I502: =I501+1 -> 502
I503: 503
I504: 504
I505: 505
I506: 506
I507: 507
I508: 508
I509: 509
I510: 510
I511: 511
I512: 512
I513: 513
I514: 514
I515: 515
I516: 516
I517: 517
I518: 518
I519: 519
I520: 520
I521: 521
I522: 522
I523: 523
I524: 524
I525: 525
I526: 526
I527: 527
I528: 528
I529: 529
I530: 530
I531: 531
I532: 532
I533: 533
I534: 534
I535: 535
I536: 536
I537: 537
I538: 538
I539: 539
I540: 540
I541: 541
I542: 542
I543: 543
I544: 544
I545: 545
I546: 546
I547: 547
I548: 548
I549: 549
I550: 550
I551: 551
I552: 552
I553: 553
I554: 554
I555: 555
I556: 556
I557: 557
I558: 558
I559: 559
I560: 560
I561: 561
I562: 562
I563: 563
I564: 564
I565: 565
I566: =I565+1 -> 566
I567: 567
I568: 568
I569: 569
I570: 570
I571: 571
I572: 572
I573: 573
I574: 574
I575: 575
I576: 576
I577: 577
I578: 578
I579: 579
I580: 580
I581: 581
I582: 582
I583: 583
I584: 584
I585: 585
I586: 586
I587: 587
I588: 588
I589: 589
I590: 590
I591: 591
I592: 592
I593: 593
I594: 594
I595: 595
I596: 596
I597: 597
I598: 598
I599: 599
I600: 600
I601: 601
I602: 602
I603: 603
I604: 604
I605: 605
I606: 606
I607: 607
I608: 608
I609: 609
I610: 610
I611: 611
I612: 612
I613: 613
I614: 614
I615: 615
I616: 616
I617: 617
I618: 618
I619: 619
I620: 620
I621: 621
I622: 622
I623: 623
I624: 624
I625: 625
I626: 626
I627: 627
I628: 628
I629: 629
... 1183 more rows

Sheet Ducati B (hidden)
A1: This sheet was developed by Rookie Vee
B2: Gathering Prices & Parts for the Class B Ducati Monster 1200 S (#0xC8) - Asphalt 8 Airborne
B3: UPGRADE | F3: PRO KITS
B4: Acc | C4: Spd | D4: Hnd | E4: Ntr | F4: Tires | P4: Fork Tubes | Z4: Transmission | AJ4: Exhaust | AZ4: Acc & Handling | BD4: Top Speed | BH4: Nitro
B5: Cost | F5: Cost | G5: Part | H5: Early | I5: Init | J5: Com | K5: Mid | L5: Rare | M5: Adv | N5: Legn | O5: Engn | P5: Cost | Q5: Part | R5: Early | S5: Init | T5: Com | U5: Mid | V5: Rare | W5: Adv | X5: Legn | Y5: Engn | Z5: Cost | AA5: Part | AB5: Early | AC5: Init | AD5: Com | AE5: Mid | AF5: Rare | AG5: Adv | AH5: Legn | AI5: Engn | AJ5: Cost | AK5: Part | AL5: Early | AM5: Init | AN5: Com | AO5: Mid | AP5: Rare | AQ5: Adv | AR5: Legn | AS5: Engn | BA5: 1.307692308 | BP5: Acc | BQ5: TS | BR5: Hnd | BS5: Nitro
A6: TO L1 → | B6: 0.75 | C6: 1.925 | D6: 0.275 | E6: 1.45 | F6: 1.15 | G6: 1 | P6: 0.9 | Q6: 1 | Z6: 1.15 | AA6: 1 | AJ6: 1 | AK6: 1 | AZ6: 325 | BA6: =ROUNDUP(AZ6*(1+BA$5),0) -> 750 | BD6: 625 | BE6: =ROUNDUP(BD6*(1+BA$5),0) -> 1443 | BH6: 625 | BI6: =ROUNDUP(BH6*(1+BA$5),0) -> 1443 | BP6: 750 | BQ6: 1925 | BR6: 275 | BS6: 1450 | BU6: =BP6/AZ6 -> 2.307692308 | BV6: =BQ6/BD6 -> 3.08 | BW6: =BR6/AZ6 -> 0.8461538462 | BX6: =BS6/BH6 -> 2.32
A7: TO L2 → | B7: 1.5 | C7: 4.75 | D7: 0.5 | E7: 2.75 | F7: 1.15 | G7: 1 | I7: 1 | P7: 0.9 | Q7: 1 | R7: 1 | Z7: 1.15 | AA7: 1 | AC7: 1 | AJ7: 1.05 | AK7: 1 | AL7: 1 | AZ7: 1250 | BA7: =AZ7*(1+BA$5) -> 2884.615385 | BD7: 2250 | BE7: =ROUNDUP(BD7*(1+BA$5),0) -> 5193 | BH7: 1500 | BI7: =BH7*(1+BA$5) -> 3461.538462 | BP7: 1500 | BQ7: 4750 | BR7: 500 | BS7: 2750 | BU7: =BP7/AZ7 -> 1.2 | BV7: =BQ7/BD7 -> 2.111111111 | BW7: =BR7/AZ7 -> 0.4 | BX7: =BS7/BH7 -> 1.833333333
A8: TO L3 → | B8: 2 | C8: 7.75 | D8: 0.75 | E8: 4.25 | F8: 4.775 | G8: 1 | I8: 1 | P8: 3.825 | Q8: 1 | R8: 1 | Z8: 4.775 | AA8: 1 | AC8: 1 | AJ8: 4.4 | AK8: 1 | AL8: 1 | AZ8: 1500 | BA8: 3461.538462 | BD8: 4000 | BE8: 9231 | BH8: 2500 | BI8: 5769.230769 | BP8: 2000 | BQ8: 7750 | BR8: 750 | BS8: 4250 | BU8: 1.333333333 | BV8: 1.9375 | BW8: 0.5 | BX8: 1.7
A9: TO L4 → | B9: 3 | C9: 11.5 | D9: 1.25 | E9: 7.25 | F9: 7.35 | G9: 1 | K9: 1 | P9: 5.875 | Q9: 1 | U9: 1 | Z9: 7.35 | AA9: 1 | AE9: 1 | AJ9: 6.75 | AK9: 1 | AO9: 1 | AZ9: 2500 | BA9: 5769.230769 | BD9: 6000 | BE9: 13847 | BH9: 4500 | BI9: 10384.61538 | BP9: 3000 | BQ9: 11500 | BR9: 1250 | BS9: 7250 | BU9: 1.2 | BV9: 1.916666667 | BW9: 0.5 | BX9: 1.611111111
A10: TO PRO → | B10: 4.5 | C10: 16.25 | D10: 1.75 | E10: 10 | F10: 9.725 | G10: 1 | L10: 1 | O10: 1 | P10: 7.775 | Q10: 1 | V10: 1 | Y10: 1 | Z10: 9.725 | AA10: 1 | AF10: 1 | AI10: 1 | AJ10: 8.925 | AK10: 1 | AP10: 1 | AS10: 1 | AZ10: 3750 | BA10: 8653.846154 | BD10: 8250 | BE10: 19039 | BH10: 6000 | BI10: 13846.15385 | BP10: 4500 | BQ10: 16250 | BR10: 1750 | BS10: 10000 | BU10: 1.2 | BV10: 1.96969697 | BW10: 0.4666666667 | BX10: 1.666666667
A11: TO L6 → | B11: 5.75 | C11: 21.5 | D11: 2.25 | E11: 13.25 | F11: =SUM(INDIRECT("R"&(ROW()-6)&"C"&COLUMN(),FALSE):INDIRECT("R"&(ROW()-6+$P60)&"C"&COLUMN(),FALSE)) -> 0 | G11: =SUM(INDIRECT("R"&(ROW()-6)&"C"&COLUMN(),FALSE):INDIRECT("R"&(ROW()-6+$P60)&"C"&COLUMN(),FALSE)) -> 0 | H11: =SUM(INDIRECT("R"&(ROW()-6)&"C"&COLUMN(),FALSE):INDIRECT("R"&(ROW()-6+$P60)&"C"&COLUMN(),FALSE)) -> 0 | I11: =SUM(INDIRECT("R"&(ROW()-6)&"C"&COLUMN(),FALSE):INDIRECT("R"&(ROW()-6+$P60)&"C"&COLUMN(),FALSE)) -> 0 | J11: =SUM(INDIRECT("R"&(ROW()-6)&"C"&COLUMN(),FALSE):INDIRECT("R"&(ROW()-6+$P60)&"C"&COLUMN(),FALSE)) -> 0 | K11: =SUM(INDIRECT("R"&(ROW()-6)&"C"&COLUMN(),FALSE):INDIRECT("R"&(ROW()-6+$P60)&"C"&COLUMN(),FALSE)) -> 0 | L11: =SUM(INDIRECT("R"&(ROW()-6)&"C"&COLUMN(),FALSE):INDIRECT("R"&(ROW()-6+$P60)&"C"&COLUMN(),FALSE)) -> 0 | M11: =SUM(INDIRECT("R"&(ROW()-6)&"C"&COLUMN(),FALSE):INDIRECT("R"&(ROW()-6+$P60)&"C"&COLUMN(),FALSE)) -> 0 | N11: =SUM(INDIRECT("R"&(ROW()-6)&"C"&COLUMN(),FALSE):INDIRECT("R"&(ROW()-6+$P60)&"C"&COLUMN(),FALSE)) -> 0 | O11: =SUM(INDIRECT("R"&(ROW()-6)&"C"&COLUMN(),FALSE):INDIRECT("R"&(ROW()-6+$P60)&"C"&COLUMN(),FALSE)) -> 0 | P11: =SUM(INDIRECT("R"&(ROW()-6)&"C"&COLUMN(),FALSE):INDIRECT("R"&(ROW()-6+$Q60)&"C"&COLUMN(),FALSE)) -> 0 | Q11: =SUM(INDIRECT("R"&(ROW()-6)&"C"&COLUMN(),FALSE):INDIRECT("R"&(ROW()-6+$Q60)&"C"&COLUMN(),FALSE)) -> 0 | R11: =SUM(INDIRECT("R"&(ROW()-6)&"C"&COLUMN(),FALSE):INDIRECT("R"&(ROW()-6+$Q60)&"C"&COLUMN(),FALSE)) -> 0 | S11: =SUM(INDIRECT("R"&(ROW()-6)&"C"&COLUMN(),FALSE):INDIRECT("R"&(ROW()-6+$Q60)&"C"&COLUMN(),FALSE)) -> 0 | T11: =SUM(INDIRECT("R"&(ROW()-6)&"C"&COLUMN(),FALSE):INDIRECT("R"&(ROW()-6+$Q60)&"C"&COLUMN(),FALSE)) -> 0 | U11: =SUM(INDIRECT("R"&(ROW()-6)&"C"&COLUMN(),FALSE):INDIRECT("R"&(ROW()-6+$Q60)&"C"&COLUMN(),FALSE)) -> 0 | V11: =SUM(INDIRECT("R"&(ROW()-6)&"C"&COLUMN(),FALSE):INDIRECT("R"&(ROW()-6+$Q60)&"C"&COLUMN(),FALSE)) -> 0 | W11: =SUM(INDIRECT("R"&(ROW()-6)&"C"&COLUMN(),FALSE):INDIRECT("R"&(ROW()-6+$Q60)&"C"&COLUMN(),FALSE)) -> 0 | X11: =SUM(INDIRECT("R"&(ROW()-6)&"C"&COLUMN(),FALSE):INDIRECT("R"&(ROW()-6+$Q60)&"C"&COLUMN(),FALSE)) -> 0 | Y11: =SUM(INDIRECT("R"&(ROW()-6)&"C"&COLUMN(),FALSE):INDIRECT("R"&(ROW()-6+$Q60)&"C"&COLUMN(),FALSE)) -> 0 | Z11: =SUM(INDIRECT("R"&(ROW()-6)&"C"&COLUMN(),FALSE):INDIRECT("R"&(ROW()-6+$R60)&"C"&COLUMN(),FALSE)) -> 0 | AA11: =SUM(INDIRECT("R"&(ROW()-6)&"C"&COLUMN(),FALSE):INDIRECT("R"&(ROW()-6+$R60)&"C"&COLUMN(),FALSE)) -> 0 | AB11: =SUM(INDIRECT("R"&(ROW()-6)&"C"&COLUMN(),FALSE):INDIRECT("R"&(ROW()-6+$R60)&"C"&COLUMN(),FALSE)) -> 0 | AC11: =SUM(INDIRECT("R"&(ROW()-6)&"C"&COLUMN(),FALSE):INDIRECT("R"&(ROW()-6+$R60)&"C"&COLUMN(),FALSE)) -> 0 | AD11: =SUM(INDIRECT("R"&(ROW()-6)&"C"&COLUMN(),FALSE):INDIRECT("R"&(ROW()-6+$R60)&"C"&COLUMN(),FALSE)) -> 0 | AE11: =SUM(INDIRECT("R"&(ROW()-6)&"C"&COLUMN(),FALSE):INDIRECT("R"&(ROW()-6+$R60)&"C"&COLUMN(),FALSE)) -> 0 | AF11: =SUM(INDIRECT("R"&(ROW()-6)&"C"&COLUMN(),FALSE):INDIRECT("R"&(ROW()-6+$R60)&"C"&COLUMN(),FALSE)) -> 0 | AG11: =SUM(INDIRECT("R"&(ROW()-6)&"C"&COLUMN(),FALSE):INDIRECT("R"&(ROW()-6+$R60)&"C"&COLUMN(),FALSE)) -> 0 | AH11: =SUM(INDIRECT("R"&(ROW()-6)&"C"&COLUMN(),FALSE):INDIRECT("R"&(ROW()-6+$R60)&"C"&COLUMN(),FALSE)) -> 0 | AI11: =SUM(INDIRECT("R"&(ROW()-6)&"C"&COLUMN(),FALSE):INDIRECT("R"&(ROW()-6+$R60)&"C"&COLUMN(),FALSE)) -> 0 | AJ11: =SUM(INDIRECT("R"&(ROW()-6)&"C"&COLUMN(),FALSE):INDIRECT("R"&(ROW()-6+$S60)&"C"&COLUMN(),FALSE)) -> 0 | AK11: =SUM(INDIRECT("R"&(ROW()-6)&"C"&COLUMN(),FALSE):INDIRECT("R"&(ROW()-6+$S60)&"C"&COLUMN(),FALSE)) -> 0 | AL11: =SUM(INDIRECT("R"&(ROW()-6)&"C"&COLUMN(),FALSE):INDIRECT("R"&(ROW()-6+$S60)&"C"&COLUMN(),FALSE)) -> 0 | AM11: =SUM(INDIRECT("R"&(ROW()-6)&"C"&COLUMN(),FALSE):INDIRECT("R"&(ROW()-6+$S60)&"C"&COLUMN(),FALSE)) -> 0 | AN11: =SUM(INDIRECT("R"&(ROW()-6)&"C"&COLUMN(),FALSE):INDIRECT("R"&(ROW()-6+$S60)&"C"&COLUMN(),FALSE)) -> 0 | AO11: =SUM(INDIRECT("R"&(ROW()-6)&"C"&COLUMN(),FALSE):INDIRECT("R"&(ROW()-6+$S60)&"C"&COLUMN(),FALSE)) -> 0 | AP11: =SUM(INDIRECT("R"&(ROW()-6)&"C"&COLUMN(),FALSE):INDIRECT("R"&(ROW()-6+$S60)&"C"&COLUMN(),FALSE)) -> 0 | AQ11: =SUM(INDIRECT("R"&(ROW()-6)&"C"&COLUMN(),FALSE):INDIRECT("R"&(ROW()-6+$S60)&"C"&COLUMN(),FALSE)) -> 0 | AR11: =SUM(INDIRECT("R"&(ROW()-6)&"C"&COLUMN(),FALSE):INDIRECT("R"&(ROW()-6+$S60)&"C"&COLUMN(),FALSE)) -> 0 | AS11: =SUM(INDIRECT("R"&(ROW()-6)&"C"&COLUMN(),FALSE):INDIRECT("R"&(ROW()-6+$S60)&"C"&COLUMN(),FALSE)) -> 0 | AZ11: 4750 | BA11: 10961.53846 | BD11: 11000 | BE11: 25385 | BH11: 8000 | BI11: 18461.53846 | BP11: 5750 | BQ11: 21500 | BR11: 2250 | BS11: 13250 | BU11: 1.210526316 | BV11: 1.954545455 | BW11: 0.4736842105 | BX11: 1.65625
A12: TO L7 → | B12: 8.25 | C12: 30.5 | D12: 3 | E12: 18.5 | AZ12: 7000 | BA12: 16153.84615 | BD12: 15500 | BE12: 35770 | BH12: 11000 | BI12: 25384.61538 | BP12: 8250 | BQ12: 30500 | BR12: 3000 | BS12: 18500 | BU12: 1.178571429 | BV12: 1.967741935 | BW12: 0.4285714286 | BX12: 1.681818182
A13: TO L8 → | B13: 10.5 | C13: 40 | D13: 4 | E13: 24.75 | J13: BASIC INSTRUCTIONS: | K13: - Only the values in purple color (tables "Gathering Prices …" and "Gathering Specifications …" plus the irrelevant value at cell AB43) should be entered by the user; all other values are calculated and must not be touched | AZ13: 8750 | BA13: 20192.30769 | BD13: 20500 | BE13: 47308 | BH13: 14750 | BI13: 34038.46154 | BP13: 10500 | BQ13: 40000 | BR13: 4000 | BS13: 24750 | BU13: 1.2 | BV13: 1.951219512 | BW13: 0.4571428571 | BX13: 1.677966102
A14: TO L9 → | B14: 13.25 | C14: 49.5 | D14: 5 | E14: 32.25 | K14: - All credit values (columns "Cost") should be entered divided by 1,000 (table "Gathering Prices…") | AZ14: 11000 | BA14: 25384.61538 | BD14: 25250 | BE14: 58270 | BH14: 19250 | BI14: 44423.07692 | BP14: 13250 | BQ14: 49500 | BR14: 5000 | BS14: 32250 | BU14: 1.204545455 | BV14: 1.96039604 | BW14: 0.4545454545 | BX14: 1.675324675
A15: TO MAX → | B15: 16.25 | C15: 59.5 | D15: 6 | E15: 39.5 | K15: - After all necessary data have been entered, use the eight Input cells (row 60) to enter a MAX and PRO configuration. | AZ15: 13500 | BA15: 31153.84615 | BD15: 30250 | BE15: 69808 | BH15: 23750 | BI15: 54807.69231 | BP15: 16250 | BQ15: 59500 | BR15: 6000 | BS15: 39500 | BU15: 1.203703704 | BV15: 1.966942149 | BW15: 0.4444444444 | BX15: 1.663157895
A16: Totals | B16: =SUMIF(B5:INDIRECT("B"&(E60+5)),">0") -> 0 | C16: =SUMIF(INDIRECT("R"&(ROW()-11)&"C"&COLUMN(),FALSE):INDIRECT("R"&(ROW()-11+F60)&"C"&COLUMN(),FALSE),">0") -> 0 | D16: =SUMIF(INDIRECT("R"&(ROW()-11)&"C"&COLUMN(),FALSE):INDIRECT("R"&(ROW()-11+G60)&"C"&COLUMN(),FALSE),">0") -> 0 | E16: =SUMIF(INDIRECT("R"&(ROW()-11)&"C"&COLUMN(),FALSE):INDIRECT("R"&(ROW()-11+H60)&"C"&COLUMN(),FALSE),">0") -> 0 | K16: - Top speed (MAX+PRO+TK) and respective rank for the configuration entered are shown in the two yellow cells. "Super-charged" speed is NOT supported.
B17: =-SUMIF(B5:INDIRECT("B"&(E60+5)),"<0") -> 0 | C17: =-SUMIF(INDIRECT("R"&(ROW()-12)&"C"&COLUMN(),FALSE):INDIRECT("R"&(ROW()-12+F60)&"C"&COLUMN(),FALSE),"<0") -> 0 | D17: =-SUMIF(INDIRECT("R"&(ROW()-12)&"C"&COLUMN(),FALSE):INDIRECT("R"&(ROW()-12+G60)&"C"&COLUMN(),FALSE),"<0") -> 0 | E17: =-SUMIF(INDIRECT("R"&(ROW()-12)&"C"&COLUMN(),FALSE):INDIRECT("R"&(ROW()-12+H60)&"C"&COLUMN(),FALSE),"<0") -> 0
B18: Gathering Specifications for the Ducati Monster 1200 S - Asphalt 8 Airborne | Z18: TK | AA18: UPG | AC18: PRO | AJ18: UPGRADE RANK | AR18: PRO KIT RANK | AZ18: PRO KIT HANDLING | BH18: PRO KIT NITRO
C19: UPGRADE | L19: PRO KITS | Z19: TRUE | AC19: TIRE | AD19: FKT | AE19: TRA | AF19: EXH | AJ19: table order | AK19: ascending order | AL19: reference position | AM19: rank position | AN19: repeat table order for next vlookup | AO19: next value | AP19: difference | AR19: table order | AS19: ascending order | AT19: reference position | AU19: rank position | AV19: repeat table order for next vlookup | AW19: next value | AX19: difference | AZ19: table order | BA19: ascending order | BB19: reference position | BC19: rank position | BD19: repeat table order for next vlookup | BE19: next value | BF19: difference | BH19: table order | BI19: ascending order | BJ19: reference position | BK19: rank position | BL19: repeat table order for next vlookup | BM19: next value | BN19: difference
B20: Init | C20: Accel | E20: Speed | G20: Handling | I20: Nitro | L20: Tires | O20: Fork Tubes | R20: Transmission | U20: Exhaust | AA20: SPD | AB20: NTR | AC20: SPD | AD20: NTR | AE20: SPD | AF20: NTR | AJ20: =B26 -> 1107 | AL20: 41 | AM20: =AL20 -> 41 | AN20: =AJ20 -> 1107 | AO20: =VLOOKUP(AM20-1,AM$20:AN$60,2,FALSE) -> 1110 | AP20: =AO20-AN20 -> 3 | AR20: 0 | AT20: 21 | AU20: =AT20 -> 21 | AV20: =AR20 -> 0 | AW20: =VLOOKUP(AU20-1,AU$20:AV$40,2,FALSE) -> 5 | AX20: =AW20-AV20 -> 5 | AZ20: =H31 -> 1.35 | BB20: 11 | BC20: =BB20 -> 11 | BD20: =AZ20 -> 1.35 | BE20: =VLOOKUP(BC20-1,BC$20:BD$30,2,FALSE) -> 1.352 | BF20: =BE20-BD20 -> 0.002 | BH20: =J31 -> 53.6 | BJ20: 11 | BK20: =BJ20 -> 11 | BL20: =BH20 -> 53.6 | BM20: =VLOOKUP(BK20-1,BK$20:BL$30,2,FALSE) -> 54.4 | BN20: =BM20-BL20 -> 0.8
C21: Rank | D21: A | E21: Rank | F21: S | G21: Rank | H21: H | I21: Rank | J21: N | L21: Rank | M21: H | N21: S | O21: Rank | P21: N | Q21: H | R21: Rank | S21: A | T21: S | U21: Rank | V21: N | W21: A | Y21: 1 | Z21: S1 | AA21: =SUM(E$38,OFFSET(E$38,0,0,$Y21+1,1))/(SUM(F$38,OFFSET(F$38,0,0,$Y21+1,1))+IF(Z$19,F40,0)) -> 1.428571429 | AB21: =SUM(I$38,OFFSET(I$38,0,0,$Y21+1,1))/(SUM(J$38,OFFSET(J$38,0,0,$Y21+1,1))+IF(Z$19,J40,0)) -> 1.666666667 | AC21: =SUM(L$38,OFFSET(L$38,0,0,$Y21+1,1))/(SUM(N$38,OFFSET(N$38,0,0,$Y21+1,1))) -> 5 | AD21: =SUM(O$38,OFFSET(O$38,0,0,$Y21+1,1))/(SUM(P$38,OFFSET(P$38,0,0,$Y21+1,1))) -> 6.25 | AE21: =SUM(R$38,OFFSET(R$38,0,0,$Y21+1,1))/(SUM(T$38,OFFSET(T$38,0,0,$Y21+1,1))) -> 4 | AF21: =SUM(U$38,OFFSET(U$38,0,0,$Y21+1,1))/(SUM(V$38,OFFSET(V$38,0,0,$Y21+1,1))) -> 4.444444444 | AJ21: =C22 -> 1110 | AK21: =LARGE(AJ$21:AJ$60,AL21) -> 1110 | AL21: =AL20-1 -> 40 | AM21: =VLOOKUP(AJ21,AK$21:AL$60,2,FALSE) -> 40 | AN21: 1110 | AO21: =VLOOKUP(AM21-1,AM$20:AN$60,2,FALSE) -> 1113 | AP21: =AO21-AN21 -> 3 | AR21: =L22 -> 5 | AS21: =LARGE(AR$21:AR$40,AT21) -> 5 | AT21: =AT20-1 -> 20 | AU21: =VLOOKUP(AR21,AS$21:AT$40,2,FALSE) -> 20 | AV21: =AR21 -> 5 | AW21: 10 | AX21: 5 | AZ21: =M22 -> 1.352 | BA21: =LARGE(AZ$21:AZ$30,BB21) -> 1.352 | BB21: =BB20-1 -> 10 | BC21: =VLOOKUP(AZ21,BA$21:BB$30,2,FALSE) -> 10 | BD21: =AZ21 -> 1.352 | BE21: 1.355 | BF21: 0.003 | BH21: =P22 -> 54.4 | BI21: =LARGE(BH$21:BH$30,BJ21) -> 54.4 | BJ21: =BJ20-1 -> 10 | BK21: =VLOOKUP(BH21,BI$21:BJ$30,2,FALSE) -> 10 | BL21: =BH21 -> 54.4 | BM21: 55.5 | BN21: 1.1
A22: LEVEL 1 → | B22: 2.6 | C22: 1110 | D22: 2.57 | E22: 1268 | F22: 271.1 | G22: 1162 | H22: 1.303 | I22: 1215 | J22: 36.6 | K22: A | L22: 5 | M22: 1.352 | N22: 292.4 | O22: 39 | P22: 54.4 | Q22: 1.371 | R22: 72 | S22: 1.87 | T22: 300.2 | U22: 106 | V22: 60.9 | W22: 1.62 | Y22: 2 | Z22: S2 | AA22: =SUM(E$38,OFFSET(E$38,0,0,$Y22+1,1))/(SUM(F$38,OFFSET(F$38,0,0,$Y22+1,1))+IF(Z$19,F41,0)) -> 1.5625 | AB22: =SUM(I$38,OFFSET(I$38,0,0,$Y22+1,1))/(SUM(J$38,OFFSET(J$38,0,0,$Y22+1,1))+IF(Z$19,J41,0)) -> 2.222222222 | AC22: =SUM(L$38,OFFSET(L$38,0,0,$Y22+1,1))/(SUM(N$38,OFFSET(N$38,0,0,$Y22+1,1))) -> 4.347826087 | AD22: =SUM(O$38,OFFSET(O$38,0,0,$Y22+1,1))/(SUM(P$38,OFFSET(P$38,0,0,$Y22+1,1))) -> 5.263157895 | AE22: =SUM(R$38,OFFSET(R$38,0,0,$Y22+1,1))/(SUM(T$38,OFFSET(T$38,0,0,$Y22+1,1))) -> 4.347826087 | AF22: =SUM(U$38,OFFSET(U$38,0,0,$Y22+1,1))/(SUM(V$38,OFFSET(V$38,0,0,$Y22+1,1))) -> 5 | AJ22: 1113 | AK22: =LARGE(AJ$21:AJ$60,AL22) -> 1113 | AL22: 39 | AM22: =VLOOKUP(AJ22,AK$21:AL$60,2,FALSE) -> 39 | AN22: 1113 | AO22: =VLOOKUP(AM22-1,AM$20:AN$60,2,FALSE) -> 1115 | AP22: 2 | AR22: =L23 -> 10 | AS22: 10 | AT22: 19 | AU22: 19 | AV22: =AR22 -> 10 | AW22: 17 | AX22: 7 | AZ22: =M23 -> 1.355 | BA22: 1.355 | BB22: =BB21-1 -> 9 | BC22: 9 | BD22: 1.355 | BE22: 1.359 | BF22: 0.004 | BH22: =P23 -> 55.5 | BI22: 55.5 | BJ22: =BJ21-1 -> 9 | BK22: 9 | BL22: 55.5 | BM22: 56.8 | BN22: 1.3
A23: LEVEL 2 → | B23: 270 | C23: 1113 | D23: 2.53 | E23: 1270 | F23: 272.1 | G23: 1165 | H23: 1.305 | I23: 1218 | J23: 37.5 | K23: S | L23: 10 | M23: 1.355 | N23: 293.7 | O23: 44 | P23: 55.5 | Q23: 1.374 | R23: 78 | S23: 1.83 | T23: 301.5 | U23: 112 | V23: 62 | W23: 1.58 | Y23: 3 | Z23: S3 | AA23: 1.481481481 | AB23: 1.777777778 | AC23: =SUM(L$38,OFFSET(L$38,0,0,$Y23+1,1))/(SUM(N$38,OFFSET(N$38,0,0,$Y23+1,1))) -> 4.358974359 | AD23: =SUM(O$38,OFFSET(O$38,0,0,$Y23+1,1))/(SUM(P$38,OFFSET(P$38,0,0,$Y23+1,1))) -> 5.3125 | AE23: =SUM(R$38,OFFSET(R$38,0,0,$Y23+1,1))/(SUM(T$38,OFFSET(T$38,0,0,$Y23+1,1))) -> 4.358974359 | AF23: 4.848484848 | AJ23: 1115 | AK23: 1115 | AL23: 38 | AM23: 38 | AN23: 1115 | AO23: 1120 | AP23: 5 | AR23: =L24 -> 17 | AS23: 17 | AT23: 18 | AU23: 18 | AV23: 17 | AW23: 25 | AX23: 8 | AZ23: =M24 -> 1.359 | BA23: 1.359 | BB23: 8 | BC23: 8 | BD23: 1.359 | BE23: 1.363 | BF23: 0.004 | BH23: =P24 -> 56.8 | BI23: 56.8 | BJ23: 8 | BK23: 8 | BL23: 56.8 | BM23: 58.3 | BN23: 1.5
A24: LEVEL 3 → | B24: 1.3 | C24: 1115 | D24: 2.5 | E24: 1273 | F24: 273.2 | G24: 1168 | H24: 1.308 | I24: 1220 | J24: 38.4 | K24: H | L24: 17 | M24: 1.359 | N24: 295.3 | O24: 51 | P24: 56.8 | Q24: 1.377 | R24: 85 | S24: 1.78 | T24: 303.1 | U24: 118 | V24: 63.3 | W24: 1.53 | Y24: 4 | Z24: S4 | AA24: 1.733333333 | AB24: 2.222222222 | AC24: =SUM(L$38,OFFSET(L$38,0,0,$Y24+1,1))/(SUM(N$38,OFFSET(N$38,0,0,$Y24+1,1))) -> 4.385964912 | AD24: =SUM(O$38,OFFSET(O$38,0,0,$Y24+1,1))/(SUM(P$38,OFFSET(P$38,0,0,$Y24+1,1))) -> 5.319148936 | AE24: =SUM(R$38,OFFSET(R$38,0,0,$Y24+1,1))/(SUM(T$38,OFFSET(T$38,0,0,$Y24+1,1))) -> 4.385964912 | AF24: 5 | AJ24: 1120 | AK24: 1120 | AL24: 37 | AM24: 37 | AN24: 1120 | AO24: 1126 | AP24: 6 | AR24: =L25 -> 25 | AS24: 25 | AT24: 17 | AU24: 17 | AV24: 25 | AW24: 34 | AX24: 9 | AZ24: =M25 -> 1.363 | BA24: 1.363 | BB24: 7 | BC24: 7 | BD24: 1.363 | BE24: 1.368 | BF24: 0.005 | BH24: =P25 -> 58.3 | BI24: 58.3 | BJ24: 7 | BK24: 7 | BL24: 58.3 | BM24: 60 | BN24: 1.7
A25: LEVEL 4 → | B25: 35.7 | C25: 1120 | D25: 2.43 | E25: 1278 | F25: 275.4 | G25: 1173 | H25: 1.313 | I25: 1226 | J25: 40.2 | K25: N | L25: 25 | M25: 1.363 | N25: 297.1 | O25: 59 | P25: 58.3 | Q25: 1.381 | R25: 93 | S25: 1.72 | T25: 304.9 | U25: 126 | V25: 64.8 | W25: 1.47 | Y25: 5 | Z25: PRO | AA25: 1.875 | AB25: 2.345679012 | AC25: =SUM(L$38,OFFSET(L$38,0,0,$Y25+1,1))/(SUM(N$38,OFFSET(N$38,0,0,$Y25+1,1))) -> 4.358974359 | AD25: =SUM(O$38,OFFSET(O$38,0,0,$Y25+1,1))/(SUM(P$38,OFFSET(P$38,0,0,$Y25+1,1))) -> 5.3125 | AE25: =SUM(R$38,OFFSET(R$38,0,0,$Y25+1,1))/(SUM(T$38,OFFSET(T$38,0,0,$Y25+1,1))) -> 4.358974359 | AF25: 5.076923077 | AJ25: 1126 | AK25: 1126 | AL25: 36 | AM25: 36 | AN25: 1126 | AO25: 1131 | AP25: 5 | AR25: =L26 -> 34 | AS25: 34 | AT25: 16 | AU25: 16 | AV25: 34 | AW25: 39 | AX25: 5 | AZ25: =M26 -> 1.368 | BA25: 1.368 | BB25: 6 | BC25: 6 | BD25: 1.368 | BE25: 1.371 | BF25: 0.003 | BH25: =P26 -> 60 | BI25: 60 | BJ25: 6 | BK25: 6 | BL25: 60 | BM25: 60.9 | BN25: 0.9
A26: PRO → | B26: 1107 | C26: 1126 | D26: 2.36 | E26: 1283 | F26: 277.5 | G26: 1178 | H26: 1.317 | I26: 1231 | J26: 42 | K26: Rank | L26: 34 | M26: 1.368 | N26: 299.2 | O26: 68 | P26: 60 | Q26: 1.386 | R26: 102 | S26: 1.66 | T26: 307 | U26: 135 | V26: 66.5 | W26: 1.4 | X26: =COUNT(C22:C31) -> 10 | Y26: 6 | Z26: S6 | AA26: 1.860465116 | AB26: 2.242990654 | AJ26: 1131 | AK26: 1131 | AL26: 35 | AM26: 35 | AN26: 1131 | AO26: 1139 | AP26: 8 | AR26: =O22 -> 39 | AS26: 39 | AT26: 15 | AU26: 15 | AV26: 39 | AW26: 44 | AX26: 5 | AZ26: =Q22 -> 1.371 | BA26: 1.371 | BB26: 5 | BC26: 5 | BD26: 1.371 | BE26: 1.374 | BF26: 0.003 | BH26: =V22 -> 60.9 | BI26: 60.9 | BJ26: 5 | BK26: 5 | BL26: 60.9 | BM26: 62 | BN26: 1.1
A27: LEVEL 6 → | C27: 1131 | D27: 2.29 | E27: 1289 | F27: 279.6 | G27: 1184 | H27: 1.322 | I27: 1236 | J27: 43.8 | X27: =COUNT(L22:L26) -> 5 | Y27: 7 | Z27: S7 | AA27: 2.133333333 | AB27: 2.56 | AJ27: 1139 | AK27: 1139 | AL27: 34 | AM27: 34 | AN27: 1139 | AO27: 1144 | AP27: 5 | AR27: =O23 -> 44 | AS27: 44 | AT27: 14 | AU27: 14 | AV27: 44 | AW27: 51 | AX27: 7 | AZ27: =Q23 -> 1.374 | BA27: 1.374 | BB27: 4 | BC27: 4 | BD27: 1.374 | BE27: 1.377 | BF27: 0.003 | BH27: =V23 -> 62 | BI27: 62 | BJ27: 4 | BK27: 4 | BL27: 62 | BM27: 63.3 | BN27: 1.3
A28: LEVEL 7 → | C28: 1139 | D28: 2.18 | E28: 1297 | F28: 282.9 | G28: 1191 | H28: 1.33 | I28: 1244 | J28: 46.4 | Y28: 8 | Z28: S8 | AA28: 2.16374269 | AB28: 2.587412587 | AJ28: 1144 | AK28: 1144 | AL28: 33 | AM28: 33 | AN28: 1144 | AO28: 1149 | AP28: 5 | AR28: =O24 -> 51 | AS28: 51 | AT28: 13 | AU28: 13 | AV28: 51 | AW28: 59 | AX28: 8 | AZ28: =Q24 -> 1.377 | BA28: 1.377 | BB28: 3 | BC28: 3 | BD28: 1.377 | BE28: 1.381 | BF28: 0.004 | BH28: =V24 -> 63.3 | BI28: 63.3 | BJ28: 3 | BK28: 3 | BL28: 63.3 | BM28: 64.8 | BN28: 1.5
A29: LEVEL 8 → | C29: 1144 | D29: 2.11 | E29: 1302 | F29: 285 | G29: 1197 | H29: 1.335 | I29: 1249 | J29: 48.2 | Y29: 9 | Z29: S9 | AA29: 1.962616822 | AB29: 2.346368715 | AJ29: 1149 | AK29: 1149 | AL29: 32 | AM29: 32 | AN29: 1149 | AO29: 1160 | AP29: 11 | AR29: =O25 -> 59 | AS29: 59 | AT29: 12 | AU29: 12 | AV29: 59 | AW29: 68 | AX29: 9 | AZ29: =Q25 -> 1.381 | BA29: 1.381 | BB29: 2 | BC29: 2 | BD29: 1.381 | BE29: 1.386 | BF29: 0.005 | BH29: =V25 -> 64.8 | BI29: 64.8 | BJ29: 2 | BK29: 2 | BL29: 64.8 | BM29: 66.5 | BN29: 1.7
A30: LEVEL 9 → | C30: 1149 | D30: 2.05 | E30: 1307 | F30: 287.1 | G30: 1202 | H30: 1.34 | I30: 1254 | J30: 50 | Y30: 10 | Z30: MAX | AA30: 1.97761194 | AB30: 2.376681614 | AJ30: =C31 -> 1160 | AK30: 1160 | AL30: 31 | AM30: 31 | AN30: 1160 | AO30: 1162 | AP30: 2 | AR30: =O26 -> 68 | AS30: 68 | AT30: 11 | AU30: 11 | AV30: 68 | AW30: 72 | AX30: 4 | AZ30: =Q26 -> 1.386 | BA30: 1.386 | BB30: 1 | BC30: 1 | BD30: 1.386 | BH30: =V26 -> 66.5 | BI30: 66.5 | BJ30: 1 | BK30: 1 | BL30: 66.5
A31: MAX | C31: 1160 | D31: 1.91 | E31: 1318 | F31: 291.4 | G31: 1212 | H31: 1.35 | I31: 1265 | J31: 53.6 | Z31: Points of added rank per km/h of added speed | AJ31: =E22 -> 1268 | AK31: 1162 | AL31: 30 | AM31: 10 | AN31: 1268 | AO31: 1270 | AP31: 2 | AR31: =R22 -> 72 | AS31: 72 | AT31: 10 | AU31: 10 | AV31: 72 | AW31: 78 | AX31: 6
A32: MAX+TK→ | B32: TK | D32: 1.73 | F32: 296.8 | H32: 1.363 | J32: 58 | Z32: The smaller the values, the better for speed | AJ32: 1270 | AK32: 1165 | AL32: 29 | AM32: 9 | AN32: 1270 | AO32: 1273 | AP32: 3 | AR32: =R23 -> 78 | AS32: 78 | AT32: 9 | AU32: 9 | AV32: 78 | AW32: 85 | AX32: 7 | AZ32: PRO KIT SPEED | BH32: PRO KIT ACCELERATION
AJ33: 1273 | AK33: 1168 | AL33: 28 | AM33: 8 | AN33: 1273 | AO33: 1278 | AP33: 5 | AR33: =R24 -> 85 | AS33: 85 | AT33: 8 | AU33: 8 | AV33: 85 | AW33: 93 | AX33: 8 | AZ33: table order | BA33: ascending order | BB33: reference position | BC33: rank position | BD33: repeat table order for next vlookup | BE33: next value | BF33: difference | BH33: table order | BI33: ascending order | BJ33: reference position | BK33: rank position | BL33: repeat table order for next vlookup | BM33: next value | BN33: difference
AH34: Tokens | AJ34: 1278 | AK34: 1173 | AL34: 27 | AM34: 7 | AN34: 1278 | AO34: 1283 | AP34: 5 | AR34: =R25 -> 93 | AS34: 93 | AT34: 7 | AU34: 7 | AV34: 93 | AW34: 102 | AX34: 9 | AZ34: =F31 -> 291.4 | BB34: 11 | BC34: =BB34 -> 11 | BD34: =AZ34 -> 291.4 | BE34: =VLOOKUP(BC34-1,BC$34:BD$44,2,FALSE) -> 292.4 | BF34: =BE34-BD34 -> 1 | BH34: =D31 -> 1.91 | BJ34: 0 | BK34: =BJ34 -> 0 | BL34: =BH34 -> 1.91 | BM34: =VLOOKUP(BK34-1,BK$34:BL$44,2,FALSE) ->  | BN34: =BL34-BM34 -> 
B35: Tuning the Ducati Monster 1200 S - ASPHALT 8 AIRBORNE | Z35: S+N | AA35: =B40+B42+Z51+Z53 -> 305.7 | AB35: =AA35+AB40+AB42 -> 307.7 | AD35: TOTAL Cost | AF35: =AF36+AF37 -> 577350 | AJ35: 1283 | AK35: 1178 | AL35: 26 | AM35: 6 | AN35: 1283 | AO35: 1289 | AP35: 6 | AR35: =R26 -> 102 | AS35: 102 | AT35: 6 | AU35: 6 | AV35: 102 | AW35: 106 | AX35: 4 | AZ35: =N22 -> 292.4 | BA35: =LARGE(AZ$35:AZ$44,BB35) -> 292.4 | BB35: =BB34-1 -> 10 | BC35: =VLOOKUP(AZ35,BA$35:BB$44,2,FALSE) -> 10 | BD35: =AZ35 -> 292.4 | BE35: 293.7 | BF35: 1.3 | BH35: =S22 -> 1.87 | BI35: =LARGE(BH$35:BH$44,BJ35) -> 1.87 | BJ35: =BJ34+1 -> 1 | BK35: =VLOOKUP(BH35,BI$35:BJ$44,2,FALSE) -> 1 | BL35: =BH35 -> 1.87 | BM35: 1.91 | BN35: =BL35-BM35 -> -0.04
C36: UPGRADE | L36: PRO KITS | Z36: var | AA36: =_xlfn.VAR.P(AA50:AA53) -> 0 | AD36: UPG T Cost | AF36: =SUMIF(B6:E15,">0")*1000 -> 487650 | AH36: =-SUMIF(B6:E15,"<0")*1000 -> 0 | AJ36: 1289 | AK36: 1184 | AL36: 25 | AM36: 5 | AN36: 1289 | AO36: 1297 | AP36: 8 | AR36: =U22 -> 106 | AS36: 106 | AT36: 5 | AU36: 5 | AV36: 106 | AW36: 112 | AX36: 6 | AZ36: =N23 -> 293.7 | BA36: 293.7 | BB36: =BB35-1 -> 9 | BC36: 9 | BD36: 293.7 | BE36: 295.3 | BF36: 1.6 | BH36: =S23 -> 1.83 | BI36: 1.83 | BJ36: =BJ35+1 -> 2 | BK36: 2 | BL36: 1.83 | BM36: 1.87 | BN36: =BL36-BM36 -> -0.04
B37: Init | C37: Accel | E37: Speed | G37: Handling | I37: Nitro | K37: MAX | L37: Tires | O37: Fork Tubes | R37: Transmission | U37: Exhaust | X37: PRO | Y37: End | Z37: MAX | AA37: Final | AB37: TK | AD37: PRO T Cost | AF37: =SUM(F6:F10,P6:P10,Z6:Z10,AJ6:AJ10)*1000 -> 89700 | AJ37: 1297 | AK37: 1191 | AL37: 24 | AM37: 4 | AN37: 1297 | AO37: 1302 | AP37: 5 | AR37: =U23 -> 112 | AS37: 112 | AT37: 4 | AU37: 4 | AV37: 112 | AW37: 118 | AX37: 6 | AZ37: =N24 -> 295.3 | BA37: 295.3 | BB37: 8 | BC37: 8 | BD37: 295.3 | BE37: 297.1 | BF37: 1.8 | BH37: =S24 -> 1.78 | BI37: 1.78 | BJ37: 3 | BK37: 3 | BL37: 1.78 | BM37: 1.83 | BN37: -0.05
C38: Rank | D38: A | E38: Rank | F38: S | G38: Rank | H38: H | I38: Rank | J38: N | L38: Rank | M38: H | N38: S | O38: Rank | P38: N | Q38: H | R38: Rank | S38: A | T38: S | U38: Rank | V38: N | W38: A | Z38: PRO | AA38: Value | AB38: Boost | AD38: Current Cost | AF38: =AF39+AF40 -> 0 | AJ38: 1302 | AK38: 1197 | AL38: 23 | AM38: 3 | AN38: 1302 | AO38: 1307 | AP38: 5 | AR38: =U24 -> 118 | AS38: 118 | AT38: 3 | AU38: 3 | AV38: 118 | AW38: 126 | AX38: 8 | AZ38: =N25 -> 297.1 | BA38: 297.1 | BB38: 7 | BC38: 7 | BD38: 297.1 | BE38: 299.2 | BF38: 2.1 | BH38: =S25 -> 1.72 | BI38: 1.72 | BJ38: 4 | BK38: 4 | BL38: 1.72 | BM38: 1.78 | BN38: -0.06
B39: =B22 -> 2.6 | C39: =VLOOKUP(C22,AO$20:AP$60,2,FALSE) -> 3 | D39: =D22-B22 -> -0.03 | E39: =VLOOKUP(E22,AO$20:AP$60,2,FALSE) -> 3 | F39: =F22-B23 -> 1.1 | G39: =VLOOKUP(G22,AO$20:AP$60,2,FALSE) -> 2 | H39: =H22-B24 -> 0.003 | I39: =VLOOKUP(I22,AO$20:AP$60,2,FALSE) -> 3 | J39: =J22-B25 -> 0.9 | K39: =SUM(D39:D48) -> -0.69 | L39: =VLOOKUP(L22,AW$20:AX$40,2,FALSE) -> 5 | M39: =VLOOKUP(M22,BE$20:BF$30,2,FALSE) -> 0.002 | N39: =VLOOKUP(N22,BE$34:BF$44,2,FALSE) -> 1 | O39: =VLOOKUP(O22,AW$20:AX$40,2,FALSE) -> 5 | P39: =VLOOKUP(P22,BM$20:BN$30,2,FALSE) -> 0.8 | Q39: =VLOOKUP(Q22,BE$20:BF$30,2,FALSE) -> 0.003 | R39: =VLOOKUP(R22,AW$20:AX$40,2,FALSE) -> 4 | S39: =VLOOKUP(S22,BL$34:BN$44,3,FALSE) -> -0.04 | T39: =VLOOKUP(T22,BE$34:BF$44,2,FALSE) -> 1 | U39: =VLOOKUP(U22,AW$20:AX$40,2,FALSE) -> 4 | V39: =VLOOKUP(V22,BM$20:BN$30,2,FALSE) -> 0.9 | W39: =VLOOKUP(W22,BL$34:BN$44,3,FALSE) -> -0.04 | X39: =SUM(S39:S43,W39:W43) -> -0.51 | Y39: A | Z39: =K39+X39 -> -1.2 | AA39: =B39+Z39 -> 1.4 | AB39: =INDIRECT("R"&(ROW(upg_acc)+1+E60)&"C"&COLUMN(upg_acc),FALSE) -> -0.03 | AD39: UPG C Cost | AF39: =SUM(B16:E16)*1000 -> 0 | AH39: =SUM(B17:E17)*1000 -> 0 | AJ39: 1307 | AK39: 1202 | AL39: 22 | AM39: 2 | AN39: 1307 | AO39: 1318 | AP39: 11 | AR39: =U25 -> 126 | AS39: 126 | AT39: 2 | AU39: 2 | AV39: 126 | AW39: 135 | AX39: 9 | AZ39: =N26 -> 299.2 | BA39: 299.2 | BB39: 6 | BC39: 6 | BD39: 299.2 | BE39: 300.2 | BF39: 1 | BH39: =S26 -> 1.66 | BI39: 1.66 | BJ39: 5 | BK39: 5 | BL39: 1.66 | BM39: 1.72 | BN39: -0.06
B40: =B23 -> 270 | C40: =VLOOKUP(C23,AO$20:AP$60,2,FALSE) -> 3 | D40: =D23-D22 -> -0.04 | E40: =VLOOKUP(E23,AO$20:AP$60,2,FALSE) -> 2 | F40: =F23-F22 -> 1 | G40: =VLOOKUP(G23,AO$20:AP$60,2,FALSE) -> 3 | H40: =H23-H22 -> 0.002 | I40: =VLOOKUP(I23,AO$20:AP$60,2,FALSE) -> 3 | J40: =J23-J22 -> 0.9 | K40: =SUM(F39:F48) -> 21.4 | L40: =VLOOKUP(L23,AW$20:AX$40,2,FALSE) -> 5 | M40: =VLOOKUP(M23,BE$20:BF$30,2,FALSE) -> 0.003 | N40: =VLOOKUP(N23,BE$34:BF$44,2,FALSE) -> 1.3 | O40: =VLOOKUP(O23,AW$20:AX$40,2,FALSE) -> 5 | P40: =VLOOKUP(P23,BM$20:BN$30,2,FALSE) -> 1.1 | Q40: =VLOOKUP(Q23,BE$20:BF$30,2,FALSE) -> 0.003 | R40: =VLOOKUP(R23,AW$20:AX$40,2,FALSE) -> 6 | S40: =VLOOKUP(S23,BL$34:BN$44,3,FALSE) -> -0.04 | T40: =VLOOKUP(T23,BE$34:BF$44,2,FALSE) -> 1.3 | U40: =VLOOKUP(U23,AW$20:AX$40,2,FALSE) -> 6 | V40: =VLOOKUP(V23,BM$20:BN$30,2,FALSE) -> 1.1 | W40: =VLOOKUP(W23,BL$34:BN$44,3,FALSE) -> -0.04 | X40: =SUM(N39:N43,T39:T43) -> 15.6 | Y40: S | Z40: =K40+X40 -> 37 | AA40: =B40+Z40 -> 307 | AB40: =INDIRECT("R"&(ROW(upg_spd)+1+F60)&"C"&COLUMN(upg_spd),FALSE) -> 1.1 | AD40: PRO C Cost | AF40: =SUM(F11+P11+Z11+AJ11)*1000 -> 0 | AJ40: =E31 -> 1318 | AK40: 1212 | AL40: 21 | AM40: 1 | AN40: 1318 | AR40: =U26 -> 135 | AS40: 135 | AT40: 1 | AU40: 1 | AV40: 135 | AZ40: =T22 -> 300.2 | BA40: 300.2 | BB40: 5 | BC40: 5 | BD40: 300.2 | BE40: 301.5 | BF40: 1.3 | BH40: =W22 -> 1.62 | BI40: 1.62 | BJ40: 6 | BK40: 6 | BL40: 1.62 | BM40: 1.66 | BN40: -0.04
B41: =B24 -> 1.3 | C41: 2 | D41: =D24-D23 -> -0.03 | E41: 3 | F41: =F24-F23 -> 1.1 | G41: 3 | H41: =H24-H23 -> 0.003 | I41: 2 | J41: =J24-J23 -> 0.9 | K41: =SUM(H39:H48) -> 0.05 | L41: =VLOOKUP(L24,AW$20:AX$40,2,FALSE) -> 7 | M41: =VLOOKUP(M24,BE$20:BF$30,2,FALSE) -> 0.004 | N41: =VLOOKUP(N24,BE$34:BF$44,2,FALSE) -> 1.6 | O41: =VLOOKUP(O24,AW$20:AX$40,2,FALSE) -> 7 | P41: =VLOOKUP(P24,BM$20:BN$30,2,FALSE) -> 1.3 | Q41: =VLOOKUP(Q24,BE$20:BF$30,2,FALSE) -> 0.003 | R41: =VLOOKUP(R24,AW$20:AX$40,2,FALSE) -> 7 | S41: =VLOOKUP(S24,BL$34:BN$44,3,FALSE) -> -0.05 | T41: =VLOOKUP(T24,BE$34:BF$44,2,FALSE) -> 1.6 | U41: =VLOOKUP(U24,AW$20:AX$40,2,FALSE) -> 6 | V41: =VLOOKUP(V24,BM$20:BN$30,2,FALSE) -> 1.3 | W41: =VLOOKUP(W24,BL$34:BN$44,3,FALSE) -> -0.05 | X41: =SUM(M39:M43,Q39:Q43) -> 0.036 | Y41: H | Z41: =K41+X41 -> 0.086 | AA41: =B41+Z41 -> 1.386 | AB41: =INDIRECT("R"&(ROW(upg_hnd)+1+G60)&"C"&COLUMN(upg_hnd),FALSE) -> 0.003 | AD41: Tires | AG41: =G11 -> 0 | AJ41: =G22 -> 1162 | AK41: 1215 | AL41: 20 | AM41: 30 | AN41: 1162 | AO41: 1165 | AP41: 3 | AZ41: =T23 -> 301.5 | BA41: 301.5 | BB41: 4 | BC41: 4 | BD41: 301.5 | BE41: 303.1 | BF41: 1.6 | BH41: =W23 -> 1.58 | BI41: 1.58 | BJ41: 7 | BK41: 7 | BL41: 1.58 | BM41: 1.62 | BN41: -0.04
B42: =B25 -> 35.7 | C42: 5 | D42: =D25-D24 -> -0.07 | E42: 5 | F42: =F25-F24 -> 2.2 | G42: 5 | H42: =H25-H24 -> 0.005 | I42: 6 | J42: =J25-J24 -> 1.8 | K42: =SUM(J39:J48) -> 17.9 | L42: =VLOOKUP(L25,AW$20:AX$40,2,FALSE) -> 8 | M42: =VLOOKUP(M25,BE$20:BF$30,2,FALSE) -> 0.004 | N42: =VLOOKUP(N25,BE$34:BF$44,2,FALSE) -> 1.8 | O42: =VLOOKUP(O25,AW$20:AX$40,2,FALSE) -> 8 | P42: =VLOOKUP(P25,BM$20:BN$30,2,FALSE) -> 1.5 | Q42: =VLOOKUP(Q25,BE$20:BF$30,2,FALSE) -> 0.004 | R42: =VLOOKUP(R25,AW$20:AX$40,2,FALSE) -> 8 | S42: =VLOOKUP(S25,BL$34:BN$44,3,FALSE) -> -0.06 | T42: =VLOOKUP(T25,BE$34:BF$44,2,FALSE) -> 1.8 | U42: =VLOOKUP(U25,AW$20:AX$40,2,FALSE) -> 8 | V42: =VLOOKUP(V25,BM$20:BN$30,2,FALSE) -> 1.5 | W42: =VLOOKUP(W25,BL$34:BN$44,3,FALSE) -> -0.06 | X42: =SUM(P39:P43,V39:V43) -> 12.9 | Y42: N | Z42: =K42+X42 -> 30.8 | AA42: =B42+Z42 -> 66.5 | AB42: =INDIRECT("R"&(ROW(upg_ntr)+1+H60)&"C"&COLUMN(upg_ntr),FALSE) -> 0.9 | AD42: Fork Tubes | AG42: =Q11 -> 0 | AJ42: 1165 | AK42: 1218 | AL42: 19 | AM42: 29 | AN42: 1165 | AO42: 1168 | AP42: 3 | AZ42: =T24 -> 303.1 | BA42: 303.1 | BB42: 3 | BC42: 3 | BD42: 303.1 | BE42: 304.9 | BF42: 1.8 | BH42: =W24 -> 1.53 | BI42: 1.53 | BJ42: 8 | BK42: 8 | BL42: 1.53 | BM42: 1.58 | BN42: -0.05
B43: =B26 -> 1107 | C43: 6 | D43: =D26-D25 -> -0.07 | E43: 5 | F43: =F26-F25 -> 2.1 | G43: 5 | H43: =H26-H25 -> 0.004 | I43: 5 | J43: =J26-J25 -> 1.8 | K43: =SUM(C39:C48,E39:E48,G39:G48,I39:I48) -> 211 | L43: =VLOOKUP(L26,AW$20:AX$40,2,FALSE) -> 9 | M43: =VLOOKUP(M26,BE$20:BF$30,2,FALSE) -> 0.005 | N43: =VLOOKUP(N26,BE$34:BF$44,2,FALSE) -> 2.1 | O43: =VLOOKUP(O26,AW$20:AX$40,2,FALSE) -> 9 | P43: =VLOOKUP(P26,BM$20:BN$30,2,FALSE) -> 1.7 | Q43: =VLOOKUP(Q26,BE$20:BF$30,2,FALSE) -> 0.005 | R43: =VLOOKUP(R26,AW$20:AX$40,2,FALSE) -> 9 | S43: =VLOOKUP(S26,BL$34:BN$44,3,FALSE) -> -0.06 | T43: =VLOOKUP(T26,BE$34:BF$44,2,FALSE) -> 2.1 | U43: =VLOOKUP(U26,AW$20:AX$40,2,FALSE) -> 9 | V43: =VLOOKUP(V26,BM$20:BN$30,2,FALSE) -> 1.7 | W43: =VLOOKUP(W26,BL$34:BN$44,3,FALSE) -> -0.07 | X43: =SUM(L39:L43,O39:O43,R39:R43,U39:U43) -> 135 | Y43: Rank | Z43: =K43+X43 -> 346 | AA43: =B43+Z43 -> 1453 | AB43: 43 | AD43: Transmission | AG43: =AA11 -> 0 | AJ43: 1168 | AK43: 1220 | AL43: 18 | AM43: 28 | AN43: 1168 | AO43: 1173 | AP43: 5 | AZ43: =T25 -> 304.9 | BA43: 304.9 | BB43: 2 | BC43: 2 | BD43: 304.9 | BE43: 307 | BF43: 2.1 | BH43: =W25 -> 1.47 | BI43: 1.47 | BJ43: 9 | BK43: 9 | BL43: 1.47 | BM43: 1.53 | BN43: -0.06
C44: 5 | D44: =D27-D26 -> -0.07 | E44: 6 | F44: =F27-F26 -> 2.1 | G44: 6 | H44: =H27-H26 -> 0.005 | I44: 5 | J44: =J27-J26 -> 1.8 | AC44: MPTK | AD44: Exhaust | AG44: =AK11 -> 0 | AJ44: 1173 | AK44: 1226 | AL44: 17 | AM44: 27 | AN44: 1173 | AO44: 1178 | AP44: 5 | AZ44: =T26 -> 307 | BA44: 307 | BB44: 1 | BC44: 1 | BD44: 307 | BH44: =W26 -> 1.4 | BI44: 1.4 | BJ44: 10 | BK44: 10 | BL44: 1.4 | BM44: 1.47 | BN44: -0.07
C45: 8 | D45: -0.11 | E45: 8 | F45: 3.3 | G45: 7 | H45: 0.008 | I45: 8 | J45: 2.6 | AC45: 1.4 | AD45: Early Tech | AG45: =H11+R11+AB11+AL11 -> 0 | AJ45: 1178 | AK45: 1231 | AL45: 16 | AM45: 26 | AN45: 1178 | AO45: 1184 | AP45: 6
C46: 5 | D46: -0.07 | E46: 5 | F46: 2.1 | G46: 6 | H46: 0.005 | I46: 5 | J46: 1.8 | AC46: 295.8 | AD46: Initial Tech | AG46: =I11+S11+AC11+AM11 -> 0 | AJ46: 1184 | AK46: 1236 | AL46: 15 | AM46: 25 | AN46: 1184 | AO46: 1191 | AP46: 7
C47: 5 | D47: -0.06 | E47: 5 | F47: 2.1 | G47: 5 | H47: 0.005 | I47: 5 | J47: 1.8 | AC47: 1.25 | AD47: Common Tech | AG47: =J11+T11+AD11+AN11 -> 0 | AJ47: 1191 | AK47: 1244 | AL47: 14 | AM47: 24 | AN47: 1191 | AO47: 1197 | AP47: 6
C48: 11 | D48: -0.14 | E48: 11 | F48: 4.3 | G48: 10 | H48: 0.01 | I48: 11 | J48: 3.6 | AC48: 114.3 | AD48: Mid Tech | AG48: =K11+U11+AE11+AO11 -> 0 | AJ48: 1197 | AK48: 1249 | AL48: 13 | AM48: 23 | AN48: 1197 | AO48: 1202 | AP48: 5
B49: TK | D49: =D32-D31 -> -0.18 | F49: =F32-F31 -> 5.4 | H49: =H32-H31 -> 0.013 | J49: =J32-J31 -> 4.4 | AB49: Final | AD49: Rare Tech | AG49: =L11+V11+AF11+AP11 -> 0 | AJ49: 1202 | AK49: 1254 | AL49: 12 | AM49: 22 | AN49: 1202 | AO49: 1212 | AP49: 10
B50: A | C50: =IF(E60>0,C39,"") ->  | D50: =IF(E60>0,D39,"") ->  | E50: =IF(F60>0,E39,"") ->  | F50: =IF(F60>0,F39,"") ->  | G50: =IF(G60>0,G39,"") ->  | H50: =IF(G60>0,H39,"") ->  | I50: =IF(H60>0,I39,"") ->  | J50: =IF(H60>0,J39,"") ->  | K50: =SUM(D50:D59) -> 0 | L50: =IF(P60>0,L39,"") ->  | M50: =IF(P60>0,M39,"") ->  | N50: =IF(P60>0,N39,"") ->  | O50: =IF(Q60>0,O39,"") ->  | P50: =IF(Q60>0,P39,"") ->  | Q50: =IF(Q60>0,Q39,"") ->  | R50: =IF(R60>0,R39,"") ->  | S50: =IF(R60>0,S39,"") ->  | T50: =IF(R60>0,T39,"") ->  | U50: =IF(S60>0,U39,"") ->  | V50: =IF(S60>0,V39,"") ->  | W50: =IF(S60>0,W39,"") ->  | X50: =SUM(S50:S54,W50:W54) -> 0 | Y50: =B39+K50+X50 -> 2.6 | Z50: =K50+X50 -> 0 | AA50: =Z50/Z39 -> 0 | AB50: =Y50+AB39 -> 2.57 | AD50: Advanced Tech | AG50: =M11+W11+AG11+AQ11 -> 0 | AJ50: =G31 -> 1212 | AK50: 1265 | AL50: 11 | AM50: 21 | AN50: 1212 | AO50: 1215 | AP50: 3
B51: S | C51: =IF(E60>1,C40,"") ->  | D51: =IF(E60>1,D40,"") ->  | E51: =IF(F60>1,E40,"") ->  | F51: =IF(F60>1,F40,"") ->  | G51: =IF(G60>1,G40,"") ->  | H51: =IF(G60>1,H40,"") ->  | I51: =IF(H60>1,I40,"") ->  | J51: =IF(H60>1,J40,"") ->  | K51: =SUM(F50:F59) -> 0 | L51: =IF(P60>1,L40,"") ->  | M51: =IF(P60>1,M40,"") ->  | N51: =IF(P60>1,N40,"") ->  | O51: =IF(Q60>1,O40,"") ->  | P51: =IF(Q60>1,P40,"") ->  | Q51: =IF(Q60>1,Q40,"") ->  | R51: =IF(R60>1,R40,"") ->  | S51: =IF(R60>1,S40,"") ->  | T51: =IF(R60>1,T40,"") ->  | U51: =IF(S60>1,U40,"") ->  | V51: =IF(S60>1,V40,"") ->  | W51: =IF(S60>1,W40,"") ->  | X51: =SUM(N50:N54,T50:T54) -> 0 | Y51: =B40+K51+X51 -> 270 | Z51: =K51+X51 -> 0 | AA51: =Z51/Z40 -> 0 | AB51: =Y51+AB40 -> 271.1 | AD51: Legendary Tech | AG51: =N11+X11+AH11+AR11 -> 0 | AJ51: =I22 -> 1215 | AK51: 1268 | AL51: 10 | AM51: 20 | AN51: 1215 | AO51: 1218 | AP51: 3
B52: H | C52: =IF(E60>2,C41,"") ->  | D52: =IF(E60>2,D41,"") ->  | E52: =IF(F60>2,E41,"") ->  | F52: =IF(F60>2,F41,"") ->  | G52: =IF(G60>2,G41,"") ->  | H52: =IF(G60>2,H41,"") ->  | I52: =IF(H60>2,I41,"") ->  | J52: =IF(H60>2,J41,"") ->  | K52: =SUM(H50:H59) -> 0 | L52: =IF(P60>2,L41,"") ->  | M52: =IF(P60>2,M41,"") ->  | N52: =IF(P60>2,N41,"") ->  | O52: =IF(Q60>2,O41,"") ->  | P52: =IF(Q60>2,P41,"") ->  | Q52: =IF(Q60>2,Q41,"") ->  | R52: =IF(R60>2,R41,"") ->  | S52: =IF(R60>2,S41,"") ->  | T52: =IF(R60>2,T41,"") ->  | U52: =IF(S60>2,U41,"") ->  | V52: =IF(S60>2,V41,"") ->  | W52: =IF(S60>2,W41,"") ->  | X52: =SUM(M50:M54,Q50:Q54) -> 0 | Y52: =B41+K52+X52 -> 1.3 | Z52: =K52+X52 -> 0 | AA52: =Z52/Z41 -> 0 | AB52: =Y52+AB41 -> 1.303 | AD52: Engines | AG52: =O11+Y11+AI11+AS11 -> 0 | AH52: VT | AJ52: 1218 | AK52: 1270 | AL52: 9 | AM52: 19 | AN52: 1218 | AO52: 1220 | AP52: 2
B53: N | C53: =IF(E60>3,C42,"") ->  | D53: =IF(E60>3,D42,"") ->  | E53: =IF(F60>3,E42,"") ->  | F53: =IF(F60>3,F42,"") ->  | G53: =IF(G60>3,G42,"") ->  | H53: =IF(G60>3,H42,"") ->  | I53: =IF(H60>3,I42,"") ->  | J53: =IF(H60>3,J42,"") ->  | K53: =SUM(J50:J59) -> 0 | L53: =IF(P60>3,L42,"") ->  | M53: =IF(P60>3,M42,"") ->  | N53: =IF(P60>3,N42,"") ->  | O53: =IF(Q60>3,O42,"") ->  | P53: =IF(Q60>3,P42,"") ->  | Q53: =IF(Q60>3,Q42,"") ->  | R53: =IF(R60>3,R42,"") ->  | S53: =IF(R60>3,S42,"") ->  | T53: =IF(R60>3,T42,"") ->  | U53: =IF(S60>3,U42,"") ->  | V53: =IF(S60>3,V42,"") ->  | W53: =IF(S60>3,W42,"") ->  | X53: =SUM(P50:P54,V50:V54) -> 0 | Y53: =B42+K53+X53 -> 35.7 | Z53: =K53+X53 -> 0 | AA53: =Z53/Z42 -> 0 | AB53: =Y53+AB42 -> 36.6 | AJ53: 1220 | AK53: 1273 | AL53: 8 | AM53: 18 | AN53: 1220 | AO53: 1226 | AP53: 6
B54: Rank | C54: =IF(E60>4,C43,"") ->  | D54: =IF(E60>4,D43,"") ->  | E54: =IF(F60>4,E43,"") ->  | F54: =IF(F60>4,F43,"") ->  | G54: =IF(G60>4,G43,"") ->  | H54: =IF(G60>4,H43,"") ->  | I54: =IF(H60>4,I43,"") ->  | J54: =IF(H60>4,J43,"") ->  | K54: =SUM(C50:C59,E50:E59,G50:G59,I50:I59) -> 0 | L54: =IF(P60>4,L43,"") ->  | M54: =IF(P60>4,M43,"") ->  | N54: =IF(P60>4,N43,"") ->  | O54: =IF(Q60>4,O43,"") ->  | P54: =IF(Q60>4,P43,"") ->  | Q54: =IF(Q60>4,Q43,"") ->  | R54: =IF(R60>4,R43,"") ->  | S54: =IF(R60>4,S43,"") ->  | T54: =IF(R60>4,T43,"") ->  | U54: =IF(S60>4,U43,"") ->  | V54: =IF(S60>4,V43,"") ->  | W54: =IF(S60>4,W43,"") ->  | X54: =SUM(L50:L54,O50:O54,R50:R54,U50:U54) -> 0 | Y54: =B43+K54+X54 -> 1107 | Z54: =K54+X54 -> 0 | AA54: =Z54/Z43 -> 0 | AB54: =AB43+Y54 -> 1150 | AJ54: 1226 | AK54: 1278 | AL54: 7 | AM54: 17 | AN54: 1226 | AO54: 1231 | AP54: 5
C55: =IF($E$60>5,C44,"") ->  | D55: =IF($E$60>5,D44,"") ->  | E55: =IF($F$60>5,E44,"") ->  | F55: =IF($F$60>5,F44,"") ->  | G55: =IF($G$60>5,G44,"") ->  | H55: =IF($G$60>5,H44,"") ->  | I55: =IF($H$60>5,I44,"") ->  | J55: =IF($H$60>5,J44,"") ->  | AJ55: 1231 | AK55: 1283 | AL55: 6 | AM55: 16 | AN55: 1231 | AO55: 1236 | AP55: 5
C56: =IF($E$60>6,C45,"") ->  | D56: =IF($E$60>6,D45,"") ->  | E56: =IF($F$60>6,E45,"") ->  | F56: =IF($F$60>6,F45,"") ->  | G56: =IF($G$60>6,G45,"") ->  | H56: =IF($G$60>6,H45,"") ->  | I56: =IF($H$60>6,I45,"") ->  | J56: =IF($H$60>6,J45,"") ->  | AJ56: 1236 | AK56: 1289 | AL56: 5 | AM56: 15 | AN56: 1236 | AO56: 1244 | AP56: 8
C57: =IF($E$60>7,C46,"") ->  | D57: =IF($E$60>7,D46,"") ->  | E57: =IF($F$60>7,E46,"") ->  | F57: =IF($F$60>7,F46,"") ->  | G57: =IF($G$60>7,G46,"") ->  | H57: =IF($G$60>7,H46,"") ->  | I57: =IF($H$60>7,I46,"") ->  | J57: =IF($H$60>7,J46,"") ->  | AJ57: 1244 | AK57: 1297 | AL57: 4 | AM57: 14 | AN57: 1244 | AO57: 1249 | AP57: 5
C58: =IF($E$60>8,C47,"") ->  | D58: =IF($E$60>8,D47,"") ->  | E58: =IF($F$60>8,E47,"") ->  | F58: =IF($F$60>8,F47,"") ->  | G58: =IF($G$60>8,G47,"") ->  | H58: =IF($G$60>8,H47,"") ->  | I58: =IF($H$60>8,I47,"") ->  | J58: =IF($H$60>8,J47,"") ->  | AJ58: 1249 | AK58: 1302 | AL58: 3 | AM58: 13 | AN58: 1249 | AO58: 1254 | AP58: 5
C59: =IF($E$60>9,C48,"") ->  | D59: =IF($E$60>9,D48,"") ->  | E59: =IF($F$60>9,E48,"") ->  | F59: =IF($F$60>9,F48,"") ->  | G59: =IF($G$60>9,G48,"") ->  | H59: =IF($G$60>9,H48,"") ->  | I59: =IF($H$60>9,I48,"") ->  | J59: =IF($H$60>9,J48,"") ->  | AJ59: 1254 | AK59: 1307 | AL59: 2 | AM59: 12 | AN59: 1254 | AO59: 1265 | AP59: 11
A60: INPUT → | X60: Speed+Nitro | Z60: =Z51+Z53 -> 0 | AA60: =Z60/(Z40+Z42) -> 0 | AB60: =IF(AA54=0,"",AA60/AA54-1) ->  | AJ60: =I31 -> 1265 | AK60: 1318 | AL60: 1 | AM60: 11 | AN60: 1265 | AO60: 1268 | AP60: 3
C62: =SUM(C39:C48) -> 53 | D62: =C62/$K43 -> 0.2511848341 | E62: =SUM(E39:E48) -> 53 | F62: =E62/$K43 -> 0.2511848341 | G62: =SUM(G39:G48) -> 52 | H62: =G62/$K43 -> 0.2464454976 | I62: =SUM(I39:I48) -> 53 | J62: =I62/$K43 -> 0.2511848341
E64: 0 | F64: 0 | G64: 0 | H64: 0 | P64: 0 | Q64: 0 | R64: 0 | S64: 0 | AA64: mph
E65: =SUM(D$38,OFFSET(D$38,0,0,E64+1,1)) -> 0 | F65: =SUM(F$38,OFFSET(F$38,0,0,F64+1,1)) -> 0 | G65: =SUM(H$38,OFFSET(H$38,0,0,G64+1,1)) -> 0 | H65: =SUM(J$38,OFFSET(J$38,0,0,H64+1,1)) -> 0 | P65: =SUM(N$38,OFFSET(N$38,0,0,P64+1,1)) -> 0 | Q65: =SUM(P$38,OFFSET(P$38,0,0,Q64+1,1)) -> 0 | R65: =SUM(T$38,OFFSET(T$38,0,0,R64+1,1)) -> 0 | S65: =SUM(V$38,OFFSET(V$38,0,0,S64+1,1)) -> 0 | U65: =P65+Q65+R65+S65+B40+B42+F67+H67+F65+H65 -> 307.7 | W65: Total Spd | AA65: =U65/1.61 -> 191.1180124
E66: =SUM(C$38,OFFSET(C$38,0,0,E64+1,1)) -> 0 | F66: =SUM(E$38,OFFSET(E$38,0,0,F64+1,1)) -> 0 | G66: =SUM(G$38,OFFSET(G$38,0,0,G64+1,1)) -> 0 | H66: =SUM(I$38,OFFSET(I$38,0,0,H64+1,1)) -> 0 | P66: =SUM(L$38,OFFSET(L$38,0,0,P64+1,1)) -> 0 | Q66: =SUM(O$38,OFFSET(O$38,0,0,Q64+1,1)) -> 0 | R66: =SUM(R$38,OFFSET(R$38,0,0,R64+1,1)) -> 0 | S66: =SUM(U$38,OFFSET(U$38,0,0,S64+1,1)) -> 0 | U66: =B43+SUM(E66:H66)+SUM(P66:S66) -> 1107 | W66: Rank
C67: TK Boost | F67: =INDIRECT("R"&(ROW(upg_spd)+1+F64)&"C"&COLUMN(upg_spd),FALSE) -> 1.1 | H67: =INDIRECT("R"&(ROW(upg_ntr)+1+H64)&"C"&COLUMN(upg_ntr),FALSE) -> 0.9 | K67: Start rank =
K68: End rank =
D72: MAX upgrades costs may not be correct. Need to use values from Tbl_Car_Max
K496: Start | Q496: Total Processing Time
K497: End | Q497: =pEnd-pStart -> 00:00:00
L499: Rank | M499: Xspd | N499: Nspd | O499: Spd | P499: A% | Q499: S% | R499: H% | S499: N% | T499: Var | U499: Idx | V499: Tuning | X499: Cnt | Y499: Spd/Rnk
I500: 500
I501: =I500+1 -> 501
I502: =I501+1 -> 502
I503: 503
I504: 504
I505: 505
I506: 506
I507: 507
I508: 508
I509: 509
I510: 510
I511: 511
I512: 512
I513: 513
I514: 514
I515: 515
I516: 516
I517: 517
I518: 518
I519: 519
I520: 520
I521: 521
I522: 522
I523: 523
I524: 524
I525: 525
I526: 526
I527: 527
I528: 528
I529: 529
I530: 530
I531: 531
I532: 532
I533: 533
I534: 534
I535: 535
I536: 536
I537: 537
I538: 538
I539: 539
I540: 540
I541: 541
I542: 542
I543: 543
I544: 544
I545: 545
I546: 546
I547: 547
I548: 548
I549: 549
I550: 550
I551: 551
I552: 552
I553: 553
I554: 554
I555: 555
I556: 556
I557: 557
I558: 558
I559: 559
I560: 560
I561: 561
I562: 562
I563: 563
I564: 564
I565: 565
I566: =I565+1 -> 566
I567: 567
I568: 568
I569: 569
I570: 570
I571: 571
I572: 572
I573: 573
I574: 574
I575: 575
I576: 576
I577: 577
I578: 578
I579: 579
I580: 580
I581: 581
I582: 582
I583: 583
I584: 584
I585: 585
I586: 586
I587: 587
I588: 588
I589: 589
I590: 590
I591: 591
I592: 592
I593: 593
I594: 594
I595: 595
I596: 596
I597: 597
I598: 598
I599: 599
I600: 600
I601: 601
I602: 602
I603: 603
I604: 604
I605: 605
I606: 606
I607: 607
I608: 608
I609: 609
I610: 610
I611: 611
I612: 612
I613: 613
I614: 614
I615: 615
I616: 616
I617: 617
I618: 618
I619: 619
I620: 620
I621: 621
I622: 622
I623: 623
I624: 624
I625: 625
I626: 626
I627: 627
I628: 628
I629: 629
... 1183 more rows

Sheet KTM C (hidden)
A1: This sheet was developed by Rookie Vee
B2: Gathering Prices & Parts for the Class C KTM 1290 Super Duke R (#0xC6) - Asphalt 8 Airborne
B3: UPGRADE | F3: PRO KITS
B4: Acc | C4: Spd | D4: Hnd | E4: Ntr | F4: Tires | P4: Fork Tubes | Z4: Transmission | AJ4: Exhaust
B5: Cost | F5: Cost | G5: Part | H5: Early | I5: Init | J5: Com | K5: Mid | L5: Rare | M5: Adv | N5: Legn | O5: Engn | P5: Cost | Q5: Part | R5: Early | S5: Init | T5: Com | U5: Mid | V5: Rare | W5: Adv | X5: Legn | Y5: Engn | Z5: Cost | AA5: Part | AB5: Early | AC5: Init | AD5: Com | AE5: Mid | AF5: Rare | AG5: Adv | AH5: Legn | AI5: Engn | AJ5: Cost | AK5: Part | AL5: Early | AM5: Init | AN5: Com | AO5: Mid | AP5: Rare | AQ5: Adv | AR5: Legn | AS5: Engn
A6: TO L1 → | B6: 0.36 | C6: 1.12 | D6: 0.36 | E6: 1.12 | F6: 0.9 | G6: 1 | P6: 0.725 | Q6: 1 | Z6: 0.9 | AA6: 1 | AJ6: 0.8 | AK6: 1
A7: TO L2 → | B7: 1.44 | C7: 3.04 | D7: 1.44 | E7: 1.92 | F7: 2.225 | G7: 1 | I7: 1 | P7: 1.775 | Q7: 1 | R7: 1 | Z7: 2.225 | AA7: 1 | AC7: 1 | AJ7: 2.05 | AK7: 1 | AL7: 1
A8: TO L3 → | B8: 1.92 | C8: 5.28 | D8: 1.92 | E8: 3.36 | F8: 4.4 | G8: 1 | I8: 1 | P8: 3.525 | Q8: 1 | R8: 1 | Z8: 4.4 | AA8: 1 | AC8: 1 | AJ8: 4.05 | AK8: 1 | AL8: 1
A9: TO L4 → | B9: 3.36 | C9: 7.04 | D9: 3.36 | E9: 5.6 | F9: 5.75 | G9: 1 | J9: 1 | P9: 4.6 | Q9: 1 | T9: 1 | Z9: 5.75 | AA9: 1 | AD9: 1 | AJ9: 5.275 | AK9: 1 | AN9: 1
A10: TO PRO → | B10: 5.2 | C10: 11.2 | D10: 5.2 | E10: 8.4 | F10: 10.275 | G10: 1 | O10: 1 | P10: 8.225 | Q10: 1 | Y10: 1 | Z10: 10.275 | AA10: 1 | AI10: 1 | AJ10: 9.45 | AK10: 1 | AS10: 1
A11: TO L6 → | B11: 7.2 | C11: 14.8 | D11: 7.2 | E11: 11.6 | F11: =SUM(INDIRECT("R"&(ROW()-6)&"C"&COLUMN(),FALSE):INDIRECT("R"&(ROW()-6+$P60)&"C"&COLUMN(),FALSE)) -> 0 | G11: =SUM(INDIRECT("R"&(ROW()-6)&"C"&COLUMN(),FALSE):INDIRECT("R"&(ROW()-6+$P60)&"C"&COLUMN(),FALSE)) -> 0 | H11: =SUM(INDIRECT("R"&(ROW()-6)&"C"&COLUMN(),FALSE):INDIRECT("R"&(ROW()-6+$P60)&"C"&COLUMN(),FALSE)) -> 0 | I11: =SUM(INDIRECT("R"&(ROW()-6)&"C"&COLUMN(),FALSE):INDIRECT("R"&(ROW()-6+$P60)&"C"&COLUMN(),FALSE)) -> 0 | J11: =SUM(INDIRECT("R"&(ROW()-6)&"C"&COLUMN(),FALSE):INDIRECT("R"&(ROW()-6+$P60)&"C"&COLUMN(),FALSE)) -> 0 | K11: =SUM(INDIRECT("R"&(ROW()-6)&"C"&COLUMN(),FALSE):INDIRECT("R"&(ROW()-6+$P60)&"C"&COLUMN(),FALSE)) -> 0 | L11: =SUM(INDIRECT("R"&(ROW()-6)&"C"&COLUMN(),FALSE):INDIRECT("R"&(ROW()-6+$P60)&"C"&COLUMN(),FALSE)) -> 0 | M11: =SUM(INDIRECT("R"&(ROW()-6)&"C"&COLUMN(),FALSE):INDIRECT("R"&(ROW()-6+$P60)&"C"&COLUMN(),FALSE)) -> 0 | N11: =SUM(INDIRECT("R"&(ROW()-6)&"C"&COLUMN(),FALSE):INDIRECT("R"&(ROW()-6+$P60)&"C"&COLUMN(),FALSE)) -> 0 | O11: =SUM(INDIRECT("R"&(ROW()-6)&"C"&COLUMN(),FALSE):INDIRECT("R"&(ROW()-6+$P60)&"C"&COLUMN(),FALSE)) -> 0 | P11: =SUM(INDIRECT("R"&(ROW()-6)&"C"&COLUMN(),FALSE):INDIRECT("R"&(ROW()-6+$Q60)&"C"&COLUMN(),FALSE)) -> 0 | Q11: =SUM(INDIRECT("R"&(ROW()-6)&"C"&COLUMN(),FALSE):INDIRECT("R"&(ROW()-6+$Q60)&"C"&COLUMN(),FALSE)) -> 0 | R11: =SUM(INDIRECT("R"&(ROW()-6)&"C"&COLUMN(),FALSE):INDIRECT("R"&(ROW()-6+$Q60)&"C"&COLUMN(),FALSE)) -> 0 | S11: =SUM(INDIRECT("R"&(ROW()-6)&"C"&COLUMN(),FALSE):INDIRECT("R"&(ROW()-6+$Q60)&"C"&COLUMN(),FALSE)) -> 0 | T11: =SUM(INDIRECT("R"&(ROW()-6)&"C"&COLUMN(),FALSE):INDIRECT("R"&(ROW()-6+$Q60)&"C"&COLUMN(),FALSE)) -> 0 | U11: =SUM(INDIRECT("R"&(ROW()-6)&"C"&COLUMN(),FALSE):INDIRECT("R"&(ROW()-6+$Q60)&"C"&COLUMN(),FALSE)) -> 0 | V11: =SUM(INDIRECT("R"&(ROW()-6)&"C"&COLUMN(),FALSE):INDIRECT("R"&(ROW()-6+$Q60)&"C"&COLUMN(),FALSE)) -> 0 | W11: =SUM(INDIRECT("R"&(ROW()-6)&"C"&COLUMN(),FALSE):INDIRECT("R"&(ROW()-6+$Q60)&"C"&COLUMN(),FALSE)) -> 0 | X11: =SUM(INDIRECT("R"&(ROW()-6)&"C"&COLUMN(),FALSE):INDIRECT("R"&(ROW()-6+$Q60)&"C"&COLUMN(),FALSE)) -> 0 | Y11: =SUM(INDIRECT("R"&(ROW()-6)&"C"&COLUMN(),FALSE):INDIRECT("R"&(ROW()-6+$Q60)&"C"&COLUMN(),FALSE)) -> 0 | Z11: =SUM(INDIRECT("R"&(ROW()-6)&"C"&COLUMN(),FALSE):INDIRECT("R"&(ROW()-6+$R60)&"C"&COLUMN(),FALSE)) -> 0 | AA11: =SUM(INDIRECT("R"&(ROW()-6)&"C"&COLUMN(),FALSE):INDIRECT("R"&(ROW()-6+$R60)&"C"&COLUMN(),FALSE)) -> 0 | AB11: =SUM(INDIRECT("R"&(ROW()-6)&"C"&COLUMN(),FALSE):INDIRECT("R"&(ROW()-6+$R60)&"C"&COLUMN(),FALSE)) -> 0 | AC11: =SUM(INDIRECT("R"&(ROW()-6)&"C"&COLUMN(),FALSE):INDIRECT("R"&(ROW()-6+$R60)&"C"&COLUMN(),FALSE)) -> 0 | AD11: =SUM(INDIRECT("R"&(ROW()-6)&"C"&COLUMN(),FALSE):INDIRECT("R"&(ROW()-6+$R60)&"C"&COLUMN(),FALSE)) -> 0 | AE11: =SUM(INDIRECT("R"&(ROW()-6)&"C"&COLUMN(),FALSE):INDIRECT("R"&(ROW()-6+$R60)&"C"&COLUMN(),FALSE)) -> 0 | AF11: =SUM(INDIRECT("R"&(ROW()-6)&"C"&COLUMN(),FALSE):INDIRECT("R"&(ROW()-6+$R60)&"C"&COLUMN(),FALSE)) -> 0 | AG11: =SUM(INDIRECT("R"&(ROW()-6)&"C"&COLUMN(),FALSE):INDIRECT("R"&(ROW()-6+$R60)&"C"&COLUMN(),FALSE)) -> 0 | AH11: =SUM(INDIRECT("R"&(ROW()-6)&"C"&COLUMN(),FALSE):INDIRECT("R"&(ROW()-6+$R60)&"C"&COLUMN(),FALSE)) -> 0 | AI11: =SUM(INDIRECT("R"&(ROW()-6)&"C"&COLUMN(),FALSE):INDIRECT("R"&(ROW()-6+$R60)&"C"&COLUMN(),FALSE)) -> 0 | AJ11: =SUM(INDIRECT("R"&(ROW()-6)&"C"&COLUMN(),FALSE):INDIRECT("R"&(ROW()-6+$S60)&"C"&COLUMN(),FALSE)) -> 0 | AK11: =SUM(INDIRECT("R"&(ROW()-6)&"C"&COLUMN(),FALSE):INDIRECT("R"&(ROW()-6+$S60)&"C"&COLUMN(),FALSE)) -> 0 | AL11: =SUM(INDIRECT("R"&(ROW()-6)&"C"&COLUMN(),FALSE):INDIRECT("R"&(ROW()-6+$S60)&"C"&COLUMN(),FALSE)) -> 0 | AM11: =SUM(INDIRECT("R"&(ROW()-6)&"C"&COLUMN(),FALSE):INDIRECT("R"&(ROW()-6+$S60)&"C"&COLUMN(),FALSE)) -> 0 | AN11: =SUM(INDIRECT("R"&(ROW()-6)&"C"&COLUMN(),FALSE):INDIRECT("R"&(ROW()-6+$S60)&"C"&COLUMN(),FALSE)) -> 0 | AO11: =SUM(INDIRECT("R"&(ROW()-6)&"C"&COLUMN(),FALSE):INDIRECT("R"&(ROW()-6+$S60)&"C"&COLUMN(),FALSE)) -> 0 | AP11: =SUM(INDIRECT("R"&(ROW()-6)&"C"&COLUMN(),FALSE):INDIRECT("R"&(ROW()-6+$S60)&"C"&COLUMN(),FALSE)) -> 0 | AQ11: =SUM(INDIRECT("R"&(ROW()-6)&"C"&COLUMN(),FALSE):INDIRECT("R"&(ROW()-6+$S60)&"C"&COLUMN(),FALSE)) -> 0 | AR11: =SUM(INDIRECT("R"&(ROW()-6)&"C"&COLUMN(),FALSE):INDIRECT("R"&(ROW()-6+$S60)&"C"&COLUMN(),FALSE)) -> 0 | AS11: =SUM(INDIRECT("R"&(ROW()-6)&"C"&COLUMN(),FALSE):INDIRECT("R"&(ROW()-6+$S60)&"C"&COLUMN(),FALSE)) -> 0
A12: TO L7 → | B12: 8.4 | C12: 18 | D12: 8.4 | E12: 13.2
A13: TO L8 → | B13: 9.6 | C13: 21.2 | D13: 9.6 | E13: 14.8 | J13: BASIC INSTRUCTIONS: | K13: - Only the values in purple color (tables "Gathering Prices …" and "Gathering Specifications …" plus the irrelevant value at cell AB43) should be entered by the user; all other values are calculated and must not be touched
A14: TO L9 → | B14: 13.6 | C14: 31.6 | D14: 13.6 | E14: 23.6 | K14: - All credit values (columns "Cost") should be entered divided by 1,000 (table "Gathering Prices…")
A15: TO MAX → | B15: 18.8 | C15: 42.4 | D15: 18.8 | E15: 31.6 | K15: - After all necessary data have been entered, use the eight Input cells (row 60) to enter a MAX and PRO configuration.
A16: Totals | B16: =SUMIF(B5:INDIRECT("B"&(E60+5)),">0") -> 0 | C16: =SUMIF(INDIRECT("R"&(ROW()-11)&"C"&COLUMN(),FALSE):INDIRECT("R"&(ROW()-11+F60)&"C"&COLUMN(),FALSE),">0") -> 0 | D16: =SUMIF(INDIRECT("R"&(ROW()-11)&"C"&COLUMN(),FALSE):INDIRECT("R"&(ROW()-11+G60)&"C"&COLUMN(),FALSE),">0") -> 0 | E16: =SUMIF(INDIRECT("R"&(ROW()-11)&"C"&COLUMN(),FALSE):INDIRECT("R"&(ROW()-11+H60)&"C"&COLUMN(),FALSE),">0") -> 0 | K16: - Top speed (MAX+PRO+TK) and respective rank for the configuration entered are shown in the two yellow cells. "Super-charged" speed is NOT supported.
B17: =-SUMIF(B5:INDIRECT("B"&(E60+5)),"<0") -> 0 | C17: =-SUMIF(INDIRECT("R"&(ROW()-12)&"C"&COLUMN(),FALSE):INDIRECT("R"&(ROW()-12+F60)&"C"&COLUMN(),FALSE),"<0") -> 0 | D17: =-SUMIF(INDIRECT("R"&(ROW()-12)&"C"&COLUMN(),FALSE):INDIRECT("R"&(ROW()-12+G60)&"C"&COLUMN(),FALSE),"<0") -> 0 | E17: =-SUMIF(INDIRECT("R"&(ROW()-12)&"C"&COLUMN(),FALSE):INDIRECT("R"&(ROW()-12+H60)&"C"&COLUMN(),FALSE),"<0") -> 0
B18: Gathering Specifications for the KTM 1290 Super Duke R - Asphalt 8 Airborne | Z18: TK | AA18: UPG | AC18: PRO | AJ18: UPGRADE RANK | AR18: PRO KIT RANK | AZ18: PRO KIT HANDLING | BH18: PRO KIT NITRO
C19: UPGRADE | L19: PRO KITS | Z19: TRUE | AC19: TIRE | AD19: FKT | AE19: TRA | AF19: EXH | AJ19: table order | AK19: ascending order | AL19: reference position | AM19: rank position | AN19: repeat table order for next vlookup | AO19: next value | AP19: difference | AR19: table order | AS19: ascending order | AT19: reference position | AU19: rank position | AV19: repeat table order for next vlookup | AW19: next value | AX19: difference | AZ19: table order | BA19: ascending order | BB19: reference position | BC19: rank position | BD19: repeat table order for next vlookup | BE19: next value | BF19: difference | BH19: table order | BI19: ascending order | BJ19: reference position | BK19: rank position | BL19: repeat table order for next vlookup | BM19: next value | BN19: difference
B20: Init | C20: Accel | E20: Speed | G20: Handling | I20: Nitro | L20: Tires | O20: Fork Tubes | R20: Transmission | U20: Exhaust | AA20: SPD | AB20: NTR | AC20: SPD | AD20: NTR | AE20: SPD | AF20: NTR | AJ20: =B26 -> 1192 | AL20: 41 | AM20: =AL20 -> 41 | AN20: =AJ20 -> 1192 | AO20: =VLOOKUP(AM20-1,AM$20:AN$60,2,FALSE) -> 1193 | AP20: =AO20-AN20 -> 1 | AR20: 0 | AT20: 21 | AU20: =AT20 -> 21 | AV20: =AR20 -> 0 | AW20: =VLOOKUP(AU20-1,AU$20:AV$40,2,FALSE) -> 3 | AX20: =AW20-AV20 -> 3 | AZ20: =H31 -> 1.35 | BB20: 11 | BC20: =BB20 -> 11 | BD20: =AZ20 -> 1.35 | BE20: =VLOOKUP(BC20-1,BC$20:BD$30,2,FALSE) -> 1.352 | BF20: =BE20-BD20 -> 0.002 | BH20: =J31 -> 40.7 | BJ20: 11 | BK20: =BJ20 -> 11 | BL20: =BH20 -> 40.7 | BM20: =VLOOKUP(BK20-1,BK$20:BL$30,2,FALSE) -> 41.3 | BN20: =BM20-BL20 -> 0.6
C21: Rank | D21: A | E21: Rank | F21: S | G21: Rank | H21: H | I21: Rank | J21: N | L21: Rank | M21: H | N21: S | O21: Rank | P21: N | Q21: H | R21: Rank | S21: A | T21: S | U21: Rank | V21: N | W21: A | Y21: 1 | Z21: S1 | AA21: =SUM(E$38,OFFSET(E$38,0,0,$Y21+1,1))/(SUM(F$38,OFFSET(F$38,0,0,$Y21+1,1))+IF(Z$19,F40,0)) -> 2.857142857 | AB21: =SUM(I$38,OFFSET(I$38,0,0,$Y21+1,1))/(SUM(J$38,OFFSET(J$38,0,0,$Y21+1,1))+IF(Z$19,J40,0)) -> 0.7142857143 | AC21: =SUM(L$38,OFFSET(L$38,0,0,$Y21+1,1))/(SUM(N$38,OFFSET(N$38,0,0,$Y21+1,1))) -> 6.666666667 | AD21: =SUM(O$38,OFFSET(O$38,0,0,$Y21+1,1))/(SUM(P$38,OFFSET(P$38,0,0,$Y21+1,1))) -> 5 | AE21: =SUM(R$38,OFFSET(R$38,0,0,$Y21+1,1))/(SUM(T$38,OFFSET(T$38,0,0,$Y21+1,1))) -> 6.666666667 | AF21: =SUM(U$38,OFFSET(U$38,0,0,$Y21+1,1))/(SUM(V$38,OFFSET(V$38,0,0,$Y21+1,1))) -> 3.333333333 | AJ21: =C22 -> 1219 | AK21: =LARGE(AJ$21:AJ$60,AL21) -> 1193 | AL21: =AL20-1 -> 40 | AM21: =VLOOKUP(AJ21,AK$21:AL$60,2,FALSE) -> 30 | AN21: 1219 | AO21: =VLOOKUP(AM21-1,AM$20:AN$60,2,FALSE) -> 1220 | AP21: =AO21-AN21 -> 1 | AR21: =L22 -> 35 | AS21: =LARGE(AR$21:AR$40,AT21) -> 3 | AT21: =AT20-1 -> 20 | AU21: =VLOOKUP(AR21,AS$21:AT$40,2,FALSE) -> 10 | AV21: =AR21 -> 35 | AW21: 38 | AX21: 3 | AZ21: =M22 -> 1.369 | BA21: =LARGE(AZ$21:AZ$30,BB21) -> 1.352 | BB21: =BB20-1 -> 10 | BC21: =VLOOKUP(AZ21,BA$21:BB$30,2,FALSE) -> 5 | BD21: =AZ21 -> 1.369 | BE21: 1.372 | BF21: 0.003 | BH21: =P22 -> 41.3 | BI21: =LARGE(BH$21:BH$30,BJ21) -> 41.3 | BJ21: =BJ20-1 -> 10 | BK21: =VLOOKUP(BH21,BI$21:BJ$30,2,FALSE) -> 10 | BL21: =BH21 -> 41.3 | BM21: 42.1 | BN21: 0.8
A22: LEVEL 1 → | B22: 2.6 | C22: 1219 | D22: 2.57 | E22: 1270 | F22: 291.8 | G22: 1193 | H22: 1.303 | I22: 1244 | J22: 27.8 | K22: A | L22: 35 | M22: 1.369 | N22: 298.9 | O22: 3 | P22: 41.3 | Q22: 1.352 | R22: 52 | S22: 1.65 | T22: 301.3 | U22: 19 | V22: 45.8 | W22: 1.88 | Y22: 2 | Z22: S2 | AA22: =SUM(E$38,OFFSET(E$38,0,0,$Y22+1,1))/(SUM(F$38,OFFSET(F$38,0,0,$Y22+1,1))+IF(Z$19,F41,0)) -> 2.727272727 | AB22: =SUM(I$38,OFFSET(I$38,0,0,$Y22+1,1))/(SUM(J$38,OFFSET(J$38,0,0,$Y22+1,1))+IF(Z$19,J41,0)) -> 0.9523809524 | AC22: =SUM(L$38,OFFSET(L$38,0,0,$Y22+1,1))/(SUM(N$38,OFFSET(N$38,0,0,$Y22+1,1))) -> 7.142857143 | AD22: =SUM(O$38,OFFSET(O$38,0,0,$Y22+1,1))/(SUM(P$38,OFFSET(P$38,0,0,$Y22+1,1))) -> 3.571428571 | AE22: =SUM(R$38,OFFSET(R$38,0,0,$Y22+1,1))/(SUM(T$38,OFFSET(T$38,0,0,$Y22+1,1))) -> 5.714285714 | AF22: =SUM(U$38,OFFSET(U$38,0,0,$Y22+1,1))/(SUM(V$38,OFFSET(V$38,0,0,$Y22+1,1))) -> 3.571428571 | AJ22: 1220 | AK22: =LARGE(AJ$21:AJ$60,AL22) -> 1194 | AL22: 39 | AM22: =VLOOKUP(AJ22,AK$21:AL$60,2,FALSE) -> 29 | AN22: 1220 | AO22: =VLOOKUP(AM22-1,AM$20:AN$60,2,FALSE) -> 1221 | AP22: 1 | AR22: =L23 -> 38 | AS22: 5 | AT22: 19 | AU22: 9 | AV22: =AR22 -> 38 | AW22: 41 | AX22: 3 | AZ22: =M23 -> 1.372 | BA22: 1.355 | BB22: =BB21-1 -> 9 | BC22: 4 | BD22: 1.372 | BE22: 1.375 | BF22: 0.003 | BH22: =P23 -> 42.1 | BI22: 42.1 | BJ22: =BJ21-1 -> 9 | BK22: 9 | BL22: 42.1 | BM22: 43 | BN22: 0.9
A23: LEVEL 2 → | B23: 291.4 | C23: 1220 | D23: 2.53 | E23: 1271 | F23: 292.1 | G23: 1194 | H23: 1.305 | I23: 1245 | J23: 28.5 | K23: S | L23: 38 | M23: 1.372 | N23: 299.3 | O23: 5 | P23: 42.1 | Q23: 1.355 | R23: 54 | S23: 1.61 | T23: 301.7 | U23: 22 | V23: 46.6 | W23: 1.84 | Y23: 3 | Z23: S3 | AA23: 2.222222222 | AB23: 1.176470588 | AC23: =SUM(L$38,OFFSET(L$38,0,0,$Y23+1,1))/(SUM(N$38,OFFSET(N$38,0,0,$Y23+1,1))) -> 6.666666667 | AD23: =SUM(O$38,OFFSET(O$38,0,0,$Y23+1,1))/(SUM(P$38,OFFSET(P$38,0,0,$Y23+1,1))) -> 3.913043478 | AE23: =SUM(R$38,OFFSET(R$38,0,0,$Y23+1,1))/(SUM(T$38,OFFSET(T$38,0,0,$Y23+1,1))) -> 7.272727273 | AF23: 3.47826087 | AJ23: 1221 | AK23: 1196 | AL23: 38 | AM23: 28 | AN23: 1221 | AO23: 1224 | AP23: 3 | AR23: =L24 -> 41 | AS23: 9 | AT23: 18 | AU23: 8 | AV23: 41 | AW23: 45 | AX23: 4 | AZ23: =M24 -> 1.375 | BA23: 1.358 | BB23: 8 | BC23: 3 | BD23: 1.375 | BE23: 1.379 | BF23: 0.004 | BH23: =P24 -> 43 | BI23: 43 | BJ23: 8 | BK23: 8 | BL23: 43 | BM23: 44 | BN23: 1
A24: LEVEL 3 → | B24: 1.3 | C24: 1221 | D24: 2.5 | E24: 1272 | F24: 292.5 | G24: 1196 | H24: 1.308 | I24: 1247 | J24: 29.2 | K24: H | L24: 41 | M24: 1.375 | N24: 299.8 | O24: 9 | P24: 43 | Q24: 1.358 | R24: 58 | S24: 1.56 | T24: 302.1 | U24: 25 | V24: 47.5 | W24: 1.79 | Y24: 4 | Z24: S4 | AA24: 2.8 | AB24: 1.25 | AC24: =SUM(L$38,OFFSET(L$38,0,0,$Y24+1,1))/(SUM(N$38,OFFSET(N$38,0,0,$Y24+1,1))) -> 7.058823529 | AD24: =SUM(O$38,OFFSET(O$38,0,0,$Y24+1,1))/(SUM(P$38,OFFSET(P$38,0,0,$Y24+1,1))) -> 3.636363636 | AE24: =SUM(R$38,OFFSET(R$38,0,0,$Y24+1,1))/(SUM(T$38,OFFSET(T$38,0,0,$Y24+1,1))) -> 7.058823529 | AF24: 3.636363636 | AJ24: 1224 | AK24: 1198 | AL24: 37 | AM24: 27 | AN24: 1224 | AO24: 1226 | AP24: 2 | AR24: =L25 -> 45 | AS24: 12 | AT24: 17 | AU24: 7 | AV24: 45 | AW24: 50 | AX24: 5 | AZ24: =M25 -> 1.379 | BA24: 1.362 | BB24: 7 | BC24: 2 | BD24: 1.379 | BE24: 1.383 | BF24: 0.004 | BH24: =P25 -> 44 | BI24: 44 | BJ24: 7 | BK24: 7 | BL24: 44 | BM24: 45.2 | BN24: 1.2
A25: LEVEL 4 → | B25: 27.1 | C25: 1224 | D25: 2.43 | E25: 1275 | F25: 293.2 | G25: 1198 | H25: 1.313 | I25: 1249 | J25: 30.5 | K25: N | L25: 45 | M25: 1.379 | N25: 300.3 | O25: 12 | P25: 44 | Q25: 1.362 | R25: 62 | S25: 1.51 | T25: 302.7 | U25: 29 | V25: 48.5 | W25: 1.74 | Y25: 5 | Z25: PRO | AA25: 2.8125 | AB25: 1.451612903 | AC25: =SUM(L$38,OFFSET(L$38,0,0,$Y25+1,1))/(SUM(N$38,OFFSET(N$38,0,0,$Y25+1,1))) -> 7.083333333 | AD25: =SUM(O$38,OFFSET(O$38,0,0,$Y25+1,1))/(SUM(P$38,OFFSET(P$38,0,0,$Y25+1,1))) -> 3.777777778 | AE25: =SUM(R$38,OFFSET(R$38,0,0,$Y25+1,1))/(SUM(T$38,OFFSET(T$38,0,0,$Y25+1,1))) -> 6.956521739 | AF25: 3.47826087 | AJ25: 1226 | AK25: 1201 | AL25: 36 | AM25: 26 | AN25: 1226 | AO25: 1229 | AP25: 3 | AR25: =L26 -> 50 | AS25: 17 | AT25: 16 | AU25: 6 | AV25: 50 | AW25: 52 | AX25: 2 | AZ25: =M26 -> 1.383 | BA25: 1.367 | BB25: 6 | BC25: 1 | BD25: 1.383 | BH25: =P26 -> 45.2 | BI25: 45.2 | BJ25: 6 | BK25: 6 | BL25: 45.2 | BM25: 45.8 | BN25: 0.6
A26: PRO → | B26: 1192 | C26: 1226 | D26: 2.36 | E26: 1277 | F26: 293.9 | G26: 1201 | H26: 1.317 | I26: 1252 | J26: 31.9 | K26: Rank | L26: 50 | M26: 1.383 | N26: 301 | O26: 17 | P26: 45.2 | Q26: 1.367 | R26: 66 | S26: 1.44 | T26: 303.3 | U26: 33 | V26: 49.8 | W26: 1.68 | X26: =COUNT(C22:C31) -> 10 | Y26: 6 | Z26: S6 | AA26: 2.790697674 | AB26: 1.341463415 | AJ26: 1229 | AK26: 1203 | AL26: 35 | AM26: 25 | AN26: 1229 | AO26: 1233 | AP26: 4 | AR26: =O22 -> 3 | AS26: 19 | AT26: 15 | AU26: 20 | AV26: 3 | AW26: 5 | AX26: 2 | AZ26: =Q22 -> 1.352 | BA26: 1.369 | BB26: 5 | BC26: 10 | BD26: 1.352 | BE26: 1.355 | BF26: 0.003 | BH26: =V22 -> 45.8 | BI26: 45.8 | BJ26: 5 | BK26: 5 | BL26: 45.8 | BM26: 46.6 | BN26: 0.8
A27: LEVEL 6 → | C27: 1229 | D27: 2.29 | E27: 1280 | F27: 294.6 | G27: 1203 | H27: 1.322 | I27: 1254 | J27: 33.3 | X27: =COUNT(L22:L26) -> 5 | Y27: 7 | Z27: S7 | AA27: 3.2 | AB27: 1.578947368 | AJ27: 1233 | AK27: 1207 | AL27: 34 | AM27: 24 | AN27: 1233 | AO27: 1235 | AP27: 2 | AR27: =O23 -> 5 | AS27: 22 | AT27: 14 | AU27: 19 | AV27: 5 | AW27: 9 | AX27: 4 | AZ27: =Q23 -> 1.355 | BA27: 1.372 | BB27: 4 | BC27: 9 | BD27: 1.355 | BE27: 1.358 | BF27: 0.003 | BH27: =V23 -> 46.6 | BI27: 46.6 | BJ27: 4 | BK27: 4 | BL27: 46.6 | BM27: 47.5 | BN27: 0.9
A28: LEVEL 7 → | C28: 1233 | D28: 2.18 | E28: 1284 | F28: 295.7 | G28: 1207 | H28: 1.33 | I28: 1258 | J28: 35.3 | Y28: 8 | Z28: S8 | AA28: 3.157894737 | AB28: 1.651376147 | AJ28: 1235 | AK28: 1210 | AL28: 33 | AM28: 23 | AN28: 1235 | AO28: 1238 | AP28: 3 | AR28: =O24 -> 9 | AS28: 25 | AT28: 13 | AU28: 18 | AV28: 9 | AW28: 12 | AX28: 3 | AZ28: =Q24 -> 1.358 | BA28: 1.375 | BB28: 3 | BC28: 8 | BD28: 1.358 | BE28: 1.362 | BF28: 0.004 | BH28: =V24 -> 47.5 | BI28: 47.5 | BJ28: 3 | BK28: 3 | BL28: 47.5 | BM28: 48.5 | BN28: 1
A29: LEVEL 8 → | C29: 1235 | D29: 2.11 | E29: 1286 | F29: 296.4 | G29: 1210 | H29: 1.335 | I29: 1261 | J29: 36.6 | Y29: 9 | Z29: S9 | AA29: 2.916666667 | AB29: 1.470588235 | AJ29: 1238 | AK29: 1212 | AL29: 32 | AM29: 22 | AN29: 1238 | AO29: 1243 | AP29: 5 | AR29: =O25 -> 12 | AS29: 29 | AT29: 12 | AU29: 17 | AV29: 12 | AW29: 17 | AX29: 5 | AZ29: =Q25 -> 1.362 | BA29: 1.379 | BB29: 2 | BC29: 7 | BD29: 1.362 | BE29: 1.367 | BF29: 0.005 | BH29: =V25 -> 48.5 | BI29: 48.5 | BJ29: 2 | BK29: 2 | BL29: 48.5 | BM29: 49.8 | BN29: 1.3
A30: LEVEL 9 → | C30: 1238 | D30: 2.05 | E30: 1289 | F30: 297.1 | G30: 1212 | H30: 1.34 | I30: 1263 | J30: 38 | Y30: 10 | Z30: MAX | AA30: 2.888888889 | AB30: 1.470588235 | AJ30: =C31 -> 1243 | AK30: 1217 | AL30: 31 | AM30: 21 | AN30: 1243 | AO30: 1244 | AP30: 1 | AR30: =O26 -> 17 | AS30: 33 | AT30: 11 | AU30: 16 | AV30: 17 | AW30: 19 | AX30: 2 | AZ30: =Q26 -> 1.367 | BA30: 1.383 | BB30: 1 | BC30: 6 | BD30: 1.367 | BE30: 1.369 | BF30: 0.002 | BH30: =V26 -> 49.8 | BI30: 49.8 | BJ30: 1 | BK30: 1 | BL30: 49.8
A31: MAX | C31: 1243 | D31: 1.91 | E31: 1294 | F31: 298.6 | G31: 1217 | H31: 1.35 | I31: 1268 | J31: 40.7 | Z31: Points of added rank per km/h of added speed | AJ31: =E22 -> 1270 | AK31: 1219 | AL31: 30 | AM31: 10 | AN31: 1270 | AO31: 1271 | AP31: 1 | AR31: =R22 -> 52 | AS31: 35 | AT31: 10 | AU31: 5 | AV31: 52 | AW31: 54 | AX31: 2
A32: MAX+TK→ | B32: TK | D32: 1.73 | F32: 300.4 | H32: 1.363 | J32: 44.1 | Z32: The smaller the values, the better for speed | AJ32: 1271 | AK32: 1220 | AL32: 29 | AM32: 9 | AN32: 1271 | AO32: 1272 | AP32: 1 | AR32: =R23 -> 54 | AS32: 38 | AT32: 9 | AU32: 4 | AV32: 54 | AW32: 58 | AX32: 4 | AZ32: PRO KIT SPEED | BH32: PRO KIT ACCELERATION
AJ33: 1272 | AK33: 1221 | AL33: 28 | AM33: 8 | AN33: 1272 | AO33: 1275 | AP33: 3 | AR33: =R24 -> 58 | AS33: 41 | AT33: 8 | AU33: 3 | AV33: 58 | AW33: 62 | AX33: 4 | AZ33: table order | BA33: ascending order | BB33: reference position | BC33: rank position | BD33: repeat table order for next vlookup | BE33: next value | BF33: difference | BH33: table order | BI33: ascending order | BJ33: reference position | BK33: rank position | BL33: repeat table order for next vlookup | BM33: next value | BN33: difference
AH34: Tokens | AJ34: 1275 | AK34: 1224 | AL34: 27 | AM34: 7 | AN34: 1275 | AO34: 1277 | AP34: 2 | AR34: =R25 -> 62 | AS34: 45 | AT34: 7 | AU34: 2 | AV34: 62 | AW34: 66 | AX34: 4 | AZ34: =F31 -> 298.6 | BB34: 11 | BC34: =BB34 -> 11 | BD34: =AZ34 -> 298.6 | BE34: =VLOOKUP(BC34-1,BC$34:BD$44,2,FALSE) -> 298.9 | BF34: =BE34-BD34 -> 0.3 | BH34: =D31 -> 1.91 | BJ34: 0 | BK34: =BJ34 -> 0 | BL34: =BH34 -> 1.91 | BM34: =VLOOKUP(BK34-1,BK$34:BL$44,2,FALSE) ->  | BN34: =BL34-BM34 -> 
B35: Tuning the KTM 1290 Super Duke R - ASPHALT 8 AIRBORNE | Z35: S+N | AA35: =B40+B42+Z51+Z53 -> 318.5 | AB35: =AA35+AB40+AB42 -> 319.6 | AD35: TOTAL Cost | AF35: =AF36+AF37 -> 498215 | AJ35: 1277 | AK35: 1226 | AL35: 26 | AM35: 6 | AN35: 1277 | AO35: 1280 | AP35: 3 | AR35: =R26 -> 66 | AS35: 50 | AT35: 6 | AU35: 1 | AV35: 66 | AZ35: =N22 -> 298.9 | BA35: =LARGE(AZ$35:AZ$44,BB35) -> 298.9 | BB35: =BB34-1 -> 10 | BC35: =VLOOKUP(AZ35,BA$35:BB$44,2,FALSE) -> 10 | BD35: =AZ35 -> 298.9 | BE35: 299.3 | BF35: 0.4 | BH35: =S22 -> 1.65 | BI35: =LARGE(BH$35:BH$44,BJ35) -> 1.88 | BJ35: =BJ34+1 -> 1 | BK35: =VLOOKUP(BH35,BI$35:BJ$44,2,FALSE) -> 6 | BL35: =BH35 -> 1.65 | BM35: 1.68 | BN35: =BL35-BM35 -> -0.03
C36: UPGRADE | L36: PRO KITS | Z36: var | AA36: =_xlfn.VAR.P(AA50:AA53) -> 0 | AD36: UPG T Cost | AF36: =SUMIF(B6:E15,">0")*1000 -> 410640 | AH36: =-SUMIF(B6:E15,"<0")*1000 -> 0 | AJ36: 1280 | AK36: 1229 | AL36: 25 | AM36: 5 | AN36: 1280 | AO36: 1284 | AP36: 4 | AR36: =U22 -> 19 | AS36: 52 | AT36: 5 | AU36: 15 | AV36: 19 | AW36: 22 | AX36: 3 | AZ36: =N23 -> 299.3 | BA36: 299.3 | BB36: =BB35-1 -> 9 | BC36: 9 | BD36: 299.3 | BE36: 299.8 | BF36: 0.5 | BH36: =S23 -> 1.61 | BI36: 1.84 | BJ36: =BJ35+1 -> 2 | BK36: 7 | BL36: 1.61 | BM36: 1.65 | BN36: =BL36-BM36 -> -0.04
B37: Init | C37: Accel | E37: Speed | G37: Handling | I37: Nitro | K37: MAX | L37: Tires | O37: Fork Tubes | R37: Transmission | U37: Exhaust | X37: PRO | Y37: End | Z37: MAX | AA37: Final | AB37: TK | AD37: PRO T Cost | AF37: =SUM(F6:F10,P6:P10,Z6:Z10,AJ6:AJ10)*1000 -> 87575 | AJ37: 1284 | AK37: 1233 | AL37: 24 | AM37: 4 | AN37: 1284 | AO37: 1286 | AP37: 2 | AR37: =U23 -> 22 | AS37: 54 | AT37: 4 | AU37: 14 | AV37: 22 | AW37: 25 | AX37: 3 | AZ37: =N24 -> 299.8 | BA37: 299.8 | BB37: 8 | BC37: 8 | BD37: 299.8 | BE37: 300.3 | BF37: 0.5 | BH37: =S24 -> 1.56 | BI37: 1.79 | BJ37: 3 | BK37: 8 | BL37: 1.56 | BM37: 1.61 | BN37: -0.05
C38: Rank | D38: A | E38: Rank | F38: S | G38: Rank | H38: H | I38: Rank | J38: N | L38: Rank | M38: H | N38: S | O38: Rank | P38: N | Q38: H | R38: Rank | S38: A | T38: S | U38: Rank | V38: N | W38: A | Z38: PRO | AA38: Value | AB38: Boost | AD38: Current Cost | AF38: =AF39+AF40 -> 0 | AJ38: 1286 | AK38: 1235 | AL38: 23 | AM38: 3 | AN38: 1286 | AO38: 1289 | AP38: 3 | AR38: =U24 -> 25 | AS38: 58 | AT38: 3 | AU38: 13 | AV38: 25 | AW38: 29 | AX38: 4 | AZ38: =N25 -> 300.3 | BA38: 300.3 | BB38: 7 | BC38: 7 | BD38: 300.3 | BE38: 301 | BF38: 0.7 | BH38: =S25 -> 1.51 | BI38: 1.74 | BJ38: 4 | BK38: 9 | BL38: 1.51 | BM38: 1.56 | BN38: -0.05
B39: =B22 -> 2.6 | C39: =VLOOKUP(C22,AO$20:AP$60,2,FALSE) -> 2 | D39: =D22-B22 -> -0.03 | E39: =VLOOKUP(E22,AO$20:AP$60,2,FALSE) -> 2 | F39: =F22-B23 -> 0.4 | G39: =VLOOKUP(G22,AO$20:AP$60,2,FALSE) -> 1 | H39: =H22-B24 -> 0.003 | I39: =VLOOKUP(I22,AO$20:AP$60,2,FALSE) -> 1 | J39: =J22-B25 -> 0.7 | K39: =SUM(D39:D48) -> -0.69 | L39: =VLOOKUP(L22,AW$20:AX$40,2,FALSE) -> 2 | M39: =VLOOKUP(M22,BE$20:BF$30,2,FALSE) -> 0.002 | N39: =VLOOKUP(N22,BE$34:BF$44,2,FALSE) -> 0.3 | O39: =VLOOKUP(O22,AW$20:AX$40,2,FALSE) -> 3 | P39: =VLOOKUP(P22,BM$20:BN$30,2,FALSE) -> 0.6 | Q39: =VLOOKUP(Q22,BE$20:BF$30,2,FALSE) -> 0.002 | R39: =VLOOKUP(R22,AW$20:AX$40,2,FALSE) -> 2 | S39: =VLOOKUP(S22,BL$34:BN$44,3,FALSE) -> -0.03 | T39: =VLOOKUP(T22,BE$34:BF$44,2,FALSE) -> 0.3 | U39: =VLOOKUP(U22,AW$20:AX$40,2,FALSE) -> 2 | V39: =VLOOKUP(V22,BM$20:BN$30,2,FALSE) -> 0.6 | W39: =VLOOKUP(W22,BL$34:BN$44,3,FALSE) -> -0.03 | X39: =SUM(S39:S43,W39:W43) -> -0.47 | Y39: A | Z39: =K39+X39 -> -1.16 | AA39: =B39+Z39 -> 1.44 | AB39: =INDIRECT("R"&(ROW(upg_acc)+1+E60)&"C"&COLUMN(upg_acc),FALSE) -> -0.03 | AD39: UPG C Cost | AF39: =SUM(B16:E16)*1000 -> 0 | AH39: =SUM(B17:E17)*1000 -> 0 | AJ39: 1289 | AK39: 1238 | AL39: 22 | AM39: 2 | AN39: 1289 | AO39: 1294 | AP39: 5 | AR39: =U25 -> 29 | AS39: 62 | AT39: 2 | AU39: 12 | AV39: 29 | AW39: 33 | AX39: 4 | AZ39: =N26 -> 301 | BA39: 301 | BB39: 6 | BC39: 6 | BD39: 301 | BE39: 301.3 | BF39: 0.3 | BH39: =S26 -> 1.44 | BI39: 1.68 | BJ39: 5 | BK39: 10 | BL39: 1.44 | BM39: 1.51 | BN39: -0.07
B40: =B23 -> 291.4 | C40: =VLOOKUP(C23,AO$20:AP$60,2,FALSE) -> 1 | D40: =D23-D22 -> -0.04 | E40: =VLOOKUP(E23,AO$20:AP$60,2,FALSE) -> 1 | F40: =F23-F22 -> 0.3 | G40: =VLOOKUP(G23,AO$20:AP$60,2,FALSE) -> 1 | H40: =H23-H22 -> 0.002 | I40: =VLOOKUP(I23,AO$20:AP$60,2,FALSE) -> 1 | J40: =J23-J22 -> 0.7 | K40: =SUM(F39:F48) -> 7.2 | L40: =VLOOKUP(L23,AW$20:AX$40,2,FALSE) -> 3 | M40: =VLOOKUP(M23,BE$20:BF$30,2,FALSE) -> 0.003 | N40: =VLOOKUP(N23,BE$34:BF$44,2,FALSE) -> 0.4 | O40: =VLOOKUP(O23,AW$20:AX$40,2,FALSE) -> 2 | P40: =VLOOKUP(P23,BM$20:BN$30,2,FALSE) -> 0.8 | Q40: =VLOOKUP(Q23,BE$20:BF$30,2,FALSE) -> 0.003 | R40: =VLOOKUP(R23,AW$20:AX$40,2,FALSE) -> 2 | S40: =VLOOKUP(S23,BL$34:BN$44,3,FALSE) -> -0.04 | T40: =VLOOKUP(T23,BE$34:BF$44,2,FALSE) -> 0.4 | U40: =VLOOKUP(U23,AW$20:AX$40,2,FALSE) -> 3 | V40: =VLOOKUP(V23,BM$20:BN$30,2,FALSE) -> 0.8 | W40: =VLOOKUP(W23,BL$34:BN$44,3,FALSE) -> -0.04 | X40: =SUM(N39:N43,T39:T43) -> 4.7 | Y40: S | Z40: =K40+X40 -> 11.9 | AA40: =B40+Z40 -> 303.3 | AB40: =INDIRECT("R"&(ROW(upg_spd)+1+F60)&"C"&COLUMN(upg_spd),FALSE) -> 0.4 | AD40: PRO C Cost | AF40: =SUM(F11+P11+Z11+AJ11)*1000 -> 0 | AJ40: =E31 -> 1294 | AK40: 1243 | AL40: 21 | AM40: 1 | AN40: 1294 | AR40: =U26 -> 33 | AS40: 66 | AT40: 1 | AU40: 11 | AV40: 33 | AW40: 35 | AX40: 2 | AZ40: =T22 -> 301.3 | BA40: 301.3 | BB40: 5 | BC40: 5 | BD40: 301.3 | BE40: 301.7 | BF40: 0.4 | BH40: =W22 -> 1.88 | BI40: 1.65 | BJ40: 6 | BK40: 1 | BL40: 1.88 | BM40: 1.91 | BN40: -0.03
B41: =B24 -> 1.3 | C41: 1 | D41: =D24-D23 -> -0.03 | E41: 1 | F41: =F24-F23 -> 0.4 | G41: 2 | H41: =H24-H23 -> 0.003 | I41: 2 | J41: =J24-J23 -> 0.7 | K41: =SUM(H39:H48) -> 0.05 | L41: =VLOOKUP(L24,AW$20:AX$40,2,FALSE) -> 3 | M41: =VLOOKUP(M24,BE$20:BF$30,2,FALSE) -> 0.003 | N41: =VLOOKUP(N24,BE$34:BF$44,2,FALSE) -> 0.5 | O41: =VLOOKUP(O24,AW$20:AX$40,2,FALSE) -> 4 | P41: =VLOOKUP(P24,BM$20:BN$30,2,FALSE) -> 0.9 | Q41: =VLOOKUP(Q24,BE$20:BF$30,2,FALSE) -> 0.003 | R41: =VLOOKUP(R24,AW$20:AX$40,2,FALSE) -> 4 | S41: =VLOOKUP(S24,BL$34:BN$44,3,FALSE) -> -0.05 | T41: =VLOOKUP(T24,BE$34:BF$44,2,FALSE) -> 0.4 | U41: =VLOOKUP(U24,AW$20:AX$40,2,FALSE) -> 3 | V41: =VLOOKUP(V24,BM$20:BN$30,2,FALSE) -> 0.9 | W41: =VLOOKUP(W24,BL$34:BN$44,3,FALSE) -> -0.05 | X41: =SUM(M39:M43,Q39:Q43) -> 0.033 | Y41: H | Z41: =K41+X41 -> 0.083 | AA41: =B41+Z41 -> 1.383 | AB41: =INDIRECT("R"&(ROW(upg_hnd)+1+G60)&"C"&COLUMN(upg_hnd),FALSE) -> 0.003 | AD41: Tires | AG41: =G11 -> 0 | AJ41: =G22 -> 1193 | AK41: 1244 | AL41: 20 | AM41: 40 | AN41: 1193 | AO41: 1194 | AP41: 1 | AZ41: =T23 -> 301.7 | BA41: 301.7 | BB41: 4 | BC41: 4 | BD41: 301.7 | BE41: 302.1 | BF41: 0.4 | BH41: =W23 -> 1.84 | BI41: 1.61 | BJ41: 7 | BK41: 2 | BL41: 1.84 | BM41: 1.88 | BN41: -0.04
B42: =B25 -> 27.1 | C42: 3 | D42: =D25-D24 -> -0.07 | E42: 3 | F42: =F25-F24 -> 0.7 | G42: 2 | H42: =H25-H24 -> 0.005 | I42: 2 | J42: =J25-J24 -> 1.3 | K42: =SUM(J39:J48) -> 13.6 | L42: =VLOOKUP(L25,AW$20:AX$40,2,FALSE) -> 4 | M42: =VLOOKUP(M25,BE$20:BF$30,2,FALSE) -> 0.004 | N42: =VLOOKUP(N25,BE$34:BF$44,2,FALSE) -> 0.5 | O42: =VLOOKUP(O25,AW$20:AX$40,2,FALSE) -> 3 | P42: =VLOOKUP(P25,BM$20:BN$30,2,FALSE) -> 1 | Q42: =VLOOKUP(Q25,BE$20:BF$30,2,FALSE) -> 0.004 | R42: =VLOOKUP(R25,AW$20:AX$40,2,FALSE) -> 4 | S42: =VLOOKUP(S25,BL$34:BN$44,3,FALSE) -> -0.05 | T42: =VLOOKUP(T25,BE$34:BF$44,2,FALSE) -> 0.6 | U42: =VLOOKUP(U25,AW$20:AX$40,2,FALSE) -> 4 | V42: =VLOOKUP(V25,BM$20:BN$30,2,FALSE) -> 1 | W42: =VLOOKUP(W25,BL$34:BN$44,3,FALSE) -> -0.05 | X42: =SUM(P39:P43,V39:V43) -> 9.1 | Y42: N | Z42: =K42+X42 -> 22.7 | AA42: =B42+Z42 -> 49.8 | AB42: =INDIRECT("R"&(ROW(upg_ntr)+1+H60)&"C"&COLUMN(upg_ntr),FALSE) -> 0.7 | AD42: Fork Tubes | AG42: =Q11 -> 0 | AJ42: 1194 | AK42: 1245 | AL42: 19 | AM42: 39 | AN42: 1194 | AO42: 1196 | AP42: 2 | AZ42: =T24 -> 302.1 | BA42: 302.1 | BB42: 3 | BC42: 3 | BD42: 302.1 | BE42: 302.7 | BF42: 0.6 | BH42: =W24 -> 1.79 | BI42: 1.56 | BJ42: 8 | BK42: 3 | BL42: 1.79 | BM42: 1.84 | BN42: -0.05
B43: =B26 -> 1192 | C43: 2 | D43: =D26-D25 -> -0.07 | E43: 2 | F43: =F26-F25 -> 0.7 | G43: 3 | H43: =H26-H25 -> 0.004 | I43: 3 | J43: =J26-J25 -> 1.4 | K43: =SUM(C39:C48,E39:E48,G39:G48,I39:I48) -> 102 | L43: =VLOOKUP(L26,AW$20:AX$40,2,FALSE) -> 5 | M43: =VLOOKUP(M26,BE$20:BF$30,2,FALSE) -> 0.004 | N43: =VLOOKUP(N26,BE$34:BF$44,2,FALSE) -> 0.7 | O43: =VLOOKUP(O26,AW$20:AX$40,2,FALSE) -> 5 | P43: =VLOOKUP(P26,BM$20:BN$30,2,FALSE) -> 1.2 | Q43: =VLOOKUP(Q26,BE$20:BF$30,2,FALSE) -> 0.005 | R43: =VLOOKUP(R26,AW$20:AX$40,2,FALSE) -> 4 | S43: =VLOOKUP(S26,BL$34:BN$44,3,FALSE) -> -0.07 | T43: =VLOOKUP(T26,BE$34:BF$44,2,FALSE) -> 0.6 | U43: =VLOOKUP(U26,AW$20:AX$40,2,FALSE) -> 4 | V43: =VLOOKUP(V26,BM$20:BN$30,2,FALSE) -> 1.3 | W43: =VLOOKUP(W26,BL$34:BN$44,3,FALSE) -> -0.06 | X43: =SUM(L39:L43,O39:O43,R39:R43,U39:U43) -> 66 | Y43: Rank | Z43: =K43+X43 -> 168 | AA43: =B43+Z43 -> 1360 | AB43: 24 | AD43: Transmission | AG43: =AA11 -> 0 | AJ43: 1196 | AK43: 1247 | AL43: 18 | AM43: 38 | AN43: 1196 | AO43: 1198 | AP43: 2 | AZ43: =T25 -> 302.7 | BA43: 302.7 | BB43: 2 | BC43: 2 | BD43: 302.7 | BE43: 303.3 | BF43: 0.6 | BH43: =W25 -> 1.74 | BI43: 1.51 | BJ43: 9 | BK43: 4 | BL43: 1.74 | BM43: 1.79 | BN43: -0.05
C44: 3 | D44: =D27-D26 -> -0.07 | E44: 3 | F44: =F27-F26 -> 0.7 | G44: 2 | H44: =H27-H26 -> 0.005 | I44: 2 | J44: =J27-J26 -> 1.4 | AC44: MPTK | AD44: Exhaust | AG44: =AK11 -> 0 | AJ44: 1198 | AK44: 1249 | AL44: 17 | AM44: 37 | AN44: 1198 | AO44: 1201 | AP44: 3 | AZ44: =T26 -> 303.3 | BA44: 303.3 | BB44: 1 | BC44: 1 | BD44: 303.3 | BH44: =W26 -> 1.68 | BI44: 1.44 | BJ44: 10 | BK44: 5 | BL44: 1.68 | BM44: 1.74 | BN44: -0.06
C45: 4 | D45: -0.11 | E45: 4 | F45: 1.1 | G45: 4 | H45: 0.008 | I45: 4 | J45: 2 | AC45: 1.4 | AD45: Early Tech | AG45: =H11+R11+AB11+AL11 -> 0 | AJ45: 1201 | AK45: 1252 | AL45: 16 | AM45: 36 | AN45: 1201 | AO45: 1203 | AP45: 2
C46: 2 | D46: -0.07 | E46: 2 | F46: 0.7 | G46: 3 | H46: 0.005 | I46: 3 | J46: 1.3 | AC46: 295.8 | AD46: Initial Tech | AG46: =I11+S11+AC11+AM11 -> 0 | AJ46: 1203 | AK46: 1254 | AL46: 15 | AM46: 35 | AN46: 1203 | AO46: 1207 | AP46: 4
C47: 3 | D47: -0.06 | E47: 3 | F47: 0.7 | G47: 2 | H47: 0.005 | I47: 2 | J47: 1.4 | AC47: 1.25 | AD47: Common Tech | AG47: =J11+T11+AD11+AN11 -> 0 | AJ47: 1207 | AK47: 1258 | AL47: 14 | AM47: 34 | AN47: 1207 | AO47: 1210 | AP47: 3
C48: 5 | D48: -0.14 | E48: 5 | F48: 1.5 | G48: 5 | H48: 0.01 | I48: 5 | J48: 2.7 | AC48: 114.3 | AD48: Mid Tech | AG48: =K11+U11+AE11+AO11 -> 0 | AJ48: 1210 | AK48: 1261 | AL48: 13 | AM48: 33 | AN48: 1210 | AO48: 1212 | AP48: 2
B49: TK | D49: =D32-D31 -> -0.18 | F49: =F32-F31 -> 1.8 | H49: =H32-H31 -> 0.013 | J49: =J32-J31 -> 3.4 | AB49: Final | AD49: Rare Tech | AG49: =L11+V11+AF11+AP11 -> 0 | AJ49: 1212 | AK49: 1263 | AL49: 12 | AM49: 32 | AN49: 1212 | AO49: 1217 | AP49: 5
B50: A | C50: =IF(E60>0,C39,"") ->  | D50: =IF(E60>0,D39,"") ->  | E50: =IF(F60>0,E39,"") ->  | F50: =IF(F60>0,F39,"") ->  | G50: =IF(G60>0,G39,"") ->  | H50: =IF(G60>0,H39,"") ->  | I50: =IF(H60>0,I39,"") ->  | J50: =IF(H60>0,J39,"") ->  | K50: =SUM(D50:D59) -> 0 | L50: =IF(P60>0,L39,"") ->  | M50: =IF(P60>0,M39,"") ->  | N50: =IF(P60>0,N39,"") ->  | O50: =IF(Q60>0,O39,"") ->  | P50: =IF(Q60>0,P39,"") ->  | Q50: =IF(Q60>0,Q39,"") ->  | R50: =IF(R60>0,R39,"") ->  | S50: =IF(R60>0,S39,"") ->  | T50: =IF(R60>0,T39,"") ->  | U50: =IF(S60>0,U39,"") ->  | V50: =IF(S60>0,V39,"") ->  | W50: =IF(S60>0,W39,"") ->  | X50: =SUM(S50:S54,W50:W54) -> 0 | Y50: =B39+K50+X50 -> 2.6 | Z50: =K50+X50 -> 0 | AA50: =Z50/Z39 -> 0 | AB50: =Y50+AB39 -> 2.57 | AD50: Advanced Tech | AG50: =M11+W11+AG11+AQ11 -> 0 | AJ50: =G31 -> 1217 | AK50: 1268 | AL50: 11 | AM50: 31 | AN50: 1217 | AO50: 1219 | AP50: 2
B51: S | C51: =IF(E60>1,C40,"") ->  | D51: =IF(E60>1,D40,"") ->  | E51: =IF(F60>1,E40,"") ->  | F51: =IF(F60>1,F40,"") ->  | G51: =IF(G60>1,G40,"") ->  | H51: =IF(G60>1,H40,"") ->  | I51: =IF(H60>1,I40,"") ->  | J51: =IF(H60>1,J40,"") ->  | K51: =SUM(F50:F59) -> 0 | L51: =IF(P60>1,L40,"") ->  | M51: =IF(P60>1,M40,"") ->  | N51: =IF(P60>1,N40,"") ->  | O51: =IF(Q60>1,O40,"") ->  | P51: =IF(Q60>1,P40,"") ->  | Q51: =IF(Q60>1,Q40,"") ->  | R51: =IF(R60>1,R40,"") ->  | S51: =IF(R60>1,S40,"") ->  | T51: =IF(R60>1,T40,"") ->  | U51: =IF(S60>1,U40,"") ->  | V51: =IF(S60>1,V40,"") ->  | W51: =IF(S60>1,W40,"") ->  | X51: =SUM(N50:N54,T50:T54) -> 0 | Y51: =B40+K51+X51 -> 291.4 | Z51: =K51+X51 -> 0 | AA51: =Z51/Z40 -> 0 | AB51: =Y51+AB40 -> 291.8 | AD51: Legendary Tech | AG51: =N11+X11+AH11+AR11 -> 0 | AJ51: =I22 -> 1244 | AK51: 1270 | AL51: 10 | AM51: 20 | AN51: 1244 | AO51: 1245 | AP51: 1
B52: H | C52: =IF(E60>2,C41,"") ->  | D52: =IF(E60>2,D41,"") ->  | E52: =IF(F60>2,E41,"") ->  | F52: =IF(F60>2,F41,"") ->  | G52: =IF(G60>2,G41,"") ->  | H52: =IF(G60>2,H41,"") ->  | I52: =IF(H60>2,I41,"") ->  | J52: =IF(H60>2,J41,"") ->  | K52: =SUM(H50:H59) -> 0 | L52: =IF(P60>2,L41,"") ->  | M52: =IF(P60>2,M41,"") ->  | N52: =IF(P60>2,N41,"") ->  | O52: =IF(Q60>2,O41,"") ->  | P52: =IF(Q60>2,P41,"") ->  | Q52: =IF(Q60>2,Q41,"") ->  | R52: =IF(R60>2,R41,"") ->  | S52: =IF(R60>2,S41,"") ->  | T52: =IF(R60>2,T41,"") ->  | U52: =IF(S60>2,U41,"") ->  | V52: =IF(S60>2,V41,"") ->  | W52: =IF(S60>2,W41,"") ->  | X52: =SUM(M50:M54,Q50:Q54) -> 0 | Y52: =B41+K52+X52 -> 1.3 | Z52: =K52+X52 -> 0 | AA52: =Z52/Z41 -> 0 | AB52: =Y52+AB41 -> 1.303 | AD52: Engines | AG52: =O11+Y11+AI11+AS11 -> 0 | AH52: VT | AJ52: 1245 | AK52: 1271 | AL52: 9 | AM52: 19 | AN52: 1245 | AO52: 1247 | AP52: 2
B53: N | C53: =IF(E60>3,C42,"") ->  | D53: =IF(E60>3,D42,"") ->  | E53: =IF(F60>3,E42,"") ->  | F53: =IF(F60>3,F42,"") ->  | G53: =IF(G60>3,G42,"") ->  | H53: =IF(G60>3,H42,"") ->  | I53: =IF(H60>3,I42,"") ->  | J53: =IF(H60>3,J42,"") ->  | K53: =SUM(J50:J59) -> 0 | L53: =IF(P60>3,L42,"") ->  | M53: =IF(P60>3,M42,"") ->  | N53: =IF(P60>3,N42,"") ->  | O53: =IF(Q60>3,O42,"") ->  | P53: =IF(Q60>3,P42,"") ->  | Q53: =IF(Q60>3,Q42,"") ->  | R53: =IF(R60>3,R42,"") ->  | S53: =IF(R60>3,S42,"") ->  | T53: =IF(R60>3,T42,"") ->  | U53: =IF(S60>3,U42,"") ->  | V53: =IF(S60>3,V42,"") ->  | W53: =IF(S60>3,W42,"") ->  | X53: =SUM(P50:P54,V50:V54) -> 0 | Y53: =B42+K53+X53 -> 27.1 | Z53: =K53+X53 -> 0 | AA53: =Z53/Z42 -> 0 | AB53: =Y53+AB42 -> 27.8 | AJ53: 1247 | AK53: 1272 | AL53: 8 | AM53: 18 | AN53: 1247 | AO53: 1249 | AP53: 2
B54: Rank | C54: =IF(E60>4,C43,"") ->  | D54: =IF(E60>4,D43,"") ->  | E54: =IF(F60>4,E43,"") ->  | F54: =IF(F60>4,F43,"") ->  | G54: =IF(G60>4,G43,"") ->  | H54: =IF(G60>4,H43,"") ->  | I54: =IF(H60>4,I43,"") ->  | J54: =IF(H60>4,J43,"") ->  | K54: =SUM(C50:C59,E50:E59,G50:G59,I50:I59) -> 0 | L54: =IF(P60>4,L43,"") ->  | M54: =IF(P60>4,M43,"") ->  | N54: =IF(P60>4,N43,"") ->  | O54: =IF(Q60>4,O43,"") ->  | P54: =IF(Q60>4,P43,"") ->  | Q54: =IF(Q60>4,Q43,"") ->  | R54: =IF(R60>4,R43,"") ->  | S54: =IF(R60>4,S43,"") ->  | T54: =IF(R60>4,T43,"") ->  | U54: =IF(S60>4,U43,"") ->  | V54: =IF(S60>4,V43,"") ->  | W54: =IF(S60>4,W43,"") ->  | X54: =SUM(L50:L54,O50:O54,R50:R54,U50:U54) -> 0 | Y54: =B43+K54+X54 -> 1192 | Z54: =K54+X54 -> 0 | AA54: =Z54/Z43 -> 0 | AB54: =AB43+Y54 -> 1216 | AJ54: 1249 | AK54: 1275 | AL54: 7 | AM54: 17 | AN54: 1249 | AO54: 1252 | AP54: 3
C55: =IF($E$60>5,C44,"") ->  | D55: =IF($E$60>5,D44,"") ->  | E55: =IF($F$60>5,E44,"") ->  | F55: =IF($F$60>5,F44,"") ->  | G55: =IF($G$60>5,G44,"") ->  | H55: =IF($G$60>5,H44,"") ->  | I55: =IF($H$60>5,I44,"") ->  | J55: =IF($H$60>5,J44,"") ->  | AJ55: 1252 | AK55: 1277 | AL55: 6 | AM55: 16 | AN55: 1252 | AO55: 1254 | AP55: 2
C56: =IF($E$60>6,C45,"") ->  | D56: =IF($E$60>6,D45,"") ->  | E56: =IF($F$60>6,E45,"") ->  | F56: =IF($F$60>6,F45,"") ->  | G56: =IF($G$60>6,G45,"") ->  | H56: =IF($G$60>6,H45,"") ->  | I56: =IF($H$60>6,I45,"") ->  | J56: =IF($H$60>6,J45,"") ->  | AJ56: 1254 | AK56: 1280 | AL56: 5 | AM56: 15 | AN56: 1254 | AO56: 1258 | AP56: 4
C57: =IF($E$60>7,C46,"") ->  | D57: =IF($E$60>7,D46,"") ->  | E57: =IF($F$60>7,E46,"") ->  | F57: =IF($F$60>7,F46,"") ->  | G57: =IF($G$60>7,G46,"") ->  | H57: =IF($G$60>7,H46,"") ->  | I57: =IF($H$60>7,I46,"") ->  | J57: =IF($H$60>7,J46,"") ->  | AJ57: 1258 | AK57: 1284 | AL57: 4 | AM57: 14 | AN57: 1258 | AO57: 1261 | AP57: 3
C58: =IF($E$60>8,C47,"") ->  | D58: =IF($E$60>8,D47,"") ->  | E58: =IF($F$60>8,E47,"") ->  | F58: =IF($F$60>8,F47,"") ->  | G58: =IF($G$60>8,G47,"") ->  | H58: =IF($G$60>8,H47,"") ->  | I58: =IF($H$60>8,I47,"") ->  | J58: =IF($H$60>8,J47,"") ->  | AJ58: 1261 | AK58: 1286 | AL58: 3 | AM58: 13 | AN58: 1261 | AO58: 1263 | AP58: 2
C59: =IF($E$60>9,C48,"") ->  | D59: =IF($E$60>9,D48,"") ->  | E59: =IF($F$60>9,E48,"") ->  | F59: =IF($F$60>9,F48,"") ->  | G59: =IF($G$60>9,G48,"") ->  | H59: =IF($G$60>9,H48,"") ->  | I59: =IF($H$60>9,I48,"") ->  | J59: =IF($H$60>9,J48,"") ->  | AJ59: 1263 | AK59: 1289 | AL59: 2 | AM59: 12 | AN59: 1263 | AO59: 1268 | AP59: 5
A60: INPUT → | X60: Speed+Nitro | Z60: =Z51+Z53 -> 0 | AA60: =Z60/(Z40+Z42) -> 0 | AB60: =IF(AA54=0,"",AA60/AA54-1) ->  | AJ60: =I31 -> 1268 | AK60: 1294 | AL60: 1 | AM60: 11 | AN60: 1268 | AO60: 1270 | AP60: 2
C62: =SUM(C39:C48) -> 26 | D62: =C62/$K43 -> 0.2549019608 | E62: =SUM(E39:E48) -> 26 | F62: =E62/$K43 -> 0.2549019608 | G62: =SUM(G39:G48) -> 25 | H62: =G62/$K43 -> 0.2450980392 | I62: =SUM(I39:I48) -> 25 | J62: =I62/$K43 -> 0.2450980392
E64: 0 | F64: 0 | G64: 0 | H64: 0 | P64: 0 | Q64: 0 | R64: 0 | S64: 0 | AA64: mph
E65: =SUM(D$38,OFFSET(D$38,0,0,E64+1,1)) -> 0 | F65: =SUM(F$38,OFFSET(F$38,0,0,F64+1,1)) -> 0 | G65: =SUM(H$38,OFFSET(H$38,0,0,G64+1,1)) -> 0 | H65: =SUM(J$38,OFFSET(J$38,0,0,H64+1,1)) -> 0 | P65: =SUM(N$38,OFFSET(N$38,0,0,P64+1,1)) -> 0 | Q65: =SUM(P$38,OFFSET(P$38,0,0,Q64+1,1)) -> 0 | R65: =SUM(T$38,OFFSET(T$38,0,0,R64+1,1)) -> 0 | S65: =SUM(V$38,OFFSET(V$38,0,0,S64+1,1)) -> 0 | U65: =P65+Q65+R65+S65+B40+B42+F67+H67+F65+H65 -> 319.6 | W65: Total Spd | AA65: =U65/1.61 -> 198.5093168
E66: =SUM(C$38,OFFSET(C$38,0,0,E64+1,1)) -> 0 | F66: =SUM(E$38,OFFSET(E$38,0,0,F64+1,1)) -> 0 | G66: =SUM(G$38,OFFSET(G$38,0,0,G64+1,1)) -> 0 | H66: =SUM(I$38,OFFSET(I$38,0,0,H64+1,1)) -> 0 | P66: =SUM(L$38,OFFSET(L$38,0,0,P64+1,1)) -> 0 | Q66: =SUM(O$38,OFFSET(O$38,0,0,Q64+1,1)) -> 0 | R66: =SUM(R$38,OFFSET(R$38,0,0,R64+1,1)) -> 0 | S66: =SUM(U$38,OFFSET(U$38,0,0,S64+1,1)) -> 0 | U66: =B43+SUM(E66:H66)+SUM(P66:S66) -> 1192 | W66: Rank
C67: TK Boost | F67: =INDIRECT("R"&(ROW(upg_spd)+1+F64)&"C"&COLUMN(upg_spd),FALSE) -> 0.4 | H67: =INDIRECT("R"&(ROW(upg_ntr)+1+H64)&"C"&COLUMN(upg_ntr),FALSE) -> 0.7 | K67: Start rank =
K68: End rank =
D72: MAX upgrades costs may not be correct. Need to use values from Tbl_Car_Max
K496: Start | Q496: Total Processing Time
K497: End | Q497: =pEnd-pStart -> 00:00:00
L499: Rank | M499: Xspd | N499: Nspd | O499: Spd | P499: A% | Q499: S% | R499: H% | S499: N% | T499: Var | U499: Idx | V499: Tuning | X499: Cnt | Y499: Spd/Rnk
I500: 500
I501: =I500+1 -> 501
I502: =I501+1 -> 502
I503: 503
I504: 504
I505: 505
I506: 506
I507: 507
I508: 508
I509: 509
I510: 510
I511: 511
I512: 512
I513: 513
I514: 514
I515: 515
I516: 516
I517: 517
I518: 518
I519: 519
I520: 520
I521: 521
I522: 522
I523: 523
I524: 524
I525: 525
I526: 526
I527: 527
I528: 528
I529: 529
I530: 530
I531: 531
I532: 532
I533: 533
I534: 534
I535: 535
I536: 536
I537: 537
I538: 538
I539: 539
I540: 540
I541: 541
I542: 542
I543: 543
I544: 544
I545: 545
I546: 546
I547: 547
I548: 548
I549: 549
I550: 550
I551: 551
I552: 552
I553: 553
I554: 554
I555: 555
I556: 556
I557: 557
I558: 558
I559: 559
I560: 560
I561: 561
I562: 562
I563: 563
I564: 564
I565: 565
I566: =I565+1 -> 566
I567: 567
I568: 568
I569: 569
I570: 570
I571: 571
I572: 572
I573: 573
I574: 574
I575: 575
I576: 576
I577: 577
I578: 578
I579: 579
I580: 580
I581: 581
I582: 582
I583: 583
I584: 584
I585: 585
I586: 586
I587: 587
I588: 588
I589: 589
I590: 590
I591: 591
I592: 592
I593: 593
I594: 594
I595: 595
I596: 596
I597: 597
I598: 598
I599: 599
I600: 600
I601: 601
I602: 602
I603: 603
I604: 604
I605: 605
I606: 606
I607: 607
I608: 608
I609: 609
I610: 610
I611: 611
I612: 612
I613: 613
I614: 614
I615: 615
I616: 616
I617: 617
I618: 618
I619: 619
I620: 620
I621: 621
I622: 622
I623: 623
I624: 624
I625: 625
I626: 626
I627: 627
I628: 628
I629: 629
... 1183 more rows

Sheet Suzuki D (hidden)
A1: This sheet was developed by Rookie Vee
B2: Gathering Prices & Parts for the Class D Suzuki GSX-R750 (#0xC4) - Asphalt 8 Airborne
B3: UPGRADE | F3: PRO KITS
B4: Acc | C4: Spd | D4: Hnd | E4: Ntr | F4: Tires | P4: Fork Tubes | Z4: Transmission | AJ4: Exhaust
B5: Cost | F5: Cost | G5: Part | H5: Early | I5: Init | J5: Com | K5: Mid | L5: Rare | M5: Adv | N5: Legn | O5: Engn | P5: Cost | Q5: Part | R5: Early | S5: Init | T5: Com | U5: Mid | V5: Rare | W5: Adv | X5: Legn | Y5: Engn | Z5: Cost | AA5: Part | AB5: Early | AC5: Init | AD5: Com | AE5: Mid | AF5: Rare | AG5: Adv | AH5: Legn | AI5: Engn | AJ5: Cost | AK5: Part | AL5: Early | AM5: Init | AN5: Com | AO5: Mid | AP5: Rare | AQ5: Adv | AR5: Legn | AS5: Engn
A6: TO L1 → | B6: 0.612 | C6: 0.612 | D6: 0.612 | E6: 0.612 | F6: 0.325 | G6: 1 | P6: 0.25 | Q6: 1 | Z6: 0.325 | AA6: 1 | AJ6: 0.275 | AK6: 1
A7: TO L2 → | B7: 1.19 | C7: 1.19 | D7: 1.19 | E7: 1.19 | F7: 1.275 | G7: 1 | P7: 1.025 | Q7: 1 | Z7: 1.275 | AA7: 1 | AJ7: 1.175 | AK7: 1
A8: TO L3 → | B8: 1.87 | C8: 2.465 | D8: 1.87 | E8: 2.465 | F8: 1.925 | G8: 1 | P8: 1.55 | Q8: 1 | Z8: 1.925 | AA8: 1 | AJ8: 1.775 | AK8: 1
A9: TO L4 → | B9: 1.87 | C9: 5.44 | D9: 1.87 | E9: 4.93 | F9: 2.875 | G9: 1 | I9: 1 | P9: 2.3 | Q9: 1 | R9: 1 | Z9: 2.875 | AA9: 1 | AC9: 1 | AJ9: 2.65 | AK9: 1 | AL9: 1
A10: TO PRO → | B10: 3.74 | C10: 7.99 | D10: 3.74 | E10: 5.44 | F10: 4.825 | G10: 1 | J10: 1 | O10: 1 | P10: 3.85 | Q10: 1 | T10: 1 | Y10: 1 | Z10: 4.825 | AA10: 1 | AD10: 1 | AI10: 1 | AJ10: 4.425 | AK10: 1 | AN10: 1 | AS10: 1
A11: TO L6 → | B11: 4.93 | C11: 10.37 | D11: 4.93 | E11: 7.31 | F11: =SUM(INDIRECT("R"&(ROW()-6)&"C"&COLUMN(),FALSE):INDIRECT("R"&(ROW()-6+$P60)&"C"&COLUMN(),FALSE)) -> 0 | G11: =SUM(INDIRECT("R"&(ROW()-6)&"C"&COLUMN(),FALSE):INDIRECT("R"&(ROW()-6+$P60)&"C"&COLUMN(),FALSE)) -> 0 | H11: =SUM(INDIRECT("R"&(ROW()-6)&"C"&COLUMN(),FALSE):INDIRECT("R"&(ROW()-6+$P60)&"C"&COLUMN(),FALSE)) -> 0 | I11: =SUM(INDIRECT("R"&(ROW()-6)&"C"&COLUMN(),FALSE):INDIRECT("R"&(ROW()-6+$P60)&"C"&COLUMN(),FALSE)) -> 0 | J11: =SUM(INDIRECT("R"&(ROW()-6)&"C"&COLUMN(),FALSE):INDIRECT("R"&(ROW()-6+$P60)&"C"&COLUMN(),FALSE)) -> 0 | K11: =SUM(INDIRECT("R"&(ROW()-6)&"C"&COLUMN(),FALSE):INDIRECT("R"&(ROW()-6+$P60)&"C"&COLUMN(),FALSE)) -> 0 | L11: =SUM(INDIRECT("R"&(ROW()-6)&"C"&COLUMN(),FALSE):INDIRECT("R"&(ROW()-6+$P60)&"C"&COLUMN(),FALSE)) -> 0 | M11: =SUM(INDIRECT("R"&(ROW()-6)&"C"&COLUMN(),FALSE):INDIRECT("R"&(ROW()-6+$P60)&"C"&COLUMN(),FALSE)) -> 0 | N11: =SUM(INDIRECT("R"&(ROW()-6)&"C"&COLUMN(),FALSE):INDIRECT("R"&(ROW()-6+$P60)&"C"&COLUMN(),FALSE)) -> 0 | O11: =SUM(INDIRECT("R"&(ROW()-6)&"C"&COLUMN(),FALSE):INDIRECT("R"&(ROW()-6+$P60)&"C"&COLUMN(),FALSE)) -> 0 | P11: =SUM(INDIRECT("R"&(ROW()-6)&"C"&COLUMN(),FALSE):INDIRECT("R"&(ROW()-6+$Q60)&"C"&COLUMN(),FALSE)) -> 0 | Q11: =SUM(INDIRECT("R"&(ROW()-6)&"C"&COLUMN(),FALSE):INDIRECT("R"&(ROW()-6+$Q60)&"C"&COLUMN(),FALSE)) -> 0 | R11: =SUM(INDIRECT("R"&(ROW()-6)&"C"&COLUMN(),FALSE):INDIRECT("R"&(ROW()-6+$Q60)&"C"&COLUMN(),FALSE)) -> 0 | S11: =SUM(INDIRECT("R"&(ROW()-6)&"C"&COLUMN(),FALSE):INDIRECT("R"&(ROW()-6+$Q60)&"C"&COLUMN(),FALSE)) -> 0 | T11: =SUM(INDIRECT("R"&(ROW()-6)&"C"&COLUMN(),FALSE):INDIRECT("R"&(ROW()-6+$Q60)&"C"&COLUMN(),FALSE)) -> 0 | U11: =SUM(INDIRECT("R"&(ROW()-6)&"C"&COLUMN(),FALSE):INDIRECT("R"&(ROW()-6+$Q60)&"C"&COLUMN(),FALSE)) -> 0 | V11: =SUM(INDIRECT("R"&(ROW()-6)&"C"&COLUMN(),FALSE):INDIRECT("R"&(ROW()-6+$Q60)&"C"&COLUMN(),FALSE)) -> 0 | W11: =SUM(INDIRECT("R"&(ROW()-6)&"C"&COLUMN(),FALSE):INDIRECT("R"&(ROW()-6+$Q60)&"C"&COLUMN(),FALSE)) -> 0 | X11: =SUM(INDIRECT("R"&(ROW()-6)&"C"&COLUMN(),FALSE):INDIRECT("R"&(ROW()-6+$Q60)&"C"&COLUMN(),FALSE)) -> 0 | Y11: =SUM(INDIRECT("R"&(ROW()-6)&"C"&COLUMN(),FALSE):INDIRECT("R"&(ROW()-6+$Q60)&"C"&COLUMN(),FALSE)) -> 0 | Z11: =SUM(INDIRECT("R"&(ROW()-6)&"C"&COLUMN(),FALSE):INDIRECT("R"&(ROW()-6+$R60)&"C"&COLUMN(),FALSE)) -> 0 | AA11: =SUM(INDIRECT("R"&(ROW()-6)&"C"&COLUMN(),FALSE):INDIRECT("R"&(ROW()-6+$R60)&"C"&COLUMN(),FALSE)) -> 0 | AB11: =SUM(INDIRECT("R"&(ROW()-6)&"C"&COLUMN(),FALSE):INDIRECT("R"&(ROW()-6+$R60)&"C"&COLUMN(),FALSE)) -> 0 | AC11: =SUM(INDIRECT("R"&(ROW()-6)&"C"&COLUMN(),FALSE):INDIRECT("R"&(ROW()-6+$R60)&"C"&COLUMN(),FALSE)) -> 0 | AD11: =SUM(INDIRECT("R"&(ROW()-6)&"C"&COLUMN(),FALSE):INDIRECT("R"&(ROW()-6+$R60)&"C"&COLUMN(),FALSE)) -> 0 | AE11: =SUM(INDIRECT("R"&(ROW()-6)&"C"&COLUMN(),FALSE):INDIRECT("R"&(ROW()-6+$R60)&"C"&COLUMN(),FALSE)) -> 0 | AF11: =SUM(INDIRECT("R"&(ROW()-6)&"C"&COLUMN(),FALSE):INDIRECT("R"&(ROW()-6+$R60)&"C"&COLUMN(),FALSE)) -> 0 | AG11: =SUM(INDIRECT("R"&(ROW()-6)&"C"&COLUMN(),FALSE):INDIRECT("R"&(ROW()-6+$R60)&"C"&COLUMN(),FALSE)) -> 0 | AH11: =SUM(INDIRECT("R"&(ROW()-6)&"C"&COLUMN(),FALSE):INDIRECT("R"&(ROW()-6+$R60)&"C"&COLUMN(),FALSE)) -> 0 | AI11: =SUM(INDIRECT("R"&(ROW()-6)&"C"&COLUMN(),FALSE):INDIRECT("R"&(ROW()-6+$R60)&"C"&COLUMN(),FALSE)) -> 0 | AJ11: =SUM(INDIRECT("R"&(ROW()-6)&"C"&COLUMN(),FALSE):INDIRECT("R"&(ROW()-6+$S60)&"C"&COLUMN(),FALSE)) -> 0 | AK11: =SUM(INDIRECT("R"&(ROW()-6)&"C"&COLUMN(),FALSE):INDIRECT("R"&(ROW()-6+$S60)&"C"&COLUMN(),FALSE)) -> 0 | AL11: =SUM(INDIRECT("R"&(ROW()-6)&"C"&COLUMN(),FALSE):INDIRECT("R"&(ROW()-6+$S60)&"C"&COLUMN(),FALSE)) -> 0 | AM11: =SUM(INDIRECT("R"&(ROW()-6)&"C"&COLUMN(),FALSE):INDIRECT("R"&(ROW()-6+$S60)&"C"&COLUMN(),FALSE)) -> 0 | AN11: =SUM(INDIRECT("R"&(ROW()-6)&"C"&COLUMN(),FALSE):INDIRECT("R"&(ROW()-6+$S60)&"C"&COLUMN(),FALSE)) -> 0 | AO11: =SUM(INDIRECT("R"&(ROW()-6)&"C"&COLUMN(),FALSE):INDIRECT("R"&(ROW()-6+$S60)&"C"&COLUMN(),FALSE)) -> 0 | AP11: =SUM(INDIRECT("R"&(ROW()-6)&"C"&COLUMN(),FALSE):INDIRECT("R"&(ROW()-6+$S60)&"C"&COLUMN(),FALSE)) -> 0 | AQ11: =SUM(INDIRECT("R"&(ROW()-6)&"C"&COLUMN(),FALSE):INDIRECT("R"&(ROW()-6+$S60)&"C"&COLUMN(),FALSE)) -> 0 | AR11: =SUM(INDIRECT("R"&(ROW()-6)&"C"&COLUMN(),FALSE):INDIRECT("R"&(ROW()-6+$S60)&"C"&COLUMN(),FALSE)) -> 0 | AS11: =SUM(INDIRECT("R"&(ROW()-6)&"C"&COLUMN(),FALSE):INDIRECT("R"&(ROW()-6+$S60)&"C"&COLUMN(),FALSE)) -> 0
A12: TO L7 → | B12: 5.44 | C12: 14.11 | D12: 5.44 | E12: 9.18
A13: TO L8 → | B13: 7.31 | C13: 19.04 | D13: 7.31 | E13: 12.24 | J13: BASIC INSTRUCTIONS: | K13: - Only the values in purple color (tables "Gathering Prices …" and "Gathering Specifications …" plus the irrelevant value at cell AB43) should be entered by the user; all other values are calculated and must not be touched
A14: TO L9 → | B14: 9.18 | C14: 21.42 | D14: 9.18 | E14: 14.62 | K14: - All credit values (columns "Cost") should be entered divided by 1,000 (table "Gathering Prices…")
A15: TO MAX → | B15: 12.24 | C15: 24.48 | D15: 12.24 | E15: 19.04 | K15: - After all necessary data have been entered, use the eight Input cells (row 60) to enter a MAX and PRO configuration.
A16: Totals | B16: =SUMIF(B5:INDIRECT("B"&(E60+5)),">0") -> 0 | C16: =SUMIF(INDIRECT("R"&(ROW()-11)&"C"&COLUMN(),FALSE):INDIRECT("R"&(ROW()-11+F60)&"C"&COLUMN(),FALSE),">0") -> 0 | D16: =SUMIF(INDIRECT("R"&(ROW()-11)&"C"&COLUMN(),FALSE):INDIRECT("R"&(ROW()-11+G60)&"C"&COLUMN(),FALSE),">0") -> 0 | E16: =SUMIF(INDIRECT("R"&(ROW()-11)&"C"&COLUMN(),FALSE):INDIRECT("R"&(ROW()-11+H60)&"C"&COLUMN(),FALSE),">0") -> 0 | K16: - Top speed (MAX+PRO+TK) and respective rank for the configuration entered are shown in the two yellow cells. "Super-charged" speed is NOT supported.
B17: =-SUMIF(B5:INDIRECT("B"&(E60+5)),"<0") -> 0 | C17: =-SUMIF(INDIRECT("R"&(ROW()-12)&"C"&COLUMN(),FALSE):INDIRECT("R"&(ROW()-12+F60)&"C"&COLUMN(),FALSE),"<0") -> 0 | D17: =-SUMIF(INDIRECT("R"&(ROW()-12)&"C"&COLUMN(),FALSE):INDIRECT("R"&(ROW()-12+G60)&"C"&COLUMN(),FALSE),"<0") -> 0 | E17: =-SUMIF(INDIRECT("R"&(ROW()-12)&"C"&COLUMN(),FALSE):INDIRECT("R"&(ROW()-12+H60)&"C"&COLUMN(),FALSE),"<0") -> 0
B18: Gathering Specifications for the Suzuki GSX-R750 - Asphalt 8 Airborne | Z18: TK | AA18: UPG | AC18: PRO | AJ18: UPGRADE RANK | AR18: PRO KIT RANK | AZ18: PRO KIT HANDLING | BH18: PRO KIT NITRO
C19: UPGRADE | L19: PRO KITS | Z19: TRUE | AC19: TIRE | AD19: FKT | AE19: TRA | AF19: EXH | AJ19: table order | AK19: ascending order | AL19: reference position | AM19: rank position | AN19: repeat table order for next vlookup | AO19: next value | AP19: difference | AR19: table order | AS19: ascending order | AT19: reference position | AU19: rank position | AV19: repeat table order for next vlookup | AW19: next value | AX19: difference | AZ19: table order | BA19: ascending order | BB19: reference position | BC19: rank position | BD19: repeat table order for next vlookup | BE19: next value | BF19: difference | BH19: table order | BI19: ascending order | BJ19: reference position | BK19: rank position | BL19: repeat table order for next vlookup | BM19: next value | BN19: difference
B20: Init | C20: Accel | E20: Speed | G20: Handling | I20: Nitro | L20: Tires | O20: Fork Tubes | R20: Transmission | U20: Exhaust | AA20: SPD | AB20: NTR | AC20: SPD | AD20: NTR | AE20: SPD | AF20: NTR | AJ20: =B26 -> 770 | AL20: 41 | AM20: =AL20 -> 41 | AN20: =AJ20 -> 770 | AO20: =VLOOKUP(AM20-1,AM$20:AN$60,2,FALSE) -> 772 | AP20: =AO20-AN20 -> 2 | AR20: 0 | AT20: 21 | AU20: =AT20 -> 21 | AV20: =AR20 -> 0 | AW20: =VLOOKUP(AU20-1,AU$20:AV$40,2,FALSE) -> 4 | AX20: =AW20-AV20 -> 4 | AZ20: =H31 -> 1.35 | BB20: 11 | BC20: =BB20 -> 11 | BD20: =AZ20 -> 1.35 | BE20: =VLOOKUP(BC20-1,BC$20:BD$30,2,FALSE) -> 1.352 | BF20: =BE20-BD20 -> 0.002 | BH20: =J31 -> 42.9 | BJ20: 11 | BK20: =BJ20 -> 11 | BL20: =BH20 -> 42.9 | BM20: =VLOOKUP(BK20-1,BK$20:BL$30,2,FALSE) -> 43.5 | BN20: =BM20-BL20 -> 0.6
C21: Rank | D21: A | E21: Rank | F21: S | G21: Rank | H21: H | I21: Rank | J21: N | L21: Rank | M21: H | N21: S | O21: Rank | P21: N | Q21: H | R21: Rank | S21: A | T21: S | U21: Rank | V21: N | W21: A | Y21: 1 | Z21: S1 | AA21: =SUM(E$38,OFFSET(E$38,0,0,$Y21+1,1))/(SUM(F$38,OFFSET(F$38,0,0,$Y21+1,1))+IF(Z$19,F40,0)) -> 2.222222222 | AB21: =SUM(I$38,OFFSET(I$38,0,0,$Y21+1,1))/(SUM(J$38,OFFSET(J$38,0,0,$Y21+1,1))+IF(Z$19,J40,0)) -> 1.428571429 | AC21: =SUM(L$38,OFFSET(L$38,0,0,$Y21+1,1))/(SUM(N$38,OFFSET(N$38,0,0,$Y21+1,1))) -> 10 | AD21: =SUM(O$38,OFFSET(O$38,0,0,$Y21+1,1))/(SUM(P$38,OFFSET(P$38,0,0,$Y21+1,1))) -> 6.666666667 | AE21: =SUM(R$38,OFFSET(R$38,0,0,$Y21+1,1))/(SUM(T$38,OFFSET(T$38,0,0,$Y21+1,1))) -> 7.5 | AF21: =SUM(U$38,OFFSET(U$38,0,0,$Y21+1,1))/(SUM(V$38,OFFSET(V$38,0,0,$Y21+1,1))) -> 4.285714286 | AJ21: =C22 -> 850 | AK21: =LARGE(AJ$21:AJ$60,AL21) -> 772 | AL21: =AL20-1 -> 40 | AM21: =VLOOKUP(AJ21,AK$21:AL$60,2,FALSE) -> 20 | AN21: 850 | AO21: =VLOOKUP(AM21-1,AM$20:AN$60,2,FALSE) -> 851 | AP21: =AO21-AN21 -> 1 | AR21: =L22 -> 4 | AS21: =LARGE(AR$21:AR$40,AT21) -> 4 | AT21: =AT20-1 -> 20 | AU21: =VLOOKUP(AR21,AS$21:AT$40,2,FALSE) -> 20 | AV21: =AR21 -> 4 | AW21: 8 | AX21: 4 | AZ21: =M22 -> 1.352 | BA21: =LARGE(AZ$21:AZ$30,BB21) -> 1.352 | BB21: =BB20-1 -> 10 | BC21: =VLOOKUP(AZ21,BA$21:BB$30,2,FALSE) -> 10 | BD21: =AZ21 -> 1.352 | BE21: 1.355 | BF21: 0.003 | BH21: =P22 -> 43.5 | BI21: =LARGE(BH$21:BH$30,BJ21) -> 43.5 | BJ21: =BJ20-1 -> 10 | BK21: =VLOOKUP(BH21,BI$21:BJ$30,2,FALSE) -> 10 | BL21: =BH21 -> 43.5 | BM21: 44.4 | BN21: 0.9
A22: LEVEL 1 → | B22: 3.3 | C22: 850 | D22: 3.26 | E22: 772 | F22: 230.4 | G22: 888 | H22: 1.303 | I22: 811 | J22: 29.3 | K22: A | L22: 4 | M22: 1.352 | N22: 239 | O22: 57 | P22: 43.5 | Q22: 1.371 | R22: 30 | S22: 2.38 | T22: 242.1 | U22: 83 | V22: 48.7 | W22: 2.06 | Y22: 2 | Z22: S2 | AA22: =SUM(E$38,OFFSET(E$38,0,0,$Y22+1,1))/(SUM(F$38,OFFSET(F$38,0,0,$Y22+1,1))+IF(Z$19,F41,0)) -> 3.076923077 | AB22: =SUM(I$38,OFFSET(I$38,0,0,$Y22+1,1))/(SUM(J$38,OFFSET(J$38,0,0,$Y22+1,1))+IF(Z$19,J41,0)) -> 1.904761905 | AC22: =SUM(L$38,OFFSET(L$38,0,0,$Y22+1,1))/(SUM(N$38,OFFSET(N$38,0,0,$Y22+1,1))) -> 8.888888889 | AD22: =SUM(O$38,OFFSET(O$38,0,0,$Y22+1,1))/(SUM(P$38,OFFSET(P$38,0,0,$Y22+1,1))) -> 5.333333333 | AE22: =SUM(R$38,OFFSET(R$38,0,0,$Y22+1,1))/(SUM(T$38,OFFSET(T$38,0,0,$Y22+1,1))) -> 8.888888889 | AF22: =SUM(U$38,OFFSET(U$38,0,0,$Y22+1,1))/(SUM(V$38,OFFSET(V$38,0,0,$Y22+1,1))) -> 5 | AJ22: 851 | AK22: =LARGE(AJ$21:AJ$60,AL22) -> 774 | AL22: 39 | AM22: =VLOOKUP(AJ22,AK$21:AL$60,2,FALSE) -> 19 | AN22: 851 | AO22: =VLOOKUP(AM22-1,AM$20:AN$60,2,FALSE) -> 853 | AP22: 2 | AR22: =L23 -> 8 | AS22: 8 | AT22: 19 | AU22: 19 | AV22: =AR22 -> 8 | AW22: 14 | AX22: 6 | AZ22: =M23 -> 1.355 | BA22: 1.355 | BB22: =BB21-1 -> 9 | BC22: 9 | BD22: 1.355 | BE22: 1.359 | BF22: 0.004 | BH22: =P23 -> 44.4 | BI22: 44.4 | BJ22: =BJ21-1 -> 9 | BK22: 9 | BL22: 44.4 | BM22: 45.4 | BN22: 1
A23: LEVEL 2 → | B23: 230 | C23: 851 | D23: 3.21 | E23: 774 | F23: 230.9 | G23: 890 | H23: 1.305 | I23: 813 | J23: 30 | K23: S | L23: 8 | M23: 1.355 | N23: 239.5 | O23: 61 | P23: 44.4 | Q23: 1.374 | R23: 35 | S23: 2.33 | T23: 242.6 | U23: 88 | V23: 49.6 | W23: 2.01 | Y23: 3 | Z23: S3 | AA23: 2.857142857 | AB23: 1.714285714 | AC23: =SUM(L$38,OFFSET(L$38,0,0,$Y23+1,1))/(SUM(N$38,OFFSET(N$38,0,0,$Y23+1,1))) -> 9.333333333 | AD23: =SUM(O$38,OFFSET(O$38,0,0,$Y23+1,1))/(SUM(P$38,OFFSET(P$38,0,0,$Y23+1,1))) -> 5.6 | AE23: =SUM(R$38,OFFSET(R$38,0,0,$Y23+1,1))/(SUM(T$38,OFFSET(T$38,0,0,$Y23+1,1))) -> 8.666666667 | AF23: 5 | AJ23: 853 | AK23: 776 | AL23: 38 | AM23: 18 | AN23: 853 | AO23: 857 | AP23: 4 | AR23: =L24 -> 14 | AS23: 14 | AT23: 18 | AU23: 18 | AV23: 14 | AW23: 20 | AX23: 6 | AZ23: =M24 -> 1.359 | BA23: 1.359 | BB23: 8 | BC23: 8 | BD23: 1.359 | BE23: 1.363 | BF23: 0.004 | BH23: =P24 -> 45.4 | BI23: 45.4 | BJ23: 8 | BK23: 8 | BL23: 45.4 | BM23: 46.6 | BN23: 1.2
A24: LEVEL 3 → | B24: 1.3 | C24: 853 | D24: 3.17 | E24: 776 | F24: 231.3 | G24: 892 | H24: 1.308 | I24: 815 | J24: 30.7 | K24: H | L24: 14 | M24: 1.359 | N24: 240.1 | O24: 67 | P24: 45.4 | Q24: 1.377 | R24: 40 | S24: 2.26 | T24: 243.2 | U24: 93 | V24: 50.6 | W24: 1.94 | Y24: 4 | Z24: S4 | AA24: 3.333333333 | AB24: 2 | AC24: =SUM(L$38,OFFSET(L$38,0,0,$Y24+1,1))/(SUM(N$38,OFFSET(N$38,0,0,$Y24+1,1))) -> 9.090909091 | AD24: =SUM(O$38,OFFSET(O$38,0,0,$Y24+1,1))/(SUM(P$38,OFFSET(P$38,0,0,$Y24+1,1))) -> 5.405405405 | AE24: =SUM(R$38,OFFSET(R$38,0,0,$Y24+1,1))/(SUM(T$38,OFFSET(T$38,0,0,$Y24+1,1))) -> 8.260869565 | AF24: 5 | AJ24: 857 | AK24: 780 | AL24: 37 | AM24: 17 | AN24: 857 | AO24: 861 | AP24: 4 | AR24: =L25 -> 20 | AS24: 20 | AT24: 17 | AU24: 17 | AV24: 20 | AW24: 27 | AX24: 7 | AZ24: =M25 -> 1.363 | BA24: 1.363 | BB24: 7 | BC24: 7 | BD24: 1.363 | BE24: 1.368 | BF24: 0.005 | BH24: =P25 -> 46.6 | BI24: 46.6 | BJ24: 7 | BK24: 7 | BL24: 46.6 | BM24: 48 | BN24: 1.4
A25: LEVEL 4 → | B25: 28.6 | C25: 857 | D25: 3.08 | E25: 780 | F25: 232.1 | G25: 896 | H25: 1.313 | I25: 819 | J25: 32.1 | K25: N | L25: 20 | M25: 1.363 | N25: 240.8 | O25: 73 | P25: 46.6 | Q25: 1.381 | R25: 46 | S25: 2.19 | T25: 244 | U25: 99 | V25: 51.8 | W25: 1.87 | Y25: 5 | Z25: PRO | AA25: 3.58974359 | AB25: 2.03125 | AC25: =SUM(L$38,OFFSET(L$38,0,0,$Y25+1,1))/(SUM(N$38,OFFSET(N$38,0,0,$Y25+1,1))) -> 8.709677419 | AD25: =SUM(O$38,OFFSET(O$38,0,0,$Y25+1,1))/(SUM(P$38,OFFSET(P$38,0,0,$Y25+1,1))) -> 5.294117647 | AE25: =SUM(R$38,OFFSET(R$38,0,0,$Y25+1,1))/(SUM(T$38,OFFSET(T$38,0,0,$Y25+1,1))) -> 8.387096774 | AF25: 5 | AJ25: 861 | AK25: 784 | AL25: 36 | AM25: 16 | AN25: 861 | AO25: 865 | AP25: 4 | AR25: =L26 -> 27 | AS25: 27 | AT25: 16 | AU25: 16 | AV25: 27 | AW25: 30 | AX25: 3 | AZ25: =M26 -> 1.368 | BA25: 1.368 | BB25: 6 | BC25: 6 | BD25: 1.368 | BE25: 1.371 | BF25: 0.003 | BH25: =P26 -> 48 | BI25: 48 | BJ25: 6 | BK25: 6 | BL25: 48 | BM25: 48.7 | BN25: 0.7
A26: PRO → | B26: 770 | C26: 861 | D26: 2.99 | E26: 784 | F26: 233 | G26: 900 | H26: 1.317 | I26: 822 | J26: 33.6 | K26: Rank | L26: 27 | M26: 1.368 | N26: 241.7 | O26: 80 | P26: 48 | Q26: 1.386 | R26: 53 | S26: 2.1 | T26: 244.8 | U26: 106 | V26: 53.2 | W26: 1.78 | X26: =COUNT(C22:C31) -> 10 | Y26: 6 | Z26: S6 | AA26: 3.529411765 | AB26: 2 | AJ26: 865 | AK26: 788 | AL26: 35 | AM26: 15 | AN26: 865 | AO26: 871 | AP26: 6 | AR26: =O22 -> 57 | AS26: 30 | AT26: 15 | AU26: 10 | AV26: 57 | AW26: 61 | AX26: 4 | AZ26: =Q22 -> 1.371 | BA26: 1.371 | BB26: 5 | BC26: 5 | BD26: 1.371 | BE26: 1.374 | BF26: 0.003 | BH26: =V22 -> 48.7 | BI26: 48.7 | BJ26: 5 | BK26: 5 | BL26: 48.7 | BM26: 49.6 | BN26: 0.9
A27: LEVEL 6 → | C27: 865 | D27: 2.9 | E27: 788 | F27: 233.9 | G27: 904 | H27: 1.322 | I27: 826 | J27: 35 | X27: =COUNT(L22:L26) -> 5 | Y27: 7 | Z27: S7 | AA27: 3.833333333 | AB27: 2.3 | AJ27: 871 | AK27: 793 | AL27: 34 | AM27: 14 | AN27: 871 | AO27: 875 | AP27: 4 | AR27: =O23 -> 61 | AS27: 35 | AT27: 14 | AU27: 9 | AV27: 61 | AW27: 67 | AX27: 6 | AZ27: =Q23 -> 1.374 | BA27: 1.374 | BB27: 4 | BC27: 4 | BD27: 1.374 | BE27: 1.377 | BF27: 0.003 | BH27: =V23 -> 49.6 | BI27: 49.6 | BJ27: 4 | BK27: 4 | BL27: 49.6 | BM27: 50.6 | BN27: 1
A28: LEVEL 7 → | C28: 871 | D28: 2.77 | E28: 793 | F28: 235.1 | G28: 910 | H28: 1.33 | I28: 832 | J28: 37.1 | Y28: 8 | Z28: S8 | AA28: 3.913043478 | AB28: 2.368421053 | AJ28: 875 | AK28: 797 | AL28: 33 | AM28: 13 | AN28: 875 | AO28: 879 | AP28: 4 | AR28: =O24 -> 67 | AS28: 40 | AT28: 13 | AU28: 8 | AV28: 67 | AW28: 73 | AX28: 6 | AZ28: =Q24 -> 1.377 | BA28: 1.377 | BB28: 3 | BC28: 3 | BD28: 1.377 | BE28: 1.381 | BF28: 0.004 | BH28: =V24 -> 50.6 | BI28: 50.6 | BJ28: 3 | BK28: 3 | BL28: 50.6 | BM28: 51.8 | BN28: 1.2
A29: LEVEL 8 → | C29: 875 | D29: 2.68 | E29: 797 | F29: 236 | G29: 913 | H29: 1.335 | I29: 836 | J29: 38.6 | Y29: 9 | Z29: S9 | AA29: 3.604651163 | AB29: 2.167832168 | AJ29: 879 | AK29: 801 | AL29: 32 | AM29: 12 | AN29: 879 | AO29: 886 | AP29: 7 | AR29: =O25 -> 73 | AS29: 46 | AT29: 12 | AU29: 7 | AV29: 73 | AW29: 80 | AX29: 7 | AZ29: =Q25 -> 1.381 | BA29: 1.381 | BB29: 2 | BC29: 2 | BD29: 1.381 | BE29: 1.386 | BF29: 0.005 | BH29: =V25 -> 51.8 | BI29: 51.8 | BJ29: 2 | BK29: 2 | BL29: 51.8 | BM29: 53.2 | BN29: 1.4
A30: LEVEL 9 → | C30: 879 | D30: 2.6 | E30: 801 | F30: 236.9 | G30: 917 | H30: 1.34 | I30: 840 | J30: 40 | Y30: 10 | Z30: MAX | AA30: 3.644859813 | AB30: 2.191011236 | AJ30: =C31 -> 886 | AK30: 809 | AL30: 31 | AM30: 11 | AN30: 886 | AO30: 888 | AP30: 2 | AR30: =O26 -> 80 | AS30: 53 | AT30: 11 | AU30: 6 | AV30: 80 | AW30: 83 | AX30: 3 | AZ30: =Q26 -> 1.386 | BA30: 1.386 | BB30: 1 | BC30: 1 | BD30: 1.386 | BH30: =V26 -> 53.2 | BI30: 53.2 | BJ30: 1 | BK30: 1 | BL30: 53.2
A31: MAX | C31: 886 | D31: 2.42 | E31: 809 | F31: 238.6 | G31: 925 | H31: 1.35 | I31: 848 | J31: 42.9 | Z31: Points of added rank per km/h of added speed | AJ31: =E22 -> 772 | AK31: 811 | AL31: 30 | AM31: 40 | AN31: 772 | AO31: 774 | AP31: 2 | AR31: =R22 -> 30 | AS31: 57 | AT31: 10 | AU31: 15 | AV31: 30 | AW31: 35 | AX31: 5
A32: MAX+TK→ | B32: TK | D32: 2.2 | F32: 240.7 | H32: 1.363 | J32: 46.4 | Z32: The smaller the values, the better for speed | AJ32: 774 | AK32: 813 | AL32: 29 | AM32: 39 | AN32: 774 | AO32: 776 | AP32: 2 | AR32: =R23 -> 35 | AS32: 61 | AT32: 9 | AU32: 14 | AV32: 35 | AW32: 40 | AX32: 5 | AZ32: PRO KIT SPEED | BH32: PRO KIT ACCELERATION
AJ33: 776 | AK33: 815 | AL33: 28 | AM33: 38 | AN33: 776 | AO33: 780 | AP33: 4 | AR33: =R24 -> 40 | AS33: 67 | AT33: 8 | AU33: 13 | AV33: 40 | AW33: 46 | AX33: 6 | AZ33: table order | BA33: ascending order | BB33: reference position | BC33: rank position | BD33: repeat table order for next vlookup | BE33: next value | BF33: difference | BH33: table order | BI33: ascending order | BJ33: reference position | BK33: rank position | BL33: repeat table order for next vlookup | BM33: next value | BN33: difference
AH34: Tokens | AJ34: 780 | AK34: 819 | AL34: 27 | AM34: 37 | AN34: 780 | AO34: 784 | AP34: 4 | AR34: =R25 -> 46 | AS34: 73 | AT34: 7 | AU34: 12 | AV34: 46 | AW34: 53 | AX34: 7 | AZ34: =F31 -> 238.6 | BB34: 11 | BC34: =BB34 -> 11 | BD34: =AZ34 -> 238.6 | BE34: =VLOOKUP(BC34-1,BC$34:BD$44,2,FALSE) -> 239 | BF34: =BE34-BD34 -> 0.4 | BH34: =D31 -> 2.42 | BJ34: 0 | BK34: =BJ34 -> 0 | BL34: =BH34 -> 2.42 | BM34: =VLOOKUP(BK34-1,BK$34:BL$44,2,FALSE) ->  | BN34: =BL34-BM34 -> 
B35: Tuning the Suzuki GSX-R750 - ASPHALT 8 AIRBORNE | Z35: S+N | AA35: =B40+B42+Z51+Z53 -> 258.6 | AB35: =AA35+AB40+AB42 -> 259.7 | AD35: TOTAL Cost | AF35: =AF36+AF37 -> 322633 | AJ35: 784 | AK35: 822 | AL35: 26 | AM35: 36 | AN35: 784 | AO35: 788 | AP35: 4 | AR35: =R26 -> 53 | AS35: 80 | AT35: 6 | AU35: 11 | AV35: 53 | AW35: 57 | AX35: 4 | AZ35: =N22 -> 239 | BA35: =LARGE(AZ$35:AZ$44,BB35) -> 239 | BB35: =BB34-1 -> 10 | BC35: =VLOOKUP(AZ35,BA$35:BB$44,2,FALSE) -> 10 | BD35: =AZ35 -> 239 | BE35: 239.5 | BF35: 0.5 | BH35: =S22 -> 2.38 | BI35: =LARGE(BH$35:BH$44,BJ35) -> 2.38 | BJ35: =BJ34+1 -> 1 | BK35: =VLOOKUP(BH35,BI$35:BJ$44,2,FALSE) -> 1 | BL35: =BH35 -> 2.38 | BM35: 2.42 | BN35: =BL35-BM35 -> -0.04
C36: UPGRADE | L36: PRO KITS | Z36: var | AA36: =_xlfn.VAR.P(AA50:AA53) -> 0 | AD36: UPG T Cost | AF36: =SUMIF(B6:E15,">0")*1000 -> 280908 | AH36: =-SUMIF(B6:E15,"<0")*1000 -> 0 | AJ36: 788 | AK36: 826 | AL36: 25 | AM36: 35 | AN36: 788 | AO36: 793 | AP36: 5 | AR36: =U22 -> 83 | AS36: 83 | AT36: 5 | AU36: 5 | AV36: 83 | AW36: 88 | AX36: 5 | AZ36: =N23 -> 239.5 | BA36: 239.5 | BB36: =BB35-1 -> 9 | BC36: 9 | BD36: 239.5 | BE36: 240.1 | BF36: 0.6 | BH36: =S23 -> 2.33 | BI36: 2.33 | BJ36: =BJ35+1 -> 2 | BK36: 2 | BL36: 2.33 | BM36: 2.38 | BN36: =BL36-BM36 -> -0.05
B37: Init | C37: Accel | E37: Speed | G37: Handling | I37: Nitro | K37: MAX | L37: Tires | O37: Fork Tubes | R37: Transmission | U37: Exhaust | X37: PRO | Y37: End | Z37: MAX | AA37: Final | AB37: TK | AD37: PRO T Cost | AF37: =SUM(F6:F10,P6:P10,Z6:Z10,AJ6:AJ10)*1000 -> 41725 | AJ37: 793 | AK37: 832 | AL37: 24 | AM37: 34 | AN37: 793 | AO37: 797 | AP37: 4 | AR37: =U23 -> 88 | AS37: 88 | AT37: 4 | AU37: 4 | AV37: 88 | AW37: 93 | AX37: 5 | AZ37: =N24 -> 240.1 | BA37: 240.1 | BB37: 8 | BC37: 8 | BD37: 240.1 | BE37: 240.8 | BF37: 0.7 | BH37: =S24 -> 2.26 | BI37: 2.26 | BJ37: 3 | BK37: 3 | BL37: 2.26 | BM37: 2.33 | BN37: -0.07
C38: Rank | D38: A | E38: Rank | F38: S | G38: Rank | H38: H | I38: Rank | J38: N | L38: Rank | M38: H | N38: S | O38: Rank | P38: N | Q38: H | R38: Rank | S38: A | T38: S | U38: Rank | V38: N | W38: A | Z38: PRO | AA38: Value | AB38: Boost | AD38: Current Cost | AF38: =AF39+AF40 -> 0 | AJ38: 797 | AK38: 836 | AL38: 23 | AM38: 33 | AN38: 797 | AO38: 801 | AP38: 4 | AR38: =U24 -> 93 | AS38: 93 | AT38: 3 | AU38: 3 | AV38: 93 | AW38: 99 | AX38: 6 | AZ38: =N25 -> 240.8 | BA38: 240.8 | BB38: 7 | BC38: 7 | BD38: 240.8 | BE38: 241.7 | BF38: 0.9 | BH38: =S25 -> 2.19 | BI38: 2.19 | BJ38: 4 | BK38: 4 | BL38: 2.19 | BM38: 2.26 | BN38: -0.07
B39: =B22 -> 3.3 | C39: =VLOOKUP(C22,AO$20:AP$60,2,FALSE) -> 2 | D39: =D22-B22 -> -0.04 | E39: =VLOOKUP(E22,AO$20:AP$60,2,FALSE) -> 2 | F39: =F22-B23 -> 0.4 | G39: =VLOOKUP(G22,AO$20:AP$60,2,FALSE) -> 2 | H39: =H22-B24 -> 0.003 | I39: =VLOOKUP(I22,AO$20:AP$60,2,FALSE) -> 2 | J39: =J22-B25 -> 0.7 | K39: =SUM(D39:D48) -> -0.88 | L39: =VLOOKUP(L22,AW$20:AX$40,2,FALSE) -> 4 | M39: =VLOOKUP(M22,BE$20:BF$30,2,FALSE) -> 0.002 | N39: =VLOOKUP(N22,BE$34:BF$44,2,FALSE) -> 0.4 | O39: =VLOOKUP(O22,AW$20:AX$40,2,FALSE) -> 4 | P39: =VLOOKUP(P22,BM$20:BN$30,2,FALSE) -> 0.6 | Q39: =VLOOKUP(Q22,BE$20:BF$30,2,FALSE) -> 0.003 | R39: =VLOOKUP(R22,AW$20:AX$40,2,FALSE) -> 3 | S39: =VLOOKUP(S22,BL$34:BN$44,3,FALSE) -> -0.04 | T39: =VLOOKUP(T22,BE$34:BF$44,2,FALSE) -> 0.4 | U39: =VLOOKUP(U22,AW$20:AX$40,2,FALSE) -> 3 | V39: =VLOOKUP(V22,BM$20:BN$30,2,FALSE) -> 0.7 | W39: =VLOOKUP(W22,BL$34:BN$44,3,FALSE) -> -0.04 | X39: =SUM(S39:S43,W39:W43) -> -0.64 | Y39: A | Z39: =K39+X39 -> -1.52 | AA39: =B39+Z39 -> 1.78 | AB39: =INDIRECT("R"&(ROW(upg_acc)+1+E60)&"C"&COLUMN(upg_acc),FALSE) -> -0.04 | AD39: UPG C Cost | AF39: =SUM(B16:E16)*1000 -> 0 | AH39: =SUM(B17:E17)*1000 -> 0 | AJ39: 801 | AK39: 840 | AL39: 22 | AM39: 32 | AN39: 801 | AO39: 809 | AP39: 8 | AR39: =U25 -> 99 | AS39: 99 | AT39: 2 | AU39: 2 | AV39: 99 | AW39: 106 | AX39: 7 | AZ39: =N26 -> 241.7 | BA39: 241.7 | BB39: 6 | BC39: 6 | BD39: 241.7 | BE39: 242.1 | BF39: 0.4 | BH39: =S26 -> 2.1 | BI39: 2.1 | BJ39: 5 | BK39: 5 | BL39: 2.1 | BM39: 2.19 | BN39: -0.09
B40: =B23 -> 230 | C40: =VLOOKUP(C23,AO$20:AP$60,2,FALSE) -> 1 | D40: =D23-D22 -> -0.05 | E40: =VLOOKUP(E23,AO$20:AP$60,2,FALSE) -> 2 | F40: =F23-F22 -> 0.5 | G40: =VLOOKUP(G23,AO$20:AP$60,2,FALSE) -> 2 | H40: =H23-H22 -> 0.002 | I40: =VLOOKUP(I23,AO$20:AP$60,2,FALSE) -> 2 | J40: =J23-J22 -> 0.7 | K40: =SUM(F39:F48) -> 8.6 | L40: =VLOOKUP(L23,AW$20:AX$40,2,FALSE) -> 4 | M40: =VLOOKUP(M23,BE$20:BF$30,2,FALSE) -> 0.003 | N40: =VLOOKUP(N23,BE$34:BF$44,2,FALSE) -> 0.5 | O40: =VLOOKUP(O23,AW$20:AX$40,2,FALSE) -> 4 | P40: =VLOOKUP(P23,BM$20:BN$30,2,FALSE) -> 0.9 | Q40: =VLOOKUP(Q23,BE$20:BF$30,2,FALSE) -> 0.003 | R40: =VLOOKUP(R23,AW$20:AX$40,2,FALSE) -> 5 | S40: =VLOOKUP(S23,BL$34:BN$44,3,FALSE) -> -0.05 | T40: =VLOOKUP(T23,BE$34:BF$44,2,FALSE) -> 0.5 | U40: =VLOOKUP(U23,AW$20:AX$40,2,FALSE) -> 5 | V40: =VLOOKUP(V23,BM$20:BN$30,2,FALSE) -> 0.9 | W40: =VLOOKUP(W23,BL$34:BN$44,3,FALSE) -> -0.05 | X40: =SUM(N39:N43,T39:T43) -> 6.2 | Y40: S | Z40: =K40+X40 -> 14.8 | AA40: =B40+Z40 -> 244.8 | AB40: =INDIRECT("R"&(ROW(upg_spd)+1+F60)&"C"&COLUMN(upg_spd),FALSE) -> 0.4 | AD40: PRO C Cost | AF40: =SUM(F11+P11+Z11+AJ11)*1000 -> 0 | AJ40: =E31 -> 809 | AK40: 848 | AL40: 21 | AM40: 31 | AN40: 809 | AO40: 811 | AP40: 2 | AR40: =U26 -> 106 | AS40: 106 | AT40: 1 | AU40: 1 | AV40: 106 | AZ40: =T22 -> 242.1 | BA40: 242.1 | BB40: 5 | BC40: 5 | BD40: 242.1 | BE40: 242.6 | BF40: 0.5 | BH40: =W22 -> 2.06 | BI40: 2.06 | BJ40: 6 | BK40: 6 | BL40: 2.06 | BM40: 2.1 | BN40: -0.04
B41: =B24 -> 1.3 | C41: 2 | D41: =D24-D23 -> -0.04 | E41: 2 | F41: =F24-F23 -> 0.4 | G41: 2 | H41: =H24-H23 -> 0.003 | I41: 2 | J41: =J24-J23 -> 0.7 | K41: =SUM(H39:H48) -> 0.05 | L41: =VLOOKUP(L24,AW$20:AX$40,2,FALSE) -> 6 | M41: =VLOOKUP(M24,BE$20:BF$30,2,FALSE) -> 0.004 | N41: =VLOOKUP(N24,BE$34:BF$44,2,FALSE) -> 0.6 | O41: =VLOOKUP(O24,AW$20:AX$40,2,FALSE) -> 6 | P41: =VLOOKUP(P24,BM$20:BN$30,2,FALSE) -> 1 | Q41: =VLOOKUP(Q24,BE$20:BF$30,2,FALSE) -> 0.003 | R41: =VLOOKUP(R24,AW$20:AX$40,2,FALSE) -> 5 | S41: =VLOOKUP(S24,BL$34:BN$44,3,FALSE) -> -0.07 | T41: =VLOOKUP(T24,BE$34:BF$44,2,FALSE) -> 0.6 | U41: =VLOOKUP(U24,AW$20:AX$40,2,FALSE) -> 5 | V41: =VLOOKUP(V24,BM$20:BN$30,2,FALSE) -> 1 | W41: =VLOOKUP(W24,BL$34:BN$44,3,FALSE) -> -0.07 | X41: =SUM(M39:M43,Q39:Q43) -> 0.036 | Y41: H | Z41: =K41+X41 -> 0.086 | AA41: =B41+Z41 -> 1.386 | AB41: =INDIRECT("R"&(ROW(upg_hnd)+1+G60)&"C"&COLUMN(upg_hnd),FALSE) -> 0.003 | AD41: Tires | AG41: =G11 -> 0 | AJ41: =G22 -> 888 | AK41: 850 | AL41: 20 | AM41: 10 | AN41: 888 | AO41: 890 | AP41: 2 | AZ41: =T23 -> 242.6 | BA41: 242.6 | BB41: 4 | BC41: 4 | BD41: 242.6 | BE41: 243.2 | BF41: 0.6 | BH41: =W23 -> 2.01 | BI41: 2.01 | BJ41: 7 | BK41: 7 | BL41: 2.01 | BM41: 2.06 | BN41: -0.05
B42: =B25 -> 28.6 | C42: 4 | D42: =D25-D24 -> -0.09 | E42: 4 | F42: =F25-F24 -> 0.8 | G42: 4 | H42: =H25-H24 -> 0.005 | I42: 4 | J42: =J25-J24 -> 1.4 | K42: =SUM(J39:J48) -> 14.3 | L42: =VLOOKUP(L25,AW$20:AX$40,2,FALSE) -> 6 | M42: =VLOOKUP(M25,BE$20:BF$30,2,FALSE) -> 0.004 | N42: =VLOOKUP(N25,BE$34:BF$44,2,FALSE) -> 0.7 | O42: =VLOOKUP(O25,AW$20:AX$40,2,FALSE) -> 6 | P42: =VLOOKUP(P25,BM$20:BN$30,2,FALSE) -> 1.2 | Q42: =VLOOKUP(Q25,BE$20:BF$30,2,FALSE) -> 0.004 | R42: =VLOOKUP(R25,AW$20:AX$40,2,FALSE) -> 6 | S42: =VLOOKUP(S25,BL$34:BN$44,3,FALSE) -> -0.07 | T42: =VLOOKUP(T25,BE$34:BF$44,2,FALSE) -> 0.8 | U42: =VLOOKUP(U25,AW$20:AX$40,2,FALSE) -> 6 | V42: =VLOOKUP(V25,BM$20:BN$30,2,FALSE) -> 1.2 | W42: =VLOOKUP(W25,BL$34:BN$44,3,FALSE) -> -0.07 | X42: =SUM(P39:P43,V39:V43) -> 10.3 | Y42: N | Z42: =K42+X42 -> 24.6 | AA42: =B42+Z42 -> 53.2 | AB42: =INDIRECT("R"&(ROW(upg_ntr)+1+H60)&"C"&COLUMN(upg_ntr),FALSE) -> 0.7 | AD42: Fork Tubes | AG42: =Q11 -> 0 | AJ42: 890 | AK42: 851 | AL42: 19 | AM42: 9 | AN42: 890 | AO42: 892 | AP42: 2 | AZ42: =T24 -> 243.2 | BA42: 243.2 | BB42: 3 | BC42: 3 | BD42: 243.2 | BE42: 244 | BF42: 0.8 | BH42: =W24 -> 1.94 | BI42: 1.94 | BJ42: 8 | BK42: 8 | BL42: 1.94 | BM42: 2.01 | BN42: -0.07
B43: =B26 -> 770 | C43: 4 | D43: =D26-D25 -> -0.09 | E43: 4 | F43: =F26-F25 -> 0.9 | G43: 4 | H43: =H26-H25 -> 0.004 | I43: 3 | J43: =J26-J25 -> 1.5 | K43: =SUM(C39:C48,E39:E48,G39:G48,I39:I48) -> 155 | L43: =VLOOKUP(L26,AW$20:AX$40,2,FALSE) -> 7 | M43: =VLOOKUP(M26,BE$20:BF$30,2,FALSE) -> 0.005 | N43: =VLOOKUP(N26,BE$34:BF$44,2,FALSE) -> 0.9 | O43: =VLOOKUP(O26,AW$20:AX$40,2,FALSE) -> 7 | P43: =VLOOKUP(P26,BM$20:BN$30,2,FALSE) -> 1.4 | Q43: =VLOOKUP(Q26,BE$20:BF$30,2,FALSE) -> 0.005 | R43: =VLOOKUP(R26,AW$20:AX$40,2,FALSE) -> 7 | S43: =VLOOKUP(S26,BL$34:BN$44,3,FALSE) -> -0.09 | T43: =VLOOKUP(T26,BE$34:BF$44,2,FALSE) -> 0.8 | U43: =VLOOKUP(U26,AW$20:AX$40,2,FALSE) -> 7 | V43: =VLOOKUP(V26,BM$20:BN$30,2,FALSE) -> 1.4 | W43: =VLOOKUP(W26,BL$34:BN$44,3,FALSE) -> -0.09 | X43: =SUM(L39:L43,O39:O43,R39:R43,U39:U43) -> 106 | Y43: Rank | Z43: =K43+X43 -> 261 | AA43: =B43+Z43 -> 1031 | AB43: 35 | AD43: Transmission | AG43: =AA11 -> 0 | AJ43: 892 | AK43: 853 | AL43: 18 | AM43: 8 | AN43: 892 | AO43: 896 | AP43: 4 | AZ43: =T25 -> 244 | BA43: 244 | BB43: 2 | BC43: 2 | BD43: 244 | BE43: 244.8 | BF43: 0.8 | BH43: =W25 -> 1.87 | BI43: 1.87 | BJ43: 9 | BK43: 9 | BL43: 1.87 | BM43: 1.94 | BN43: -0.07
C44: 4 | D44: =D27-D26 -> -0.09 | E44: 4 | F44: =F27-F26 -> 0.9 | G44: 4 | H44: =H27-H26 -> 0.005 | I44: 4 | J44: =J27-J26 -> 1.4 | AC44: MPTK | AD44: Exhaust | AG44: =AK11 -> 0 | AJ44: 896 | AK44: 857 | AL44: 17 | AM44: 7 | AN44: 896 | AO44: 900 | AP44: 4 | AZ44: =T26 -> 244.8 | BA44: 244.8 | BB44: 1 | BC44: 1 | BD44: 244.8 | BH44: =W26 -> 1.78 | BI44: 1.78 | BJ44: 10 | BK44: 10 | BL44: 1.78 | BM44: 1.87 | BN44: -0.09
C45: 6 | D45: -0.13 | E45: 5 | F45: 1.2 | G45: 6 | H45: 0.008 | I45: 6 | J45: 2.1 | AC45: 1.4 | AD45: Early Tech | AG45: =H11+R11+AB11+AL11 -> 0 | AJ45: 900 | AK45: 861 | AL45: 16 | AM45: 6 | AN45: 900 | AO45: 904 | AP45: 4
C46: 4 | D46: -0.09 | E46: 4 | F46: 0.9 | G46: 3 | H46: 0.005 | I46: 4 | J46: 1.5 | AC46: 295.8 | AD46: Initial Tech | AG46: =I11+S11+AC11+AM11 -> 0 | AJ46: 904 | AK46: 865 | AL46: 15 | AM46: 5 | AN46: 904 | AO46: 910 | AP46: 6
C47: 4 | D47: -0.08 | E47: 4 | F47: 0.9 | G47: 4 | H47: 0.005 | I47: 4 | J47: 1.4 | AC47: 1.25 | AD47: Common Tech | AG47: =J11+T11+AD11+AN11 -> 0 | AJ47: 910 | AK47: 871 | AL47: 14 | AM47: 4 | AN47: 910 | AO47: 913 | AP47: 3
C48: 7 | D48: -0.18 | E48: 8 | F48: 1.7 | G48: 8 | H48: 0.01 | I48: 8 | J48: 2.9 | AC48: 114.3 | AD48: Mid Tech | AG48: =K11+U11+AE11+AO11 -> 0 | AJ48: 913 | AK48: 875 | AL48: 13 | AM48: 3 | AN48: 913 | AO48: 917 | AP48: 4
B49: TK | D49: =D32-D31 -> -0.22 | F49: =F32-F31 -> 2.1 | H49: =H32-H31 -> 0.013 | J49: =J32-J31 -> 3.5 | AB49: Final | AD49: Rare Tech | AG49: =L11+V11+AF11+AP11 -> 0 | AJ49: 917 | AK49: 879 | AL49: 12 | AM49: 2 | AN49: 917 | AO49: 925 | AP49: 8
B50: A | C50: =IF(E60>0,C39,"") ->  | D50: =IF(E60>0,D39,"") ->  | E50: =IF(F60>0,E39,"") ->  | F50: =IF(F60>0,F39,"") ->  | G50: =IF(G60>0,G39,"") ->  | H50: =IF(G60>0,H39,"") ->  | I50: =IF(H60>0,I39,"") ->  | J50: =IF(H60>0,J39,"") ->  | K50: =SUM(D50:D59) -> 0 | L50: =IF(P60>0,L39,"") ->  | M50: =IF(P60>0,M39,"") ->  | N50: =IF(P60>0,N39,"") ->  | O50: =IF(Q60>0,O39,"") ->  | P50: =IF(Q60>0,P39,"") ->  | Q50: =IF(Q60>0,Q39,"") ->  | R50: =IF(R60>0,R39,"") ->  | S50: =IF(R60>0,S39,"") ->  | T50: =IF(R60>0,T39,"") ->  | U50: =IF(S60>0,U39,"") ->  | V50: =IF(S60>0,V39,"") ->  | W50: =IF(S60>0,W39,"") ->  | X50: =SUM(S50:S54,W50:W54) -> 0 | Y50: =B39+K50+X50 -> 3.3 | Z50: =K50+X50 -> 0 | AA50: =Z50/Z39 -> 0 | AB50: =Y50+AB39 -> 3.26 | AD50: Advanced Tech | AG50: =M11+W11+AG11+AQ11 -> 0 | AJ50: =G31 -> 925 | AK50: 886 | AL50: 11 | AM50: 1 | AN50: 925
B51: S | C51: =IF(E60>1,C40,"") ->  | D51: =IF(E60>1,D40,"") ->  | E51: =IF(F60>1,E40,"") ->  | F51: =IF(F60>1,F40,"") ->  | G51: =IF(G60>1,G40,"") ->  | H51: =IF(G60>1,H40,"") ->  | I51: =IF(H60>1,I40,"") ->  | J51: =IF(H60>1,J40,"") ->  | K51: =SUM(F50:F59) -> 0 | L51: =IF(P60>1,L40,"") ->  | M51: =IF(P60>1,M40,"") ->  | N51: =IF(P60>1,N40,"") ->  | O51: =IF(Q60>1,O40,"") ->  | P51: =IF(Q60>1,P40,"") ->  | Q51: =IF(Q60>1,Q40,"") ->  | R51: =IF(R60>1,R40,"") ->  | S51: =IF(R60>1,S40,"") ->  | T51: =IF(R60>1,T40,"") ->  | U51: =IF(S60>1,U40,"") ->  | V51: =IF(S60>1,V40,"") ->  | W51: =IF(S60>1,W40,"") ->  | X51: =SUM(N50:N54,T50:T54) -> 0 | Y51: =B40+K51+X51 -> 230 | Z51: =K51+X51 -> 0 | AA51: =Z51/Z40 -> 0 | AB51: =Y51+AB40 -> 230.4 | AD51: Legendary Tech | AG51: =N11+X11+AH11+AR11 -> 0 | AJ51: =I22 -> 811 | AK51: 888 | AL51: 10 | AM51: 30 | AN51: 811 | AO51: 813 | AP51: 2
B52: H | C52: =IF(E60>2,C41,"") ->  | D52: =IF(E60>2,D41,"") ->  | E52: =IF(F60>2,E41,"") ->  | F52: =IF(F60>2,F41,"") ->  | G52: =IF(G60>2,G41,"") ->  | H52: =IF(G60>2,H41,"") ->  | I52: =IF(H60>2,I41,"") ->  | J52: =IF(H60>2,J41,"") ->  | K52: =SUM(H50:H59) -> 0 | L52: =IF(P60>2,L41,"") ->  | M52: =IF(P60>2,M41,"") ->  | N52: =IF(P60>2,N41,"") ->  | O52: =IF(Q60>2,O41,"") ->  | P52: =IF(Q60>2,P41,"") ->  | Q52: =IF(Q60>2,Q41,"") ->  | R52: =IF(R60>2,R41,"") ->  | S52: =IF(R60>2,S41,"") ->  | T52: =IF(R60>2,T41,"") ->  | U52: =IF(S60>2,U41,"") ->  | V52: =IF(S60>2,V41,"") ->  | W52: =IF(S60>2,W41,"") ->  | X52: =SUM(M50:M54,Q50:Q54) -> 0 | Y52: =B41+K52+X52 -> 1.3 | Z52: =K52+X52 -> 0 | AA52: =Z52/Z41 -> 0 | AB52: =Y52+AB41 -> 1.303 | AD52: Engines | AG52: =O11+Y11+AI11+AS11 -> 0 | AH52: 4S | AJ52: 813 | AK52: 890 | AL52: 9 | AM52: 29 | AN52: 813 | AO52: 815 | AP52: 2
B53: N | C53: =IF(E60>3,C42,"") ->  | D53: =IF(E60>3,D42,"") ->  | E53: =IF(F60>3,E42,"") ->  | F53: =IF(F60>3,F42,"") ->  | G53: =IF(G60>3,G42,"") ->  | H53: =IF(G60>3,H42,"") ->  | I53: =IF(H60>3,I42,"") ->  | J53: =IF(H60>3,J42,"") ->  | K53: =SUM(J50:J59) -> 0 | L53: =IF(P60>3,L42,"") ->  | M53: =IF(P60>3,M42,"") ->  | N53: =IF(P60>3,N42,"") ->  | O53: =IF(Q60>3,O42,"") ->  | P53: =IF(Q60>3,P42,"") ->  | Q53: =IF(Q60>3,Q42,"") ->  | R53: =IF(R60>3,R42,"") ->  | S53: =IF(R60>3,S42,"") ->  | T53: =IF(R60>3,T42,"") ->  | U53: =IF(S60>3,U42,"") ->  | V53: =IF(S60>3,V42,"") ->  | W53: =IF(S60>3,W42,"") ->  | X53: =SUM(P50:P54,V50:V54) -> 0 | Y53: =B42+K53+X53 -> 28.6 | Z53: =K53+X53 -> 0 | AA53: =Z53/Z42 -> 0 | AB53: =Y53+AB42 -> 29.3 | AJ53: 815 | AK53: 892 | AL53: 8 | AM53: 28 | AN53: 815 | AO53: 819 | AP53: 4
B54: Rank | C54: =IF(E60>4,C43,"") ->  | D54: =IF(E60>4,D43,"") ->  | E54: =IF(F60>4,E43,"") ->  | F54: =IF(F60>4,F43,"") ->  | G54: =IF(G60>4,G43,"") ->  | H54: =IF(G60>4,H43,"") ->  | I54: =IF(H60>4,I43,"") ->  | J54: =IF(H60>4,J43,"") ->  | K54: =SUM(C50:C59,E50:E59,G50:G59,I50:I59) -> 0 | L54: =IF(P60>4,L43,"") ->  | M54: =IF(P60>4,M43,"") ->  | N54: =IF(P60>4,N43,"") ->  | O54: =IF(Q60>4,O43,"") ->  | P54: =IF(Q60>4,P43,"") ->  | Q54: =IF(Q60>4,Q43,"") ->  | R54: =IF(R60>4,R43,"") ->  | S54: =IF(R60>4,S43,"") ->  | T54: =IF(R60>4,T43,"") ->  | U54: =IF(S60>4,U43,"") ->  | V54: =IF(S60>4,V43,"") ->  | W54: =IF(S60>4,W43,"") ->  | X54: =SUM(L50:L54,O50:O54,R50:R54,U50:U54) -> 0 | Y54: =B43+K54+X54 -> 770 | Z54: =K54+X54 -> 0 | AA54: =Z54/Z43 -> 0 | AB54: =AB43+Y54 -> 805 | AJ54: 819 | AK54: 896 | AL54: 7 | AM54: 27 | AN54: 819 | AO54: 822 | AP54: 3
C55: =IF($E$60>5,C44,"") ->  | D55: =IF($E$60>5,D44,"") ->  | E55: =IF($F$60>5,E44,"") ->  | F55: =IF($F$60>5,F44,"") ->  | G55: =IF($G$60>5,G44,"") ->  | H55: =IF($G$60>5,H44,"") ->  | I55: =IF($H$60>5,I44,"") ->  | J55: =IF($H$60>5,J44,"") ->  | AJ55: 822 | AK55: 900 | AL55: 6 | AM55: 26 | AN55: 822 | AO55: 826 | AP55: 4
C56: =IF($E$60>6,C45,"") ->  | D56: =IF($E$60>6,D45,"") ->  | E56: =IF($F$60>6,E45,"") ->  | F56: =IF($F$60>6,F45,"") ->  | G56: =IF($G$60>6,G45,"") ->  | H56: =IF($G$60>6,H45,"") ->  | I56: =IF($H$60>6,I45,"") ->  | J56: =IF($H$60>6,J45,"") ->  | AJ56: 826 | AK56: 904 | AL56: 5 | AM56: 25 | AN56: 826 | AO56: 832 | AP56: 6
C57: =IF($E$60>7,C46,"") ->  | D57: =IF($E$60>7,D46,"") ->  | E57: =IF($F$60>7,E46,"") ->  | F57: =IF($F$60>7,F46,"") ->  | G57: =IF($G$60>7,G46,"") ->  | H57: =IF($G$60>7,H46,"") ->  | I57: =IF($H$60>7,I46,"") ->  | J57: =IF($H$60>7,J46,"") ->  | AJ57: 832 | AK57: 910 | AL57: 4 | AM57: 24 | AN57: 832 | AO57: 836 | AP57: 4
C58: =IF($E$60>8,C47,"") ->  | D58: =IF($E$60>8,D47,"") ->  | E58: =IF($F$60>8,E47,"") ->  | F58: =IF($F$60>8,F47,"") ->  | G58: =IF($G$60>8,G47,"") ->  | H58: =IF($G$60>8,H47,"") ->  | I58: =IF($H$60>8,I47,"") ->  | J58: =IF($H$60>8,J47,"") ->  | AJ58: 836 | AK58: 913 | AL58: 3 | AM58: 23 | AN58: 836 | AO58: 840 | AP58: 4
C59: =IF($E$60>9,C48,"") ->  | D59: =IF($E$60>9,D48,"") ->  | E59: =IF($F$60>9,E48,"") ->  | F59: =IF($F$60>9,F48,"") ->  | G59: =IF($G$60>9,G48,"") ->  | H59: =IF($G$60>9,H48,"") ->  | I59: =IF($H$60>9,I48,"") ->  | J59: =IF($H$60>9,J48,"") ->  | AJ59: 840 | AK59: 917 | AL59: 2 | AM59: 22 | AN59: 840 | AO59: 848 | AP59: 8
A60: INPUT → | X60: Speed+Nitro | Z60: =Z51+Z53 -> 0 | AA60: =Z60/(Z40+Z42) -> 0 | AB60: =IF(AA54=0,"",AA60/AA54-1) ->  | AJ60: =I31 -> 848 | AK60: 925 | AL60: 1 | AM60: 21 | AN60: 848 | AO60: 850 | AP60: 2
C62: =SUM(C39:C48) -> 38 | D62: =C62/$K43 -> 0.2451612903 | E62: =SUM(E39:E48) -> 39 | F62: =E62/$K43 -> 0.2516129032 | G62: =SUM(G39:G48) -> 39 | H62: =G62/$K43 -> 0.2516129032 | I62: =SUM(I39:I48) -> 39 | J62: =I62/$K43 -> 0.2516129032
E64: 0 | F64: 0 | G64: 0 | H64: 0 | P64: 0 | Q64: 0 | R64: 0 | S64: 0 | AA64: mph
E65: =SUM(D$38,OFFSET(D$38,0,0,E64+1,1)) -> 0 | F65: =SUM(F$38,OFFSET(F$38,0,0,F64+1,1)) -> 0 | G65: =SUM(H$38,OFFSET(H$38,0,0,G64+1,1)) -> 0 | H65: =SUM(J$38,OFFSET(J$38,0,0,H64+1,1)) -> 0 | P65: =SUM(N$38,OFFSET(N$38,0,0,P64+1,1)) -> 0 | Q65: =SUM(P$38,OFFSET(P$38,0,0,Q64+1,1)) -> 0 | R65: =SUM(T$38,OFFSET(T$38,0,0,R64+1,1)) -> 0 | S65: =SUM(V$38,OFFSET(V$38,0,0,S64+1,1)) -> 0 | U65: =P65+Q65+R65+S65+B40+B42+F67+H67+F65+H65 -> 259.7 | W65: Total Spd | AA65: =U65/1.61 -> 161.3043478
E66: =SUM(C$38,OFFSET(C$38,0,0,E64+1,1)) -> 0 | F66: =SUM(E$38,OFFSET(E$38,0,0,F64+1,1)) -> 0 | G66: =SUM(G$38,OFFSET(G$38,0,0,G64+1,1)) -> 0 | H66: =SUM(I$38,OFFSET(I$38,0,0,H64+1,1)) -> 0 | P66: =SUM(L$38,OFFSET(L$38,0,0,P64+1,1)) -> 0 | Q66: =SUM(O$38,OFFSET(O$38,0,0,Q64+1,1)) -> 0 | R66: =SUM(R$38,OFFSET(R$38,0,0,R64+1,1)) -> 0 | S66: =SUM(U$38,OFFSET(U$38,0,0,S64+1,1)) -> 0 | U66: =B43+SUM(E66:H66)+SUM(P66:S66) -> 770 | W66: Rank
C67: TK Boost | F67: =INDIRECT("R"&(ROW(upg_spd)+1+F64)&"C"&COLUMN(upg_spd),FALSE) -> 0.4 | H67: =INDIRECT("R"&(ROW(upg_ntr)+1+H64)&"C"&COLUMN(upg_ntr),FALSE) -> 0.7 | K67: Start rank =
K68: End rank =
D72: MAX upgrades costs may not be correct. Need to use values from Tbl_Car_Max
K496: Start | Q496: Total Processing Time
K497: End | Q497: =pEnd-pStart -> 00:00:00
L499: Rank | M499: Xspd | N499: Nspd | O499: Spd | P499: A% | Q499: S% | R499: H% | S499: N% | T499: Var | U499: Idx | V499: Tuning | X499: Cnt | Y499: Spd/Rnk
I500: 500
I501: =I500+1 -> 501
I502: =I501+1 -> 502
I503: 503
I504: 504
I505: 505
I506: 506
I507: 507
I508: 508
I509: 509
I510: 510
I511: 511
I512: 512
I513: 513
I514: 514
I515: 515
I516: 516
I517: 517
I518: 518
I519: 519
I520: 520
I521: 521
I522: 522
I523: 523
I524: 524
I525: 525
I526: 526
I527: 527
I528: 528
I529: 529
I530: 530
I531: 531
I532: 532
I533: 533
I534: 534
I535: 535
I536: 536
I537: 537
I538: 538
I539: 539
I540: 540
I541: 541
I542: 542
I543: 543
I544: 544
I545: 545
I546: 546
I547: 547
I548: 548
I549: 549
I550: 550
I551: 551
I552: 552
I553: 553
I554: 554
I555: 555
I556: 556
I557: 557
I558: 558
I559: 559
I560: 560
I561: 561
I562: 562
I563: 563
I564: 564
I565: 565
I566: =I565+1 -> 566
I567: 567
I568: 568
I569: 569
I570: 570
I571: 571
I572: 572
I573: 573
I574: 574
I575: 575
I576: 576
I577: 577
I578: 578
I579: 579
I580: 580
I581: 581
I582: 582
I583: 583
I584: 584
I585: 585
I586: 586
I587: 587
I588: 588
I589: 589
I590: 590
I591: 591
I592: 592
I593: 593
I594: 594
I595: 595
I596: 596
I597: 597
I598: 598
I599: 599
I600: 600
I601: 601
I602: 602
I603: 603
I604: 604
I605: 605
I606: 606
I607: 607
I608: 608
I609: 609
I610: 610
I611: 611
I612: 612
I613: 613
I614: 614
I615: 615
I616: 616
I617: 617
I618: 618
I619: 619
I620: 620
I621: 621
I622: 622
I623: 623
I624: 624
I625: 625
I626: 626
I627: 627
I628: 628
I629: 629
... 1183 more rows

Sheet MP4-31 (hidden)
B2: Gathering Prices & Parts for the Class X McLaren MP4-31 (#0xB8) - Asphalt 8 Airborne
B3: UPGRADE | F3: PRO KITS
B4: Acc | C4: Spd | D4: Hnd | E4: Ntr | F4: Tires | M4: Suspension | T4: Drivetrain | AA4: Exhaust
B5: Cost | F5: Cost | G5: Part | H5: Early | I5: Init | J5: Mid | K5: Adv | L5: Engn | M5: Cost | N5: Part | O5: Early | P5: Init | Q5: Mid | R5: Adv | S5: Engn | T5: Cost | U5: Part | V5: Early | W5: Init | X5: Mid | Y5: Adv | Z5: Engn | AA5: Cost | AB5: Part | AC5: Early | AD5: Init | AE5: Mid | AF5: Adv | AG5: Engn
A6: TO L1 → | F6: 12.05 | G6: 1 | L6: 1 | M6: 8.88 | N6: 1 | S6: 1 | T6: 12.05 | U6: 1 | Z6: 1 | AA6: 9.525 | AB6: 1 | AG6: 1
A7: TO L2 → | F7: 15.075 | G7: 1 | L7: 1 | M7: 11.1 | N7: 1 | S7: 1 | T7: 15.075 | U7: 1 | Z7: 1 | AA7: 11.9 | AB7: 1 | AG7: 1
A8: TO L3 → | F8: 18.85 | G8: 2 | J8: 1 | L8: 1 | M8: 13.875 | N8: 2 | Q8: 1 | S8: 1 | T8: 18.85 | U8: 2 | X8: 1 | Z8: 1 | AA8: 14.875 | AB8: 2 | AE8: 1 | AG8: 1
A9: TO L4 → | F9: 23.575 | G9: 2 | J9: 1 | L9: 1 | M9: 17.35 | N9: 2 | Q9: 1 | S9: 1 | T9: 23.575 | U9: 2 | X9: 1 | Z9: 1 | AA9: 18.6 | AB9: 2 | AE9: 1 | AG9: 1
A10: TO L5 → | F10: 29.475 | G10: 2 | J10: 2 | L10: 1 | M10: 21.7 | N10: 2 | Q10: 2 | S10: 1 | T10: 29.475 | U10: 2 | X10: 2 | Z10: 1 | AA10: 23.25 | AB10: 2 | AE10: 2 | AG10: 1
A11: TO L6 → | F11: 36.85 | G11: 3 | J11: 2 | L11: 1 | M11: 27.125 | N11: 3 | Q11: 2 | S11: 1 | T11: 36.85 | U11: 3 | X11: 2 | Z11: 1 | AA11: 29.075 | AB11: 3 | AE11: 2 | AG11: 1
A12: TO L7 → | F12: 46.075 | G12: 3 | K12: 2 | L12: 1 | M12: 33.9 | N12: 3 | R12: 2 | S12: 1 | T12: 46.075 | U12: 3 | Y12: 2 | Z12: 1 | AA12: 36.35 | AB12: 3 | AF12: 2 | AG12: 1
A13: TO L8 → | F13: 57.6 | G13: 3 | K13: 2 | L13: 2 | M13: 42.375 | N13: 3 | R13: 2 | S13: 2 | T13: 57.6 | U13: 3 | Y13: 2 | Z13: 2 | AA13: 45.45 | AB13: 3 | AF13: 2 | AG13: 2
A14: TO L9 → | F14: 72 | G14: 3 | K14: 2 | L14: 2 | M14: 52.975 | N14: 3 | R14: 2 | S14: 2 | T14: 72 | U14: 3 | Y14: 2 | Z14: 2 | AA14: 56.825 | AB14: 3 | AF14: 2 | AG14: 2
A15: TO PRO → | F15: 90 | G15: 3 | K15: 2 | L15: 2 | M15: 66.225 | N15: 3 | R15: 2 | S15: 2 | T15: 90 | U15: 3 | Y15: 2 | Z15: 2 | AA15: 71.025 | AB15: 3 | AF15: 2 | AG15: 2
A16: Totals | B16: =SUMIF(B5:INDIRECT("B"&(E60+5)),">0") -> 0 | C16: =SUMIF(INDIRECT("R"&(ROW()-6)&"C"&COLUMN(),FALSE):INDIRECT("R"&(ROW()-6+F60)&"C"&COLUMN(),FALSE),">0") -> 0 | D16: =SUMIF(INDIRECT("R"&(ROW()-6)&"C"&COLUMN(),FALSE):INDIRECT("R"&(ROW()-6+G60)&"C"&COLUMN(),FALSE),">0") -> 0 | E16: =SUMIF(INDIRECT("R"&(ROW()-6)&"C"&COLUMN(),FALSE):INDIRECT("R"&(ROW()-6+H60)&"C"&COLUMN(),FALSE),">0") -> 0 | F16: =SUM(INDIRECT("R"&(ROW()-11)&"C"&COLUMN(),FALSE):INDIRECT("R"&(ROW()-11+$P60)&"C"&COLUMN(),FALSE)) -> 0 | G16: =SUM(INDIRECT("R"&(ROW()-11)&"C"&COLUMN(),FALSE):INDIRECT("R"&(ROW()-11+$P60)&"C"&COLUMN(),FALSE)) -> 0 | H16: =SUM(INDIRECT("R"&(ROW()-11)&"C"&COLUMN(),FALSE):INDIRECT("R"&(ROW()-11+$P60)&"C"&COLUMN(),FALSE)) -> 0 | I16: =SUM(INDIRECT("R"&(ROW()-11)&"C"&COLUMN(),FALSE):INDIRECT("R"&(ROW()-11+$P60)&"C"&COLUMN(),FALSE)) -> 0 | J16: =SUM(INDIRECT("R"&(ROW()-11)&"C"&COLUMN(),FALSE):INDIRECT("R"&(ROW()-11+$P60)&"C"&COLUMN(),FALSE)) -> 0 | K16: =SUM(INDIRECT("R"&(ROW()-11)&"C"&COLUMN(),FALSE):INDIRECT("R"&(ROW()-11+$P60)&"C"&COLUMN(),FALSE)) -> 0 | L16: =SUM(INDIRECT("R"&(ROW()-11)&"C"&COLUMN(),FALSE):INDIRECT("R"&(ROW()-11+$P60)&"C"&COLUMN(),FALSE)) -> 0 | M16: =SUM(INDIRECT("R"&(ROW()-11)&"C"&COLUMN(),FALSE):INDIRECT("R"&(ROW()-11+$Q60)&"C"&COLUMN(),FALSE)) -> 0 | N16: =SUM(INDIRECT("R"&(ROW()-11)&"C"&COLUMN(),FALSE):INDIRECT("R"&(ROW()-11+$Q60)&"C"&COLUMN(),FALSE)) -> 0 | O16: =SUM(INDIRECT("R"&(ROW()-11)&"C"&COLUMN(),FALSE):INDIRECT("R"&(ROW()-11+$Q60)&"C"&COLUMN(),FALSE)) -> 0 | P16: =SUM(INDIRECT("R"&(ROW()-11)&"C"&COLUMN(),FALSE):INDIRECT("R"&(ROW()-11+$Q60)&"C"&COLUMN(),FALSE)) -> 0 | Q16: =SUM(INDIRECT("R"&(ROW()-11)&"C"&COLUMN(),FALSE):INDIRECT("R"&(ROW()-11+$Q60)&"C"&COLUMN(),FALSE)) -> 0 | R16: =SUM(INDIRECT("R"&(ROW()-11)&"C"&COLUMN(),FALSE):INDIRECT("R"&(ROW()-11+$Q60)&"C"&COLUMN(),FALSE)) -> 0 | S16: =SUM(INDIRECT("R"&(ROW()-11)&"C"&COLUMN(),FALSE):INDIRECT("R"&(ROW()-11+$Q60)&"C"&COLUMN(),FALSE)) -> 0 | T16: =SUM(INDIRECT("R"&(ROW()-11)&"C"&COLUMN(),FALSE):INDIRECT("R"&(ROW()-11+$R60)&"C"&COLUMN(),FALSE)) -> 0 | U16: =SUM(INDIRECT("R"&(ROW()-11)&"C"&COLUMN(),FALSE):INDIRECT("R"&(ROW()-11+$R60)&"C"&COLUMN(),FALSE)) -> 0 | V16: =SUM(INDIRECT("R"&(ROW()-11)&"C"&COLUMN(),FALSE):INDIRECT("R"&(ROW()-11+$R60)&"C"&COLUMN(),FALSE)) -> 0 | W16: =SUM(INDIRECT("R"&(ROW()-11)&"C"&COLUMN(),FALSE):INDIRECT("R"&(ROW()-11+$R60)&"C"&COLUMN(),FALSE)) -> 0 | X16: =SUM(INDIRECT("R"&(ROW()-11)&"C"&COLUMN(),FALSE):INDIRECT("R"&(ROW()-11+$R60)&"C"&COLUMN(),FALSE)) -> 0 | Y16: =SUM(INDIRECT("R"&(ROW()-11)&"C"&COLUMN(),FALSE):INDIRECT("R"&(ROW()-11+$R60)&"C"&COLUMN(),FALSE)) -> 0 | Z16: =SUM(INDIRECT("R"&(ROW()-11)&"C"&COLUMN(),FALSE):INDIRECT("R"&(ROW()-11+$R60)&"C"&COLUMN(),FALSE)) -> 0 | AA16: =SUM(INDIRECT("R"&(ROW()-11)&"C"&COLUMN(),FALSE):INDIRECT("R"&(ROW()-11+$S60)&"C"&COLUMN(),FALSE)) -> 0 | AB16: =SUM(INDIRECT("R"&(ROW()-11)&"C"&COLUMN(),FALSE):INDIRECT("R"&(ROW()-11+$S60)&"C"&COLUMN(),FALSE)) -> 0 | AC16: =SUM(INDIRECT("R"&(ROW()-11)&"C"&COLUMN(),FALSE):INDIRECT("R"&(ROW()-11+$S60)&"C"&COLUMN(),FALSE)) -> 0 | AD16: =SUM(INDIRECT("R"&(ROW()-11)&"C"&COLUMN(),FALSE):INDIRECT("R"&(ROW()-11+$S60)&"C"&COLUMN(),FALSE)) -> 0 | AE16: =SUM(INDIRECT("R"&(ROW()-11)&"C"&COLUMN(),FALSE):INDIRECT("R"&(ROW()-11+$S60)&"C"&COLUMN(),FALSE)) -> 0 | AF16: =SUM(INDIRECT("R"&(ROW()-11)&"C"&COLUMN(),FALSE):INDIRECT("R"&(ROW()-11+$S60)&"C"&COLUMN(),FALSE)) -> 0 | AG16: =SUM(INDIRECT("R"&(ROW()-11)&"C"&COLUMN(),FALSE):INDIRECT("R"&(ROW()-11+$S60)&"C"&COLUMN(),FALSE)) -> 0
B17: =-SUMIF(B5:INDIRECT("B"&(E60+5)),"<0") -> 0 | C17: =-SUMIF(INDIRECT("R"&(ROW()-7)&"C"&COLUMN(),FALSE):INDIRECT("R"&(ROW()-7+F60)&"C"&COLUMN(),FALSE),"<0") -> 0 | D17: =-SUMIF(INDIRECT("R"&(ROW()-7)&"C"&COLUMN(),FALSE):INDIRECT("R"&(ROW()-7+G60)&"C"&COLUMN(),FALSE),"<0") -> 0 | E17: =-SUMIF(INDIRECT("R"&(ROW()-7)&"C"&COLUMN(),FALSE):INDIRECT("R"&(ROW()-7+H60)&"C"&COLUMN(),FALSE),"<0") -> 0
B18: Gathering Specifications for the McLaren MP4-31 - Asphalt 8 Airborne
C19: UPGRADE | L19: PRO KITS
B20: Init | C20: Accel | E20: Speed | G20: Handling | I20: Nitro | L20: Tires | O20: Suspension | R20: Drivetrain | U20: Exhaust
B21: L0 | C21: Rank | D21: A | E21: Rank | F21: S | G21: Rank | H21: H | I21: Rank | J21: N | L21: Rank | M21: H | N21: S | O21: Rank | P21: N | Q21: H | R21: Rank | S21: A | T21: S | U21: Rank | V21: N | W21: A
A22: LEVEL 1 → | B22: 2.7 | K22: A | L22: 1627 | M22: 1.302 | N22: 433.3 | O22: 1680 | P22: 25.2 | Q22: 1.345 | R22: 1722 | S22: 2.67 | T22: 458.8 | U22: 1774 | V22: 35.8 | W22: 2.04
A23: LEVEL 2 → | B23: 432.2 | K23: S | L23: 1630 | M23: 1.304 | N23: 434.8 | O23: 1682 | P23: 25.7 | Q23: 1.348 | R23: 1724 | S23: 2.64 | T23: 460 | U23: 1776 | V23: 36.3 | W23: 2.01
A24: LEVEL 3 → | B24: 1.3 | K24: H | L24: 1634 | M24: 1.308 | N24: 436.6 | O24: 1685 | P24: 26.5 | Q24: 1.351 | R24: 1728 | S24: 2.59 | T24: 461.8 | U24: 1779 | V24: 37.1 | W24: 1.97
A25: LEVEL 4 → | B25: 24.6 | K25: N | L25: 1637 | M25: 1.31 | N25: 438 | O25: 1688 | P25: 27.1 | Q25: 1.353 | R25: 1731 | S25: 2.56 | T25: 463.2 | U25: 1782 | V25: 37.7 | W25: 1.94
A26: LEVEL 5 → | B26: 1624 | K26: Rank | L26: 1643 | M26: 1.315 | N26: 440.9 | O26: 1692 | P26: 28.3 | Q26: 1.358 | R26: 1737 | S26: 2.48 | T26: 466.1 | U26: 1786 | V26: 38.9 | W26: 1.86
A27: LEVEL 6 → | L27: 1649 | M27: 1.32 | N27: 443.9 | O27: 1697 | P27: 29.5 | Q27: 1.363 | R27: 1743 | S27: 2.41 | T27: 469.1 | U27: 1791 | V27: 40.1 | W27: 1.79
A28: LEVEL 7 → | L28: 1656 | M28: 1.325 | N28: 446.8 | O28: 1702 | P28: 30.8 | Q28: 1.368 | R28: 1750 | S28: 2.34 | T28: 472 | U28: 1796 | V28: 41.4 | W28: 1.72
A29: LEVEL 8 → | L29: 1662 | M29: 1.33 | N29: 449.7 | O29: 1706 | P29: 32 | Q29: 1.373 | R29: 1756 | S29: 2.27 | T29: 474.9 | U29: 1800 | V29: 42.6 | W29: 1.65
A30: LEVEL 9 → | L30: 1671 | M30: 1.337 | N30: 454.1 | O30: 1713 | P30: 33.8 | Q30: 1.381 | R30: 1765 | S30: 2.16 | T30: 479.3 | U30: 1807 | V30: 44.4 | W30: 1.54
A31: PRO → | D31: =MIN(S31,W31) -> 1.46 | F31: =MAX(N31,T31) -> 482.6 | H31: =MAX(M31,Q31) -> 1.386 | J31: =MAX(P31,V31) -> 45.8 | L31: 1678 | M31: 1.343 | N31: 457.4 | O31: 1719 | P31: 35.2 | Q31: 1.386 | R31: 1772 | S31: 2.08 | T31: 482.6 | U31: 1813 | V31: 45.8 | W31: 1.46 | X31: =COUNT(C22:C26) -> 0
A32: PRO+TK → | B32: TK | D32: 1.26 | F32: 490.6 | H32: 1.4 | J32: 49.2 | X32: =COUNT(L22:L31) -> 10
A33: TK only → | D33: =D32-D31 -> -0.2 | F33: =F32-F31 -> 8 | H33: =H32-H31 -> 0.014 | J33: =J32-J31 -> 3.4
AH34: Tokens
B35: Tuning the McLaren MP4-31 - ASPHALT 8 AIRBORNE | Z35: S+N | AA35: =B40+B42+Z51+Z53 -> 456.8 | AB35: =AA35+AB40+AB42 -> 468.2 | AD35: TOTAL Cost | AF35: =AF36+AF37 -> 1415480
C36: UPGRADE | L36: PRO KITS | Z36: var | AD36: UPG T Cost | AF36: =SUMIF(B6:E15,">0")*1000 -> 0 | AH36: =-SUMIF(B6:E15,"<0")*1000 -> 0
B37: Init | C37: Accel | E37: Speed | G37: Handling | I37: Nitro | K37: MAX | L37: Tires | O37: Suspension | R37: Drivetrain | U37: Exhaust | X37: PRO | Y37: End | Z37: MAX | AA37: Final | AB37: TK | AD37: PRO T Cost | AF37: =SUM(F6:F15,M6:M15,T6:T15,AA6:AA15)*1000 -> 1415480
C38: Rank | D38: A | E38: Rank | F38: S | G38: Rank | H38: H | I38: Rank | J38: N | L38: Rank | M38: H | N38: S | O38: Rank | P38: N | Q38: H | R38: Rank | S38: A | T38: S | U38: Rank | V38: N | W38: A | Z38: PRO | AA38: Value | AB38: Boost | AD38: Current Cost | AF38: =AF39+AF40 -> 0
B39: =B22 -> 2.7 | K39: =SUM(D39:D48) -> 0 | L39: 3 | M39: 0.002 | N39: 1.1 | O39: 2 | P39: 0.6 | Q39: 0.002 | R39: 3 | S39: -0.03 | T39: 1.4 | U39: 2 | V39: 0.6 | W39: -0.04 | X39: =SUM(S39:S48,W39:W48) -> -1.24 | Y39: A | Z39: =K39+X39 -> -1.24 | AA39: =B39+Z39 -> 1.46 | AB39: =D33 -> -0.2 | AD39: UPG C Cost | AF39: =SUM(B16:E16)*1000 -> 0 | AH39: =SUM(B17:E17)*1000 -> 0
B40: =B23 -> 432.2 | K40: =SUM(F39:F48) -> 0 | L40: 3 | M40: 0.002 | N40: 1.5 | O40: 2 | P40: 0.5 | Q40: 0.003 | R40: 2 | S40: -0.03 | T40: 1.2 | U40: 2 | V40: 0.5 | W40: -0.03 | X40: =SUM(N39:N48,T39:T48) -> 50.4 | Y40: S | Z40: =K40+X40 -> 50.4 | AA40: =B40+Z40 -> 482.6 | AB40: =F33 -> 8 | AD40: PRO C Cost | AF40: =SUM(F16+M16+T16+AA16)*1000 -> 0
B41: =B24 -> 1.3 | K41: =SUM(H39:H48) -> 0 | L41: 4 | M41: 0.004 | N41: 1.8 | O41: 3 | P41: 0.8 | Q41: 0.003 | R41: 4 | S41: -0.05 | T41: 1.8 | U41: 3 | V41: 0.8 | W41: -0.04 | X41: =SUM(M39:M48,Q39:Q48) -> 0.086 | Y41: H | Z41: =K41+X41 -> 0.086 | AA41: =B41+Z41 -> 1.386 | AB41: =H33 -> 0.014 | AD41: Tires | AF41: =G16 -> 0
B42: =B25 -> 24.6 | K42: =SUM(J39:J48) -> 0 | L42: 3 | M42: 0.002 | N42: 1.4 | O42: 3 | P42: 0.6 | Q42: 0.002 | R42: 3 | S42: -0.03 | T42: 1.4 | U42: 3 | V42: 0.6 | W42: -0.03 | X42: =SUM(P39:P48,V39:V48) -> 21.2 | Y42: N | Z42: =K42+X42 -> 21.2 | AA42: =B42+Z42 -> 45.8 | AB42: =J33 -> 3.4 | AD42: Suspension | AF42: =N16 -> 0
B43: =B26 -> 1624 | K43: =SUM(C39:C48,E39:E48,G39:G48,I39:I48) -> 0 | L43: 6 | M43: 0.005 | N43: 2.9 | O43: 4 | P43: 1.2 | Q43: 0.005 | R43: 6 | S43: -0.08 | T43: 2.9 | U43: 4 | V43: 1.2 | W43: -0.08 | X43: =SUM(L39:L48,O39:O48,R39:R48,U39:U48) -> 189 | Y43: Rank | Z43: =K43+X43 -> 189 | AA43: =B43+Z43 -> 1813 | AB43: 27 | AD43: Drivetrain | AF43: =U16 -> 0
L44: 6 | M44: 0.005 | N44: 3 | O44: 5 | P44: 1.2 | Q44: 0.005 | R44: 6 | S44: -0.07 | T44: 3 | U44: 5 | V44: 1.2 | W44: -0.07 | AD44: Exhaust | AF44: =AB16 -> 0
L45: 7 | M45: 0.005 | N45: 2.9 | O45: 5 | P45: 1.3 | Q45: 0.005 | R45: 7 | S45: -0.07 | T45: 2.9 | U45: 5 | V45: 1.3 | W45: -0.07 | AD45: Early Tech | AF45: =H16+O16+V16+AC16 -> 0
L46: 6 | M46: 0.005 | N46: 2.9 | O46: 4 | P46: 1.2 | Q46: 0.005 | R46: 6 | S46: -0.07 | T46: 2.9 | U46: 4 | V46: 1.2 | W46: -0.07 | AD46: Initial Tech | AF46: =I16+P16+W16+AD16 -> 0
L47: 9 | M47: 0.007 | N47: 4.4 | O47: 7 | P47: 1.8 | Q47: 0.008 | R47: 9 | S47: -0.11 | T47: 4.4 | U47: 7 | V47: 1.8 | W47: -0.11 | AD47: Mid Tech | AF47: =J16+Q16+X16+AE16 -> 0
L48: 7 | M48: 0.006 | N48: 3.3 | O48: 6 | P48: 1.4 | Q48: 0.005 | R48: 7 | S48: -0.08 | T48: 3.3 | U48: 6 | V48: 1.4 | W48: -0.08 | AD48: Adv Tech | AF48: =K16+R16+Y16+AF16 -> 0
B49: TK | D49: =D32-D26 -> 1.26 | F49: =F32-F26 -> 490.6 | H49: =H32-H26 -> 1.4 | J49: =J32-J26 -> 49.2 | AB49: Final | AC49: MPTK | AD49: Engines | AF49: =L16+S16+Z16+AG16 -> 0 | AG49: CR
A50: 0 | B50: A | K50: =SUM(D50:D59) -> 0 | L50: =IF(proT>$A50,L39,"") ->  | O50: =IF(proS>$A50,O39,"") ->  | R50: =IF(proD>$A50,R39,"") ->  | U50: =IF(proE>$A50,U39,"") ->  | X50: =SUM(S50:S59,W50:W59) -> 0 | Y50: =B39+K50+X50 -> 2.7 | Z50: =K50+X50 -> 0 | AA50: =Z50/Z39 -> 0 | AB50: =Y50+AB39 -> 2.5 | AC50: 1.4
A51: 1 | B51: S | K51: =SUM(F50:F59) -> 0 | X51: =SUM(N50:N59,T50:T59) -> 0 | Y51: =B40+K51+X51 -> 432.2 | Z51: =K51+X51 -> 0 | AA51: =Z51/Z40 -> 0 | AB51: =Y51+AB40 -> 440.2 | AC51: 295.8 | AE51: SM = | AF51: 0.93
A52: 2 | B52: H | K52: =SUM(H50:H59) -> 0 | X52: =SUM(M50:M59,Q50:Q59) -> 0 | Y52: =B41+K52+X52 -> 1.3 | Z52: =K52+X52 -> 0 | AA52: =Z52/Z41 -> 0 | AB52: =Y52+AB41 -> 1.314 | AC52: 1.25 | AE52: MxSpeed = | AG52: =AB35*AF51 -> 435.426 | AH52: km/h
A53: 3 | B53: N | K53: =SUM(J50:J59) -> 0 | X53: =SUM(P50:P59,V50:V59) -> 0 | Y53: =B42+K53+X53 -> 24.6 | Z53: =K53+X53 -> 0 | AA53: =Z58/Z42 -> 0 | AB53: =Y53+AB42 -> 28
A54: 4
A55: 5
A56: 6
A57: 7
A58: 8 | AC58: 114.3
A59: 9 | B59: Rank | K59: =SUM(C50:C59,E50:E59,G50:G59,I50:I59) -> 0 | X59: =SUM(L50:L59,O50:O59,R50:R59,U50:U59) -> 0 | Y59: =B43+K59+X59 -> 1624 | Z59: =K59+X59 -> 0 | AA59: =Z59/Z43 -> 0 | AB59: =AB43+Y59 -> 1651
A60: INPUT → | X60: Speed+Nitro | Z60: =Z51+Z53 -> 0 | AA60: =Z60/(Z40+Z42) -> 0 | AB60: =IF(AA59=0,"",AA60/AA59-1) -> 
P62: 0 | Q62: 0 | R62: 0 | S62: 0
P63: =SUM(N$38,OFFSET(N$38,0,0,P62+1,1)) -> 0 | Q63: =SUM(P$38,OFFSET(P$38,0,0,Q62+1,1)) -> 0 | R63: =SUM(T$38,OFFSET(T$38,0,0,R62+1,1)) -> 0 | S63: =SUM(V$38,OFFSET(V$38,0,0,S62+1,1)) -> 0 | U63: =P63+Q63+R63+S63+B40+B42+AB40+AB42 -> 468.2 | W63: Total Spd
P64: =SUM(L$38,OFFSET(L$38,0,0,P62+1,1)) -> 0 | Q64: =SUM(O$38,OFFSET(O$38,0,0,Q62+1,1)) -> 0 | R64: =SUM(R$38,OFFSET(R$38,0,0,R62+1,1)) -> 0 | S64: =SUM(U$38,OFFSET(U$38,0,0,S62+1,1)) -> 0 | U64: =B43+P64+Q64+R64+S64 -> 1624 | W64: Rank

Sheet MP4-25 (hidden)
B2: Gathering Prices & Parts for the Class A McLaren Mercedes MP4-25 (#0xAC) - Asphalt 8 Airborne
B3: UPGRADE | F3: PRO KITS
B4: Acc | C4: Spd | D4: Hnd | E4: Ntr | F4: Tires | M4: Suspension | T4: Drivetrain | AA4: Exhaust
B5: Cost | F5: Cost | G5: Part | H5: Early | I5: Init | J5: Mid | K5: Adv | L5: Engn | M5: Cost | N5: Part | O5: Early | P5: Init | Q5: Mid | R5: Adv | S5: Engn | T5: Cost | U5: Part | V5: Early | W5: Init | X5: Mid | Y5: Adv | Z5: Engn | AA5: Cost | AB5: Part | AC5: Early | AD5: Init | AE5: Mid | AF5: Adv | AG5: Engn
A6: TO L1 → | F6: 9.375 | G6: 1 | L6: 1 | M6: 10.25 | N6: 1 | S6: 1 | T6: 9.25 | U6: 1 | Z6: 1 | AA6: 8.125 | AB6: 1 | AG6: 1
A7: TO L2 → | F7: 11.725 | G7: 1 | L7: 1 | M7: 12.825 | N7: 1 | S7: 1 | T7: 11.575 | U7: 1 | Z7: 1 | AA7: 10.15 | AB7: 1 | AG7: 1
A8: TO L3 → | F8: 14.65 | G8: 1 | L8: 1 | M8: 16.025 | N8: 1 | S8: 1 | T8: 14.475 | U8: 1 | Z8: 1 | AA8: 12.7 | AB8: 1 | AG8: 1
A9: TO L4 → | F9: 18.325 | G9: 1 | I9: 1 | L9: 1 | M9: 20.025 | N9: 1 | O9: 1 | S9: 1 | T9: 18.1 | U9: 1 | W9: 1 | Z9: 1 | AA9: 15.875 | AB9: 1 | AC9: 1 | AG9: 1
A10: TO L5 → | F10: 22.9 | G10: 1 | J10: 1 | L10: 1 | M10: 25.025 | N10: 1 | Q10: 1 | S10: 1 | T10: 22.625 | U10: 1 | X10: 1 | Z10: 1 | AA10: 19.85 | AB10: 1 | AE10: 1 | AG10: 1
A11: TO L6 → | F11: 28.625 | G11: 1 | J11: 1 | L11: 1 | M11: 31.275 | N11: 1 | Q11: 1 | S11: 1 | T11: 28.275 | U11: 1 | X11: 1 | Z11: 1 | AA11: 24.825 | AB11: 1 | AE11: 1 | AG11: 1
A12: TO L7 → | F12: 35.775 | G12: 2 | J12: 1 | L12: 1 | M12: 39.1 | N12: 2 | Q12: 1 | S12: 1 | T12: 35.35 | U12: 2 | X12: 1 | Z12: 1 | AA12: 31.025 | AB12: 2 | AE12: 1 | AG12: 1
A13: TO L8 → | F13: 44.725 | G13: 2 | J13: 1 | L13: 1 | M13: 48.875 | N13: 2 | Q13: 1 | S13: 1 | T13: 44.2 | U13: 2 | X13: 1 | Z13: 1 | AA13: 38.775 | AB13: 2 | AE13: 1 | AG13: 1
A14: TO L9 → | F14: 55.9 | G14: 2 | K14: 1 | L14: 1 | M14: 61.1 | N14: 2 | R14: 1 | S14: 1 | T14: 55.25 | U14: 2 | Y14: 1 | Z14: 1 | AA14: 48.475 | AB14: 2 | AF14: 1 | AG14: 1
A15: TO PRO → | F15: 69.875 | G15: 2 | K15: 1 | L15: 1 | M15: 76.375 | N15: 2 | R15: 1 | S15: 1 | T15: 69.075 | U15: 2 | Y15: 1 | Z15: 1 | AA15: 60.6 | AB15: 2 | AF15: 1 | AG15: 1
A16: Totals | B16: =SUMIF(B5:INDIRECT("B"&(E60+5)),">0") -> 0 | C16: =SUMIF(INDIRECT("R"&(ROW()-6)&"C"&COLUMN(),FALSE):INDIRECT("R"&(ROW()-6+F60)&"C"&COLUMN(),FALSE),">0") -> 0 | D16: =SUMIF(INDIRECT("R"&(ROW()-6)&"C"&COLUMN(),FALSE):INDIRECT("R"&(ROW()-6+G60)&"C"&COLUMN(),FALSE),">0") -> 0 | E16: =SUMIF(INDIRECT("R"&(ROW()-6)&"C"&COLUMN(),FALSE):INDIRECT("R"&(ROW()-6+H60)&"C"&COLUMN(),FALSE),">0") -> 0 | F16: =SUM(INDIRECT("R"&(ROW()-11)&"C"&COLUMN(),FALSE):INDIRECT("R"&(ROW()-11+$P60)&"C"&COLUMN(),FALSE)) -> 0 | G16: =SUM(INDIRECT("R"&(ROW()-11)&"C"&COLUMN(),FALSE):INDIRECT("R"&(ROW()-11+$P60)&"C"&COLUMN(),FALSE)) -> 0 | H16: =SUM(INDIRECT("R"&(ROW()-11)&"C"&COLUMN(),FALSE):INDIRECT("R"&(ROW()-11+$P60)&"C"&COLUMN(),FALSE)) -> 0 | I16: =SUM(INDIRECT("R"&(ROW()-11)&"C"&COLUMN(),FALSE):INDIRECT("R"&(ROW()-11+$P60)&"C"&COLUMN(),FALSE)) -> 0 | J16: =SUM(INDIRECT("R"&(ROW()-11)&"C"&COLUMN(),FALSE):INDIRECT("R"&(ROW()-11+$P60)&"C"&COLUMN(),FALSE)) -> 0 | K16: =SUM(INDIRECT("R"&(ROW()-11)&"C"&COLUMN(),FALSE):INDIRECT("R"&(ROW()-11+$P60)&"C"&COLUMN(),FALSE)) -> 0 | L16: =SUM(INDIRECT("R"&(ROW()-11)&"C"&COLUMN(),FALSE):INDIRECT("R"&(ROW()-11+$P60)&"C"&COLUMN(),FALSE)) -> 0 | M16: =SUM(INDIRECT("R"&(ROW()-11)&"C"&COLUMN(),FALSE):INDIRECT("R"&(ROW()-11+$Q60)&"C"&COLUMN(),FALSE)) -> 0 | N16: =SUM(INDIRECT("R"&(ROW()-11)&"C"&COLUMN(),FALSE):INDIRECT("R"&(ROW()-11+$Q60)&"C"&COLUMN(),FALSE)) -> 0 | O16: =SUM(INDIRECT("R"&(ROW()-11)&"C"&COLUMN(),FALSE):INDIRECT("R"&(ROW()-11+$Q60)&"C"&COLUMN(),FALSE)) -> 0 | P16: =SUM(INDIRECT("R"&(ROW()-11)&"C"&COLUMN(),FALSE):INDIRECT("R"&(ROW()-11+$Q60)&"C"&COLUMN(),FALSE)) -> 0 | Q16: =SUM(INDIRECT("R"&(ROW()-11)&"C"&COLUMN(),FALSE):INDIRECT("R"&(ROW()-11+$Q60)&"C"&COLUMN(),FALSE)) -> 0 | R16: =SUM(INDIRECT("R"&(ROW()-11)&"C"&COLUMN(),FALSE):INDIRECT("R"&(ROW()-11+$Q60)&"C"&COLUMN(),FALSE)) -> 0 | S16: =SUM(INDIRECT("R"&(ROW()-11)&"C"&COLUMN(),FALSE):INDIRECT("R"&(ROW()-11+$Q60)&"C"&COLUMN(),FALSE)) -> 0 | T16: =SUM(INDIRECT("R"&(ROW()-11)&"C"&COLUMN(),FALSE):INDIRECT("R"&(ROW()-11+$R60)&"C"&COLUMN(),FALSE)) -> 0 | U16: =SUM(INDIRECT("R"&(ROW()-11)&"C"&COLUMN(),FALSE):INDIRECT("R"&(ROW()-11+$R60)&"C"&COLUMN(),FALSE)) -> 0 | V16: =SUM(INDIRECT("R"&(ROW()-11)&"C"&COLUMN(),FALSE):INDIRECT("R"&(ROW()-11+$R60)&"C"&COLUMN(),FALSE)) -> 0 | W16: =SUM(INDIRECT("R"&(ROW()-11)&"C"&COLUMN(),FALSE):INDIRECT("R"&(ROW()-11+$R60)&"C"&COLUMN(),FALSE)) -> 0 | X16: =SUM(INDIRECT("R"&(ROW()-11)&"C"&COLUMN(),FALSE):INDIRECT("R"&(ROW()-11+$R60)&"C"&COLUMN(),FALSE)) -> 0 | Y16: =SUM(INDIRECT("R"&(ROW()-11)&"C"&COLUMN(),FALSE):INDIRECT("R"&(ROW()-11+$R60)&"C"&COLUMN(),FALSE)) -> 0 | Z16: =SUM(INDIRECT("R"&(ROW()-11)&"C"&COLUMN(),FALSE):INDIRECT("R"&(ROW()-11+$R60)&"C"&COLUMN(),FALSE)) -> 0 | AA16: =SUM(INDIRECT("R"&(ROW()-11)&"C"&COLUMN(),FALSE):INDIRECT("R"&(ROW()-11+$S60)&"C"&COLUMN(),FALSE)) -> 0 | AB16: =SUM(INDIRECT("R"&(ROW()-11)&"C"&COLUMN(),FALSE):INDIRECT("R"&(ROW()-11+$S60)&"C"&COLUMN(),FALSE)) -> 0 | AC16: =SUM(INDIRECT("R"&(ROW()-11)&"C"&COLUMN(),FALSE):INDIRECT("R"&(ROW()-11+$S60)&"C"&COLUMN(),FALSE)) -> 0 | AD16: =SUM(INDIRECT("R"&(ROW()-11)&"C"&COLUMN(),FALSE):INDIRECT("R"&(ROW()-11+$S60)&"C"&COLUMN(),FALSE)) -> 0 | AE16: =SUM(INDIRECT("R"&(ROW()-11)&"C"&COLUMN(),FALSE):INDIRECT("R"&(ROW()-11+$S60)&"C"&COLUMN(),FALSE)) -> 0 | AF16: =SUM(INDIRECT("R"&(ROW()-11)&"C"&COLUMN(),FALSE):INDIRECT("R"&(ROW()-11+$S60)&"C"&COLUMN(),FALSE)) -> 0 | AG16: =SUM(INDIRECT("R"&(ROW()-11)&"C"&COLUMN(),FALSE):INDIRECT("R"&(ROW()-11+$S60)&"C"&COLUMN(),FALSE)) -> 0
B17: =-SUMIF(B5:INDIRECT("B"&(E60+5)),"<0") -> 0 | C17: =-SUMIF(INDIRECT("R"&(ROW()-7)&"C"&COLUMN(),FALSE):INDIRECT("R"&(ROW()-7+F60)&"C"&COLUMN(),FALSE),"<0") -> 0 | D17: =-SUMIF(INDIRECT("R"&(ROW()-7)&"C"&COLUMN(),FALSE):INDIRECT("R"&(ROW()-7+G60)&"C"&COLUMN(),FALSE),"<0") -> 0 | E17: =-SUMIF(INDIRECT("R"&(ROW()-7)&"C"&COLUMN(),FALSE):INDIRECT("R"&(ROW()-7+H60)&"C"&COLUMN(),FALSE),"<0") -> 0
B18: Gathering Specifications for the McLaren Mercedes MP4-25 - Asphalt 8 Airborne
C19: UPGRADE | L19: PRO KITS
B20: Init | C20: Accel | E20: Speed | G20: Handling | I20: Nitro | L20: Tires | O20: Suspension | R20: Drivetrain | U20: Exhaust
B21: L0 | C21: Rank | D21: A | E21: Rank | F21: S | G21: Rank | H21: H | I21: Rank | J21: N | L21: Rank | M21: H | N21: S | O21: Rank | P21: N | Q21: H | R21: Rank | S21: A | T21: S | U21: Rank | V21: N | W21: A
A22: LEVEL 1 → | B22: 2.7 | K22: A | L22: 1363 | M22: 1.302 | N22: 328 | O22: 1479 | P22: 26.3 | Q22: 1.345 | R22: 1568 | S22: 2.67 | T22: 376.5 | U22: 1683 | V22: 37.4 | W22: 2.04
A23: LEVEL 2 → | B23: 325.8 | K23: S | L23: 1370 | M23: 1.304 | N23: 330.8 | O23: 1483 | P23: 26.9 | Q23: 1.348 | R23: 1574 | S23: 2.64 | T23: 378.9 | U23: 1688 | V23: 38 | W23: 2.01
A24: LEVEL 3 → | B24: 1.3 | K24: H | L24: 1378 | M24: 1.308 | N24: 334.2 | O24: 1489 | P24: 27.7 | Q24: 1.351 | R24: 1582 | S24: 2.59 | T24: 382.2 | U24: 1694 | V24: 38.7 | W24: 1.97
A25: LEVEL 4 → | B25: 25.7 | K25: N | L25: 1385 | M25: 1.31 | N25: 337 | O25: 1494 | P25: 28.3 | Q25: 1.353 | R25: 1589 | S25: 2.56 | T25: 385 | U25: 1699 | V25: 39.4 | W25: 1.94
A26: LEVEL 5 → | B26: 1357 | K26: Rank | L26: 1398 | M26: 1.315 | N26: 342.5 | O26: 1505 | P26: 29.6 | Q26: 1.358 | R26: 1603 | S26: 2.48 | T26: 390.6 | U26: 1709 | V26: 40.7 | W26: 1.86
A27: LEVEL 6 → | L27: 1412 | M27: 1.32 | N27: 348.1 | O27: 1515 | P27: 30.9 | Q27: 1.363 | R27: 1616 | S27: 2.41 | T27: 396.2 | U27: 1719 | V27: 42 | W27: 1.79
A28: LEVEL 7 → | L28: 1425 | M28: 1.325 | N28: 353.7 | O28: 1525 | P28: 32.2 | Q28: 1.368 | R28: 1630 | S28: 2.34 | T28: 401.7 | U28: 1730 | V28: 43.2 | W28: 1.72
A29: LEVEL 8 → | L29: 1439 | M29: 1.33 | N29: 359.3 | O29: 1535 | P29: 33.4 | Q29: 1.373 | R29: 1643 | S29: 2.27 | T29: 407.3 | U29: 1740 | V29: 44.5 | W29: 1.65
A30: LEVEL 9 → | L30: 1459 | M30: 1.337 | N30: 367.6 | O30: 1551 | P30: 35.4 | Q30: 1.381 | R30: 1663 | S30: 2.16 | T30: 415.7 | U30: 1755 | V30: 46.5 | W30: 1.54
A31: PRO → | D31: =MIN(S31,W31) -> 1.46 | F31: =MAX(N31,T31) -> 421.9 | H31: =MAX(M31,Q31) -> 1.386 | J31: =MAX(P31,V31) -> 47.9 | L31: 1474 | M31: 1.343 | N31: 373.9 | O31: 1562 | P31: 36.8 | Q31: 1.386 | R31: 1679 | S31: 2.08 | T31: 421.9 | U31: 1766 | V31: 47.9 | W31: 1.46 | X31: =COUNT(C22:C26) -> 0
A32: PRO+TK → | B32: TK | D32: 1.26 | F32: 437.3 | H32: 1.4 | J32: 51.4 | X32: =COUNT(L22:L31) -> 10
A33: TK only → | D33: =D32-D31 -> -0.2 | F33: =F32-F31 -> 15.4 | H33: =H32-H31 -> 0.014 | J33: =J32-J31 -> 3.5
AH34: Tokens
B35: Tuning the McLaren Mercedes MP4-25 - ASPHALT 8 AIRBORNE | Z35: S+N | AA35: =B40+B42+Z51+Z53 -> 351.5 | AB35: =AA35+AB40+AB42 -> 370.4 | AD35: TOTAL Cost | AF35: =AF36+AF37 -> 1231325
C36: UPGRADE | L36: PRO KITS | Z36: var | AD36: UPG T Cost | AF36: =SUMIF(B6:E15,">0")*1000 -> 0 | AH36: =-SUMIF(B6:E15,"<0")*1000 -> 0
B37: Init | C37: Accel | E37: Speed | G37: Handling | I37: Nitro | K37: MAX | L37: Tires | O37: Suspension | R37: Drivetrain | U37: Exhaust | X37: PRO | Y37: End | Z37: MAX | AA37: Final | AB37: TK | AD37: PRO T Cost | AF37: =SUM(F6:F15,M6:M15,T6:T15,AA6:AA15)*1000 -> 1231325
C38: Rank | D38: A | E38: Rank | F38: S | G38: Rank | H38: H | I38: Rank | J38: N | L38: Rank | M38: H | N38: S | O38: Rank | P38: N | Q38: H | R38: Rank | S38: A | T38: S | U38: Rank | V38: N | W38: A | Z38: PRO | AA38: Value | AB38: Boost | AD38: Current Cost | AF38: =AF39+AF40 -> 0
B39: =B22 -> 2.7 | K39: =SUM(D39:D48) -> 0 | L39: 6 | M39: 0.002 | N39: 2.2 | O39: 5 | P39: 0.6 | Q39: 0.002 | R39: 6 | S39: -0.03 | T39: 2.6 | U39: 4 | V39: 0.6 | W39: -0.04 | X39: =SUM(S39:S48,W39:W48) -> -1.24 | Y39: A | Z39: =K39+X39 -> -1.24 | AA39: =B39+Z39 -> 1.46 | AB39: =D33 -> -0.2 | AD39: UPG C Cost | AF39: =SUM(B16:E16)*1000 -> 0 | AH39: =SUM(B17:E17)*1000 -> 0
B40: =B23 -> 325.8 | K40: =SUM(F39:F48) -> 0 | L40: 7 | M40: 0.002 | N40: 2.8 | O40: 4 | P40: 0.6 | Q40: 0.003 | R40: 6 | S40: -0.03 | T40: 2.4 | U40: 5 | V40: 0.6 | W40: -0.03 | X40: =SUM(N39:N48,T39:T48) -> 96.1 | Y40: S | Z40: =K40+X40 -> 96.1 | AA40: =B40+Z40 -> 421.9 | AB40: =F33 -> 15.4 | AD40: PRO C Cost | AF40: =SUM(F16+M16+T16+AA16)*1000 -> 0
B41: =B24 -> 1.3 | K41: =SUM(H39:H48) -> 0 | L41: 8 | M41: 0.004 | N41: 3.4 | O41: 6 | P41: 0.8 | Q41: 0.003 | R41: 8 | S41: -0.05 | T41: 3.3 | U41: 6 | V41: 0.7 | W41: -0.04 | X41: =SUM(M39:M48,Q39:Q48) -> 0.086 | Y41: H | Z41: =K41+X41 -> 0.086 | AA41: =B41+Z41 -> 1.386 | AB41: =H33 -> 0.014 | AD41: Tires | AF41: =G16 -> 0
B42: =B25 -> 25.7 | K42: =SUM(J39:J48) -> 0 | L42: 7 | M42: 0.002 | N42: 2.8 | O42: 5 | P42: 0.6 | Q42: 0.002 | R42: 7 | S42: -0.03 | T42: 2.8 | U42: 5 | V42: 0.7 | W42: -0.03 | X42: =SUM(P39:P48,V39:V48) -> 22.2 | Y42: N | Z42: =K42+X42 -> 22.2 | AA42: =B42+Z42 -> 47.9 | AB42: =J33 -> 3.5 | AD42: Suspension | AF42: =N16 -> 0
B43: =B26 -> 1357 | K43: =SUM(C39:C48,E39:E48,G39:G48,I39:I48) -> 0 | L43: 13 | M43: 0.005 | N43: 5.5 | O43: 11 | P43: 1.3 | Q43: 0.005 | R43: 14 | S43: -0.08 | T43: 5.6 | U43: 10 | V43: 1.3 | W43: -0.08 | X43: =SUM(L39:L48,O39:O48,R39:R48,U39:U48) -> 409 | Y43: Rank | Z43: =K43+X43 -> 409 | AA43: =B43+Z43 -> 1766 | AB43: 49 | AD43: Drivetrain | AF43: =U16 -> 0
L44: 14 | M44: 0.005 | N44: 5.6 | O44: 10 | P44: 1.3 | Q44: 0.005 | R44: 13 | S44: -0.07 | T44: 5.6 | U44: 10 | V44: 1.3 | W44: -0.07 | AD44: Exhaust | AF44: =AB16 -> 0
L45: 13 | M45: 0.005 | N45: 5.6 | O45: 10 | P45: 1.3 | Q45: 0.005 | R45: 14 | S45: -0.07 | T45: 5.5 | U45: 11 | V45: 1.2 | W45: -0.07 | AD45: Early Tech | AF45: =H16+O16+V16+AC16 -> 0
L46: 14 | M46: 0.005 | N46: 5.6 | O46: 10 | P46: 1.2 | Q46: 0.005 | R46: 13 | S46: -0.07 | T46: 5.6 | U46: 10 | V46: 1.3 | W46: -0.07 | AD46: Initial Tech | AF46: =I16+P16+W16+AD16 -> 0
L47: 20 | M47: 0.007 | N47: 8.3 | O47: 16 | P47: 2 | Q47: 0.008 | R47: 20 | S47: -0.11 | T47: 8.4 | U47: 15 | V47: 2 | W47: -0.11 | AD47: Mid Tech | AF47: =J16+Q16+X16+AE16 -> 0
L48: 15 | M48: 0.006 | N48: 6.3 | O48: 11 | P48: 1.4 | Q48: 0.005 | R48: 16 | S48: -0.08 | T48: 6.2 | U48: 11 | V48: 1.4 | W48: -0.08 | AD48: Adv Tech | AF48: =K16+R16+Y16+AF16 -> 0
B49: TK | D49: =D32-D26 -> 1.26 | F49: =F32-F26 -> 437.3 | H49: =H32-H26 -> 1.4 | J49: =J32-J26 -> 51.4 | AB49: Final | AC49: MPTK | AD49: Engines | AF49: =L16+S16+Z16+AG16 -> 0 | AG49: CR
A50: 0 | B50: A | K50: =SUM(D50:D59) -> 0 | L50: =IF(proT>$A50,L39,"") ->  | O50: =IF(proS>$A50,O39,"") ->  | R50: =IF(proD>$A50,R39,"") ->  | U50: =IF(proE>$A50,U39,"") ->  | X50: =SUM(S50:S59,W50:W59) -> 0 | Y50: =B39+K50+X50 -> 2.7 | Z50: =K50+X50 -> 0 | AA50: =Z50/Z39 -> 0 | AB50: =Y50+AB39 -> 2.5 | AC50: 1.4
A51: 1 | B51: S | K51: =SUM(F50:F59) -> 0 | X51: =SUM(N50:N59,T50:T59) -> 0 | Y51: =B40+K51+X51 -> 325.8 | Z51: =K51+X51 -> 0 | AA51: =Z51/Z40 -> 0 | AB51: =Y51+AB40 -> 341.2 | AC51: 295.8
A52: 2 | B52: H | K52: =SUM(H50:H59) -> 0 | X52: =SUM(M50:M59,Q50:Q59) -> 0 | Y52: =B41+K52+X52 -> 1.3 | Z52: =K52+X52 -> 0 | AA52: =Z52/Z41 -> 0 | AB52: =Y52+AB41 -> 1.314 | AC52: 1.25
A53: 3 | B53: N | K53: =SUM(J50:J59) -> 0 | X53: =SUM(P50:P59,V50:V59) -> 0 | Y53: =B42+K53+X53 -> 25.7 | Z53: =K53+X53 -> 0 | AA53: =Z58/Z42 -> 0 | AB53: =Y53+AB42 -> 29.2
A54: 4
A55: 5
A56: 6
A57: 7
A58: 8 | AC58: 114.3
A59: 9 | B59: Rank | K59: =SUM(C50:C59,E50:E59,G50:G59,I50:I59) -> 0 | X59: =SUM(L50:L59,O50:O59,R50:R59,U50:U59) -> 0 | Y59: =B43+K59+X59 -> 1357 | Z59: =K59+X59 -> 0 | AA59: =Z59/Z43 -> 0 | AB59: =AB43+Y59 -> 1406
A60: INPUT → | X60: Speed+Nitro | Z60: =Z51+Z53 -> 0 | AA60: =Z60/(Z40+Z42) -> 0 | AB60: =IF(AA59=0,"",AA60/AA59-1) -> 
P62: 0 | Q62: 0 | R62: 0 | S62: 0
P63: =SUM(N$38,OFFSET(N$38,0,0,P62+1,1)) -> 0 | Q63: =SUM(P$38,OFFSET(P$38,0,0,Q62+1,1)) -> 0 | R63: =SUM(T$38,OFFSET(T$38,0,0,R62+1,1)) -> 0 | S63: =SUM(V$38,OFFSET(V$38,0,0,S62+1,1)) -> 0 | U63: =P63+Q63+R63+S63+B40+B42+AB40+AB42 -> 370.4 | W63: Total Spd
P64: =SUM(L$38,OFFSET(L$38,0,0,P62+1,1)) -> 0 | Q64: =SUM(O$38,OFFSET(O$38,0,0,Q62+1,1)) -> 0 | R64: =SUM(R$38,OFFSET(R$38,0,0,R62+1,1)) -> 0 | S64: =SUM(U$38,OFFSET(U$38,0,0,S62+1,1)) -> 0 | U64: =B43+P64+Q64+R64+S64 -> 1357 | W64: Rank

Sheet MP4-8 (hidden)
B2: Gathering Prices & Parts for the Class B McLaren MP4/8 (#0xB3) - Asphalt 8 Airborne
B3: UPGRADE | F3: PRO KITS
B4: Acc | C4: Spd | D4: Hnd | E4: Ntr | F4: Tires | M4: Suspension | T4: Drivetrain | AA4: Exhaust
B5: Cost | F5: Cost | G5: Part | H5: Early | I5: Init | J5: Mid | K5: Adv | L5: Engn | M5: Cost | N5: Part | O5: Early | P5: Init | Q5: Mid | R5: Adv | S5: Engn | T5: Cost | U5: Part | V5: Early | W5: Init | X5: Mid | Y5: Adv | Z5: Engn | AA5: Cost | AB5: Part | AC5: Early | AD5: Init | AE5: Mid | AF5: Adv | AG5: Engn
A6: TO L1 → | F6: 7.425 | L6: 1 | M6: 5.935 | S6: 1 | T6: 7.425 | Z6: 1 | AA6: 6.525 | AG6: 1
A7: TO L2 → | F7: 9.275 | L7: 1 | M7: 7.425 | S7: 1 | T7: 9.275 | Z7: 1 | AA7: 8.15 | AG7: 1
A8: TO L3 → | F8: 11.6 | G8: 1 | L8: 1 | M8: 9.275 | N8: 1 | S8: 1 | T8: 11.6 | U8: 1 | Z8: 1 | AA8: 10.2 | AB8: 1 | AG8: 1
A9: TO L4 → | F9: 14.5 | G9: 1 | I9: 1 | L9: 1 | M9: 11.6 | N9: 1 | O9: 1 | S9: 1 | T9: 14.5 | U9: 1 | W9: 1 | Z9: 1 | AA9: 12.75 | AB9: 1 | AC9: 1 | AG9: 1
A10: TO L5 → | F10: 18.125 | G10: 1 | I10: 1 | L10: 1 | M10: 14.5 | N10: 1 | O10: 1 | S10: 1 | T10: 18.125 | U10: 1 | W10: 1 | Z10: 1 | AA10: 15.95 | AB10: 1 | AC10: 1 | AG10: 1
A11: TO L6 → | F11: 22.65 | G11: 1 | I11: 1 | L11: 1 | M11: 18.125 | N11: 1 | O11: 1 | S11: 1 | T11: 22.65 | U11: 1 | W11: 1 | Z11: 1 | AA11: 19.95 | AB11: 1 | AC11: 1 | AG11: 1
A12: TO L7 → | F12: 28.325 | G12: 1 | J12: 1 | L12: 1 | M12: 22.65 | N12: 1 | Q12: 1 | S12: 1 | T12: 28.325 | U12: 1 | X12: 1 | Z12: 1 | AA12: 24.95 | AB12: 1 | AE12: 1 | AG12: 1
A13: TO L8 → | F13: 35.4 | G13: 2 | J13: 1 | L13: 1 | M13: 28.325 | N13: 2 | Q13: 1 | S13: 1 | T13: 35.4 | U13: 2 | X13: 1 | Z13: 1 | AA13: 31.2 | AB13: 2 | AE13: 1 | AG13: 1
A14: TO L9 → | F14: 44.25 | G14: 2 | J14: 1 | L14: 2 | M14: 35.4 | N14: 2 | Q14: 1 | S14: 2 | T14: 44.25 | U14: 2 | X14: 1 | Z14: 2 | AA14: 39 | AB14: 2 | AE14: 1 | AG14: 2
A15: TO PRO → | F15: 55.325 | G15: 2 | J15: 1 | L15: 2 | M15: 44.25 | N15: 2 | Q15: 1 | S15: 2 | T15: 55.325 | U15: 2 | X15: 1 | Z15: 2 | AA15: 48.75 | AB15: 2 | AE15: 1 | AG15: 2
A16: Totals | B16: =SUMIF(B5:INDIRECT("B"&(E60+5)),">0") -> 0 | C16: =SUMIF(INDIRECT("R"&(ROW()-6)&"C"&COLUMN(),FALSE):INDIRECT("R"&(ROW()-6+F60)&"C"&COLUMN(),FALSE),">0") -> 0 | D16: =SUMIF(INDIRECT("R"&(ROW()-6)&"C"&COLUMN(),FALSE):INDIRECT("R"&(ROW()-6+G60)&"C"&COLUMN(),FALSE),">0") -> 0 | E16: =SUMIF(INDIRECT("R"&(ROW()-6)&"C"&COLUMN(),FALSE):INDIRECT("R"&(ROW()-6+H60)&"C"&COLUMN(),FALSE),">0") -> 0 | F16: =SUM(INDIRECT("R"&(ROW()-11)&"C"&COLUMN(),FALSE):INDIRECT("R"&(ROW()-11+$P60)&"C"&COLUMN(),FALSE)) -> 0 | G16: =SUM(INDIRECT("R"&(ROW()-11)&"C"&COLUMN(),FALSE):INDIRECT("R"&(ROW()-11+$P60)&"C"&COLUMN(),FALSE)) -> 0 | H16: =SUM(INDIRECT("R"&(ROW()-11)&"C"&COLUMN(),FALSE):INDIRECT("R"&(ROW()-11+$P60)&"C"&COLUMN(),FALSE)) -> 0 | I16: =SUM(INDIRECT("R"&(ROW()-11)&"C"&COLUMN(),FALSE):INDIRECT("R"&(ROW()-11+$P60)&"C"&COLUMN(),FALSE)) -> 0 | J16: =SUM(INDIRECT("R"&(ROW()-11)&"C"&COLUMN(),FALSE):INDIRECT("R"&(ROW()-11+$P60)&"C"&COLUMN(),FALSE)) -> 0 | K16: =SUM(INDIRECT("R"&(ROW()-11)&"C"&COLUMN(),FALSE):INDIRECT("R"&(ROW()-11+$P60)&"C"&COLUMN(),FALSE)) -> 0 | L16: =SUM(INDIRECT("R"&(ROW()-11)&"C"&COLUMN(),FALSE):INDIRECT("R"&(ROW()-11+$P60)&"C"&COLUMN(),FALSE)) -> 0 | M16: =SUM(INDIRECT("R"&(ROW()-11)&"C"&COLUMN(),FALSE):INDIRECT("R"&(ROW()-11+$Q60)&"C"&COLUMN(),FALSE)) -> 0 | N16: =SUM(INDIRECT("R"&(ROW()-11)&"C"&COLUMN(),FALSE):INDIRECT("R"&(ROW()-11+$Q60)&"C"&COLUMN(),FALSE)) -> 0 | O16: =SUM(INDIRECT("R"&(ROW()-11)&"C"&COLUMN(),FALSE):INDIRECT("R"&(ROW()-11+$Q60)&"C"&COLUMN(),FALSE)) -> 0 | P16: =SUM(INDIRECT("R"&(ROW()-11)&"C"&COLUMN(),FALSE):INDIRECT("R"&(ROW()-11+$Q60)&"C"&COLUMN(),FALSE)) -> 0 | Q16: =SUM(INDIRECT("R"&(ROW()-11)&"C"&COLUMN(),FALSE):INDIRECT("R"&(ROW()-11+$Q60)&"C"&COLUMN(),FALSE)) -> 0 | R16: =SUM(INDIRECT("R"&(ROW()-11)&"C"&COLUMN(),FALSE):INDIRECT("R"&(ROW()-11+$Q60)&"C"&COLUMN(),FALSE)) -> 0 | S16: =SUM(INDIRECT("R"&(ROW()-11)&"C"&COLUMN(),FALSE):INDIRECT("R"&(ROW()-11+$Q60)&"C"&COLUMN(),FALSE)) -> 0 | T16: =SUM(INDIRECT("R"&(ROW()-11)&"C"&COLUMN(),FALSE):INDIRECT("R"&(ROW()-11+$R60)&"C"&COLUMN(),FALSE)) -> 0 | U16: =SUM(INDIRECT("R"&(ROW()-11)&"C"&COLUMN(),FALSE):INDIRECT("R"&(ROW()-11+$R60)&"C"&COLUMN(),FALSE)) -> 0 | V16: =SUM(INDIRECT("R"&(ROW()-11)&"C"&COLUMN(),FALSE):INDIRECT("R"&(ROW()-11+$R60)&"C"&COLUMN(),FALSE)) -> 0 | W16: =SUM(INDIRECT("R"&(ROW()-11)&"C"&COLUMN(),FALSE):INDIRECT("R"&(ROW()-11+$R60)&"C"&COLUMN(),FALSE)) -> 0 | X16: =SUM(INDIRECT("R"&(ROW()-11)&"C"&COLUMN(),FALSE):INDIRECT("R"&(ROW()-11+$R60)&"C"&COLUMN(),FALSE)) -> 0 | Y16: =SUM(INDIRECT("R"&(ROW()-11)&"C"&COLUMN(),FALSE):INDIRECT("R"&(ROW()-11+$R60)&"C"&COLUMN(),FALSE)) -> 0 | Z16: =SUM(INDIRECT("R"&(ROW()-11)&"C"&COLUMN(),FALSE):INDIRECT("R"&(ROW()-11+$R60)&"C"&COLUMN(),FALSE)) -> 0 | AA16: =SUM(INDIRECT("R"&(ROW()-11)&"C"&COLUMN(),FALSE):INDIRECT("R"&(ROW()-11+$S60)&"C"&COLUMN(),FALSE)) -> 0 | AB16: =SUM(INDIRECT("R"&(ROW()-11)&"C"&COLUMN(),FALSE):INDIRECT("R"&(ROW()-11+$S60)&"C"&COLUMN(),FALSE)) -> 0 | AC16: =SUM(INDIRECT("R"&(ROW()-11)&"C"&COLUMN(),FALSE):INDIRECT("R"&(ROW()-11+$S60)&"C"&COLUMN(),FALSE)) -> 0 | AD16: =SUM(INDIRECT("R"&(ROW()-11)&"C"&COLUMN(),FALSE):INDIRECT("R"&(ROW()-11+$S60)&"C"&COLUMN(),FALSE)) -> 0 | AE16: =SUM(INDIRECT("R"&(ROW()-11)&"C"&COLUMN(),FALSE):INDIRECT("R"&(ROW()-11+$S60)&"C"&COLUMN(),FALSE)) -> 0 | AF16: =SUM(INDIRECT("R"&(ROW()-11)&"C"&COLUMN(),FALSE):INDIRECT("R"&(ROW()-11+$S60)&"C"&COLUMN(),FALSE)) -> 0 | AG16: =SUM(INDIRECT("R"&(ROW()-11)&"C"&COLUMN(),FALSE):INDIRECT("R"&(ROW()-11+$S60)&"C"&COLUMN(),FALSE)) -> 0
B17: =-SUMIF(B5:INDIRECT("B"&(E60+5)),"<0") -> 0 | C17: =-SUMIF(INDIRECT("R"&(ROW()-7)&"C"&COLUMN(),FALSE):INDIRECT("R"&(ROW()-7+F60)&"C"&COLUMN(),FALSE),"<0") -> 0 | D17: =-SUMIF(INDIRECT("R"&(ROW()-7)&"C"&COLUMN(),FALSE):INDIRECT("R"&(ROW()-7+G60)&"C"&COLUMN(),FALSE),"<0") -> 0 | E17: =-SUMIF(INDIRECT("R"&(ROW()-7)&"C"&COLUMN(),FALSE):INDIRECT("R"&(ROW()-7+H60)&"C"&COLUMN(),FALSE),"<0") -> 0
B18: Gathering Specifications for the McLaren MP4/8 - Asphalt 8 Airborne
C19: UPGRADE | L19: PRO KITS
B20: Init | C20: Accel | E20: Speed | G20: Handling | I20: Nitro | L20: Tires | O20: Suspension | R20: Drivetrain | U20: Exhaust
B21: L0 | C21: Rank | D21: A | E21: Rank | F21: S | G21: Rank | H21: H | I21: Rank | J21: N | L21: Rank | M21: H | N21: S | O21: Rank | P21: N | Q21: H | R21: Rank | S21: A | T21: S | U21: Rank | V21: N | W21: A
A22: LEVEL 1 → | B22: 3 | K22: A | L22: 1251 | M22: 1.302 | N22: 301.9 | O22: 1366 | P22: 29.3 | Q22: 1.345 | R22: 1462 | S22: 2.96 | T22: 341.7 | U22: 1576 | V22: 41.6 | W22: 2.27
A23: LEVEL 2 → | B23: 300.1 | K23: S | L23: 1258 | M23: 1.304 | N23: 304.2 | O23: 1371 | P23: 29.9 | Q23: 1.348 | R23: 1467 | S23: 2.93 | T23: 343.6 | U23: 1581 | V23: 42.2 | W23: 2.24
A24: LEVEL 3 → | B24: 1.3 | K24: H | L24: 1266 | M24: 1.308 | N24: 306.9 | O24: 1377 | P24: 30.7 | Q24: 1.351 | R24: 1475 | S24: 2.88 | T24: 346.4 | U24: 1587 | V24: 43 | W24: 2.19
A25: LEVEL 4 → | B25: 28.6 | K25: N | L25: 1272 | M25: 1.31 | N25: 309.2 | O25: 1383 | P25: 31.4 | Q25: 1.353 | R25: 1482 | S25: 2.84 | T25: 348.7 | U25: 1593 | V25: 43.8 | W25: 2.15
A26: LEVEL 5 → | B26: 1245 | K26: Rank | L26: 1286 | M26: 1.315 | N26: 313.8 | O26: 1394 | P26: 32.9 | Q26: 1.358 | R26: 1495 | S26: 2.76 | T26: 353.2 | U26: 1604 | V26: 45.2 | W26: 2.07
A27: LEVEL 6 → | L27: 1299 | M27: 1.32 | N27: 318.4 | O27: 1405 | P27: 34.3 | Q27: 1.363 | R27: 1509 | S27: 2.68 | T27: 357.8 | U27: 1614 | V27: 46.6 | W27: 1.99
A28: LEVEL 7 → | L28: 1312 | M28: 1.325 | N28: 323 | O28: 1416 | P28: 35.7 | Q28: 1.368 | R28: 1522 | S28: 2.6 | T28: 362.4 | U28: 1625 | V28: 48 | W28: 1.91
A29: LEVEL 8 → | L29: 1326 | M29: 1.33 | N29: 327.5 | O29: 1427 | P29: 37.2 | Q29: 1.373 | R29: 1536 | S29: 2.52 | T29: 367 | U29: 1636 | V29: 49.5 | W29: 1.83
A30: LEVEL 9 → | L30: 1346 | M30: 1.337 | N30: 334.4 | O30: 1443 | P30: 39.3 | Q30: 1.381 | R30: 1556 | S30: 2.4 | T30: 373.8 | U30: 1653 | V30: 51.6 | W30: 1.71
A31: PRO → | D31: =MIN(S31,W31) -> 1.62 | F31: =MAX(N31,T31) -> 379 | H31: =MAX(M31,Q31) -> 1.386 | J31: =MAX(P31,V31) -> 53.2 | L31: 1361 | M31: 1.343 | N31: 339.5 | O31: 1455 | P31: 40.9 | Q31: 1.386 | R31: 1571 | S31: 2.31 | T31: 379 | U31: 1665 | V31: 53.2 | W31: 1.62 | X31: =COUNT(C22:C26) -> 0
A32: PRO+TK → | B32: TK | D32: 1.4 | F32: 391.5 | H32: 1.4 | J32: 57.2 | X32: =COUNT(L22:L31) -> 10
A33: TK only → | D33: =D32-D31 -> -0.22 | F33: =F32-F31 -> 12.5 | H33: =H32-H31 -> 0.014 | J33: =J32-J31 -> 4
AH34: Tokens
B35: Tuning the McLaren MP4/8 - ASPHALT 8 AIRBORNE | Z35: S+N | AA35: =B40+B42+Z51+Z53 -> 328.7 | AB35: =AA35+AB40+AB42 -> 345.2 | AD35: TOTAL Cost | AF35: =AF36+AF37 -> 908660
C36: UPGRADE | L36: PRO KITS | Z36: var | AD36: UPG T Cost | AF36: =SUMIF(B6:E15,">0")*1000 -> 0 | AH36: =-SUMIF(B6:E15,"<0")*1000 -> 0
B37: Init | C37: Accel | E37: Speed | G37: Handling | I37: Nitro | K37: MAX | L37: Tires | O37: Suspension | R37: Drivetrain | U37: Exhaust | X37: PRO | Y37: End | Z37: MAX | AA37: Final | AB37: TK | AD37: PRO T Cost | AF37: =SUM(F6:F15,M6:M15,T6:T15,AA6:AA15)*1000 -> 908660
C38: Rank | D38: A | E38: Rank | F38: S | G38: Rank | H38: H | I38: Rank | J38: N | L38: Rank | M38: H | N38: S | O38: Rank | P38: N | Q38: H | R38: Rank | S38: A | T38: S | U38: Rank | V38: N | W38: A | Z38: PRO | AA38: Value | AB38: Boost | AD38: Current Cost | AF38: =AF39+AF40 -> 0
B39: =B22 -> 3 | K39: =SUM(D39:D48) -> 0 | L39: 6 | M39: 0.002 | N39: 1.8 | O39: 5 | P39: 0.7 | Q39: 0.002 | R39: 7 | S39: -0.04 | T39: 2.2 | U39: 5 | V39: 0.7 | W39: -0.04 | X39: =SUM(S39:S48,W39:W48) -> -1.38 | Y39: A | Z39: =K39+X39 -> -1.38 | AA39: =B39+Z39 -> 1.62 | AB39: =D33 -> -0.22 | AD39: UPG C Cost | AF39: =SUM(B16:E16)*1000 -> 0 | AH39: =SUM(B17:E17)*1000 -> 0
B40: =B23 -> 300.1 | K40: =SUM(F39:F48) -> 0 | L40: 7 | M40: 0.002 | N40: 2.3 | O40: 5 | P40: 0.6 | Q40: 0.003 | R40: 5 | S40: -0.03 | T40: 1.9 | U40: 5 | V40: 0.6 | W40: -0.03 | X40: =SUM(N39:N48,T39:T48) -> 78.9 | Y40: S | Z40: =K40+X40 -> 78.9 | AA40: =B40+Z40 -> 379 | AB40: =F33 -> 12.5 | AD40: PRO C Cost | AF40: =SUM(F16+M16+T16+AA16)*1000 -> 0
B41: =B24 -> 1.3 | K41: =SUM(H39:H48) -> 0 | L41: 8 | M41: 0.004 | N41: 2.7 | O41: 6 | P41: 0.8 | Q41: 0.003 | R41: 8 | S41: -0.05 | T41: 2.8 | U41: 6 | V41: 0.8 | W41: -0.05 | X41: =SUM(M39:M48,Q39:Q48) -> 0.086 | Y41: H | Z41: =K41+X41 -> 0.086 | AA41: =B41+Z41 -> 1.386 | AB41: =H33 -> 0.014 | AD41: Tires | AF41: =G16 -> 0
B42: =B25 -> 28.6 | K42: =SUM(J39:J48) -> 0 | L42: 6 | M42: 0.002 | N42: 2.3 | O42: 6 | P42: 0.7 | Q42: 0.002 | R42: 7 | S42: -0.04 | T42: 2.3 | U42: 6 | V42: 0.8 | W42: -0.04 | X42: =SUM(P39:P48,V39:V48) -> 24.6 | Y42: N | Z42: =K42+X42 -> 24.6 | AA42: =B42+Z42 -> 53.2 | AB42: =J33 -> 4 | AD42: Suspension | AF42: =N16 -> 0
B43: =B26 -> 1245 | K43: =SUM(C39:C48,E39:E48,G39:G48,I39:I48) -> 0 | L43: 14 | M43: 0.005 | N43: 4.6 | O43: 11 | P43: 1.5 | Q43: 0.005 | R43: 13 | S43: -0.08 | T43: 4.5 | U43: 11 | V43: 1.4 | W43: -0.08 | X43: =SUM(L39:L48,O39:O48,R39:R48,U39:U48) -> 420 | Y43: Rank | Z43: =K43+X43 -> 420 | AA43: =B43+Z43 -> 1665 | AB43: 52 | AD43: Drivetrain | AF43: =U16 -> 0
L44: 13 | M44: 0.005 | N44: 4.6 | O44: 11 | P44: 1.4 | Q44: 0.005 | R44: 14 | S44: -0.08 | T44: 4.6 | U44: 10 | V44: 1.4 | W44: -0.08 | AD44: Exhaust | AF44: =AB16 -> 0
L45: 13 | M45: 0.005 | N45: 4.6 | O45: 11 | P45: 1.4 | Q45: 0.005 | R45: 13 | S45: -0.08 | T45: 4.6 | U45: 11 | V45: 1.4 | W45: -0.08 | AD45: Early Tech | AF45: =H16+O16+V16+AC16 -> 0
L46: 14 | M46: 0.005 | N46: 4.5 | O46: 11 | P46: 1.5 | Q46: 0.005 | R46: 14 | S46: -0.08 | T46: 4.6 | U46: 11 | V46: 1.5 | W46: -0.08 | AD46: Initial Tech | AF46: =I16+P16+W16+AD16 -> 0
L47: 20 | M47: 0.007 | N47: 6.9 | O47: 16 | P47: 2.1 | Q47: 0.008 | R47: 20 | S47: -0.12 | T47: 6.8 | U47: 17 | V47: 2.1 | W47: -0.12 | AD47: Mid Tech | AF47: =J16+Q16+X16+AE16 -> 0
L48: 15 | M48: 0.006 | N48: 5.1 | O48: 12 | P48: 1.6 | Q48: 0.005 | R48: 15 | S48: -0.09 | T48: 5.2 | U48: 12 | V48: 1.6 | W48: -0.09 | AD48: Adv Tech | AF48: =K16+R16+Y16+AF16 -> 0
B49: TK | D49: =D32-D26 -> 1.4 | F49: =F32-F26 -> 391.5 | H49: =H32-H26 -> 1.4 | J49: =J32-J26 -> 57.2 | AB49: Final | AC49: MPTK | AD49: Engines | AF49: =L16+S16+Z16+AG16 -> 0 | AG49: SR
A50: 0 | B50: A | K50: =SUM(D50:D59) -> 0 | L50: =IF(proT>$A50,L39,"") ->  | O50: =IF(proS>$A50,O39,"") ->  | R50: =IF(proD>$A50,R39,"") ->  | U50: =IF(proE>$A50,U39,"") ->  | X50: =SUM(S50:S59,W50:W59) -> 0 | Y50: =B39+K50+X50 -> 3 | Z50: =K50+X50 -> 0 | AA50: =Z50/Z39 -> 0 | AB50: =Y50+AB39 -> 2.78 | AC50: 1.4
A51: 1 | B51: S | K51: =SUM(F50:F59) -> 0 | X51: =SUM(N50:N59,T50:T59) -> 0 | Y51: =B40+K51+X51 -> 300.1 | Z51: =K51+X51 -> 0 | AA51: =Z51/Z40 -> 0 | AB51: =Y51+AB40 -> 312.6 | AC51: 295.8
A52: 2 | B52: H | K52: =SUM(H50:H59) -> 0 | X52: =SUM(M50:M59,Q50:Q59) -> 0 | Y52: =B41+K52+X52 -> 1.3 | Z52: =K52+X52 -> 0 | AA52: =Z52/Z41 -> 0 | AB52: =Y52+AB41 -> 1.314 | AC52: 1.25
A53: 3 | B53: N | K53: =SUM(J50:J59) -> 0 | X53: =SUM(P50:P59,V50:V59) -> 0 | Y53: =B42+K53+X53 -> 28.6 | Z53: =K53+X53 -> 0 | AA53: =Z58/Z42 -> 0 | AB53: =Y53+AB42 -> 32.6
A54: 4
A55: 5
A56: 6
A57: 7
A58: 8 | AC58: 114.3
A59: 9 | B59: Rank | K59: =SUM(C50:C59,E50:E59,G50:G59,I50:I59) -> 0 | X59: =SUM(L50:L59,O50:O59,R50:R59,U50:U59) -> 0 | Y59: =B43+K59+X59 -> 1245 | Z59: =K59+X59 -> 0 | AA59: =Z59/Z43 -> 0 | AB59: =AB43+Y59 -> 1297
A60: INPUT → | X60: Speed+Nitro | Z60: =Z51+Z53 -> 0 | AA60: =Z60/(Z40+Z42) -> 0 | AB60: =IF(AA59=0,"",AA60/AA59-1) -> 
P62: 0 | Q62: 0 | R62: 0 | S62: 0
P63: =SUM(N$38,OFFSET(N$38,0,0,P62+1,1)) -> 0 | Q63: =SUM(P$38,OFFSET(P$38,0,0,Q62+1,1)) -> 0 | R63: =SUM(T$38,OFFSET(T$38,0,0,R62+1,1)) -> 0 | S63: =SUM(V$38,OFFSET(V$38,0,0,S62+1,1)) -> 0 | U63: =P63+Q63+R63+S63+B40+B42+AB40+AB42 -> 345.2 | W63: Total Spd
P64: =SUM(L$38,OFFSET(L$38,0,0,P62+1,1)) -> 0 | Q64: =SUM(O$38,OFFSET(O$38,0,0,Q62+1,1)) -> 0 | R64: =SUM(R$38,OFFSET(R$38,0,0,R62+1,1)) -> 0 | S64: =SUM(U$38,OFFSET(U$38,0,0,S62+1,1)) -> 0 | U64: =B43+P64+Q64+R64+S64 -> 1245 | W64: Rank

Sheet M14A (hidden)
B2: Gathering Prices & Parts for the Class C McLaren M14A (#0xAB) - Asphalt 8 Airborne
B3: UPGRADE | F3: PRO KITS
B4: Acc | C4: Spd | D4: Hnd | E4: Ntr | F4: Tires | M4: Suspension | T4: Drivetrain | AA4: Exhaust
B5: Cost | F5: Cost | G5: Part | H5: Early | I5: Init | J5: Mid | K5: Adv | L5: Engn | M5: Cost | N5: Part | O5: Early | P5: Init | Q5: Mid | R5: Adv | S5: Engn | T5: Cost | U5: Part | V5: Early | W5: Init | X5: Mid | Y5: Adv | Z5: Engn | AA5: Cost | AB5: Part | AC5: Early | AD5: Init | AE5: Mid | AF5: Adv | AG5: Engn
A6: TO L1 → | F6: 5.35 | L6: 1 | M6: 4.15 | S6: 1 | T6: 5.35 | Z6: 1 | AA6: 4.675 | AG6: 1
A7: TO L2 → | F7: 6.7 | L7: 1 | M7: 5.2 | S7: 1 | T7: 6.7 | Z7: 1 | AA7: 5.85 | AG7: 1
A8: TO L3 → | F8: 8.375 | L8: 1 | M8: 6.5 | S8: 1 | T8: 8.375 | Z8: 1 | AA8: 7.325 | AG8: 1
A9: TO L4 → | F9: 10.475 | G9: 1 | L9: 1 | M9: 8.125 | N9: 1 | S9: 1 | T9: 10.475 | U9: 1 | Z9: 1 | AA9: 9.15 | AB9: 1 | AG9: 1
A10: TO L5 → | F10: 13.1 | G10: 1 | I10: 1 | L10: 1 | M10: 10.15 | N10: 1 | O10: 1 | S10: 1 | T10: 13.1 | U10: 1 | W10: 1 | Z10: 1 | AA10: 11.45 | AB10: 1 | AC10: 1 | AG10: 1
A11: TO L6 → | F11: 16.375 | G11: 1 | I11: 1 | L11: 1 | M11: 12.7 | N11: 1 | O11: 1 | S11: 1 | T11: 16.375 | U11: 1 | W11: 1 | Z11: 1 | AA11: 14.325 | AB11: 1 | AC11: 1 | AG11: 1
A12: TO L7 → | F12: 20.475 | G12: 1 | I12: 1 | L12: 1 | M12: 15.875 | N12: 1 | O12: 1 | S12: 1 | T12: 20.475 | U12: 1 | W12: 1 | Z12: 1 | AA12: 17.9 | AB12: 1 | AC12: 1 | AG12: 1
A13: TO L8 → | F13: 25.6 | G13: 2 | I13: 1 | L13: 1 | M13: 19.85 | N13: 2 | O13: 1 | S13: 1 | T13: 25.6 | U13: 2 | W13: 1 | Z13: 1 | AA13: 22.375 | AB13: 2 | AC13: 1 | AG13: 1
A14: TO L9 → | F14: 32 | G14: 2 | J14: 1 | L14: 1 | M14: 24.825 | N14: 2 | Q14: 1 | S14: 1 | T14: 32 | U14: 2 | X14: 1 | Z14: 1 | AA14: 27.975 | AB14: 2 | AE14: 1 | AG14: 1
A15: TO PRO → | F15: 40 | G15: 2 | J15: 2 | L15: 1 | M15: 31.025 | N15: 2 | Q15: 2 | S15: 1 | T15: 40 | U15: 2 | X15: 2 | Z15: 1 | AA15: 34.975 | AB15: 2 | AE15: 2 | AG15: 1
A16: Totals | B16: =SUMIF(B5:INDIRECT("B"&(E60+5)),">0") -> 0 | C16: =SUMIF(INDIRECT("R"&(ROW()-6)&"C"&COLUMN(),FALSE):INDIRECT("R"&(ROW()-6+F60)&"C"&COLUMN(),FALSE),">0") -> 0 | D16: =SUMIF(INDIRECT("R"&(ROW()-6)&"C"&COLUMN(),FALSE):INDIRECT("R"&(ROW()-6+G60)&"C"&COLUMN(),FALSE),">0") -> 0 | E16: =SUMIF(INDIRECT("R"&(ROW()-6)&"C"&COLUMN(),FALSE):INDIRECT("R"&(ROW()-6+H60)&"C"&COLUMN(),FALSE),">0") -> 0 | F16: =SUM(INDIRECT("R"&(ROW()-11)&"C"&COLUMN(),FALSE):INDIRECT("R"&(ROW()-11+$P60)&"C"&COLUMN(),FALSE)) -> 0 | G16: =SUM(INDIRECT("R"&(ROW()-11)&"C"&COLUMN(),FALSE):INDIRECT("R"&(ROW()-11+$P60)&"C"&COLUMN(),FALSE)) -> 0 | H16: =SUM(INDIRECT("R"&(ROW()-11)&"C"&COLUMN(),FALSE):INDIRECT("R"&(ROW()-11+$P60)&"C"&COLUMN(),FALSE)) -> 0 | I16: =SUM(INDIRECT("R"&(ROW()-11)&"C"&COLUMN(),FALSE):INDIRECT("R"&(ROW()-11+$P60)&"C"&COLUMN(),FALSE)) -> 0 | J16: =SUM(INDIRECT("R"&(ROW()-11)&"C"&COLUMN(),FALSE):INDIRECT("R"&(ROW()-11+$P60)&"C"&COLUMN(),FALSE)) -> 0 | K16: =SUM(INDIRECT("R"&(ROW()-11)&"C"&COLUMN(),FALSE):INDIRECT("R"&(ROW()-11+$P60)&"C"&COLUMN(),FALSE)) -> 0 | L16: =SUM(INDIRECT("R"&(ROW()-11)&"C"&COLUMN(),FALSE):INDIRECT("R"&(ROW()-11+$P60)&"C"&COLUMN(),FALSE)) -> 0 | M16: =SUM(INDIRECT("R"&(ROW()-11)&"C"&COLUMN(),FALSE):INDIRECT("R"&(ROW()-11+$Q60)&"C"&COLUMN(),FALSE)) -> 0 | N16: =SUM(INDIRECT("R"&(ROW()-11)&"C"&COLUMN(),FALSE):INDIRECT("R"&(ROW()-11+$Q60)&"C"&COLUMN(),FALSE)) -> 0 | O16: =SUM(INDIRECT("R"&(ROW()-11)&"C"&COLUMN(),FALSE):INDIRECT("R"&(ROW()-11+$Q60)&"C"&COLUMN(),FALSE)) -> 0 | P16: =SUM(INDIRECT("R"&(ROW()-11)&"C"&COLUMN(),FALSE):INDIRECT("R"&(ROW()-11+$Q60)&"C"&COLUMN(),FALSE)) -> 0 | Q16: =SUM(INDIRECT("R"&(ROW()-11)&"C"&COLUMN(),FALSE):INDIRECT("R"&(ROW()-11+$Q60)&"C"&COLUMN(),FALSE)) -> 0 | R16: =SUM(INDIRECT("R"&(ROW()-11)&"C"&COLUMN(),FALSE):INDIRECT("R"&(ROW()-11+$Q60)&"C"&COLUMN(),FALSE)) -> 0 | S16: =SUM(INDIRECT("R"&(ROW()-11)&"C"&COLUMN(),FALSE):INDIRECT("R"&(ROW()-11+$Q60)&"C"&COLUMN(),FALSE)) -> 0 | T16: =SUM(INDIRECT("R"&(ROW()-11)&"C"&COLUMN(),FALSE):INDIRECT("R"&(ROW()-11+$R60)&"C"&COLUMN(),FALSE)) -> 0 | U16: =SUM(INDIRECT("R"&(ROW()-11)&"C"&COLUMN(),FALSE):INDIRECT("R"&(ROW()-11+$R60)&"C"&COLUMN(),FALSE)) -> 0 | V16: =SUM(INDIRECT("R"&(ROW()-11)&"C"&COLUMN(),FALSE):INDIRECT("R"&(ROW()-11+$R60)&"C"&COLUMN(),FALSE)) -> 0 | W16: =SUM(INDIRECT("R"&(ROW()-11)&"C"&COLUMN(),FALSE):INDIRECT("R"&(ROW()-11+$R60)&"C"&COLUMN(),FALSE)) -> 0 | X16: =SUM(INDIRECT("R"&(ROW()-11)&"C"&COLUMN(),FALSE):INDIRECT("R"&(ROW()-11+$R60)&"C"&COLUMN(),FALSE)) -> 0 | Y16: =SUM(INDIRECT("R"&(ROW()-11)&"C"&COLUMN(),FALSE):INDIRECT("R"&(ROW()-11+$R60)&"C"&COLUMN(),FALSE)) -> 0 | Z16: =SUM(INDIRECT("R"&(ROW()-11)&"C"&COLUMN(),FALSE):INDIRECT("R"&(ROW()-11+$R60)&"C"&COLUMN(),FALSE)) -> 0 | AA16: =SUM(INDIRECT("R"&(ROW()-11)&"C"&COLUMN(),FALSE):INDIRECT("R"&(ROW()-11+$S60)&"C"&COLUMN(),FALSE)) -> 0 | AB16: =SUM(INDIRECT("R"&(ROW()-11)&"C"&COLUMN(),FALSE):INDIRECT("R"&(ROW()-11+$S60)&"C"&COLUMN(),FALSE)) -> 0 | AC16: =SUM(INDIRECT("R"&(ROW()-11)&"C"&COLUMN(),FALSE):INDIRECT("R"&(ROW()-11+$S60)&"C"&COLUMN(),FALSE)) -> 0 | AD16: =SUM(INDIRECT("R"&(ROW()-11)&"C"&COLUMN(),FALSE):INDIRECT("R"&(ROW()-11+$S60)&"C"&COLUMN(),FALSE)) -> 0 | AE16: =SUM(INDIRECT("R"&(ROW()-11)&"C"&COLUMN(),FALSE):INDIRECT("R"&(ROW()-11+$S60)&"C"&COLUMN(),FALSE)) -> 0 | AF16: =SUM(INDIRECT("R"&(ROW()-11)&"C"&COLUMN(),FALSE):INDIRECT("R"&(ROW()-11+$S60)&"C"&COLUMN(),FALSE)) -> 0 | AG16: =SUM(INDIRECT("R"&(ROW()-11)&"C"&COLUMN(),FALSE):INDIRECT("R"&(ROW()-11+$S60)&"C"&COLUMN(),FALSE)) -> 0
B17: =-SUMIF(B5:INDIRECT("B"&(E60+5)),"<0") -> 0 | C17: =-SUMIF(INDIRECT("R"&(ROW()-7)&"C"&COLUMN(),FALSE):INDIRECT("R"&(ROW()-7+F60)&"C"&COLUMN(),FALSE),"<0") -> 0 | D17: =-SUMIF(INDIRECT("R"&(ROW()-7)&"C"&COLUMN(),FALSE):INDIRECT("R"&(ROW()-7+G60)&"C"&COLUMN(),FALSE),"<0") -> 0 | E17: =-SUMIF(INDIRECT("R"&(ROW()-7)&"C"&COLUMN(),FALSE):INDIRECT("R"&(ROW()-7+H60)&"C"&COLUMN(),FALSE),"<0") -> 0
B18: Gathering Specifications for the McLaren M14A - Asphalt 8 Airborne
C19: UPGRADE | L19: PRO KITS
B20: Init | C20: Accel | E20: Speed | G20: Handling | I20: Nitro | L20: Tires | O20: Suspension | R20: Drivetrain | U20: Exhaust
B21: L0 | C21: Rank | D21: A | E21: Rank | F21: S | G21: Rank | H21: H | I21: Rank | J21: N | L21: Rank | M21: H | N21: S | O21: Rank | P21: N | Q21: H | R21: Rank | S21: A | T21: S | U21: Rank | V21: N | W21: A
A22: LEVEL 1 → | B22: 3 | K22: A | L22: 989 | M22: 1.302 | N22: 262.3 | O22: 1150 | P22: 24.9 | Q22: 1.345 | R22: 1275 | S22: 2.96 | T22: 309.5 | U22: 1434 | V22: 35.3 | W22: 2.27
A23: LEVEL 2 → | B23: 260.1 | K23: S | L23: 998 | M23: 1.304 | N23: 265 | O23: 1156 | P23: 25.4 | Q23: 1.348 | R23: 1283 | S23: 2.93 | T23: 311.8 | U23: 1440 | V23: 35.9 | W23: 2.24
A24: LEVEL 3 → | B24: 1.3 | K24: H | L24: 1010 | M24: 1.308 | N24: 268.2 | O24: 1165 | P24: 26.1 | Q24: 1.351 | R24: 1294 | S24: 2.88 | T24: 315.1 | U24: 1449 | V24: 36.6 | W24: 2.19
A25: LEVEL 4 → | B25: 24.3 | K25: N | L25: 1019 | M25: 1.31 | N25: 270.9 | O25: 1172 | P25: 26.7 | Q25: 1.353 | R25: 1303 | S25: 2.84 | T25: 317.8 | U25: 1456 | V25: 37.2 | W25: 2.15
A26: LEVEL 5 → | B26: 981 | K26: Rank | L26: 1038 | M26: 1.315 | N26: 276.4 | O26: 1186 | P26: 27.9 | Q26: 1.358 | R26: 1322 | S26: 2.76 | T26: 323.2 | U26: 1470 | V26: 38.4 | W26: 2.07
A27: LEVEL 6 → | L27: 1057 | M27: 1.32 | N27: 281.8 | O27: 1200 | P27: 29.2 | Q27: 1.363 | R27: 1341 | S27: 2.68 | T27: 328.6 | U27: 1484 | V27: 39.6 | W27: 1.99
A28: LEVEL 7 → | L28: 1075 | M28: 1.325 | N28: 287.2 | O28: 1214 | P28: 30.4 | Q28: 1.368 | R28: 1359 | S28: 2.6 | T28: 334.1 | U28: 1498 | V28: 40.8 | W28: 1.91
A29: LEVEL 8 → | L29: 1094 | M29: 1.33 | N29: 292.7 | O29: 1228 | P29: 31.6 | Q29: 1.373 | R29: 1378 | S29: 2.52 | T29: 339.5 | U29: 1513 | V29: 42.1 | W29: 1.83
A30: LEVEL 9 → | L30: 1122 | M30: 1.337 | N30: 300.8 | O30: 1250 | P30: 33.4 | Q30: 1.381 | R30: 1406 | S30: 2.4 | T30: 347.6 | U30: 1534 | V30: 43.9 | W30: 1.71
A31: PRO → | D31: =MIN(S31,W31) -> 1.62 | F31: =MAX(N31,T31) -> 353.7 | H31: =MAX(M31,Q31) -> 1.386 | J31: =MAX(P31,V31) -> 45.2 | L31: 1143 | M31: 1.343 | N31: 306.9 | O31: 1266 | P31: 34.8 | Q31: 1.386 | R31: 1428 | S31: 2.31 | T31: 353.7 | U31: 1550 | V31: 45.2 | W31: 1.62 | X31: =COUNT(C22:C26) -> 0
A32: PRO+TK → | B32: TK | D32: 1.4 | F32: 368.7 | H32: 1.4 | J32: 48.6 | X32: =COUNT(L22:L31) -> 10
A33: TK only → | D33: =D32-D31 -> -0.22 | F33: =F32-F31 -> 15 | H33: =H32-H31 -> 0.014 | J33: =J32-J31 -> 3.4
AH34: Tokens
B35: Tuning the McLaren M14A - ASPHALT 8 AIRBORNE | Z35: S+N | AA35: =B40+B42+Z51+Z53 -> 284.4 | AB35: =AA35+AB40+AB42 -> 302.8 | AD35: TOTAL Cost | AF35: =AF36+AF37 -> 651300
C36: UPGRADE | L36: PRO KITS | Z36: var | AD36: UPG T Cost | AF36: =SUMIF(B6:E15,">0")*1000 -> 0 | AH36: =-SUMIF(B6:E15,"<0")*1000 -> 0
B37: Init | C37: Accel | E37: Speed | G37: Handling | I37: Nitro | K37: MAX | L37: Tires | O37: Suspension | R37: Drivetrain | U37: Exhaust | X37: PRO | Y37: End | Z37: MAX | AA37: Final | AB37: TK | AD37: PRO T Cost | AF37: =SUM(F6:F15,M6:M15,T6:T15,AA6:AA15)*1000 -> 651300
C38: Rank | D38: A | E38: Rank | F38: S | G38: Rank | H38: H | I38: Rank | J38: N | L38: Rank | M38: H | N38: S | O38: Rank | P38: N | Q38: H | R38: Rank | S38: A | T38: S | U38: Rank | V38: N | W38: A | Z38: PRO | AA38: Value | AB38: Boost | AD38: Current Cost | AF38: =AF39+AF40 -> 0
B39: =B22 -> 3 | K39: =SUM(D39:D48) -> 0 | L39: 8 | M39: 0.002 | N39: 2.2 | O39: 7 | P39: 0.6 | Q39: 0.002 | R39: 9 | S39: -0.04 | T39: 2.6 | U39: 6 | V39: 0.5 | W39: -0.04 | X39: =SUM(S39:S48,W39:W48) -> -1.38 | Y39: A | Z39: =K39+X39 -> -1.38 | AA39: =B39+Z39 -> 1.62 | AB39: =D33 -> -0.22 | AD39: UPG C Cost | AF39: =SUM(B16:E16)*1000 -> 0 | AH39: =SUM(B17:E17)*1000 -> 0
B40: =B23 -> 260.1 | K40: =SUM(F39:F48) -> 0 | L40: 9 | M40: 0.002 | N40: 2.7 | O40: 6 | P40: 0.5 | Q40: 0.003 | R40: 8 | S40: -0.03 | T40: 2.3 | U40: 6 | V40: 0.6 | W40: -0.03 | X40: =SUM(N39:N48,T39:T48) -> 93.6 | Y40: S | Z40: =K40+X40 -> 93.6 | AA40: =B40+Z40 -> 353.7 | AB40: =F33 -> 15 | AD40: PRO C Cost | AF40: =SUM(F16+M16+T16+AA16)*1000 -> 0
B41: =B24 -> 1.3 | K41: =SUM(H39:H48) -> 0 | L41: 12 | M41: 0.004 | N41: 3.2 | O41: 9 | P41: 0.7 | Q41: 0.003 | R41: 11 | S41: -0.05 | T41: 3.3 | U41: 9 | V41: 0.7 | W41: -0.05 | X41: =SUM(M39:M48,Q39:Q48) -> 0.086 | Y41: H | Z41: =K41+X41 -> 0.086 | AA41: =B41+Z41 -> 1.386 | AB41: =H33 -> 0.014 | AD41: Tires | AF41: =G16 -> 0
B42: =B25 -> 24.3 | K42: =SUM(J39:J48) -> 0 | L42: 9 | M42: 0.002 | N42: 2.7 | O42: 7 | P42: 0.6 | Q42: 0.002 | R42: 9 | S42: -0.04 | T42: 2.7 | U42: 7 | V42: 0.6 | W42: -0.04 | X42: =SUM(P39:P48,V39:V48) -> 20.9 | Y42: N | Z42: =K42+X42 -> 20.9 | AA42: =B42+Z42 -> 45.2 | AB42: =J33 -> 3.4 | AD42: Suspension | AF42: =N16 -> 0
B43: =B26 -> 981 | K43: =SUM(C39:C48,E39:E48,G39:G48,I39:I48) -> 0 | L43: 19 | M43: 0.005 | N43: 5.5 | O43: 14 | P43: 1.2 | Q43: 0.005 | R43: 19 | S43: -0.08 | T43: 5.4 | U43: 14 | V43: 1.2 | W43: -0.08 | X43: =SUM(L39:L48,O39:O48,R39:R48,U39:U48) -> 569 | Y43: Rank | Z43: =K43+X43 -> 569 | AA43: =B43+Z43 -> 1550 | AB43: 65 | AD43: Drivetrain | AF43: =U16 -> 0
L44: 19 | M44: 0.005 | N44: 5.4 | O44: 14 | P44: 1.3 | Q44: 0.005 | R44: 19 | S44: -0.08 | T44: 5.4 | U44: 14 | V44: 1.2 | W44: -0.08 | AD44: Exhaust | AF44: =AB16 -> 0
L45: 18 | M45: 0.005 | N45: 5.4 | O45: 14 | P45: 1.2 | Q45: 0.005 | R45: 18 | S45: -0.08 | T45: 5.5 | U45: 14 | V45: 1.2 | W45: -0.08 | AD45: Early Tech | AF45: =H16+O16+V16+AC16 -> 0
L46: 19 | M46: 0.005 | N46: 5.5 | O46: 14 | P46: 1.2 | Q46: 0.005 | R46: 19 | S46: -0.08 | T46: 5.4 | U46: 15 | V46: 1.3 | W46: -0.08 | AD46: Initial Tech | AF46: =I16+P16+W16+AD16 -> 0
L47: 28 | M47: 0.007 | N47: 8.1 | O47: 22 | P47: 1.8 | Q47: 0.008 | R47: 28 | S47: -0.12 | T47: 8.1 | U47: 21 | V47: 1.8 | W47: -0.12 | AD47: Mid Tech | AF47: =J16+Q16+X16+AE16 -> 0
L48: 21 | M48: 0.006 | N48: 6.1 | O48: 16 | P48: 1.4 | Q48: 0.005 | R48: 22 | S48: -0.09 | T48: 6.1 | U48: 16 | V48: 1.3 | W48: -0.09 | AD48: Adv Tech | AF48: =K16+R16+Y16+AF16 -> 0
B49: TK | D49: =D32-D26 -> 1.4 | F49: =F32-F26 -> 368.7 | H49: =H32-H26 -> 1.4 | J49: =J32-J26 -> 48.6 | AB49: Final | AC49: MPTK | AD49: Engines | AF49: =L16+S16+Z16+AG16 -> 0 | AG49: SR
A50: 0 | B50: A | K50: =SUM(D50:D59) -> 0 | L50: =IF(proT>$A50,L39,"") ->  | O50: =IF(proS>$A50,O39,"") ->  | R50: =IF(proD>$A50,R39,"") ->  | U50: =IF(proE>$A50,U39,"") ->  | X50: =SUM(S50:S59,W50:W59) -> 0 | Y50: =B39+K50+X50 -> 3 | Z50: =K50+X50 -> 0 | AA50: =Z50/Z39 -> 0 | AB50: =Y50+AB39 -> 2.78 | AC50: 1.4
A51: 1 | B51: S | K51: =SUM(F50:F59) -> 0 | X51: =SUM(N50:N59,T50:T59) -> 0 | Y51: =B40+K51+X51 -> 260.1 | Z51: =K51+X51 -> 0 | AA51: =Z51/Z40 -> 0 | AB51: =Y51+AB40 -> 275.1 | AC51: 295.8
A52: 2 | B52: H | K52: =SUM(H50:H59) -> 0 | X52: =SUM(M50:M59,Q50:Q59) -> 0 | Y52: =B41+K52+X52 -> 1.3 | Z52: =K52+X52 -> 0 | AA52: =Z52/Z41 -> 0 | AB52: =Y52+AB41 -> 1.314 | AC52: 1.25
A53: 3 | B53: N | K53: =SUM(J50:J59) -> 0 | X53: =SUM(P50:P59,V50:V59) -> 0 | Y53: =B42+K53+X53 -> 24.3 | Z53: =K53+X53 -> 0 | AA53: =Z58/Z42 -> 0 | AB53: =Y53+AB42 -> 27.7
A54: 4
A55: 5
A56: 6
A57: 7
A58: 8 | AC58: 114.3
A59: 9 | B59: Rank | K59: =SUM(C50:C59,E50:E59,G50:G59,I50:I59) -> 0 | X59: =SUM(L50:L59,O50:O59,R50:R59,U50:U59) -> 0 | Y59: =B43+K59+X59 -> 981 | Z59: =K59+X59 -> 0 | AA59: =Z59/Z43 -> 0 | AB59: =AB43+Y59 -> 1046
A60: INPUT → | X60: Speed+Nitro | Z60: =Z51+Z53 -> 0 | AA60: =Z60/(Z40+Z42) -> 0 | AB60: =IF(AA59=0,"",AA60/AA59-1) -> 
P62: 0 | Q62: 0 | R62: 0 | S62: 0
P63: =SUM(N$38,OFFSET(N$38,0,0,P62+1,1)) -> 0 | Q63: =SUM(P$38,OFFSET(P$38,0,0,Q62+1,1)) -> 0 | R63: =SUM(T$38,OFFSET(T$38,0,0,R62+1,1)) -> 0 | S63: =SUM(V$38,OFFSET(V$38,0,0,S62+1,1)) -> 0 | U63: =P63+Q63+R63+S63+B40+B42+AB40+AB42 -> 302.8 | W63: Total Spd
P64: =SUM(L$38,OFFSET(L$38,0,0,P62+1,1)) -> 0 | Q64: =SUM(O$38,OFFSET(O$38,0,0,Q62+1,1)) -> 0 | R64: =SUM(R$38,OFFSET(R$38,0,0,R62+1,1)) -> 0 | S64: =SUM(U$38,OFFSET(U$38,0,0,S62+1,1)) -> 0 | U64: =B43+P64+Q64+R64+S64 -> 981 | W64: Rank

Sheet Tbl_Mastery (hidden)
D1: TO | E1: PC | F1: TK | G1: NS | H1: ET | J1: DC | K1: US | L1: UA | M1: UB | N1: UC | O1: UD
D2: Token | E2: Pro Card | F2: Tuning Kit | G2: Nitro Starter | H2: Extra Tank | I2: License | J2: Double Credit | K2: Class S upgrade | L2: Class A upgrade | M2: Class B upgrade | N2: Class C upgrade | O2: Class D upgrade | P2: Delta New Update
D3: =SUM(D4:D203) -> 9535 | E3: 282 | F3: 165 | G3: 179 | H3: 75 | I3: 6031 | J3: 17 | K3: 10 | L3: 16 | M3: 15 | N3: 18 | O3: 13
B4: 1967 Chevrolet Impala | C4: D | F4: 2 | I4: 18 | Q4: =TRIM(CONCATENATE(IF(D4="","",CONCATENATE(" ",D4," ",D$1)),IF(E4="","",CONCATENATE(" ",E4," ",E$1)),IF(F4="","",CONCATENATE(" ",F4," ",F$1)),IF(G4="","",CONCATENATE(" ",G4," ",G$1)),IF(H4="","",CONCATENATE(" ",H4," ",H$1)),IF(J4="","",CONCATENATE(" ",J4," ",J$1)),IF(K4="","",CONCATENATE(" ",K4," ",K$1)),IF(L4="","",CONCATENATE(" ",L4," ",L$1)),IF(M4="","",CONCATENATE(" ",M4," ",M$1)),IF(N4="","",CONCATENATE(" ",N4," ",N$1)),IF(O4="","",CONCATENATE(" ",O4," ",O$1)))) -> 2 TK
B5: 2010 Bentley Continental Supersports | C5: B | F5: 4 | I5: 35 | Q5: 4 TK
B6: 2015 Ford Mustang | C6: D | I6: 15 | O6: 2 | Q6: =TRIM(CONCATENATE(IF(D6="","",CONCATENATE(" ",D6," ",D$1)),IF(E6="","",CONCATENATE(" ",E6," ",E$1)),IF(F6="","",CONCATENATE(" ",F6," ",F$1)),IF(G6="","",CONCATENATE(" ",G6," ",G$1)),IF(H6="","",CONCATENATE(" ",H6," ",H$1)),IF(J6="","",CONCATENATE(" ",J6," ",J$1)),IF(K6="","",CONCATENATE(" ",K6," ",K$1)),IF(L6="","",CONCATENATE(" ",L6," ",L$1)),IF(M6="","",CONCATENATE(" ",M6," ",M$1)),IF(N6="","",CONCATENATE(" ",N6," ",N$1)),IF(O6="","",CONCATENATE(" ",O6," ",O$1)))) -> 2 UD
B7: 2015 GTA Spano | C7: S | I7: 100
B8: 9FF GT9 VMAX | C8: S | D8: 150 | I8: 43 | Q8: 150 TO
B9: AC 378 GT Z | C9: C | I9: 32 | J9: 1 | Q9: 1 DC
B10: Acura NSX 2005 | C10: C | E10: 8 | I10: 27 | Q10: 8 PC
B11: Alfa Romeo 4C | C11: D | H11: 2 | I11: 25 | Q11: 2 ET
B12: Alfa Romeo 8C Competizione | C12: C | I12: 19 | N12: 1 | Q12: 1 UC
B13: Alfa Romeo Giulietta 2016 Veloce | C13: D | D13: 75 | G13: 1 | I13: 16 | N13: 1 | Q13: 75 TO 1 NS 1 UC
B14: Alfa Romeo MiTo GTA | C14: D | F14: 2 | G14: 1 | I14: 11 | Q14: 2 TK 1 NS
B15: Arash AF10 | C15: S | D15: 500 | I15: 71 | J15: 1 | Q15: 500 TO 1 DC
B16: Arrinera Hussarya | C16: B | H16: 1 | I16: 29 | Q16: 1 ET
B17: Aston Martin DB9 Coupé | C17: B | G17: 1 | I17: 9 | M17: 1 | Q17: 1 NS 1 UB
B18: Aston Martin One-77 | C18: A | D18: 250 | E18: 30 | I18: 52 | Q18: 250 TO 30 PC
B19: Aston Martin V12 Vantage | C19: B | F19: 2 | I19: 19 | Q19: 2 TK
B20: Aston Martin V12 Zagato | C20: B | F20: 2 | I20: 12 | M20: 1 | P20: 1XB | Q20: 2 TK 1 UB
B21: Aston Martin Vulcan | C21: S | D21: 300 | I21: 67 | Q21: 300 TO
B22: Audi R8 e-tron | C22: D | F22: 1 | I22: 4 | N22: 1 | Q22: 1 TK 1 UC
B23: Audi R8 LMS Ultra | C23: B | H23: 2 | I23: 31 | Q23: 2 ET
B24: Audi RS 3 Sportback | C24: C | F24: 1 | I24: 4 | N24: 1 | Q24: 1 TK 1 UC
B25: Audi RS 4 Avant | C25: C | I25: 19 | N25: 1 | Q25: 1 UC
B26: Audi S4 | C26: D | G26: 1 | H26: 1 | I26: 12 | Q26: 1 NS 1 ET
B27: Audi TTS Coupé | C27: C | F27: 1 | I27: 8 | N27: 1 | Q27: 1 TK 1 UC
B28: Bentley Continental GT V8 | C28: B | F28: 2 | I28: 17 | Q28: 2 TK
B29: Bentley EXP10 Speed 6 | C29: A | D29: 75 | I29: 47 | Q29: 75 TO
B30: BMW 3.0 CSL Hommage | C30: A | D30: 200 | E30: 30 | I30: =10+40 -> 50 | Q30: 200 TO 30 PC
B31: BMW M1 | C31: C | I31: 29 | N31: 1 | P31: 1xC | Q31: 1 UC
B32: BMW M2 | C32: C | D32: 75 | G32: 4 | I32: 29 | Q32: 75 TO 4 NS
B33: BMW M3 Sedan | C33: D | I33: 18 | N33: 1 | P33: 1xC | Q33: 1 UC
B34: BMW M6 | C34: B | G34: 3 | I34: 22 | Q34: 3 NS
B35: Bugatti 16.4 Grand Sport Vitesse | C35: S | G35: 2 | H35: 1 | I35: 31 | Q35: 2 NS 1 ET
B36: Buick Avista Concept | C36: D | G36: 3 | I36: 26 | Q36: 3 NS
B37: BXR Bailey Blade GT1 | C37: B | D37: 120 | I37: 32 | Q37: 120 TO
B38: Cadillac 16 Concept | C38: S | F38: 8 | G38: 18 | H38: 16 | Q38: 8 TK 18 NS 16 ET
B39: Cadillac ATS | C39: D | F39: 1 | I39: 11 | N39: 1 | Q39: 1 TK 1 UC
B40: Cadillac ATS-V Coupe | C40: C | F40: 3 | H40: 1 | I40: 28 | Q40: 3 TK 1 ET
B41: Cadillac CTS-V Coupe Race Car | C41: A | G41: 2 | I41: 19 | L41: 1 | Q41: 2 NS 1 UA
B42: Cadillac XTS | C42: D | F42: 2 | G42: 1 | I42: 11 | Q42: 2 TK 1 NS
B43: Camaro Z/28 | C43: D | F43: 4 | G43: 6 | H43: 3 | P43: 18xNS;12xTK;9xET | Q43: 4 TK 6 NS 3 ET
B44: Chevrolet 2016 Camaro SS | C44: A | D44: 200 | I44: 45 | Q44: 200 TO
B45: Chevrolet Camaro GS | C45: C | G45: 1 | I45: 7 | N45: 1 | Q45: 1 NS 1 UC
B46: Chevrolet Corvette C3 | C46: A | D46: 200 | I46: 44 | Q46: 200 TO
B47: Chevrolet Corvette C7 | C47: A | F47: 1 | I47: 23 | L47: 1 | P47: 1xA | Q47: 1 TK 1 UA
B48: Chevrolet Corvette Grand Sport | C48: A | G48: 4 | I48: 53 | Q48: 4 NS
B49: Chevrolet SS | C49: B | H49: 2 | I49: 34 | Q49: 2 ET
B50: Chrysler ME412 | C50: S | D50: 50 | I50: 40 | Q50: 50 TO
B51: Datsun 280Z | C51: C | F51: 8 | G51: 12 | H51: 6 | P51: 12xNS;8TK; 6xET | Q51: 8 TK 12 NS 6 ET
B52: Devel Sixteen Prototype | C52: S | I52: =10+10+50 -> 70 | J52: 2 | Q52: 2 DC
B53: Dodge Dart GT | C53: D | F53: 1 | I53: 4 | O53: 2 | Q53: =TRIM(CONCATENATE(IF(D53="","",CONCATENATE(" ",D53," ",D$1)),IF(E53="","",CONCATENATE(" ",E53," ",E$1)),IF(F53="","",CONCATENATE(" ",F53," ",F$1)),IF(G53="","",CONCATENATE(" ",G53," ",G$1)),IF(H53="","",CONCATENATE(" ",H53," ",H$1)),IF(J53="","",CONCATENATE(" ",J53," ",J$1)),IF(K53="","",CONCATENATE(" ",K53," ",K$1)),IF(L53="","",CONCATENATE(" ",L53," ",L$1)),IF(M53="","",CONCATENATE(" ",M53," ",M$1)),IF(N53="","",CONCATENATE(" ",N53," ",N$1)),IF(O53="","",CONCATENATE(" ",O53," ",O$1)))) -> 1 TK 2 UD
B54: Dodge Viper SRT10 ACR-X | C54: A | G54: 2 | I54: 23 | L54: 1 | Q54: 2 NS 1 UA
B55: Donkervoort D8 GTO | C55: D | H55: 2 | I55: 25 | Q55: 2 ET
B56: DS 3 Racing | C56: D | H56: 1 | I56: 15 | Q56: 1 ET
B57: DS Survolt | C57: B | F57: 1 | I57: 4 | M57: 1 | Q57: 1 TK 1 UB
B58: Ducati Monster 1200 S | C58: B | D58: 100 | G58: 2 | I58: =1+5+4+15 -> 25 | Q58: 100 TO 2 NS
B59: Ducati SuperSport S | C59: A | G59: 2 | H59: 2 | I59: =2+5+4+15 -> 26 | Q59: 2 NS 2 ET
B60: ED Design Torq | C60: C | D60: 75 | F60: 4 | I60: 30 | Q60: 75 TO 4 TK
B61: Falcon F7 | C61: B | I61: 35 | J61: 1 | Q61: 1 DC
B62: Felino cB7 | C62: C | F62: 3 | I62: 28 | Q62: 3 TK
B63: Ferrari 308 GTS | C63: D | I63: 18 | N63: 1 | P63: 1xC | Q63: 1 UC
B64: Ferrari 330 P4 | C64: A | I64: 38 | L64: 1 | P64: 2xA | Q64: 1 UA
B65: Ferrari 458 Italia | C65: B | G65: 2 | I65: 19 | M65: 1 | Q65: 2 NS 1 UB
B66: Ferrari 599XX | C66: B | G66: 3 | H66: 1 | I66: 20 | Q66: 3 NS 1 ET
B67: Ferrari 612 Scaglietti | C67: C | I67: 34 | J67: 1 | Q67: 1 DC
B68: Ferrari Enzo Ferrari | C68: S | D68: 75 | I68: 48 | Q68: 75 TO
B69: Ferrari F12berlinetta | C69: A | F69: 1 | I69: 23 | L69: 1 | P69: 1xA | Q69: 1 TK 1 UA
B70: Ferrari F40 | C70: B | I70: 30 | J70: 1 | Q70: 1 DC
B71: Ferrari F430 | C71: A | E71: 4 | H71: 1 | I71: 27 | Q71: 4 PC 1 ET
B72: Ferrari F50 | C72: B | I72: 34 | J72: 1 | Q72: 1 DC
B73: Ferrari FF | C73: A | E73: 15 | I73: 34 | Q73: 15 PC
B74: Ferrari FXX Evoluzione | C74: S | G74: 2 | I74: 19 | K74: 1 | Q74: 2 NS 1 US
B75: Ferrari GTC4Lusso | C75: B | H75: 2 | I75: 35 | K75: 1 | Q75: 2 ET 1 US
B76: Ferrari LaFerrari | C76: A | E76: 30 | I76: 24 | L76: 1 | Q76: 30 PC 1 UA
B77: Ferrari Testarossa | C77: B | I77: 23 | M77: 1 | P77: 2xB | Q77: 1 UB
B78: Ford 2006 GT | C78: A | F78: 2 | I78: 27 | Q78: 2 TK
B79: Ford F-150 | C79: D | H79: 1 | I79: 12 | O79: 2 | Q79: 1 ET 2 UD
B80: Ford Focus RS | C80: C | G80: 2 | I80: 17 | Q80: 2 NS
B81: Ford Shelby GT500 | C81: B | I81: 18 | M81: 2 | P81: 1xB | Q81: 2 UB
B82: Geely GC9 | C82: D | I82: 15 | N82: 2 | Q82: 2 UC
B83: GT by CITROEN | C83: S | I83: 67 | S83: ok
B84: GTA Spano | C84: S | I84: 27 | K84: 2 | Q84: 2 US
B85: Hennessey Venom GT | C85: S | D85: 120 | I85: 38 | Q85: 120 TO
B86: Holden Coupe 60 | C86: B | D86: 75 | I86: 32 | J86: 1 | Q86: 75 TO 1 DC
B87: Honda Integra Type-R | C87: B | G87: 3 | I87: =3+7+20 -> 30 | Q87: 3 NS
B88: Honda S2000 | C88: D | F88: 4 | I88: 24 | Q88: 4 TK
B89: HTT Pléthore LC 750 | C89: S | D89: 175 | I89: 45 | Q89: 175 TO
B90: Icona Vulcano V12 Hybrid | C90: A | D90: 150 | E90: 30 | I90: 45 | N90: 1 | Q90: 150 TO 30 PC 1 UC
B91: Infiniti FX50 | C91: C | I91: 20 | N91: 1 | Q91: 1 UC
B92: Jaguar C-X75 | C92: A | I92: 33 | L92: 1 | P92: 1xA | Q92: 1 UA
B93: Jaguar F-Type Project 7 | C93: C | D93: 125 | F93: 4 | I93: 33 | Q93: 125 TO 4 TK | S93: ok
B94: Jaguar F-Type R | C94: C | H94: 1 | I94: 28 | Q94: 1 ET
B95: Jaguar XJ220S | C95: A | D95: 150 | I95: 47 | Q95: 150 TO | S95: ok
B96: Kepler Motion | C96: B | F96: 3 | I96: 42 | Q96: 3 TK
B97: Koenigsegg Agera R | C97: S | F97: 2 | I97: 31 | K97: 1 | Q97: =TRIM(CONCATENATE(IF(D97="","",CONCATENATE(" ",D97," ",D$1)),IF(E97="","",CONCATENATE(" ",E97," ",E$1)),IF(F97="","",CONCATENATE(" ",F97," ",F$1)),IF(G97="","",CONCATENATE(" ",G97," ",G$1)),IF(H97="","",CONCATENATE(" ",H97," ",H$1)),IF(J97="","",CONCATENATE(" ",J97," ",J$1)),IF(K97="","",CONCATENATE(" ",K97," ",K$1)),IF(L97="","",CONCATENATE(" ",L97," ",L$1)),IF(M97="","",CONCATENATE(" ",M97," ",M$1)),IF(N97="","",CONCATENATE(" ",N97," ",N$1)),IF(O97="","",CONCATENATE(" ",O97," ",O$1)))) -> 2 TK 1 US
B98: Koenigsegg One:1 | C98: S | D98: 150 | I98: 40 | Q98: 150 TO
B99: KTM 1290 Super Duke R | C99: C | G99: 2 | I99: =1+3+5+3+8 -> 20 | Q99: 2 NS
B100: Lamborghini Asterion | C100: A | F100: 2 | I100: 39 | Q100: 2 TK
B101: Lamborghini Aventador LP 700-4 | C101: A | I101: 37 | K101: 1 | Q101: 1 US
B102: Lamborghini Aventador SV | C102: S | G102: 6 | I102: 53 | Q102: 6 NS | S102: ok
B103: Lamborghini Countach 25th Anniversary | C103: B | F103: 1 | I103: 9 | M103: 1 | Q103: 1 TK 1 UB
B104: Lamborghini Egoista | C104: S | D104: 150 | I104: 50 | J104: 2 | Q104: 150 TO 2 DC
B105: Lamborghini Estoque | C105: B | D105: 120 | I105: 35 | Q105: 120 TO
B106: Lamborghini Gallardo LP 560-4 2013 | C106: B | F106: 2 | I106: 19 | M106: 1 | P106: 1xB, 2xA | Q106: 2 TK 1 UB
B107: Lamborghini Huracán | C107: S | F107: 5 | I107: 57 | Q107: 5 TK
B108: Lamborghini Miura | C108: C | H108: 1 | I108: 30 | Q108: 1 ET
B109: Lamborghini Sesto Elemento | C109: A | F109: 2 | G109: 3 | I109: 20 | P109: 1xS | Q109: 2 TK 3 NS
B110: Lamborghini Urus | C110: C | F110: 2 | G110: 2 | I110: 12 | P110: 1XB | Q110: 2 TK 2 NS
B111: Lamborghini Veneno | C111: S | G111: 2 | I111: 18 | K111: 1 | Q111: 2 NS 1 US
B112: Lotus Evora Enduro GT | C112: B | I112: 19 | M112: 1 | Q112: 1 UB
B113: Lotus Evora Sport 410 | C113: B | D113: 150 | G113: 4 | I113: 36 | Q113: 150 TO 4 NS
B114: Lotus Exige S Coupe | C114: C | F114: 2 | I114: 14 | M114: 1 | Q114: 2 TK 1 UB
B115: Lucra L148 | C115: A | H115: 1 | I115: 32 | Q115: 1 ET
B116: Marussia B2 | C116: A | G116: 2 | I116: 23 | L116: 1 | Q116: 2 NS 1 UA
B117: Maserati GranTurismo Sport | C117: B | G117: 1 | H117: 1 | I117: 12 | Q117: 1 NS 1 ET
B118: Maserati MC12 | C118: B | H118: 1 | I118: 27 | Q118: 1 ET
B119: Mazda 6 | C119: D | H119: 1 | I119: =1+5+10 -> 16 | Q119: 1 ET
B120: Mazda Furai | C120: B | H120: 1 | I120: 29 | Q120: 1 ET
B121: Mazda RX8 | C121: D | D121: 100 | F121: 1 | I121: =4+20 -> 24 | Q121: 100 TO 1 TK
B122: Mazzanti Evantra | C122: A | D122: 85 | I122: 42 | Q122: 85 TO
B123: McLaren 12C Spider | C123: A | F123: 1 | G123: 3 | I123: 14 | Q123: 1 TK 3 NS
B124: McLaren 570S | C124: A | G124: 4 | I124: 43 | Q124: 4 NS
B125: McLaren 675LT | C125: A | G125: 4 | I125: 38 | Q125: 4 NS
B126: McLaren F1 XP-5 | C126: S | D126: 200 | I126: 59 | Q126: 200 TO
B127: McLaren M14A | C127: C | D127: 125 | I127: 52 | J127: 1 | Q127: 125 TO 1 DC | S127: ok
B128: McLaren Mercedes MP4-25 | C128: A | D128: 200 | I128: 60 | Q128: 200 TO | S128: ok
B129: McLaren MP4-31 | C129: S | D129: 725 | I129: 80 | Q129: 725 TO | S129: ok
B130: McLaren MP4/8 | C130: B | D130: 150 | I130: 50 | J130: 1 | Q130: 150 TO 1 DC | S130: ok
B131: McLaren P1 | C131: A | I131: 18 | K131: 1 | L131: 1 | Q131: 1 US 1 UA
B132: McLaren P1™ GTR | C132: S | D132: 200 | I132: 45 | Q132: 200 TO
B133: Mercedes-AMG C 63 Coupe Touring Car 2014 | C133: A | D133: 150 | I133: 43 | Q133: 150 TO
B134: Mercedes-AMG GT3 | C134: B | D134: 150 | I134: 35 | Q134: 150 TO | S134: ok
B135: Mercedes-Benz Biome | C135: B | I135: 25 | M135: 1 | P135: 1XB | Q135: 1 UB
B136: Mercedes-Benz CLA 45 AMG Racing Series | C136: C | D136: 250 | G136: 3 | I136: 34 | Q136: 250 TO 3 NS
B137: Mercedes-Benz CLK GTR AMG | C137: B | F137: 3 | I137: 27 | Q137: 3 TK
B138: Mercedes-Benz GLC Coupe | C138: C | D138: 70 | I138: 28 | Q138: 70 TO
B139: Mercedes-Benz Silver Lightning | C139: S | E139: 15 | F139: 2 | I139: 22 | Q139: 15 PC 2 TK
B140: Mercedes-Benz SL 65 AMG Black Series | C140: A | G140: 2 | I140: 14 | L140: 1 | Q140: 2 NS 1 UA
B141: Mercedes-Benz SLK 55 AMG | C141: C | G141: 2 | I141: 29 | Q141: 2 NS
B142: Mercedes-Benz SLK 55 AMG Special Edition | C142: A | D142: 225 | E142: 30 | I142: 51 | Q142: 225 TO 30 PC
B143: Mercedes-Benz SLR McLaren 722 Edition | C143: S | D143: 300 | G143: 6 | I143: 53 | Q143: 300 TO 6 NS
B144: Mercedes-Benz SLS AMG Electric Drive | C144: C | G144: 1 | I144: 5 | N144: 1 | Q144: 1 NS 1 UC
B145: Mercedes-Benz SLS AMG GT Coupé Final Edition | C145: A | F145: 3 | I145: 33 | Q145: 3 TK
B146: Mini Cooper S Roadster | C146: D | F146: 2 | I146: 12 | N146: 1 | Q146: =TRIM(CONCATENATE(IF(D146="","",CONCATENATE(" ",D146," ",D$1)),IF(E146="","",CONCATENATE(" ",E146," ",E$1)),IF(F146="","",CONCATENATE(" ",F146," ",F$1)),IF(G146="","",CONCATENATE(" ",G146," ",G$1)),IF(H146="","",CONCATENATE(" ",H146," ",H$1)),IF(J146="","",CONCATENATE(" ",J146," ",J$1)),IF(K146="","",CONCATENATE(" ",K146," ",K$1)),IF(L146="","",CONCATENATE(" ",L146," ",L$1)),IF(M146="","",CONCATENATE(" ",M146," ",M$1)),IF(N146="","",CONCATENATE(" ",N146," ",N$1)),IF(O146="","",CONCATENATE(" ",O146," ",O$1)))) -> 2 TK 1 UC
B147: Mitsubishi Eclipse | C147: C | D147: 125 | I147: =7+25 -> 32 | J147: 1 | Q147: 125 TO 1 DC
B148: Mitsubishi Lancer Evolution X | C148: D | I148: 18 | O148: 2 | P148: 2x ET | Q148: 2 UD
B149: Mosler GT3 | C149: A | H149: 3 | I149: 45 | Q149: 3 ET
B150: Mosler Land Shark | C150: S | F150: 5 | I150: 55 | Q150: 5 TK
B151: Mosler Super GT | C151: S | D151: 200 | I151: =7+12+40 -> 59 | Q151: 200 TO
B152: nanoFlowcell Quant FE | C152: S | D152: 200 | I152: 50 | Q152: 200 TO | S152: ok
B153: nanoFlowcell Quantino | C153: D | D153: 75 | F153: 2 | I153: 20 | Q153: 75 TO 2 TK | S153: ok
B154: Nissan 370Z | C154: D | H154: 2 | I154: 12 | Q154: 2 ET
B155: Nissan GT-R (R35) | C155: B | F155: 2 | G155: 2 | I155: 11 | P155: 1XA | Q155: 2 TK 2 NS
B156: Nissan GT-R NISMO | C156: A | E156: 15 | I156: 30 | Q156: 15 PC
B157: Nissan Juke Nismo | C157: D | G157: 1 | I157: 16 | Q157: 1 NS | S157: ok
B158: Nissan Skyline GT-R (R34) | C158: B | I158: 35 | J158: 1 | Q158: 1 DC
B159: ONUK Sazan LM | C159: B | I159: 34 | L159: 1 | Q159: 1 UA
B160: Pagani Huayra | C160: S | G160: 5 | I160: 28 | Q160: 5 NS
B161: Pagani Zonda R | C161: A | F161: 1 | G161: 3 | I161: 22 | Q161: 1 TK 3 NS
B162: Peugeot Onyx | C162: S | D162: 60 | I162: 38 | Q162: 60 TO
B163: Peugeot RCZ R | C163: D | D163: 75 | I163: 16 | Q163: 75 TO
B164: Peugeot SR1 | C164: B | D164: 100 | F164: 4 | I164: 29 | Q164: 100 TO 4 TK
B165: Porsche 718 Boxster S | C165: C | G165: 2 | I165: 32 | Q165: 2 NS
B166: Porsche 911 GT3 RS | C166: A | E166: 60 | I166: 44 | Q166: 60 PC
B167: Porsche 918 Spyder with Weissach Package | C167: S | D167: 375 | F167: 5 | I167: 69 | Q167: 375 TO 5 TK
B168: Porsche 959 | C168: D | H168: 2 | I168: 24 | Q168: 2 ET
B169: Porsche Cayman GT4 | C169: B | I169: 32 | J169: 1 | Q169: 1 DC
B170: Range Rover Evoque Coupe HSE Dynamic | C170: C | F170: 3 | I170: 25 | Q170: 3 TK
B171: Renault Alpine Celebration | C171: C | D171: 275 | G171: 3 | I171: 33 | Q171: 275 TO 3 NS | S171: ok
B172: Renault CLIO R.S. 200 EDC | C172: D | F172: 2 | I172: 14 | O172: 1 | P172: 1xD; 1xB | Q172: 2 TK 1 UD
B173: Renault DeZir | C173: D | I173: 14 | O173: 1 | P173: 2xD | Q173: 1 UD
B174: Renault Sport R.S. 01 | C174: S | F174: 5 | I174: 52 | Q174: 5 TK
B175: Rimac Concept One | C175: B | F175: 3 | I175: 30 | Q175: 3 TK
B176: Rinspeed zaZen | C176: B | H176: 2 | I176: 30 | Q176: 2 ET
B177: RUF CTR 3 | C177: S | F177: 2 | I177: 30 | K177: 1 | Q177: 2 TK 1 US
B178: RUF RT 12 S | C178: A | F178: 2 | I178: 26 | L178: 1 | P178: 2xA | Q178: 2 TK 1 UA
B179: Savage Rivale GTR | C179: A | I179: 34 | L179: 1 | P179: 1XA | Q179: 1 UA
B180: Savage Rivale Roadyacht GTS | C180: A | E180: 15 | I180: 31 | Q180: 15 PC
B181: Sbarro Alcador | C181: A | F181: 3 | I181: 40 | Q181: 3 TK
B182: Sbarro Sparta | C182: C | F182: 3 | H182: 1 | I182: 34 | Q182: 3 TK 1 ET | S182: ok
B183: Scion FR-S | C183: D | G183: 3 | I183: 11 | O183: 1 | Q183: 3 NS 1 UD
B184: Shelby Cobra 427 | C184: B | F184: 16 | G184: 24 | H184: 12 | Q184: 16 TK 24 NS 12 ET
B185: Sin R1 | C185: A | F185: 3 | I185: 51 | Q185: 3 TK
B186: Spada Codatronca TSS | C186: B | I186: 27 | M186: 2 | Q186: 2 UB
B187: SRT 2013 Dodge Challenger SRT8 | C187: C | I187: 20 | N187: 1 | P187: 1xC | Q187: 1 UC
B188: SSC Tuatara | C188: S | D188: 60 | I188: 37 | Q188: 60 TO
B189: SSC Ultimate Aero XT | C189: S | D189: 150 | I189: 38 | Q189: 150 TO
B190: Subaru Impreza WRX STI | C190: D | G190: 2 | I190: 22 | Q190: 2 NS
B191: Suzuki GSX-R750 | C191: D | H191: 1 | I191: =1+3+1+3+5 -> 13 | Q191: 1 ET
B192: Suzuki Hayabusa | C192: S | D192: 150 | G192: 4 | I192: =2+7+10+16 -> 35 | Q192: 150 TO 4 NS
B193: Tesla Model S | C193: D | F193: 1 | I193: 10 | O193: 2 | Q193: 1 TK 2 UD
B194: Toyota Supra RZ (Mark IV) | C194: C | I194: 36 | J194: 1 | Q194: 1 DC
B195: Tramontana XTR | C195: A | I195: 32 | L195: 3 | Q195: 3 UA
B196: Trion Nemesis | C196: S | D196: 300 | I196: 65 | Q196: 300 TO
B197: TVR Sagaris | C197: B | D197: 150 | I197: 33 | Q197: 150 TO
B198: Volkswagen Beetle Turbo | C198: D | G198: 1 | I198: 15 | Q198: 1 NS
B199: Volkswagen Golf Design Vision GTI | C199: C | I199: 30 | M199: 1 | Q199: 1 UB
B200: Volkswagen W12 | C200: A | G200: 4 | I200: 33 | Q200: 4 NS
... 3 more rows

Sheet Tbl_Car_Max (hidden)
B2: Car Names | D2: Level | E2: Price (cred) | F2: Price (tok) | G2: Price (bp) | H2: Price (lic) | I2: price Max sum | J2: Price Max acceleration | K2: Price Max Top speed | L2: Price Max Handling | M2: Price Max Nitro | N2: price token sum | O2: Price token acceleration | P2: Price token Top speed | Q2: Price token Handling | R2: Price token Nitro | S2: What it was | X2: What it is | AB2: Change
B3: Dodge Dart GT | C3: D | D3: 1 | J3: =X3 -> 250 | K3: =Y3 -> 500 | L3: =Z3 -> 250 | M3: =AA3 -> 375 | S3: 200 | T3: 400 | U3: 200 | V3: 300 | X3: =S3*$AB$3 -> 250 | Y3: =T3*$AB$3 -> 500 | Z3: =U3*$AB$3 -> 250 | AA3: =V3*$AB$3 -> 375 | AB3: 1.25
B4: Dodge Dart GT | C4: D | D4: 2 | J4: =X4 -> 2500 | K4: 5625 | L4: 2500 | M4: 4375 | S4: 2000 | T4: 4500 | U4: 2000 | V4: 3500 | X4: =S4*$AB$3 -> 2500 | Y4: 5625 | Z4: 2500 | AA4: 4375
B5: Dodge Dart GT | C5: D | D5: 3 | J5: 4375 | K5: 10000 | L5: 4375 | M5: 6875 | S5: 3500 | T5: 8000 | U5: 3500 | V5: 5500 | X5: 4375 | Y5: 10000 | Z5: 4375 | AA5: 6875
B6: Dodge Dart GT | C6: D | D6: 4 | J6: 7500 | K6: 18750 | L6: 7500 | M6: 12500 | S6: 6000 | T6: 15000 | U6: 6000 | V6: 10000 | X6: 7500 | Y6: 18750 | Z6: 7500 | AA6: 12500
B7: Dodge Dart GT | C7: D | D7: 5 | J7: 9375 | K7: 25000 | L7: 9375 | M7: 18750 | S7: 10000 | T7: 20000 | U7: 10000 | V7: 15000 | X7: =S7*$AB$7 -> 9375 | Y7: =T7*$AB$3 -> 25000 | Z7: =U7*$AB$7 -> 9375 | AA7: =V7*$AB$3 -> 18750 | AB7: 0.9375
B8: Dodge Dart GT | C8: D | D8: T | E8: 0 | I8: =SUM(J8:M8) -> 150750 | J8: =SUM(J3:J7) -> 24000 | K8: =SUM(K3:K7) -> 59875 | L8: 24000 | M8: 42875
B9: Audi R8 e-tron | C9: D | D9: 1 | J9: 250 | K9: 500 | L9: 250 | M9: 375 | S9: Same changes as DART
B10: Audi R8 e-tron | C10: D | D10: 2 | J10: 2500 | K10: 5625 | L10: 2500 | M10: 4375
B11: Audi R8 e-tron | C11: D | D11: 3 | J11: 4375 | K11: 10000 | L11: 4375 | M11: 6875
B12: Audi R8 e-tron | C12: D | D12: 4 | J12: 7500 | K12: 18750 | L12: 7500 | M12: 12500
B13: Audi R8 e-tron | C13: D | D13: 5 | J13: 9375 | K13: 25000 | L13: 9375 | M13: 18750
B14: Audi R8 e-tron | C14: D | D14: T | E14: 7000 | I14: =SUM(J14:M14) -> 150750 | J14: =SUM(J9:J13) -> 24000 | K14: =SUM(K9:K13) -> 59875 | L14: =SUM(L9:L13) -> 24000 | M14: =SUM(M9:M13) -> 42875
B15: Tesla Model S | C15: D | D15: 1 | J15: =X15 -> 250 | K15: =Y15 -> 500 | L15: =Z15 -> 250 | M15: =AA15 -> 375 | S15: 200 | T15: 400 | U15: 200 | V15: 300 | X15: =S15*$AB$15 -> 250 | Y15: =T15*$AB$15 -> 500 | Z15: =U15*$AB$15 -> 250 | AA15: =V15*$AB$15 -> 375 | AB15: 1.25
B16: Tesla Model S | C16: D | D16: 2 | J16: =X16 -> 2500 | K16: 5625 | L16: 2500 | M16: 4375 | S16: 2000 | T16: 4500 | U16: 2000 | V16: 3500 | X16: 2500 | Y16: 5625 | Z16: 2500 | AA16: 4375
B17: Tesla Model S | C17: D | D17: 3 | J17: 4375 | K17: 10000 | L17: 4375 | M17: 6875 | S17: 3500 | T17: 8000 | U17: 3500 | V17: 5500 | X17: 4375 | Y17: 10000 | Z17: 4375 | AA17: 6875
B18: Tesla Model S | C18: D | D18: 4 | J18: 7500 | K18: 18750 | L18: 7500 | M18: 12500 | S18: 6000 | T18: 15000 | U18: 6000 | V18: 10000 | X18: 7500 | Y18: 18750 | Z18: 7500 | AA18: 12500
B19: Tesla Model S | C19: D | D19: 5 | J19: 12500 | K19: 25000 | L19: 12500 | M19: 18750 | S19: 10000 | T19: 20000 | U19: 10000 | V19: 15000 | X19: =S19*$AB$15 -> 12500 | Y19: 25000 | Z19: 12500 | AA19: 18750
B20: Tesla Model S | C20: D | D20: T | E20: 7500 | I20: =SUM(J20:M20) -> 157000 | J20: =SUM(J15:J19) -> 27125 | K20: =SUM(K15:K19) -> 59875 | L20: =SUM(L15:L19) -> 27125 | M20: =SUM(M15:M19) -> 42875
B21: Cadillac ATS | C21: D | D21: 1 | J21: 250 | K21: 500 | L21: 250 | M21: 375 | S21: Same changes as Tesla
B22: Cadillac ATS | C22: D | D22: 2 | J22: 2500 | K22: 5625 | L22: 2500 | M22: 4375
B23: Cadillac ATS | C23: D | D23: 3 | J23: 4375 | K23: 10000 | L23: 4375 | M23: 6875
B24: Cadillac ATS | C24: D | D24: 4 | J24: 7500 | K24: 18750 | L24: 7500 | M24: 12500
B25: Cadillac ATS | C25: D | D25: 5 | J25: 12500 | K25: 25000 | L25: 12500 | M25: 18750
B26: Cadillac ATS | C26: D | D26: T | E26: 8000 | I26: =SUM(J26:M26) -> 157000 | J26: =SUM(J21:J25) -> 27125 | K26: =SUM(K21:K25) -> 59875 | L26: =SUM(L21:L25) -> 27125 | M26: =SUM(M21:M25) -> 42875 | S26: my previous calculated values | X26: wiki values
B27: Suzuki GSX-R750 | C27: D | D27: 1 | J27: 430 | K27: 920 | L27: 160 | M27: 650 | S27: 612 | T27: 612 | U27: 612 | V27: 612 | X27: 430 | Y27: 920 | Z27: 160 | AA27: 650
B28: Suzuki GSX-R750 | C28: D | D28: 2 | J28: 850 | K28: 1850 | L28: 300 | M28: 1300 | S28: 1190 | T28: 1190 | U28: 1190 | V28: 1190 | X28: 850 | Y28: 1850 | Z28: 300 | AA28: 1300
B29: Suzuki GSX-R750 | C29: D | D29: 3 | J29: 1300 | K29: 3300 | L29: 500 | M29: 2500 | S29: 1870 | T29: 2465 | U29: 1870 | V29: 2465 | X29: 1300 | Y29: 3300 | Z29: 500 | AA29: 2500
B30: Suzuki GSX-R750 | C30: D | D30: 4 | J30: 1300 | K30: 6000 | L30: 500 | M30: 4600 | S30: 1870 | T30: 5440 | U30: 1870 | V30: 4930 | X30: 1300 | Y30: 6000 | Z30: 500 | AA30: 4600
B31: Suzuki GSX-R750 | C31: D | D31: 5 | J31: 2600 | K31: 9300 | L31: 1000 | M31: 5500 | S31: 3740 | T31: 7990 | U31: 3740 | V31: 5440 | X31: 2600 | Y31: 9300 | Z31: 1000 | AA31: 5500
B32: Suzuki GSX-R750 | C32: D | D32: 6 | J32: 3500 | K32: 12200 | L32: 1300 | M32: 7300 | S32: 4930 | T32: 10370 | U32: 4930 | V32: 7310 | X32: 3500 | Y32: 12200 | Z32: 1300 | AA32: 7300
B33: Suzuki GSX-R750 | C33: D | D33: 7 | J33: 3900 | K33: 15800 | L33: 1500 | M33: 9100 | S33: 5440 | T33: 14110 | U33: 5440 | V33: 9180 | X33: 3900 | Y33: 15800 | Z33: 1500 | AA33: 9100
B34: Suzuki GSX-R750 | C34: D | D34: 8 | J34: 5200 | K34: 21300 | L34: 1900 | M34: 12100 | S34: 7310 | T34: 19040 | U34: 7310 | V34: 12240 | X34: 5200 | Y34: 21300 | Z34: 1900 | AA34: 12100
B35: Suzuki GSX-R750 | C35: D | D35: 9 | J35: 6500 | K35: 24600 | L35: 2400 | M35: 14600 | S35: 9180 | T35: 21420 | U35: 9180 | V35: 14620 | X35: 6500 | Y35: 24600 | Z35: 2400 | AA35: 14600
B36: Suzuki GSX-R750 | C36: D | D36: 10 | J36: 8600 | K36: 29200 | L36: 3200 | M36: 18900 | S36: 12240 | T36: 24480 | U36: 12240 | V36: 19040 | X36: 8600 | Y36: 29200 | Z36: 3200 | AA36: 18900
B37: Suzuki GSX-R750 | C37: D | D37: T | E37: 30000 | F37: 150 | I37: =SUM(J37:M37) -> 247960 | J37: =SUM(J27:J36) -> 34180 | K37: =SUM(K27:K36) -> 124470 | L37: =SUM(L27:L36) -> 12760 | M37: =SUM(M27:M36) -> 76550
B38: Cadillac XTS | C38: D | D38: 1 | J38: =X38 -> 250 | K38: =Y38 -> 500 | L38: =Z38 -> 250 | M38: =AA38 -> 375 | S38: 200 | T38: 400 | U38: 200 | V38: 300 | X38: =S38*$AB$38 -> 250 | Y38: =T38*$AB$38 -> 500 | Z38: =U38*$AB$38 -> 250 | AA38: =V38*$AB$38 -> 375 | AB38: 1.25
B39: Cadillac XTS | C39: D | D39: 2 | J39: =X39 -> 2500 | K39: 5625 | L39: 2500 | M39: 4375 | S39: 2000 | T39: 4500 | U39: 2000 | V39: 3500 | X39: =S39*$AB$38 -> 2500 | Y39: 5625 | Z39: 2500 | AA39: 4375
B40: Cadillac XTS | C40: D | D40: 3 | J40: 4375 | K40: 10000 | L40: 4375 | M40: 6875 | S40: 3500 | T40: 8000 | U40: 3500 | V40: 5500 | X40: 4375 | Y40: 10000 | Z40: 4375 | AA40: 6875
B41: Cadillac XTS | C41: D | D41: 4 | J41: 7500 | K41: 18750 | L41: 7500 | M41: 12500 | S41: 6000 | T41: 15000 | U41: 6000 | V41: 10000 | X41: 7500 | Y41: 18750 | Z41: 7500 | AA41: 12500
B42: Cadillac XTS | C42: D | D42: 5 | J42: 15625 | K42: 31250 | L42: 15625 | M42: 25000 | S42: 12500 | T42: 25000 | U42: 12500 | V42: 20000 | X42: 15625 | Y42: 31250 | Z42: 15625 | AA42: 25000
B43: Cadillac XTS | C43: D | D43: T | E43: 10000 | F43: 160 | I43: =SUM(J43:M43) -> 175750 | J43: =SUM(J38:J42) -> 30250 | K43: =SUM(K38:K42) -> 66125 | L43: =SUM(L38:L42) -> 30250 | M43: =SUM(M38:M42) -> 49125
B44: Ford F-150 | C44: D | D44: 1 | J44: 250 | K44: 500 | L44: 250 | M44: 375 | S44: Same changes as XTS
B45: Ford F-150 | C45: D | D45: 2 | J45: 2500 | K45: 5625 | L45: 2500 | M45: 4375
B46: Ford F-150 | C46: D | D46: 3 | J46: 4375 | K46: 10000 | L46: 4375 | M46: 6875
B47: Ford F-150 | C47: D | D47: 4 | J47: 7500 | K47: 18750 | L47: 7500 | M47: 12500
B48: Ford F-150 | C48: D | D48: 5 | J48: 15625 | K48: 31250 | L48: 15625 | M48: 25000
B49: Ford F-150 | C49: D | D49: T | E49: 11000 | I49: =SUM(J49:M49) -> 175750 | J49: =SUM(J44:J48) -> 30250 | K49: =SUM(K44:K48) -> 66125 | L49: =SUM(L44:L48) -> 30250 | M49: =SUM(M44:M48) -> 49125
B50: Scion FR-S | C50: D | D50: 1 | J50: 250 | K50: 500 | L50: 250 | M50: 375 | S50: Same changes as XTS
B51: Scion FR-S | C51: D | D51: 2 | J51: 2500 | K51: 5625 | L51: 2500 | M51: 4375
B52: Scion FR-S | C52: D | D52: 3 | J52: 4375 | K52: 10000 | L52: 4375 | M52: 6875
B53: Scion FR-S | C53: D | D53: 4 | J53: 7500 | K53: 18750 | L53: 7500 | M53: 12500
B54: Scion FR-S | C54: D | D54: 5 | J54: 15625 | K54: 31250 | L54: 15625 | M54: 25000
B55: Scion FR-S | C55: D | D55: T | E55: 11250 | I55: =SUM(J55:M55) -> 175750 | J55: =SUM(J50:J54) -> 30250 | K55: =SUM(K50:K54) -> 66125 | L55: =SUM(L50:L54) -> 30250 | M55: =SUM(M50:M54) -> 49125
B56: Mini Cooper S Roadster | C56: D | D56: 1 | J56: 250 | K56: 500 | L56: 250 | M56: 375 | S56: Same changes as XTS
B57: Mini Cooper S Roadster | C57: D | D57: 2 | J57: 2500 | K57: 5625 | L57: 2500 | M57: 4375
B58: Mini Cooper S Roadster | C58: D | D58: 3 | J58: 4375 | K58: 10000 | L58: 4375 | M58: 6875
B59: Mini Cooper S Roadster | C59: D | D59: 4 | J59: 7500 | K59: 18750 | L59: 7500 | M59: 12500
B60: Mini Cooper S Roadster | C60: D | D60: 5 | J60: 15625 | K60: 31250 | L60: 15625 | M60: 25000
B61: Mini Cooper S Roadster | C61: D | D61: T | E61: 15000 | I61: =SUM(J61:M61) -> 175750 | J61: =SUM(J56:J60) -> 30250 | K61: =SUM(K56:K60) -> 66125 | L61: =SUM(L56:L60) -> 30250 | M61: =SUM(M56:M60) -> 49125
B62: Alfa Romeo MiTo GTA | C62: D | D62: 1 | J62: 250 | K62: 500 | L62: 250 | M62: 375 | S62: Same changes as XTS
B63: Alfa Romeo MiTo GTA | C63: D | D63: 2 | J63: 2500 | K63: 5625 | L63: 2500 | M63: 4375
B64: Alfa Romeo MiTo GTA | C64: D | D64: 3 | J64: 4375 | K64: 10000 | L64: 4375 | M64: 6875
B65: Alfa Romeo MiTo GTA | C65: D | D65: 4 | J65: 7500 | K65: 18750 | L65: 7500 | M65: 12500
B66: Alfa Romeo MiTo GTA | C66: D | D66: 5 | J66: 15625 | K66: 31250 | L66: 15625 | M66: 25000
B67: Alfa Romeo MiTo GTA | C67: D | D67: T | E67: 20000 | F67: 315 | I67: =SUM(J67:M67) -> 175750 | J67: =SUM(J62:J66) -> 30250 | K67: =SUM(K62:K66) -> 66125 | L67: 30250 | M67: 49125
B68: Renault CLIO R.S. 200 EDC | C68: D | D68: 1 | J68: 250 | K68: 500 | L68: 250 | M68: 375 | S68: Same changes as XTS
B69: Renault CLIO R.S. 200 EDC | C69: D | D69: 2 | J69: 2500 | K69: 5625 | L69: 2500 | M69: 4375
B70: Renault CLIO R.S. 200 EDC | C70: D | D70: 3 | J70: 4375 | K70: 10000 | L70: 4375 | M70: 6875
B71: Renault CLIO R.S. 200 EDC | C71: D | D71: 4 | J71: 7500 | K71: 18750 | L71: 7500 | M71: 12500
B72: Renault CLIO R.S. 200 EDC | C72: D | D72: 5 | J72: 15625 | K72: 31250 | L72: 15625 | M72: 25000
B73: Renault CLIO R.S. 200 EDC | C73: D | D73: T | E73: 25000 | I73: =SUM(J73:M73) -> 175750 | J73: =SUM(J68:J72) -> 30250 | K73: =SUM(K68:K72) -> 66125 | L73: 30250 | M73: 49125
B74: Volkswagen Beetle Turbo | C74: D | D74: 1 | J74: 940 | K74: 1880 | L74: 940 | M74: 1410 | S74: No change
B75: Volkswagen Beetle Turbo | C75: D | D75: 2 | J75: 9400 | K75: 21150 | L75: 9400 | M75: 16450
B76: Volkswagen Beetle Turbo | C76: D | D76: 3 | J76: 16450 | K76: 37600 | L76: 16450 | M76: 25850
B77: Volkswagen Beetle Turbo | C77: D | D77: 4 | J77: 28200 | K77: 70500 | L77: 28200 | M77: 47000
B78: Volkswagen Beetle Turbo | C78: D | D78: 5 | J78: 58800 | K78: 117500 | L78: 58800 | M78: 94000
B79: Volkswagen Beetle Turbo | C79: D | D79: T | E79: 26000 | I79: =SUM(J79:M79) -> 660920 | J79: =SUM(J74:J78) -> 113790 | K79: =SUM(K74:K78) -> 248630 | L79: =SUM(L74:L78) -> 113790 | M79: =SUM(M74:M78) -> 184710
B80: Renault DeZir | C80: D | D80: 1 | J80: 1000 | K80: 2000 | L80: 1000 | M80: 1500 | S80: No change
B81: Renault DeZir | C81: D | D81: 2 | J81: 10000 | K81: 22500 | L81: 10000 | M81: 17500
B82: Renault DeZir | C82: D | D82: 3 | J82: 17500 | K82: 40000 | L82: 17500 | M82: 27500
B83: Renault DeZir | C83: D | D83: 4 | J83: 30000 | K83: 75000 | L83: 30000 | M83: 50000
B84: Renault DeZir | C84: D | D84: 5 | J84: 62500 | K84: 125000 | L84: 62500 | M84: 100000
B85: Renault DeZir | C85: D | D85: T | F85: 180 | I85: 703000 | J85: 121000 | K85: 264500 | L85: 121000 | M85: 196500 | S85: My previous values | X85: Wiki's values
B86: Peugeot RCZ R | C86: D | D86: 1 | J86: 1545 | K86: 3090 | L86: 1545 | M86: 2325 | S86: 1030 | T86: 2060 | U86: 1030 | V86: 1550 | X86: 1545 | Y86: 3090 | Z86: 1545 | AA86: 2325
B87: Peugeot RCZ R | C87: D | D87: 2 | J87: 15450 | K87: 34800 | L87: 15450 | M87: 27075 | S87: 10300 | T87: 23200 | U87: 10300 | V87: 18050 | X87: 15450 | Y87: 34800 | Z87: 15450 | AA87: 27075
B88: Peugeot RCZ R | C88: D | D88: 3 | J88: 27075 | K88: 61800 | L88: 27075 | M88: 42525 | S88: 18050 | T88: 41200 | U88: 18050 | V88: 28350 | X88: 27075 | Y88: 61800 | Z88: 27075 | AA88: 42525
B89: Peugeot RCZ R | C89: D | D89: 4 | J89: 46350 | K89: 115950 | L89: 46350 | M89: 77250 | S89: 30900 | T89: 77300 | U89: 30900 | V89: 51500 | X89: 46350 | Y89: 115950 | Z89: 46350 | AA89: 77250
B90: Peugeot RCZ R | C90: D | D90: 5 | J90: 96600 | K90: 193200 | L90: 96600 | M90: 154500 | S90: 64400 | T90: 128800 | U90: 64400 | V90: 103000 | X90: 96600 | Y90: 193200 | Z90: 96600 | AA90: 154500
B91: Peugeot RCZ R | C91: D | D91: T | F91: 525 | G91: 8 | I91: =SUM(J91:M91) -> 1086555 | J91: =SUM(J86:J90) -> 187020 | K91: =SUM(K86:K90) -> 408840 | L91: =SUM(L86:L90) -> 187020 | M91: =SUM(M86:M90) -> 303675 | O91: BP cost is a wild guess
B92: DS 3 Racing | C92: D | D92: 1 | J92: 1030 | K92: 2060 | L92: 1030 | M92: 1550 | S92: BP
B93: DS 3 Racing | C93: D | D93: 2 | J93: 10300 | K93: 23200 | L93: 10300 | M93: 18050
B94: DS 3 Racing | C94: D | D94: 3 | J94: 18050 | K94: 41200 | L94: 18050 | M94: 28350
B95: DS 3 Racing | C95: D | D95: 4 | J95: 30900 | K95: 77300 | L95: 30900 | M95: 51500
B96: DS 3 Racing | C96: D | D96: 5 | J96: 64400 | K96: 128800 | L96: 64400 | M96: 103000
B97: DS 3 Racing | C97: D | D97: T | E97: 105000 | G97: 12 | I97: 724370 | J97: 124680 | K97: 272560 | L97: 124680 | M97: 202450
B98: Audi S4 | C98: D | D98: 1 | J98: 250 | K98: 500 | L98: 250 | M98: 375 | S98: Same changes as XTS
B99: Audi S4 | C99: D | D99: 2 | J99: 2500 | K99: 5625 | L99: 2500 | M99: 4375
B100: Audi S4 | C100: D | D100: 3 | J100: 4375 | K100: 10000 | L100: 4375 | M100: 6875
B101: Audi S4 | C101: D | D101: 4 | J101: 7500 | K101: 18750 | L101: 7500 | M101: 12500
B102: Audi S4 | C102: D | D102: 5 | J102: 15625 | K102: 31250 | L102: 15625 | M102: 25000
B103: Audi S4 | C103: D | D103: T | E103: 28000 | I103: =SUM(J103:M103) -> 175750 | J103: =SUM(J98:J102) -> 30250 | K103: =SUM(K98:K102) -> 66125 | L103: 30250 | M103: 49125
B104: Nissan 370Z | C104: D | D104: 1 | J104: 250 | K104: 500 | L104: 250 | M104: 375 | S104: Same changes as XTS
B105: Nissan 370Z | C105: D | D105: 2 | J105: 2500 | K105: 5625 | L105: 2500 | M105: 4375
B106: Nissan 370Z | C106: D | D106: 3 | J106: 4375 | K106: 10000 | L106: 4375 | M106: 6875
B107: Nissan 370Z | C107: D | D107: 4 | J107: 7500 | K107: 18750 | L107: 7500 | M107: 12500
B108: Nissan 370Z | C108: D | D108: 5 | J108: 15625 | K108: 31250 | L108: 15625 | M108: 25000
B109: Nissan 370Z | C109: D | D109: T | E109: 50000 | I109: =SUM(J109:M109) -> 175750 | J109: =SUM(J104:J108) -> 30250 | K109: =SUM(K104:K108) -> 66125 | L109: 30250 | M109: 49125
B110: Camaro Z/28 | C110: D | D110: 1 | J110: 1090 | K110: 2180 | L110: 1090 | M110: 1640 | S110: No change
B111: Camaro Z/28 | C111: D | D111: 2 | J111: 10900 | K111: 24550 | L111: 10900 | M111: 19100
B112: Camaro Z/28 | C112: D | D112: 3 | J112: 19100 | K112: 43600 | L112: 19100 | M112: 30000
B113: Camaro Z/28 | C113: D | D113: 4 | J113: 32700 | K113: 81800 | L113: 32700 | M113: 54500
B114: Camaro Z/28 | C114: D | D114: 5 | J114: 68100 | K114: 136300 | L114: 68100 | M114: 109000
B115: Camaro Z/28 | C115: D | D115: T | E115: 0 | H115: 300 | I115: 766450 | J115: 131890 | K115: 288430 | L115: 131890 | M115: 214240
B116: 1967 Chevrolet Impala | C116: D | D116: 1 | J116: 10050 | K116: 14360 | L116: 10050 | M116: 11490 | S116: BP
B117: 1967 Chevrolet Impala | C117: D | D117: 2 | J117: 16800 | K117: 37500 | L117: 16800 | M117: 27150
B118: 1967 Chevrolet Impala | C118: D | D118: 3 | J118: 29750 | K118: 64650 | L118: 29750 | M118: 47850
B119: 1967 Chevrolet Impala | C119: D | D119: 4 | J119: 33600 | K119: 71100 | L119: 33600 | M119: 51700
B120: 1967 Chevrolet Impala | C120: D | D120: 5 | J120: 38800 | K120: 77600 | L120: 38800 | M120: 58200
B121: 1967 Chevrolet Impala | C121: D | D121: T | F121: 1000 | G121: 14 | I121: =SUM(J121:M121) -> 719600 | J121: =SUM(J116:J120) -> 129000 | K121: =SUM(K116:K120) -> 265210 | L121: =SUM(L116:L120) -> 129000 | M121: =SUM(M116:M120) -> 196390
B122: Honda S2000 | C122: D | D122: 1 | J122: 5720 | K122: 13340 | L122: 5720 | M122: 9530 | S122: No change
B123: Honda S2000 | C123: D | D123: 2 | J123: 41300 | K123: 92100 | L123: 41300 | M123: 66700
B124: Honda S2000 | C124: D | D124: 3 | J124: 73050 | K124: 158750 | L124: 73050 | M124: 117500
B125: Honda S2000 | C125: D | D125: 4 | J125: 108000 | K125: 238100 | L125: 108000 | M125: 177800
B126: Honda S2000 | C126: D | D126: 5 | J126: 158800 | K126: 381000 | L126: 158800 | M126: 285800
B127: Honda S2000 | C127: D | D127: T | E127: 295000 | I127: 2314360 | J127: 386870 | K127: 883290 | L127: 386870 | M127: 657330
B128: 2015 Ford Mustang | C128: D | D128: 1 | J128: 430 | K128: 860 | L128: 430 | M128: 640 | S128: No change
B129: 2015 Ford Mustang | C129: D | D129: 2 | J129: 4300 | K129: 9650 | L129: 4300 | M129: 7500
B130: 2015 Ford Mustang | C130: D | D130: 3 | J130: 7500 | K130: 17100 | L130: 7500 | M130: 11750
B131: 2015 Ford Mustang | C131: D | D131: 4 | J131: 12800 | K131: 32100 | L131: 12800 | M131: 21400
B132: 2015 Ford Mustang | C132: D | D132: 5 | J132: 26800 | K132: 53500 | L132: 26800 | M132: 42800
B133: 2015 Ford Mustang | C133: D | D133: T | F133: 1050 | I133: 300960 | J133: 51830 | K133: 113210 | L133: 51830 | M133: 84090
B134: Nissan Juke Nismo | C134: D | D134: 1 | J134: 1390 | K134: 2780 | L134: 1390 | M134: 2080 | S134: No change
B135: Nissan Juke Nismo | C135: D | D135: 2 | J135: 13900 | K135: 31200 | L135: 13900 | M135: 24300
B136: Nissan Juke Nismo | C136: D | D136: 3 | J136: 20650 | K136: 47200 | L136: 20650 | M136: 32450
B137: Nissan Juke Nismo | C137: D | D137: 4 | J137: 29100 | K137: 72800 | L137: 29100 | M137: 48600
B138: Nissan Juke Nismo | C138: D | D138: 5 | J138: 60700 | K138: 121400 | L138: 60700 | M138: 97100
B139: Nissan Juke Nismo | C139: D | D139: T | E139: 155000 | F139: 1100 | I139: 731390 | J139: 125740 | K139: 275380 | L139: 125740 | M139: 204530
B140: Alfa Romeo Giulietta 2016 Veloce | C140: D | D140: 1 | J140: 1550 | K140: 3100 | L140: 1550 | M140: 2320 | S140: BP
B141: Alfa Romeo Giulietta 2016 Veloce | C141: D | D141: 2 | J141: 15500 | K141: 34850 | L141: 15500 | M141: 27100
B142: Alfa Romeo Giulietta 2016 Veloce | C142: D | D142: 3 | J142: 23050 | K142: 52700 | L142: 23050 | M142: 36250
B143: Alfa Romeo Giulietta 2016 Veloce | C143: D | D143: 4 | J143: 32500 | K143: 81400 | L143: 32500 | M143: 54200
B144: Alfa Romeo Giulietta 2016 Veloce | C144: D | D144: 5 | J144: 67800 | K144: 135600 | L144: 67800 | M144: 108500
B145: Alfa Romeo Giulietta 2016 Veloce | C145: D | D145: T | E145: 170000 | F145: 1200 | G145: 16 | I145: 816820 | J145: 140400 | K145: 307650 | L145: 140400 | M145: 228370
B146: Porsche 959 | C146: D | D146: 1 | J146: 1550 | K146: 3100 | L146: 1550 | M146: 2320 | S146: BP
B147: Porsche 959 | C147: D | D147: 2 | J147: 15500 | K147: 34850 | L147: 15500 | M147: 27100
B148: Porsche 959 | C148: D | D148: 3 | J148: 23050 | K148: 52700 | L148: 23050 | M148: 36250
B149: Porsche 959 | C149: D | D149: 4 | J149: 32500 | K149: 81400 | L149: 32500 | M149: 54200
B150: Porsche 959 | C150: D | D150: 5 | J150: 67800 | K150: 135600 | L150: 67800 | M150: 108500
B151: Porsche 959 | C151: D | D151: T | F151: 1100 | G151: 14 | I151: 816820 | J151: 140400 | K151: 307650 | L151: 140400 | M151: 228370
B152: Ferrari 308 GTS | C152: D | D152: 1 | J152: 1120 | K152: 2240 | L152: 1120 | M152: 1680 | S152: No change
B153: Ferrari 308 GTS | C153: D | D153: 2 | J153: 11200 | K153: 25200 | L153: 11200 | M153: 19600
B154: Ferrari 308 GTS | C154: D | D154: 3 | J154: 19600 | K154: 44800 | L154: 19600 | M154: 30800
B155: Ferrari 308 GTS | C155: D | D155: 4 | J155: 33600 | K155: 84000 | L155: 33600 | M155: 56000
B156: Ferrari 308 GTS | C156: D | D156: 5 | J156: 70000 | K156: 140000 | L156: 70000 | M156: 112000
B157: Ferrari 308 GTS | C157: D | D157: T | E157: 175000 | I157: 787360 | J157: 135520 | K157: 296240 | L157: 135520 | M157: 220080
B158: BMW M3 Sedan | C158: D | D158: 1 | J158: 5090 | K158: 11870 | L158: 5090 | M158: 8480 | S158: No change
B159: BMW M3 Sedan | C159: D | D159: 2 | J159: 36750 | K159: 81950 | L159: 36750 | M159: 59350
B160: BMW M3 Sedan | C160: D | D160: 3 | J160: 65000 | K160: 141250 | L160: 65000 | M160: 104550
B161: BMW M3 Sedan | C161: D | D161: 4 | J161: 96100 | K161: 211900 | L161: 96100 | M161: 158200
B162: BMW M3 Sedan | C162: D | D162: 5 | J162: 141300 | K162: 339000 | L162: 141300 | M162: 254300
B163: BMW M3 Sedan | C163: D | D163: T | F163: 950 | I163: 2059330 | J163: 344240 | K163: 785970 | L163: 344240 | M163: 584880
B164: Mazda 6 | C164: D | D164: 1 | J164: 3200 | K164: 7040 | L164: 3200 | M164: 5120 | S164: BP
B165: Mazda 6 | C165: D | D165: 2 | J165: 25600 | K165: 57600 | L165: 25600 | M165: 41600
